Workbook

Sheet Eingabemaske
AD3: HPSU compact 508 6 kW (biv) | AE3: 2
K4: 0 | AD4: HPSU compact 508 8 kW (biv) | AE4: 3
T5: Ergebnisliste
E6: Auslegungsobjekt: | T6: Altherma 4 H ECH2O 500 8 kW (empfohlen) | AE6: =IFERROR(VLOOKUP(T6,AM100:AN161,2,FALSE),"") -> 2
AO9: 2
AO10: 1
E17: Parameter
E18: Brauchwasserbereitung: | G18: ja
E19: Anzahl Personen: | G19: 4
E20: Vorlauftemperatur [°C]: | G20: 50 | J20: =IF(G20<=60,"","Bitte beachten!") -> 
E21: Temperaturspreizung [K]: | G21: 10
E22: Gebäudetyp: | G22: Altbau
E23: Normaußentemperatur [°C]: | G23: =Leistungsbedarf!H41 -> -8 | J23: PLZ:
E24: Kühlen: | G24: ja
E25: Sperrzeiten [h]: | G25: 0 | H25: x | I25: 0
E27: Warmwassertemperatur [°C]: | G27: 50 | J27: (Standard: 50 °C)
E30: Gerätetyp
E31: =Dropdown!A2 -> Altherma 3 R ECH2O | G31: =Dropdown!A11 -> Altherma 3 M
E32: =Dropdown!A3 -> Altherma 3 R W | G32: =Dropdown!A12 -> Altherma H Hybrid
E33: =Dropdown!A4 -> Altherma 3 R F | G33: =Dropdown!A13 -> Altherma 3 H MT ECH2O
E34: =Dropdown!A5 -> Altherma 3 H HT ECH2O | G34: =Dropdown!A14 -> Altherma 3 H MT F
E35: =Dropdown!A6 -> Altherma 3 H HT W | G35: =Dropdown!A15 -> Altherma 3 H MT W
E36: =Dropdown!A7 -> Altherma 3 H HT F | G36: =Dropdown!A19 -> Altherma 4 H ECH2O
E37: =Dropdown!A16 -> Altherma 3 R MT ECH2O | G37: =Dropdown!A20 -> Altherma 4 H F
E39: =Dropdown!A17 -> Altherma 3 R MT F | G39: =Dropdown!A21 -> Altherma 4 H W
E40: =Dropdown!A18 -> Altherma 3 R MT W
E52: Gebäudeheizlast
E59: Gebäudeheizlast: | I59: kW
E61: Bekannter Energiebedarf:
E62: Brennstoff: | K62: =IF(G62="Heizöl","l",IF(G62="Erdgas","m³",IF(G62="Strom","kWh",""))) -> 
E63: Brauchwasserbereitung: | I63: Personen: | K63: 4 | T63: Heizlast: | X63: =Leistungsbedarf!G15 ->  | Y63: kW
E64: Anlagenwirkungsgrad: | L64: % | T64: Leistungsbedarf: | X64: =Berechnung!B9 -> 0 | Y64: kW
E66: Energiepass: | T66: Leistung der WP bei Normaußentemperatur: | X66: =Q86 -> 7.548005905 | Y66: kW
E67: Gebäudenutzfläche (A): | K67: m² | T67: JAZ: | X67: =IF(I84="Altherma R Hybrid 5 kW",N87,IF(I84="Altherma R Hybrid 8 kW",N87,IF(I84="Altherma H Hybrid 4 kW",N87,IF(K87=0,"-",K87)))) -> 4.43 | AF67: Stand: 06.2025_V31
E68: spez. Jahresheizwärmebedarf (q): | K68: kWh/(m²*a) | T68: Bivalenzpunkt: | X68: =IF(L86="","-",L86) -> -5.046262046 | Y68: °C | | Z68: =IF(M86="","-",M86) -> 7.749517525 | AB68: Stromkosten: | AC68: 30 | AD68: ct/kWh
E69: Jahresheizwärmebedarf (Q): | K69: kWh/a | T69: =IF(I84="Altherma R Hybrid 5 kW","Anteil Gasgerät bei Normaußentemperatur:",IF(I84="Altherma R Hybrid 8 kW","Anteil Gasgerät bei Normaußentemperatur:",IF(I84="Altherma H Hybrid","Anteil Gasgerät bei Normaußentemperatur:","Heizstabanteil bei Normaußentemperatur:"))) -> Heizstabanteil bei Normaußentemperatur: | X69: =IF(((Q85-Q86)*100%/Q85*100)<0,0,((Q85-Q86)*100%/Q85*100)) -> 21.9000131 | Y69: % | | Z69: =X64-Q86 -> -7.548005905
T70: =IF(I84="Altherma R Hybrid 5 kW","Anteil Gasgerät am Jahreswärmebedarf:",IF(I84="Altherma R Hybrid 8 kW","Anteil Gasgerät am Jahreswärmebedarf:",IF(I84="Altherma H Hybrid","Anteil Gasgerät am Jahreswärmebedarf:","Heizstabanteil am Jahreswärmebedarf:"))) -> Heizstabanteil am Jahreswärmebedarf: | X70: =IF(Berechnung!F129<1,"<1",Berechnung!F129) -> >13 | Y70: %
T71: Stromkosten / Energiebedarf: | X71: =IF(I84="Altherma R Hybrid 5 kW","-",IF(I84="Altherma R Hybrid 8 kW","-",IF(I84="Altherma H Hybrid 4 kW","-",IF(ISERROR(ROUND(Berechnung!I136,-1)),"-",ROUND(Berechnung!I136,-1))))) -> - | Y71: € * / | Z71: =IF(I84="Altherma R Hybrid 5 kW","-",IF(I84="Altherma R Hybrid 8 kW","-",IF(I84="Altherma H Hybrid 4 kW","-",IF(ISERROR(ROUND(Berechnung!J136,-1)),"-",ROUND(Berechnung!J136,-1))))) -> - | AA71: * | AB71: * Es handelt sich hierbei um Schätzwerte. Individuelle Nutzergewohnheiten
T72: =IF(I84="Altherma H Hybrid 4 kW","Leistungsanteil bei Normaußentemperatur:","Volllaststunden:") -> Volllaststunden: | X72: =IF(I84="Altherma H Hybrid 4 kW",ROUND(X66/X63*100,0),Leistungsbedarf!G42) ->  | Y72: h | AB72: können einen erheblichen Einfluss auf den Energiebedarf / die Stromkosten haben.
I84: Altherma 4 H ECH2O 500 8 kW | K84: 4.68 | L84: 3.59 | P84: Temperatur | Q84: -10 | R84: -9.5 | S84: -9 | T84: -8.5 | U84: -8 | V84: -7.5 | W84: -7 | X84: -6.5 | Y84: -6 | Z84: -5.5 | AA84: -5 | AB84: -4.5 | AC84: -4 | AD84: -3.5 | AE84: -3 | AF84: -2.5 | AG84: -2 | AH84: -1.5 | AI84: -1 | AJ84: -0.5 | AK84: 0 | AL84: 0.5 | AM84: 1 | AN84: 1.5 | AO84: 2 | AP84: 2.5 | AQ84: 3 | AR84: 3.5 | AS84: 4 | AT84: 4.5 | AU84: 5 | AV84: 5.5 | AW84: 6 | AX84: 6.5 | AY84: 7 | AZ84: 7.5 | BA84: 8 | BB84: 8.5 | BC84: 9 | BD84: 9.5 | BE84: 10 | BF84: 10.5 | BG84: 11 | BH84: 11.5 | BI84: 12 | BJ84: 12.5 | BK84: 13 | BL84: 13.5 | BM84: 14 | BN84: 14.5 | BO84: 15
I85: 11 | J85: -0.1066052695 | K85: 7.2115594 | L85: -5.046262046 | M85: 0 | N85: 0 | O85: 7.749517525 | P85: Heizlast | Q85: 9.664541833 | R85: 9.471250996 | S85: 9.277960159 | T85: 9.084669323 | U85: 8.891378486 | V85: 8.698087649 | W85: 8.504796813 | X85: 8.311505976 | Y85: 8.118215139 | Z85: 7.924924303 | AA85: 7.731633466 | AB85: 7.538342629 | AC85: 7.345051793 | AD85: 7.151760956 | AE85: 6.95847012 | AF85: 6.765179283 | AG85: 6.571888446 | AH85: 6.37859761 | AI85: 6.185306773 | AJ85: 5.992015936 | AK85: 5.7987251 | AL85: 5.605434263 | AM85: 5.412143426 | AN85: 5.21885259 | AO85: 5.025561753 | AP85: 4.832270916 | AQ85: 4.63898008 | AR85: 4.445689243 | AS85: 4.252398406 | AT85: 4.05910757 | AU85: 3.865816733 | AV85: 3.672525896 | AW85: 3.47923506 | AX85: 3.285944223 | AY85: 3.092653386 | AZ85: 2.89936255 | BA85: 2.706071713 | BB85: 2.512780876 | BC85: 2.31949004 | BD85: 2.126199203 | BE85: 1.932908367 | BF85: 1.73961753 | BG85: 1.546326693 | BH85: 1.353035857 | BI85: 1.15974502 | BJ85: 0.9664541833 | BK85: 0.7731633466 | BL85: 0.57987251 | BM85: 0.3865816733 | BN85: 0.1932908367 | BO85: -5.551115123e-17
J86: -0.3865816733 | K86: 5.7987251 | L86: -5.046262046 | M86: 7.749517525 | N86: -5.046262046 | O86: 7.749517525 | P86: Leistung | Q86: 7.548005905 | R86: 7.616304302 | S86: 7.684602699 | T86: 7.752901096 | U86: 7.821199493 | V86: 7.88949789 | W86: 7.957796286 | X86: 7.904493652 | Y86: 7.851191017 | Z86: 7.797888382 | AA86: 7.744585747 | AB86: 7.691283113 | AC86: 7.637980478 | AD86: 7.584677843 | AE86: 7.531375208 | AF86: 7.478072574 | AG86: 7.424769939 | AH86: 7.310978978 | AI86: 7.197188018 | AJ86: 7.083397058 | AK86: 6.969606097 | AL86: 6.855815137 | AM86: 6.742024177 | AN86: 6.628233216 | AO86: 6.514442256 | AP86: 6.630716009 | AQ86: 6.746989762 | AR86: 6.863263514 | AS86: 6.979537267 | AT86: 7.09581102 | AU86: 7.212084773 | AV86: 7.328358525 | AW86: 7.444632278 | AX86: 7.560906031 | AY86: 7.677179784 | AZ86: 7.483552607 | BA86: 7.28992543 | BB86: 7.096298253 | BC86: 6.902671076 | BD86: 6.709043899 | BE86: 6.515416722 | BF86: 6.321789545 | BG86: 6.128162369 | BH86: 5.934535192 | BI86: 5.740908015 | BJ86: 5.798344718 | BK86: 5.855781421 | BL86: 5.913218124 | BM86: 5.970654827 | BN86: 6.02809153 | BO86: 6.085528233
J87: empfohlen | K87: 4.43 | L87: 9 | M87: 0,4 | N87: 4.43 | O87: 3.32 | P87: 4.46 | Q87: 5.01 | R87: 0
AM102: Altherma 4 H ECH2O 500 14 kW | AN102: 5 | AO102: 0,1
AM103: Altherma 4 H F 230 14 kW | AN103: 10 | AO103: 0,11
AM104: Altherma 4 H W 14 kW | AN104: 15 | AO104: 0,13
AM105: Altherma 4 H ECH2O 500 12 kW | AN105: 4 | AO105: 0,2
AM106: Altherma 4 H F 230 12 kW | AN106: 9 | AO106: 0,21
AM107: Altherma 4 H W 12 kW | AN107: 14 | AO107: 0,22
AM108: Altherma 4 H ECH2O 500 10 kW | AN108: 3 | AO108: 0,3
AM109: Altherma 4 H F 230 10 kW | AN109: 8 | AO109: 0,31
AM110: Altherma 4 H W 10 kW | AN110: 13 | AO110: 0,32
AM111: Altherma 4 H ECH2O 500 8 kW (empfohlen) | AN111: 2 | AO111: 0,4
AM112: Altherma 4 H F 230 8 kW (empfohlen) | AN112: 7 | AO112: 0,41
AM113: Altherma 4 H W 8 kW (empfohlen) | AN113: 12 | AO113: 0,42
AM114: Altherma 4 H ECH2O 500 6 kW | AN114: 1 | AO114: 0,5
AM115: Altherma 4 H F 230 6 kW | AN115: 6 | AO115: 0,51
AM116: Altherma 4 H W 6 kW | AN116: 11 | AO116: 0,52

Sheet Anleitung

Sheet Leistungsbedarf (hidden)
A1: Heizleistung Brauchwasser pro Person: | B1: 0.2 | C1: kW
A2: Gesamt: | B2: =IF(Eingabemaske!G18="ja",Eingabemaske!G19*Leistungsbedarf!B1,IF(Eingabemaske!G18="nein",0)) -> 0.8 | C2: kW
A4: Sperrzeit: | B4: =Eingabemaske!G25*Eingabemaske!I25 -> 0 | C4: h
A7: Berechnung aus bekanntem Energiebedarf
H8: =Eingabemaske!K64/100 -> 0
A9: Energiegehalt Heizöl: | B9: 11 | C9: kWh/l
A10: Energiegehalt Gas: | B10: 11 | C10: kWh/m³
A11: Energiebedarf WW pro Person: | B11: 500 | C11: kWh/a
A12: Vollbenutzungsstunden: | B12: 1865 | C12: h/a
A14: Energiegehalt gewählter Brennstoff: | B14: =IF(Eingabemaske!G62="Heizöl",Leistungsbedarf!B9,IF(Eingabemaske!G62="Erdgas",Leistungsbedarf!B10,IF(Eingabemaske!G62="Strom",1))) -> FALSE | G14: Heizlast
A15: Energiegehalt Warmwasser | B15: =IF(Eingabemaske!G63="ja",Eingabemaske!K63*Leistungsbedarf!B11,IF(Eingabemaske!G63="nein",0)) -> FALSE | C15: kWh | G15: =IF(B17>0,B17,IF(B26>0,B26,IF(B34>0,B34,0))) ->  | H15: kW
A17: Gebäudeheizlast | B17: =((Eingabemaske!J62*Leistungsbedarf!B14)*(F44/100)-(B15))/B43 ->  | C17: kW
A19: Leistungsbedarf: | B19: =(B17+B2)*(24/(24-B4)) ->  | C19: kW
G23: Hilfstabelle für B9
A24: Direkteingabe | G24: =B17 ->  | H24: =B19 -> 
G25: =B26 -> 0 | H25: =B28 -> 0.8
A26: Heizlast | B26: =Eingabemaske!G59 -> 0 | C26: kW | G26: =B34 ->  | H26: =B36 -> 
A28: Leistungsbedarf: | B28: =(B26+B2)*(24/(24-B4)) -> 0.8 | C28: kW
A32: Energiepass
A34: Heizlast | B34: =(Eingabemaske!J69/B43)*1.2 ->  | C34: kW
A36: Leistungsbedarf: | B36: =(B34+B2)*(24/(24-B4)) ->  | C36: kW
A39: Vollbenutzungsstunden: | B39: Neubau: | C39: 1700 | D39: h
B40: Altbau: | C40: =G42 ->  | D40: h | E40: Gradtagszahl | G40: =VLOOKUP(Eingabemaske!K23,Klimadaten!C:P,13) -> 
B41: Passivhaus: | C41: 1500 | D41: h | E41: Normaußentemperatur | G41: =IFERROR(VLOOKUP(Eingabemaske!K23,Klimadaten!C6:L8204,3),"") ->  | H41: =IF(G41<-16,-16,IF(G41>-8,-8,ROUND(G41,0))) -> -8
E42: Vollbenutzungsstunden | G42: =ROUND(G40*24/(15-G41),0) -> 
B43: =IF(Eingabemaske!G22="Neubau",C39,IF(Eingabemaske!G22="Altbau",C40,IF(Eingabemaske!G22="Passivhaus",C41))) -> 
E44: Wirkungsgrad | F44: =IF(Eingabemaske!G64="Brennwert 90 %",90,IF(Eingabemaske!G64="Niedertemperatur 80 %",80,IF(Eingabemaske!G64="Freie Eingabe",Eingabemaske!K64,IF(Eingabemaske!G64="Nachtspeicher 60 %",60,IF(Eingabemaske!G64="Direktheizung 100 %",100))))) -> FALSE

Sheet Berechnung (hidden)
A2: Heizgrenztemperatur | B2: =IF(Eingabemaske!G22="Altbau",Dropdown!N2,IF(Eingabemaske!G22="Neubau",Dropdown!N3,IF(Eingabemaske!G22="Passivhaus",Dropdown!N4))) -> 15 | C2: x-Achse | E2: Mittelwerte: | F2: =(B2-B3)*2 -> 46
A3: Normaußentemperatur | B3: =Eingabemaske!G23 -> -8 | C3: x-Achse
A5: Heizleistung Brauchwasser | B5: =Eingabemaske!G19*Leistungsbedarf!B11 -> 2000 | C5: kW
A6: VLT | B6: =Eingabemaske!G20 -> 50 | C6: °C
B8: 0 | C8: y-Achse
A9: Heizlast | B9: =SUMIFS(Leistungsbedarf!H24:H26,Leistungsbedarf!G24:G26,">0") -> 0 | C9: y-Achse
A11: Altherma 4 H W 14 kW | C11: =IFERROR(ROUND(G60,2),"") -> 4.72 | D11: =IFERROR(ROUND(A41,2),"") -> 3.94 | H11: Temperatur | I11: -10 | J11: -9.5 | K11: -9 | L11: -8.5 | M11: -8 | N11: -7.5 | O11: -7 | P11: -6.5 | Q11: -6 | R11: -5.5 | S11: -5 | T11: -4.5 | U11: -4 | V11: -3.5 | W11: -3 | X11: -2.5 | Y11: -2 | Z11: -1.5 | AA11: -1 | AB11: -0.5 | AC11: 0 | AD11: 0.5 | AE11: 1 | AF11: 1.5 | AG11: 2 | AH11: 2.5 | AI11: 3 | AJ11: 3.5 | AK11: 4 | AL11: 4.5 | AM11: 5 | AN11: 5.5 | AO11: 6 | AP11: 6.5 | AQ11: 7 | AR11: 7.5 | AS11: 8 | AT11: 8.5 | AU11: 9 | AV11: 9.5 | AW11: 10 | AX11: 10.5 | AY11: 11 | AZ11: 11.5 | BA11: 12 | BB11: 12.5 | BC11: 13 | BD11: 13.5 | BE11: 14 | BF11: 14.5 | BG11: 15
A12: =MATCH(TRUE,I13:BW13>=I12:BW12,0) -> 1 | B12: =LINEST(OFFSET(I13:BW13,0,A12-2,,2),OFFSET(I11:BW11,0,A12-2,,2),1) ->  | D12: =D13 ->  | E12: 0 | F12: 0 | G12: =E13 ->  | H12: Heizlast | I12: 9.664541833 | J12: 9.471250996 | K12: 9.277960159 | L12: 9.084669323 | M12: 8.891378486 | N12: 8.698087649 | O12: 8.504796813 | P12: 8.311505976 | Q12: 8.118215139 | R12: 7.924924303 | S12: 7.731633466 | T12: 7.538342629 | U12: 7.345051793 | V12: 7.151760956 | W12: 6.95847012 | X12: 6.765179283 | Y12: 6.571888446 | Z12: 6.37859761 | AA12: 6.185306773 | AB12: 5.992015936 | AC12: 5.7987251 | AD12: 5.605434263 | AE12: 5.412143426 | AF12: 5.21885259 | AG12: 5.025561753 | AH12: 4.832270916 | AI12: 4.63898008 | AJ12: 4.445689243 | AK12: 4.252398406 | AL12: 4.05910757 | AM12: 3.865816733 | AN12: 3.672525896 | AO12: 3.47923506 | AP12: 3.285944223 | AQ12: 3.092653386 | AR12: 2.89936255 | AS12: 2.706071713 | AT12: 2.512780876 | AU12: 2.31949004 | AV12: 2.126199203 | AW12: 1.932908367 | AX12: 1.73961753 | AY12: 1.546326693 | AZ12: 1.353035857 | BA12: 1.15974502 | BB12: 0.9664541833 | BC12: 0.7731633466 | BD12: 0.57987251 | BE12: 0.3865816733 | BF12: 0.1932908367 | BG12: -5.551115123e-17
B13: =LINEST(OFFSET(I12:BW12,0,A12-2,,2),OFFSET(I11:BW11,0,A12-2,,2),1) ->  | D13: =(C13-C12)/(B12-B13) ->  | E13: =D13*B13+C13 ->  | F13: =D13 ->  | G13: =E13 ->  | H13: Leistung | I13: 13.08025179 | J13: 13.08587697 | K13: 13.09150215 | L13: 13.09712732 | M13: 13.1027525 | N13: 13.10837768 | O13: 13.11400286 | P13: 13.12930257 | Q13: 13.14460229 | R13: 13.159902 | S13: 13.17520172 | T13: 13.19050143 | U13: 13.20580114 | V13: 13.22110086 | W13: 13.23640057 | X13: 13.25170029 | Y13: 13.267 | Z13: 12.97868747 | AA13: 12.69037493 | AB13: 12.4020624 | AC13: 12.11374986 | AD13: 11.82543733 | AE13: 11.53712479 | AF13: 11.24881226 | AG13: 10.96049973 | AH13: 11.38571642 | AI13: 11.81093311 | AJ13: 12.23614981 | AK13: 12.6613665 | AL13: 13.0865832 | AM13: 13.51179989 | AN13: 13.93701658 | AO13: 14.36223328 | AP13: 14.78744997 | AQ13: 15.21266667 | AR13: 14.8953 | AS13: 14.57793333 | AT13: 14.26056667 | AU13: 13.9432 | AV13: 13.62583333 | AW13: 13.30846667 | AX13: 12.9911 | AY13: 12.67373333 | AZ13: 12.35636667 | BA13: 12.039 | BB13: 12.20672222 | BC13: 12.37444444 | BD13: 12.54216667 | BE13: 12.70988889 | BF13: 12.87761111 | BG13: 13.04533333
B14: =IFERROR(IF(B108="empfohlen","empfohlen",""),"") ->  | C14: =IFERROR(A58,"") -> 4.56 | D14: 9 | E14: 0,13 | F14: =IFERROR(B70,"") -> 4.56 | G14: 3.49 | H14: 4.06 | I14: 5.5 | J14: 0
A19: nach VDI 4650 Blatt 1 - Stand 2016
A20: SCOPH:
F21: COP
A22: =(G27/(G28/F23+G29/G23+G30/H23)) -> 4.724930613 | F22: -7 | G22: 2 | H22: 7
F23: 3.49 | G23: 4.06 | H23: 5.5
F27: FΔϑ | G27: =SUMIFS(Korrekturfaktoren!D2:D65,Korrekturfaktoren!B2:B65,Eingabemaske!G21,Korrekturfaktoren!C2:C65,5) -> 1.051
F28: Fϑ 1 | G28: =SUMIFS(Korrekturfaktoren!F69:F2579,Korrekturfaktoren!B69:B2579,B30,Korrekturfaktoren!C69:C2579,Berechnung!B3,Korrekturfaktoren!D69:D2579,F22,Korrekturfaktoren!E69:E2579,Eingabemaske!G20) -> 0.011 | H28: =SUMIFS(Korrekturfaktoren!G69:G2579,Korrekturfaktoren!B69:B2579,B30,Korrekturfaktoren!C69:C2579,Berechnung!B3,Korrekturfaktoren!D69:D2579,F22,Korrekturfaktoren!E69:E2579,Eingabemaske!G20) -> 0
A29: Hilfswerte: | F29: Fϑ 2 | G29: =SUMIFS(Korrekturfaktoren!F69:F2579,Korrekturfaktoren!B69:B2579,B30,Korrekturfaktoren!C69:C2579,Berechnung!B3,Korrekturfaktoren!D69:D2579,G22,Korrekturfaktoren!E69:E2579,Eingabemaske!G20) -> 0.581 | H29: =SUMIFS(Korrekturfaktoren!G69:G2579,Korrekturfaktoren!B69:B2579,B30,Korrekturfaktoren!C69:C2579,Berechnung!B3,Korrekturfaktoren!D69:D2579,G22,Korrekturfaktoren!E69:E2579,Eingabemaske!G20) -> 0
A30: Heizgrenztemperatur: | B30: =IF(Eingabemaske!G22="Neubau",Dropdown!N3,IF(Eingabemaske!G22="Altbau",Dropdown!N2,IF(Eingabemaske!G22="Passivhaus",Dropdown!N4))) -> 15 | C30: °C | F30: Fϑ 3 | G30: =SUMIFS(Korrekturfaktoren!F69:F2579,Korrekturfaktoren!B69:B2579,B30,Korrekturfaktoren!C69:C2579,Berechnung!B3,Korrekturfaktoren!D69:D2579,H22,Korrekturfaktoren!E69:E2579,Eingabemaske!G20) -> 0.419 | H30: =SUMIFS(Korrekturfaktoren!G69:G2579,Korrekturfaktoren!B69:B2579,B30,Korrekturfaktoren!C69:C2579,Berechnung!B3,Korrekturfaktoren!D69:D2579,H22,Korrekturfaktoren!E69:E2579,Eingabemaske!G20) -> 0
H32: =IF(H28=0,0,IF(H28<>0,(G27/(H28/F23+H29/G23+H30/H23)))) -> 0
G34: Mittelwert: | H34: =(A22+H32)/2 -> 2.362465307
A39: SCOPW: | I39: F1 Korrekturfaktor: | J39: 50 | K39: =C48 -> 1
I40: (inkl. Mittelwerte) | J40: 51 | K40: =$K$39-(($K$39-$K$44)/5*1) -> 0.981
A41: =H23*B53*B52*0.716 -> 3.938 | J41: 52 | K41: =$K$39-(($K$39-$K$44)/5*2) -> 0.962
J42: 53 | K42: =$K$39-(($K$39-$K$44)/5*3) -> 0.943
J43: 54 | K43: =$K$39-(($K$39-$K$44)/5*4) -> 0.924
J44: 55 | K44: =C49 -> 0.905
J45: 56 | K45: =$K$44-(($K$44-$K$49)/5*1) -> 0.8896
J46: 57 | K46: =$K$44-(($K$44-$K$49)/5*2) -> 0.8742
B47: °C | J47: 58 | K47: =$K$44-(($K$44-$K$49)/5*3) -> 0.8588
A48: Korrekturfaktor F1: | B48: 50 | C48: 1 | J48: 59 | K48: =$K$44-(($K$44-$K$49)/5*4) -> 0.8434
B49: 55 | C49: 0.905 | J49: 60 | K49: =C50 -> 0.828
B50: 60 | C50: 0.828
A52: F1: | B52: =SUMIF(J39:K49,Eingabemaske!G27,K39:K49) -> 1
A53: FΔϑ: | B53: 1
A56: JAZ Gesamt:
A58: =ROUND(1/((1-B63)*B66/G60+B63*B66/A41+1-B66),2) -> 4.56 | G58: SCOPH:
F60: Mittelwert | G60: =IF(H32<>0,H34,IF(H32=0,A22)) -> 4.724930613
A63: y | B63: =IF(Eingabemaske!G18="ja",0.18,IF(Eingabemaske!G18="nein",0)) -> 0.18
D65: Deckungsanteil:
A66: α | B66: =MIN(SUMIFS(C133:C933,B133:B933,D66),1) -> 1 | D66: =IFERROR(MIN(ROUND(ROUND(I13,2)/Eingabemaske!X63*100,1),100),100) -> 100
A70: JAZ monoenergetisch für Hybrid | B70: =ROUND(1/((1-B63)*1/G60+B63*1/A41+1-1),2) -> 4.56
A80: Auswalhkriterien für Produktempfehlung:
A82: 1. | B82: Leistungsbedarf bei Normaußentemp. < Leistung WP bei Normaußentemp. + Leistung Heizstab
A84: 2. | B84: Bivalenzpunkt im Bereich nach folgender Tabelle:
B86: Normaußentemp. | C86: Bivalenzbereich | F86: =SUMIFS(Berechnung!C87:C95,Berechnung!B87:B95,B3) -> -2 | G86: =SUMIFS(Berechnung!D87:D95,Berechnung!B87:B95,B3) -> -5.5
B87: -16 | C87: -6 | D87: -12.5
B88: -15 | C88: -5.5 | D88: -11.5
B89: -14 | C89: -5 | D89: -10.5
B90: -13 | C90: -4.5 | D90: -10
B91: -12 | C91: -4 | D91: -9.5
B92: -11 | C92: -3.5 | D92: -8.5
B93: -10 | C93: -3 | D93: -7.5
B94: -9 | C94: -2.5 | D94: -6.5
B95: -8 | C95: -2 | D95: -5.5
A97: 3. | B97: JAZ > 3,5 (nur Heizen) | C97: JAZ > 3,3 (Heizen/WW)
B98: =IF(Eingabemaske!G18="ja",3.3,IF(Eingabemaske!G18="nein",3.5)) -> 3.3
A100: 4. | B100: Compact wird nur empfohlen wenn Personenzahl <= 5
B101: =IF(Eingabemaske!G19>5,1,IF(Eingabemaske!G19<=5,0)) -> 0 | C101: =IF(ISERROR(FIND("ECH2O",A11)>0),IF(ISERROR(FIND(" F ",A11)>0),0,1),1) -> 0
A103: 1. | B103: =IF(A11="Altherma R Hybrid 5 kW","falsch",IF(A11="Altherma R Hybrid 8 kW","falsch",IF(A11="Altherma H Hybrid 4 kW","falsch",IF(Berechnung!B9<Berechnung!I13+D14-1,"Ok")))) -> Ok | F103: =WENN(I84="Altherma R Hybrid 5 kW";N87;WENN(I84="Altherma R Hybrid 8 kW";N87;WENN(I84="Altherma H Hybrid 4 kW";N87;WENN(K87=0;"-";K87))))
A104: 2. | B104: =IF(AND(AND(LEFT(A11,12)="Altherma 3 M",D13<F86),D13>G86-2),"Ok",IF(AND(D13<F86,D13>G86),"Ok")) -> 
A105: 3. | B105: =IF(Berechnung!A58>=B98,"Ok") -> Ok
A106: 4. | B106: =IF(AND(B101=1,C101=1),"falsch","OK") -> OK
B108: =IF(AND(B103="Ok",B104="Ok",B105="Ok",B106="OK"),"empfohlen") -> 
A116: Leistungsanteil WP / Heizstabanteil: | E116: Derzeit ist die untere detailierte Tabelle im Einsatz
B118: 100 | C118: 0 | D118: (1,00 nach Tabelle)
B119: 90 | C119: 1
B120: 80 | C120: 1
B121: 70 | C121: 0.99
B122: 60 | C122: 0.98
B123: 50 | C123: 0.97
B124: 40 | C124: 0.93
B125: 30 | C125: 0.87
B128: =ROUND((100-Eingabemaske!X69),-1) -> 80 | F128: =ROUNDDOWN(B129,2) -> 0
A129: Heizstab Jahreswärmeedarf: | B129: =MIN(SUMIFS(C133:C933,B133:B933,D129),1) -> 0 | D129: =MIN(ROUND(ROUND(Eingabemaske!Q86,2)/Eingabemaske!X63*100,1),100) ->  | F129: =IF(Berechnung!F128=2,0,IF(Berechnung!F128=0,">13",IF(Berechnung!F128<>1,(1-Berechnung!F128)*100,IF(Berechnung!F128=1,"< 1")))) -> >13 | H129: Stromkosten
I130: =MIN(ROUND(Eingabemaske!Q86/Eingabemaske!X64*100,1),100) -> 
I131: =ROUND(MIN(SUMIFS(C133:C933,B133:B933,I130),1),2) -> 0
A132: Hilfszahlen | I132: kWh WP | J132: kWh HS
A133: 1 | B133: 100 | C133: 1 | D133: (wenn 0% angezeigt werden soll, muss in C91 bis C128 "2" eingetragen werden) | I133: =(((Leistungsbedarf!G15*Leistungsbedarf!B43)+Eingabemaske!G19*500)*I131)/Eingabemaske!K87 ->  | J133: =(((Leistungsbedarf!G15*Leistungsbedarf!B43)+Eingabemaske!G19*500)*(1-I131)) -> 
A134: 2 | B134: 99.9 | C134: =($C$133-(($C$133-$C$233)/100*A133)) -> 1 | I134: Stromkosten | J134: Stromkosten (0,31)
A135: 3 | B135: 99.8 | C135: =($C$133-(($C$133-$C$233)/100*A134)) -> 1 | I135: =ROUND(I133*Eingabemaske!AC68/100,0) ->  | J135: =ROUND(J133*0.31,0) -> 
A136: 4 | B136: 99.7 | C136: 1 | H136: Gesamt: | I136: =IF(Eingabemaske!X69=100,"-",I135+J135) ->  | J136: =IF(Eingabemaske!X69=100,"-",I133+J133) -> 
A137: 5 | B137: 99.6 | C137: 1
A138: 6 | B138: 99.5 | C138: 1
A139: 7 | B139: 99.4 | C139: 1
A140: 8 | B140: 99.3 | C140: 1
A141: 9 | B141: 99.2 | C141: 1
A142: 10 | B142: 99.1 | C142: 1
A143: 11 | B143: 99 | C143: 1
A144: 12 | B144: 98.9 | C144: 1
A145: 13 | B145: 98.8 | C145: 1
A146: 14 | B146: 98.7 | C146: 1
A147: 15 | B147: 98.6 | C147: 1
A148: 16 | B148: 98.5 | C148: 1
A149: 17 | B149: 98.4 | C149: 1
A150: 18 | B150: 98.3 | C150: 1
A151: 19 | B151: 98.2 | C151: 1
A152: 20 | B152: 98.1 | C152: 1
A153: 21 | B153: 98 | C153: 1
A154: 22 | B154: 97.9 | C154: 1
A155: 23 | B155: 97.8 | C155: 1
A156: 24 | B156: 97.7 | C156: 1
A157: 25 | B157: 97.6 | C157: 1
A158: 26 | B158: 97.5 | C158: 1
A159: 27 | B159: 97.4 | C159: 1
A160: 28 | B160: 97.3 | C160: 1
A161: 29 | B161: 97.2 | C161: 1
A162: 30 | B162: 97.1 | C162: 1
A163: 31 | B163: 97 | C163: 1
A164: 32 | B164: 96.9 | C164: 1
A165: 33 | B165: 96.8 | C165: 1
A166: 34 | B166: 96.7 | C166: 1
A167: 35 | B167: 96.6 | C167: 1
A168: 36 | B168: 96.5 | C168: 1
A169: 37 | B169: 96.4 | C169: 1
A170: 38 | B170: 96.3 | C170: 1
A171: 39 | B171: 96.2 | C171: 1
A172: 40 | B172: 96.1 | C172: 1
A173: 41 | B173: 96 | C173: 1
A174: 42 | B174: 95.9 | C174: 1
A175: 43 | B175: 95.8 | C175: 1
A176: 44 | B176: 95.7 | C176: 1
A177: 45 | B177: 95.6 | C177: 1
A178: 46 | B178: 95.5 | C178: 1
A179: 47 | B179: 95.4 | C179: 1
A180: 48 | B180: 95.3 | C180: 1
A181: 49 | B181: 95.2 | C181: 1
A182: 50 | B182: 95.1 | C182: 1
A183: 51 | B183: 95 | C183: 1
A184: 52 | B184: 94.9 | C184: 1
A185: 53 | B185: 94.8 | C185: 1
A186: 54 | B186: 94.7 | C186: 1
A187: 55 | B187: 94.6 | C187: 1
A188: 56 | B188: 94.5 | C188: 1
A189: 57 | B189: 94.4 | C189: 1
A190: 58 | B190: 94.3 | C190: 1
A191: 59 | B191: 94.2 | C191: 1
A192: 60 | B192: 94.1 | C192: 1
A193: 61 | B193: 94 | C193: 1
A194: 62 | B194: 93.9 | C194: 1
A195: 63 | B195: 93.8 | C195: 1
A196: 64 | B196: 93.7 | C196: 1
A197: 65 | B197: 93.6 | C197: 1
A198: 66 | B198: 93.5 | C198: 1
A199: 67 | B199: 93.4 | C199: =($C$133-(($C$133-$C$233)/100*A198)) -> 1
A200: 68 | B200: 93.3 | C200: 1
A201: 69 | B201: 93.2 | C201: 1
A202: 70 | B202: 93.1 | C202: 1
A203: 71 | B203: 93 | C203: 1
A204: 72 | B204: 92.9 | C204: 1
A205: 73 | B205: 92.8 | C205: 1
A206: 74 | B206: 92.7 | C206: 1
A207: 75 | B207: 92.6 | C207: 1
A208: 76 | B208: 92.5 | C208: 1
A209: 77 | B209: 92.4 | C209: 1
A210: 78 | B210: 92.3 | C210: 1
A211: 79 | B211: 92.2 | C211: 1
A212: 80 | B212: 92.1 | C212: 1
A213: 81 | B213: 92 | C213: 1
A214: 82 | B214: 91.9 | C214: 1
A215: 83 | B215: 91.8 | C215: 1
A216: 84 | B216: 91.7 | C216: 1
A217: 85 | B217: 91.6 | C217: 1
A218: 86 | B218: 91.5 | C218: 1
A219: 87 | B219: 91.4 | C219: 1
A220: 88 | B220: 91.3 | C220: 1
A221: 89 | B221: 91.2 | C221: 1
A222: 90 | B222: 91.1 | C222: 1
A223: 91 | B223: 91 | C223: 1
A224: 92 | B224: 90.9 | C224: 1
A225: 93 | B225: 90.8 | C225: 1
A226: 94 | B226: 90.7 | C226: 1
A227: 95 | B227: 90.6 | C227: 1
A228: 96 | B228: 90.5 | C228: 1
A229: 97 | B229: 90.4 | C229: 1
A230: 98 | B230: 90.3 | C230: 1
A231: 99 | B231: 90.2 | C231: 1
B232: 90.1 | C232: 1
B233: 90 | C233: 1
B234: 89.9 | C234: =($C$233-(($C$233-$C$333)/100*A133)) -> 1
B235: 89.8 | C235: =($C$233-(($C$233-$C$333)/100*A134)) -> 1
B236: 89.7 | C236: 1
B237: 89.6 | C237: 1
B238: 89.5 | C238: 1
B239: 89.4 | C239: 1
B240: 89.3 | C240: 1
B241: 89.2 | C241: 1
B242: 89.1 | C242: 1
B243: 89 | C243: 1
B244: 88.9 | C244: 1
B245: 88.8 | C245: 1
B246: 88.7 | C246: 1
B247: 88.6 | C247: 1
B248: 88.5 | C248: 1
B249: 88.4 | C249: 1
B250: 88.3 | C250: 1
B251: 88.2 | C251: 1
B252: 88.1 | C252: 1
B253: 88 | C253: 1
B254: 87.9 | C254: 1
... 679 more rows

Sheet Liste Berechnungen (hidden)
A1: 0 | B1: Bezeichnung WP
A2: 0
A3: 0
A4: 0 | B4: Kriterium 1 | C4: Kriterium 2 | D4: JAZ | E4: Heizstab | F4: Priorisierung
A5: 1 | B5: Altherma 4 H ECH2O 500 6 kW | D5: 4.75 | E5: 3.72 | I5: Temperatur | J5: -10 | K5: -9.5 | L5: -9 | M5: -8.5 | N5: -8 | O5: -7.5 | P5: -7 | Q5: -6.5 | R5: -6 | S5: -5.5 | T5: -5 | U5: -4.5 | V5: -4 | W5: -3.5 | X5: -3 | Y5: -2.5 | Z5: -2 | AA5: -1.5 | AB5: -1 | AC5: -0.5 | AD5: 0 | AE5: 0.5 | AF5: 1 | AG5: 1.5 | AH5: 2 | AI5: 2.5 | AJ5: 3 | AK5: 3.5 | AL5: 4 | AM5: 4.5 | AN5: 5 | AO5: 5.5 | AP5: 6 | AQ5: 6.5 | AR5: 7 | AS5: 7.5 | AT5: 8 | AU5: 8.5 | AV5: 9 | AW5: 9.5 | AX5: 10 | AY5: 10.5 | AZ5: 11 | BA5: 11.5 | BB5: 12 | BC5: 12.5 | BD5: 13 | BE5: 13.5 | BF5: 14 | BG5: 14.5 | BH5: 15
A6: 1 | B6: 18 | C6: -0.04928176727 | D6: 6.417612318 | E6: -1.834827723 | F6: 0 | G6: 0 | H6: 6.508035871 | I6: Heizlast | J6: 9.664541833 | K6: 9.471250996 | L6: 9.277960159 | M6: 9.084669323 | N6: 8.891378486 | O6: 8.698087649 | P6: 8.504796813 | Q6: 8.311505976 | R6: 8.118215139 | S6: 7.924924303 | T6: 7.731633466 | U6: 7.538342629 | V6: 7.345051793 | W6: 7.151760956 | X6: 6.95847012 | Y6: 6.765179283 | Z6: 6.571888446 | AA6: 6.37859761 | AB6: 6.185306773 | AC6: 5.992015936 | AD6: 5.7987251 | AE6: 5.605434263 | AF6: 5.412143426 | AG6: 5.21885259 | AH6: 5.025561753 | AI6: 4.832270916 | AJ6: 4.63898008 | AK6: 4.445689243 | AL6: 4.252398406 | AM6: 4.05910757 | AN6: 3.865816733 | AO6: 3.672525896 | AP6: 3.47923506 | AQ6: 3.285944223 | AR6: 3.092653386 | AS6: 2.89936255 | AT6: 2.706071713 | AU6: 2.512780876 | AV6: 2.31949004 | AW6: 2.126199203 | AX6: 1.932908367 | AY6: 1.73961753 | AZ6: 1.546326693 | BA6: 1.353035857 | BB6: 1.15974502 | BC6: 0.9664541833 | BD6: 0.7731633466 | BE6: 0.57987251 | BF6: 0.3865816733 | BG6: 0.1932908367 | BH6: -5.551115123e-17
A7: 1 | C7: -0.3865816733 | D7: 5.7987251 | E7: -1.834827723 | F7: 6.508035871 | G7: -1.834827723 | H7: 6.508035871 | I7: Leistung | J7: 6.074827254 | K7: 6.150689379 | L7: 6.226551503 | M7: 6.302413627 | N7: 6.378275751 | O7: 6.454137876 | P7: 6.53 | Q7: 6.528617585 | R7: 6.527235171 | S7: 6.525852756 | T7: 6.524470341 | U7: 6.523087926 | V7: 6.521705512 | W7: 6.520323097 | X7: 6.518940682 | Y7: 6.517558267 | Z7: 6.516175853 | AA7: 6.491534969 | AB7: 6.466894085 | AC7: 6.442253202 | AD7: 6.417612318 | AE7: 6.392971434 | AF7: 6.368330551 | AG7: 6.343689667 | AH7: 6.319048784 | AI7: 6.275036051 | AJ7: 6.231023318 | AK7: 6.187010585 | AL7: 6.142997853 | AM7: 6.09898512 | AN7: 6.054972387 | AO7: 6.010959654 | AP7: 5.966946921 | AQ7: 5.922934189 | AR7: 5.878921456 | AS7: 5.736793933 | AT7: 5.594666409 | AU7: 5.452538886 | AV7: 5.310411363 | AW7: 5.16828384 | AX7: 5.026156316 | AY7: 4.884028793 | AZ7: 4.74190127 | BA7: 4.599773746 | BB7: 4.457646223 | BC7: 4.502244134 | BD7: 4.546842044 | BE7: 4.591439955 | BF7: 4.636037866 | BG7: 4.680635776 | BH7: 4.725233687
A8: 1 | D8: 4.35 | E8: 9 | F8: 0,5 | G8: 4.52 | H8: 3.38 | I8: 4.46 | J8: 5.19 | K8: 0
A9: 1
A10: 2 | B10: Altherma 4 H ECH2O 500 8 kW | D10: 4.68 | E10: 3.59 | I10: Temperatur | J10: -10 | K10: -9.5 | L10: -9 | M10: -8.5 | N10: -8 | O10: -7.5 | P10: -7 | Q10: -6.5 | R10: -6 | S10: -5.5 | T10: -5 | U10: -4.5 | V10: -4 | W10: -3.5 | X10: -3 | Y10: -2.5 | Z10: -2 | AA10: -1.5 | AB10: -1 | AC10: -0.5 | AD10: 0 | AE10: 0.5 | AF10: 1 | AG10: 1.5 | AH10: 2 | AI10: 2.5 | AJ10: 3 | AK10: 3.5 | AL10: 4 | AM10: 4.5 | AN10: 5 | AO10: 5.5 | AP10: 6 | AQ10: 6.5 | AR10: 7 | AS10: 7.5 | AT10: 8 | AU10: 8.5 | AV10: 9 | AW10: 9.5 | AX10: 10 | AY10: 10.5 | AZ10: 11 | BA10: 11.5 | BB10: 12 | BC10: 12.5 | BD10: 13 | BE10: 13.5 | BF10: 14 | BG10: 14.5 | BH10: 15
A11: 2 | B11: 11 | C11: -0.1066052695 | D11: 7.2115594 | E11: -5.046262046 | F11: 0 | G11: 0 | H11: 7.749517525 | I11: Heizlast | J11: 9.664541833 | K11: 9.471250996 | L11: 9.277960159 | M11: 9.084669323 | N11: 8.891378486 | O11: 8.698087649 | P11: 8.504796813 | Q11: 8.311505976 | R11: 8.118215139 | S11: 7.924924303 | T11: 7.731633466 | U11: 7.538342629 | V11: 7.345051793 | W11: 7.151760956 | X11: 6.95847012 | Y11: 6.765179283 | Z11: 6.571888446 | AA11: 6.37859761 | AB11: 6.185306773 | AC11: 5.992015936 | AD11: 5.7987251 | AE11: 5.605434263 | AF11: 5.412143426 | AG11: 5.21885259 | AH11: 5.025561753 | AI11: 4.832270916 | AJ11: 4.63898008 | AK11: 4.445689243 | AL11: 4.252398406 | AM11: 4.05910757 | AN11: 3.865816733 | AO11: 3.672525896 | AP11: 3.47923506 | AQ11: 3.285944223 | AR11: 3.092653386 | AS11: 2.89936255 | AT11: 2.706071713 | AU11: 2.512780876 | AV11: 2.31949004 | AW11: 2.126199203 | AX11: 1.932908367 | AY11: 1.73961753 | AZ11: 1.546326693 | BA11: 1.353035857 | BB11: 1.15974502 | BC11: 0.9664541833 | BD11: 0.7731633466 | BE11: 0.57987251 | BF11: 0.3865816733 | BG11: 0.1932908367 | BH11: -5.551115123e-17
A12: 2 | C12: -0.3865816733 | D12: 5.7987251 | E12: -5.046262046 | F12: 7.749517525 | G12: -5.046262046 | H12: 7.749517525 | I12: Leistung | J12: 7.548005905 | K12: 7.616304302 | L12: 7.684602699 | M12: 7.752901096 | N12: 7.821199493 | O12: 7.88949789 | P12: 7.957796286 | Q12: 7.904493652 | R12: 7.851191017 | S12: 7.797888382 | T12: 7.744585747 | U12: 7.691283113 | V12: 7.637980478 | W12: 7.584677843 | X12: 7.531375208 | Y12: 7.478072574 | Z12: 7.424769939 | AA12: 7.310978978 | AB12: 7.197188018 | AC12: 7.083397058 | AD12: 6.969606097 | AE12: 6.855815137 | AF12: 6.742024177 | AG12: 6.628233216 | AH12: 6.514442256 | AI12: 6.630716009 | AJ12: 6.746989762 | AK12: 6.863263514 | AL12: 6.979537267 | AM12: 7.09581102 | AN12: 7.212084773 | AO12: 7.328358525 | AP12: 7.444632278 | AQ12: 7.560906031 | AR12: 7.677179784 | AS12: 7.483552607 | AT12: 7.28992543 | AU12: 7.096298253 | AV12: 6.902671076 | AW12: 6.709043899 | AX12: 6.515416722 | AY12: 6.321789545 | AZ12: 6.128162369 | BA12: 5.934535192 | BB12: 5.740908015 | BC12: 5.798344718 | BD12: 5.855781421 | BE12: 5.913218124 | BF12: 5.970654827 | BG12: 6.02809153 | BH12: 6.085528233
A13: 2 | C13: empfohlen | D13: 4.43 | E13: 9 | F13: 0,4 | G13: 4.43 | H13: 3.32 | I13: 4.46 | J13: 5.01 | K13: 0
A14: 2
A15: 3 | B15: Altherma 4 H ECH2O 500 10 kW | D15: 4.62 | E15: 3.54 | I15: Temperatur | J15: -10 | K15: -9.5 | L15: -9 | M15: -8.5 | N15: -8 | O15: -7.5 | P15: -7 | Q15: -6.5 | R15: -6 | S15: -5.5 | T15: -5 | U15: -4.5 | V15: -4 | W15: -3.5 | X15: -3 | Y15: -2.5 | Z15: -2 | AA15: -1.5 | AB15: -1 | AC15: -0.5 | AD15: 0 | AE15: 0.5 | AF15: 1 | AG15: 1.5 | AH15: 2 | AI15: 2.5 | AJ15: 3 | AK15: 3.5 | AL15: 4 | AM15: 4.5 | AN15: 5 | AO15: 5.5 | AP15: 6 | AQ15: 6.5 | AR15: 7 | AS15: 7.5 | AT15: 8 | AU15: 8.5 | AV15: 9 | AW15: 9.5 | AX15: 10 | AY15: 10.5 | AZ15: 11 | BA15: 11.5 | BB15: 12 | BC15: 12.5 | BD15: 13 | BE15: 13.5 | BF15: 14 | BG15: 14.5 | BH15: 15
A16: 3 | B16: 4 | C16: 0.1359158276 | D16: 10.31862363 | E16: -8.650564874 | F16: 0 | G16: 0 | H16: 9.142874944 | I16: Heizlast | J16: 9.664541833 | K16: 9.471250996 | L16: 9.277960159 | M16: 9.084669323 | N16: 8.891378486 | O16: 8.698087649 | P16: 8.504796813 | Q16: 8.311505976 | R16: 8.118215139 | S16: 7.924924303 | T16: 7.731633466 | U16: 7.538342629 | V16: 7.345051793 | W16: 7.151760956 | X16: 6.95847012 | Y16: 6.765179283 | Z16: 6.571888446 | AA16: 6.37859761 | AB16: 6.185306773 | AC16: 5.992015936 | AD16: 5.7987251 | AE16: 5.605434263 | AF16: 5.412143426 | AG16: 5.21885259 | AH16: 5.025561753 | AI16: 4.832270916 | AJ16: 4.63898008 | AK16: 4.445689243 | AL16: 4.252398406 | AM16: 4.05910757 | AN16: 3.865816733 | AO16: 3.672525896 | AP16: 3.47923506 | AQ16: 3.285944223 | AR16: 3.092653386 | AS16: 2.89936255 | AT16: 2.706071713 | AU16: 2.512780876 | AV16: 2.31949004 | AW16: 2.126199203 | AX16: 1.932908367 | AY16: 1.73961753 | AZ16: 1.546326693 | BA16: 1.353035857 | BB16: 1.15974502 | BC16: 0.9664541833 | BD16: 0.7731633466 | BE16: 0.57987251 | BF16: 0.3865816733 | BG16: 0.1932908367 | BH16: -5.551115123e-17
A17: 3 | C17: -0.3865816733 | D17: 5.7987251 | E17: -8.650564874 | F17: 9.142874944 | G17: -8.650564874 | H17: 9.142874944 | I17: Leistung | J17: 8.959465352 | K17: 9.027423266 | L17: 9.095381179 | M17: 9.163339093 | N17: 9.231297007 | O17: 9.299254921 | P17: 9.367212835 | Q17: 9.264211701 | R17: 9.161210568 | S17: 9.058209434 | T17: 8.955208301 | U17: 8.852207167 | V17: 8.749206034 | W17: 8.646204901 | X17: 8.543203767 | Y17: 8.440202634 | Z17: 8.3372015 | AA17: 8.255797921 | AB17: 8.174394341 | AC17: 8.092990762 | AD17: 8.011587182 | AE17: 7.930183603 | AF17: 7.848780023 | AG17: 7.767376444 | AH17: 7.685972864 | AI17: 7.913334036 | AJ17: 8.140695208 | AK17: 8.36805638 | AL17: 8.595417552 | AM17: 8.822778724 | AN17: 9.050139896 | AO17: 9.277501068 | AP17: 9.50486224 | AQ17: 9.732223412 | AR17: 9.959584584 | AS17: 9.713321172 | AT17: 9.467057761 | AU17: 9.220794349 | AV17: 8.974530937 | AW17: 8.728267525 | AX17: 8.482004113 | AY17: 8.235740702 | AZ17: 7.98947729 | BA17: 7.743213878 | BB17: 7.496950466 | BC17: 7.488429185 | BD17: 7.479907904 | BE17: 7.471386623 | BF17: 7.462865342 | BG17: 7.454344061 | BH17: 7.445822779
A18: 3 | D18: 4.38 | E18: 9 | F18: 0,3 | G18: 4.38 | H18: 2.85 | I18: 4.46 | J18: 4.94 | K18: 0
A19: 3
A20: 4 | B20: Altherma 4 H ECH2O 500 12 kW | D20: 4.61 | E20: 3.94 | I20: Temperatur | J20: -10 | K20: -9.5 | L20: -9 | M20: -8.5 | N20: -8 | O20: -7.5 | P20: -7 | Q20: -6.5 | R20: -6 | S20: -5.5 | T20: -5 | U20: -4.5 | V20: -4 | W20: -3.5 | X20: -3 | Y20: -2.5 | Z20: -2 | AA20: -1.5 | AB20: -1 | AC20: -0.5 | AD20: 0 | AE20: 0.5 | AF20: 1 | AG20: 1.5 | AH20: 2 | AI20: 2.5 | AJ20: 3 | AK20: 3.5 | AL20: 4 | AM20: 4.5 | AN20: 5 | AO20: 5.5 | AP20: 6 | AQ20: 6.5 | AR20: 7 | AS20: 7.5 | AT20: 8 | AU20: 8.5 | AV20: 9 | AW20: 9.5 | AX20: 10 | AY20: 10.5 | AZ20: 11 | BA20: 11.5 | BB20: 12 | BC20: 12.5 | BD20: 13 | BE20: 13.5 | BF20: 14 | BG20: 14.5 | BH20: 15
A21: 4 | B21: 1 | F21: 0 | G21: 0 | I21: Heizlast | J21: 9.664541833 | K21: 9.471250996 | L21: 9.277960159 | M21: 9.084669323 | N21: 8.891378486 | O21: 8.698087649 | P21: 8.504796813 | Q21: 8.311505976 | R21: 8.118215139 | S21: 7.924924303 | T21: 7.731633466 | U21: 7.538342629 | V21: 7.345051793 | W21: 7.151760956 | X21: 6.95847012 | Y21: 6.765179283 | Z21: 6.571888446 | AA21: 6.37859761 | AB21: 6.185306773 | AC21: 5.992015936 | AD21: 5.7987251 | AE21: 5.605434263 | AF21: 5.412143426 | AG21: 5.21885259 | AH21: 5.025561753 | AI21: 4.832270916 | AJ21: 4.63898008 | AK21: 4.445689243 | AL21: 4.252398406 | AM21: 4.05910757 | AN21: 3.865816733 | AO21: 3.672525896 | AP21: 3.47923506 | AQ21: 3.285944223 | AR21: 3.092653386 | AS21: 2.89936255 | AT21: 2.706071713 | AU21: 2.512780876 | AV21: 2.31949004 | AW21: 2.126199203 | AX21: 1.932908367 | AY21: 1.73961753 | AZ21: 1.546326693 | BA21: 1.353035857 | BB21: 1.15974502 | BC21: 0.9664541833 | BD21: 0.7731633466 | BE21: 0.57987251 | BF21: 0.3865816733 | BG21: 0.1932908367 | BH21: -5.551115123e-17
A22: 4 | I22: Leistung | J22: 10.83353698 | K22: 10.92579605 | L22: 11.01805511 | M22: 11.11031418 | N22: 11.20257324 | O22: 11.2948323 | P22: 11.38709137 | Q22: 11.27414029 | R22: 11.16118921 | S22: 11.04823813 | T22: 10.93528705 | U22: 10.82233597 | V22: 10.7093849 | W22: 10.59643382 | X22: 10.48348274 | Y22: 10.37053166 | Z22: 10.25758058 | AA22: 10.06044955 | AB22: 9.86331851 | AC22: 9.666187476 | AD22: 9.469056441 | AE22: 9.271925406 | AF22: 9.074794371 | AG22: 8.877663336 | AH22: 8.680532301 | AI22: 9.025082936 | AJ22: 9.36963357 | AK22: 9.714184205 | AL22: 10.05873484 | AM22: 10.40328547 | AN22: 10.74783611 | AO22: 11.09238674 | AP22: 11.43693738 | AQ22: 11.78148801 | AR22: 12.12603865 | AS22: 11.85466569 | AT22: 11.58329274 | AU22: 11.31191978 | AV22: 11.04054682 | AW22: 10.76917387 | AX22: 10.49780091 | AY22: 10.22642796 | AZ22: 9.955055002 | BA22: 9.683682047 | BB22: 9.412309091 | BC22: 9.543437374 | BD22: 9.674565657 | BE22: 9.805693939 | BF22: 9.936822222 | BG22: 10.06795051 | BH22: 10.19907879
A23: 4 | D23: 4.47 | E23: 9 | F23: 0,2 | G23: 4.47 | H23: 3.49 | I23: 4.06 | J23: 5.5 | K23: 0
A24: 4
A25: 5 | B25: Altherma 4 H ECH2O 500 14 kW | D25: 4.61 | E25: 3.94 | I25: Temperatur | J25: -10 | K25: -9.5 | L25: -9 | M25: -8.5 | N25: -8 | O25: -7.5 | P25: -7 | Q25: -6.5 | R25: -6 | S25: -5.5 | T25: -5 | U25: -4.5 | V25: -4 | W25: -3.5 | X25: -3 | Y25: -2.5 | Z25: -2 | AA25: -1.5 | AB25: -1 | AC25: -0.5 | AD25: 0 | AE25: 0.5 | AF25: 1 | AG25: 1.5 | AH25: 2 | AI25: 2.5 | AJ25: 3 | AK25: 3.5 | AL25: 4 | AM25: 4.5 | AN25: 5 | AO25: 5.5 | AP25: 6 | AQ25: 6.5 | AR25: 7 | AS25: 7.5 | AT25: 8 | AU25: 8.5 | AV25: 9 | AW25: 9.5 | AX25: 10 | AY25: 10.5 | AZ25: 11 | BA25: 11.5 | BB25: 12 | BC25: 12.5 | BD25: 13 | BE25: 13.5 | BF25: 14 | BG25: 14.5 | BH25: 15
A26: 5 | B26: 1 | F26: 0 | G26: 0 | I26: Heizlast | J26: 9.664541833 | K26: 9.471250996 | L26: 9.277960159 | M26: 9.084669323 | N26: 8.891378486 | O26: 8.698087649 | P26: 8.504796813 | Q26: 8.311505976 | R26: 8.118215139 | S26: 7.924924303 | T26: 7.731633466 | U26: 7.538342629 | V26: 7.345051793 | W26: 7.151760956 | X26: 6.95847012 | Y26: 6.765179283 | Z26: 6.571888446 | AA26: 6.37859761 | AB26: 6.185306773 | AC26: 5.992015936 | AD26: 5.7987251 | AE26: 5.605434263 | AF26: 5.412143426 | AG26: 5.21885259 | AH26: 5.025561753 | AI26: 4.832270916 | AJ26: 4.63898008 | AK26: 4.445689243 | AL26: 4.252398406 | AM26: 4.05910757 | AN26: 3.865816733 | AO26: 3.672525896 | AP26: 3.47923506 | AQ26: 3.285944223 | AR26: 3.092653386 | AS26: 2.89936255 | AT26: 2.706071713 | AU26: 2.512780876 | AV26: 2.31949004 | AW26: 2.126199203 | AX26: 1.932908367 | AY26: 1.73961753 | AZ26: 1.546326693 | BA26: 1.353035857 | BB26: 1.15974502 | BC26: 0.9664541833 | BD26: 0.7731633466 | BE26: 0.57987251 | BF26: 0.3865816733 | BG26: 0.1932908367 | BH26: -5.551115123e-17
A27: 5 | I27: Leistung | J27: 13.08025179 | K27: 13.08587697 | L27: 13.09150215 | M27: 13.09712732 | N27: 13.1027525 | O27: 13.10837768 | P27: 13.11400286 | Q27: 13.12930257 | R27: 13.14460229 | S27: 13.159902 | T27: 13.17520172 | U27: 13.19050143 | V27: 13.20580114 | W27: 13.22110086 | X27: 13.23640057 | Y27: 13.25170029 | Z27: 13.267 | AA27: 12.97868747 | AB27: 12.69037493 | AC27: 12.4020624 | AD27: 12.11374986 | AE27: 11.82543733 | AF27: 11.53712479 | AG27: 11.24881226 | AH27: 10.96049973 | AI27: 11.38571642 | AJ27: 11.81093311 | AK27: 12.23614981 | AL27: 12.6613665 | AM27: 13.0865832 | AN27: 13.51179989 | AO27: 13.93701658 | AP27: 14.36223328 | AQ27: 14.78744997 | AR27: 15.21266667 | AS27: 14.8953 | AT27: 14.57793333 | AU27: 14.26056667 | AV27: 13.9432 | AW27: 13.62583333 | AX27: 13.30846667 | AY27: 12.9911 | AZ27: 12.67373333 | BA27: 12.35636667 | BB27: 12.039 | BC27: 12.20672222 | BD27: 12.37444444 | BE27: 12.54216667 | BF27: 12.70988889 | BG27: 12.87761111 | BH27: 13.04533333
A28: 5 | D28: 4.47 | E28: 9 | F28: 0,1 | G28: 4.47 | H28: 3.49 | I28: 4.06 | J28: 5.5 | K28: 0
A29: 5
A30: 6 | B30: Altherma 4 H F 230 6 kW | D30: 4.75 | E30: 3.72 | I30: Temperatur | J30: -10 | K30: -9.5 | L30: -9 | M30: -8.5 | N30: -8 | O30: -7.5 | P30: -7 | Q30: -6.5 | R30: -6 | S30: -5.5 | T30: -5 | U30: -4.5 | V30: -4 | W30: -3.5 | X30: -3 | Y30: -2.5 | Z30: -2 | AA30: -1.5 | AB30: -1 | AC30: -0.5 | AD30: 0 | AE30: 0.5 | AF30: 1 | AG30: 1.5 | AH30: 2 | AI30: 2.5 | AJ30: 3 | AK30: 3.5 | AL30: 4 | AM30: 4.5 | AN30: 5 | AO30: 5.5 | AP30: 6 | AQ30: 6.5 | AR30: 7 | AS30: 7.5 | AT30: 8 | AU30: 8.5 | AV30: 9 | AW30: 9.5 | AX30: 10 | AY30: 10.5 | AZ30: 11 | BA30: 11.5 | BB30: 12 | BC30: 12.5 | BD30: 13 | BE30: 13.5 | BF30: 14 | BG30: 14.5 | BH30: 15
A31: 6 | B31: 18 | C31: -0.04928176727 | D31: 6.417612318 | E31: -1.834827723 | F31: 0 | G31: 0 | H31: 6.508035871 | I31: Heizlast | J31: 9.664541833 | K31: 9.471250996 | L31: 9.277960159 | M31: 9.084669323 | N31: 8.891378486 | O31: 8.698087649 | P31: 8.504796813 | Q31: 8.311505976 | R31: 8.118215139 | S31: 7.924924303 | T31: 7.731633466 | U31: 7.538342629 | V31: 7.345051793 | W31: 7.151760956 | X31: 6.95847012 | Y31: 6.765179283 | Z31: 6.571888446 | AA31: 6.37859761 | AB31: 6.185306773 | AC31: 5.992015936 | AD31: 5.7987251 | AE31: 5.605434263 | AF31: 5.412143426 | AG31: 5.21885259 | AH31: 5.025561753 | AI31: 4.832270916 | AJ31: 4.63898008 | AK31: 4.445689243 | AL31: 4.252398406 | AM31: 4.05910757 | AN31: 3.865816733 | AO31: 3.672525896 | AP31: 3.47923506 | AQ31: 3.285944223 | AR31: 3.092653386 | AS31: 2.89936255 | AT31: 2.706071713 | AU31: 2.512780876 | AV31: 2.31949004 | AW31: 2.126199203 | AX31: 1.932908367 | AY31: 1.73961753 | AZ31: 1.546326693 | BA31: 1.353035857 | BB31: 1.15974502 | BC31: 0.9664541833 | BD31: 0.7731633466 | BE31: 0.57987251 | BF31: 0.3865816733 | BG31: 0.1932908367 | BH31: -5.551115123e-17
A32: 6 | C32: -0.3865816733 | D32: 5.7987251 | E32: -1.834827723 | F32: 6.508035871 | G32: -1.834827723 | H32: 6.508035871 | I32: Leistung | J32: 6.074827254 | K32: 6.150689379 | L32: 6.226551503 | M32: 6.302413627 | N32: 6.378275751 | O32: 6.454137876 | P32: 6.53 | Q32: 6.528617585 | R32: 6.527235171 | S32: 6.525852756 | T32: 6.524470341 | U32: 6.523087926 | V32: 6.521705512 | W32: 6.520323097 | X32: 6.518940682 | Y32: 6.517558267 | Z32: 6.516175853 | AA32: 6.491534969 | AB32: 6.466894085 | AC32: 6.442253202 | AD32: 6.417612318 | AE32: 6.392971434 | AF32: 6.368330551 | AG32: 6.343689667 | AH32: 6.319048784 | AI32: 6.275036051 | AJ32: 6.231023318 | AK32: 6.187010585 | AL32: 6.142997853 | AM32: 6.09898512 | AN32: 6.054972387 | AO32: 6.010959654 | AP32: 5.966946921 | AQ32: 5.922934189 | AR32: 5.878921456 | AS32: 5.736793933 | AT32: 5.594666409 | AU32: 5.452538886 | AV32: 5.310411363 | AW32: 5.16828384 | AX32: 5.026156316 | AY32: 4.884028793 | AZ32: 4.74190127 | BA32: 4.599773746 | BB32: 4.457646223 | BC32: 4.502244134 | BD32: 4.546842044 | BE32: 4.591439955 | BF32: 4.636037866 | BG32: 4.680635776 | BH32: 4.725233687
A33: 6 | D33: 4.35 | E33: 9 | F33: 0,51 | G33: 4.52 | H33: 3.38 | I33: 4.46 | J33: 5.19 | K33: 0
A34: 6
A35: 7 | B35: Altherma 4 H F 230 8 kW | D35: 4.68 | E35: 3.59 | I35: Temperatur | J35: -10 | K35: -9.5 | L35: -9 | M35: -8.5 | N35: -8 | O35: -7.5 | P35: -7 | Q35: -6.5 | R35: -6 | S35: -5.5 | T35: -5 | U35: -4.5 | V35: -4 | W35: -3.5 | X35: -3 | Y35: -2.5 | Z35: -2 | AA35: -1.5 | AB35: -1 | AC35: -0.5 | AD35: 0 | AE35: 0.5 | AF35: 1 | AG35: 1.5 | AH35: 2 | AI35: 2.5 | AJ35: 3 | AK35: 3.5 | AL35: 4 | AM35: 4.5 | AN35: 5 | AO35: 5.5 | AP35: 6 | AQ35: 6.5 | AR35: 7 | AS35: 7.5 | AT35: 8 | AU35: 8.5 | AV35: 9 | AW35: 9.5 | AX35: 10 | AY35: 10.5 | AZ35: 11 | BA35: 11.5 | BB35: 12 | BC35: 12.5 | BD35: 13 | BE35: 13.5 | BF35: 14 | BG35: 14.5 | BH35: 15
A36: 7 | B36: 11 | C36: -0.1066052695 | D36: 7.2115594 | E36: -5.046262046 | F36: 0 | G36: 0 | H36: 7.749517525 | I36: Heizlast | J36: 9.664541833 | K36: 9.471250996 | L36: 9.277960159 | M36: 9.084669323 | N36: 8.891378486 | O36: 8.698087649 | P36: 8.504796813 | Q36: 8.311505976 | R36: 8.118215139 | S36: 7.924924303 | T36: 7.731633466 | U36: 7.538342629 | V36: 7.345051793 | W36: 7.151760956 | X36: 6.95847012 | Y36: 6.765179283 | Z36: 6.571888446 | AA36: 6.37859761 | AB36: 6.185306773 | AC36: 5.992015936 | AD36: 5.7987251 | AE36: 5.605434263 | AF36: 5.412143426 | AG36: 5.21885259 | AH36: 5.025561753 | AI36: 4.832270916 | AJ36: 4.63898008 | AK36: 4.445689243 | AL36: 4.252398406 | AM36: 4.05910757 | AN36: 3.865816733 | AO36: 3.672525896 | AP36: 3.47923506 | AQ36: 3.285944223 | AR36: 3.092653386 | AS36: 2.89936255 | AT36: 2.706071713 | AU36: 2.512780876 | AV36: 2.31949004 | AW36: 2.126199203 | AX36: 1.932908367 | AY36: 1.73961753 | AZ36: 1.546326693 | BA36: 1.353035857 | BB36: 1.15974502 | BC36: 0.9664541833 | BD36: 0.7731633466 | BE36: 0.57987251 | BF36: 0.3865816733 | BG36: 0.1932908367 | BH36: -5.551115123e-17
A37: 7 | C37: -0.3865816733 | D37: 5.7987251 | E37: -5.046262046 | F37: 7.749517525 | G37: -5.046262046 | H37: 7.749517525 | I37: Leistung | J37: 7.548005905 | K37: 7.616304302 | L37: 7.684602699 | M37: 7.752901096 | N37: 7.821199493 | O37: 7.88949789 | P37: 7.957796286 | Q37: 7.904493652 | R37: 7.851191017 | S37: 7.797888382 | T37: 7.744585747 | U37: 7.691283113 | V37: 7.637980478 | W37: 7.584677843 | X37: 7.531375208 | Y37: 7.478072574 | Z37: 7.424769939 | AA37: 7.310978978 | AB37: 7.197188018 | AC37: 7.083397058 | AD37: 6.969606097 | AE37: 6.855815137 | AF37: 6.742024177 | AG37: 6.628233216 | AH37: 6.514442256 | AI37: 6.630716009 | AJ37: 6.746989762 | AK37: 6.863263514 | AL37: 6.979537267 | AM37: 7.09581102 | AN37: 7.212084773 | AO37: 7.328358525 | AP37: 7.444632278 | AQ37: 7.560906031 | AR37: 7.677179784 | AS37: 7.483552607 | AT37: 7.28992543 | AU37: 7.096298253 | AV37: 6.902671076 | AW37: 6.709043899 | AX37: 6.515416722 | AY37: 6.321789545 | AZ37: 6.128162369 | BA37: 5.934535192 | BB37: 5.740908015 | BC37: 5.798344718 | BD37: 5.855781421 | BE37: 5.913218124 | BF37: 5.970654827 | BG37: 6.02809153 | BH37: 6.085528233
A38: 7 | C38: empfohlen | D38: 4.43 | E38: 9 | F38: 0,41 | G38: 4.43 | H38: 3.32 | I38: 4.46 | J38: 5.01 | K38: 0
A39: 7
A40: 8 | B40: Altherma 4 H F 230 10 kW | D40: 4.62 | E40: 3.54 | I40: Temperatur | J40: -10 | K40: -9.5 | L40: -9 | M40: -8.5 | N40: -8 | O40: -7.5 | P40: -7 | Q40: -6.5 | R40: -6 | S40: -5.5 | T40: -5 | U40: -4.5 | V40: -4 | W40: -3.5 | X40: -3 | Y40: -2.5 | Z40: -2 | AA40: -1.5 | AB40: -1 | AC40: -0.5 | AD40: 0 | AE40: 0.5 | AF40: 1 | AG40: 1.5 | AH40: 2 | AI40: 2.5 | AJ40: 3 | AK40: 3.5 | AL40: 4 | AM40: 4.5 | AN40: 5 | AO40: 5.5 | AP40: 6 | AQ40: 6.5 | AR40: 7 | AS40: 7.5 | AT40: 8 | AU40: 8.5 | AV40: 9 | AW40: 9.5 | AX40: 10 | AY40: 10.5 | AZ40: 11 | BA40: 11.5 | BB40: 12 | BC40: 12.5 | BD40: 13 | BE40: 13.5 | BF40: 14 | BG40: 14.5 | BH40: 15
A41: 8 | B41: 4 | C41: 0.1359158276 | D41: 10.31862363 | E41: -8.650564874 | F41: 0 | G41: 0 | H41: 9.142874944 | I41: Heizlast | J41: 9.664541833 | K41: 9.471250996 | L41: 9.277960159 | M41: 9.084669323 | N41: 8.891378486 | O41: 8.698087649 | P41: 8.504796813 | Q41: 8.311505976 | R41: 8.118215139 | S41: 7.924924303 | T41: 7.731633466 | U41: 7.538342629 | V41: 7.345051793 | W41: 7.151760956 | X41: 6.95847012 | Y41: 6.765179283 | Z41: 6.571888446 | AA41: 6.37859761 | AB41: 6.185306773 | AC41: 5.992015936 | AD41: 5.7987251 | AE41: 5.605434263 | AF41: 5.412143426 | AG41: 5.21885259 | AH41: 5.025561753 | AI41: 4.832270916 | AJ41: 4.63898008 | AK41: 4.445689243 | AL41: 4.252398406 | AM41: 4.05910757 | AN41: 3.865816733 | AO41: 3.672525896 | AP41: 3.47923506 | AQ41: 3.285944223 | AR41: 3.092653386 | AS41: 2.89936255 | AT41: 2.706071713 | AU41: 2.512780876 | AV41: 2.31949004 | AW41: 2.126199203 | AX41: 1.932908367 | AY41: 1.73961753 | AZ41: 1.546326693 | BA41: 1.353035857 | BB41: 1.15974502 | BC41: 0.9664541833 | BD41: 0.7731633466 | BE41: 0.57987251 | BF41: 0.3865816733 | BG41: 0.1932908367 | BH41: -5.551115123e-17
A42: 8 | C42: -0.3865816733 | D42: 5.7987251 | E42: -8.650564874 | F42: 9.142874944 | G42: -8.650564874 | H42: 9.142874944 | I42: Leistung | J42: 8.959465352 | K42: 9.027423266 | L42: 9.095381179 | M42: 9.163339093 | N42: 9.231297007 | O42: 9.299254921 | P42: 9.367212835 | Q42: 9.264211701 | R42: 9.161210568 | S42: 9.058209434 | T42: 8.955208301 | U42: 8.852207167 | V42: 8.749206034 | W42: 8.646204901 | X42: 8.543203767 | Y42: 8.440202634 | Z42: 8.3372015 | AA42: 8.255797921 | AB42: 8.174394341 | AC42: 8.092990762 | AD42: 8.011587182 | AE42: 7.930183603 | AF42: 7.848780023 | AG42: 7.767376444 | AH42: 7.685972864 | AI42: 7.913334036 | AJ42: 8.140695208 | AK42: 8.36805638 | AL42: 8.595417552 | AM42: 8.822778724 | AN42: 9.050139896 | AO42: 9.277501068 | AP42: 9.50486224 | AQ42: 9.732223412 | AR42: 9.959584584 | AS42: 9.713321172 | AT42: 9.467057761 | AU42: 9.220794349 | AV42: 8.974530937 | AW42: 8.728267525 | AX42: 8.482004113 | AY42: 8.235740702 | AZ42: 7.98947729 | BA42: 7.743213878 | BB42: 7.496950466 | BC42: 7.488429185 | BD42: 7.479907904 | BE42: 7.471386623 | BF42: 7.462865342 | BG42: 7.454344061 | BH42: 7.445822779
A43: 8 | D43: 4.38 | E43: 9 | F43: 0,31 | G43: 4.38 | H43: 2.85 | I43: 4.46 | J43: 4.94 | K43: 0
A44: 8
A45: 9 | B45: Altherma 4 H F 230 12 kW | D45: 4.61 | E45: 3.94 | I45: Temperatur | J45: -10 | K45: -9.5 | L45: -9 | M45: -8.5 | N45: -8 | O45: -7.5 | P45: -7 | Q45: -6.5 | R45: -6 | S45: -5.5 | T45: -5 | U45: -4.5 | V45: -4 | W45: -3.5 | X45: -3 | Y45: -2.5 | Z45: -2 | AA45: -1.5 | AB45: -1 | AC45: -0.5 | AD45: 0 | AE45: 0.5 | AF45: 1 | AG45: 1.5 | AH45: 2 | AI45: 2.5 | AJ45: 3 | AK45: 3.5 | AL45: 4 | AM45: 4.5 | AN45: 5 | AO45: 5.5 | AP45: 6 | AQ45: 6.5 | AR45: 7 | AS45: 7.5 | AT45: 8 | AU45: 8.5 | AV45: 9 | AW45: 9.5 | AX45: 10 | AY45: 10.5 | AZ45: 11 | BA45: 11.5 | BB45: 12 | BC45: 12.5 | BD45: 13 | BE45: 13.5 | BF45: 14 | BG45: 14.5 | BH45: 15
A46: 9 | B46: 1 | F46: 0 | G46: 0 | I46: Heizlast | J46: 9.664541833 | K46: 9.471250996 | L46: 9.277960159 | M46: 9.084669323 | N46: 8.891378486 | O46: 8.698087649 | P46: 8.504796813 | Q46: 8.311505976 | R46: 8.118215139 | S46: 7.924924303 | T46: 7.731633466 | U46: 7.538342629 | V46: 7.345051793 | W46: 7.151760956 | X46: 6.95847012 | Y46: 6.765179283 | Z46: 6.571888446 | AA46: 6.37859761 | AB46: 6.185306773 | AC46: 5.992015936 | AD46: 5.7987251 | AE46: 5.605434263 | AF46: 5.412143426 | AG46: 5.21885259 | AH46: 5.025561753 | AI46: 4.832270916 | AJ46: 4.63898008 | AK46: 4.445689243 | AL46: 4.252398406 | AM46: 4.05910757 | AN46: 3.865816733 | AO46: 3.672525896 | AP46: 3.47923506 | AQ46: 3.285944223 | AR46: 3.092653386 | AS46: 2.89936255 | AT46: 2.706071713 | AU46: 2.512780876 | AV46: 2.31949004 | AW46: 2.126199203 | AX46: 1.932908367 | AY46: 1.73961753 | AZ46: 1.546326693 | BA46: 1.353035857 | BB46: 1.15974502 | BC46: 0.9664541833 | BD46: 0.7731633466 | BE46: 0.57987251 | BF46: 0.3865816733 | BG46: 0.1932908367 | BH46: -5.551115123e-17
A47: 9 | I47: Leistung | J47: 10.83353698 | K47: 10.92579605 | L47: 11.01805511 | M47: 11.11031418 | N47: 11.20257324 | O47: 11.2948323 | P47: 11.38709137 | Q47: 11.27414029 | R47: 11.16118921 | S47: 11.04823813 | T47: 10.93528705 | U47: 10.82233597 | V47: 10.7093849 | W47: 10.59643382 | X47: 10.48348274 | Y47: 10.37053166 | Z47: 10.25758058 | AA47: 10.06044955 | AB47: 9.86331851 | AC47: 9.666187476 | AD47: 9.469056441 | AE47: 9.271925406 | AF47: 9.074794371 | AG47: 8.877663336 | AH47: 8.680532301 | AI47: 9.025082936 | AJ47: 9.36963357 | AK47: 9.714184205 | AL47: 10.05873484 | AM47: 10.40328547 | AN47: 10.74783611 | AO47: 11.09238674 | AP47: 11.43693738 | AQ47: 11.78148801 | AR47: 12.12603865 | AS47: 11.85466569 | AT47: 11.58329274 | AU47: 11.31191978 | AV47: 11.04054682 | AW47: 10.76917387 | AX47: 10.49780091 | AY47: 10.22642796 | AZ47: 9.955055002 | BA47: 9.683682047 | BB47: 9.412309091 | BC47: 9.543437374 | BD47: 9.674565657 | BE47: 9.805693939 | BF47: 9.936822222 | BG47: 10.06795051 | BH47: 10.19907879
A48: 9 | D48: 4.47 | E48: 9 | F48: 0,21 | G48: 4.47 | H48: 3.49 | I48: 4.06 | J48: 5.5 | K48: 0
A49: 9
A50: 10 | B50: Altherma 4 H F 230 14 kW | D50: 4.61 | E50: 3.94 | I50: Temperatur | J50: -10 | K50: -9.5 | L50: -9 | M50: -8.5 | N50: -8 | O50: -7.5 | P50: -7 | Q50: -6.5 | R50: -6 | S50: -5.5 | T50: -5 | U50: -4.5 | V50: -4 | W50: -3.5 | X50: -3 | Y50: -2.5 | Z50: -2 | AA50: -1.5 | AB50: -1 | AC50: -0.5 | AD50: 0 | AE50: 0.5 | AF50: 1 | AG50: 1.5 | AH50: 2 | AI50: 2.5 | AJ50: 3 | AK50: 3.5 | AL50: 4 | AM50: 4.5 | AN50: 5 | AO50: 5.5 | AP50: 6 | AQ50: 6.5 | AR50: 7 | AS50: 7.5 | AT50: 8 | AU50: 8.5 | AV50: 9 | AW50: 9.5 | AX50: 10 | AY50: 10.5 | AZ50: 11 | BA50: 11.5 | BB50: 12 | BC50: 12.5 | BD50: 13 | BE50: 13.5 | BF50: 14 | BG50: 14.5 | BH50: 15
A51: 10 | B51: 1 | F51: 0 | G51: 0 | I51: Heizlast | J51: 9.664541833 | K51: 9.471250996 | L51: 9.277960159 | M51: 9.084669323 | N51: 8.891378486 | O51: 8.698087649 | P51: 8.504796813 | Q51: 8.311505976 | R51: 8.118215139 | S51: 7.924924303 | T51: 7.731633466 | U51: 7.538342629 | V51: 7.345051793 | W51: 7.151760956 | X51: 6.95847012 | Y51: 6.765179283 | Z51: 6.571888446 | AA51: 6.37859761 | AB51: 6.185306773 | AC51: 5.992015936 | AD51: 5.7987251 | AE51: 5.605434263 | AF51: 5.412143426 | AG51: 5.21885259 | AH51: 5.025561753 | AI51: 4.832270916 | AJ51: 4.63898008 | AK51: 4.445689243 | AL51: 4.252398406 | AM51: 4.05910757 | AN51: 3.865816733 | AO51: 3.672525896 | AP51: 3.47923506 | AQ51: 3.285944223 | AR51: 3.092653386 | AS51: 2.89936255 | AT51: 2.706071713 | AU51: 2.512780876 | AV51: 2.31949004 | AW51: 2.126199203 | AX51: 1.932908367 | AY51: 1.73961753 | AZ51: 1.546326693 | BA51: 1.353035857 | BB51: 1.15974502 | BC51: 0.9664541833 | BD51: 0.7731633466 | BE51: 0.57987251 | BF51: 0.3865816733 | BG51: 0.1932908367 | BH51: -5.551115123e-17
A52: 10 | I52: Leistung | J52: 13.08025179 | K52: 13.08587697 | L52: 13.09150215 | M52: 13.09712732 | N52: 13.1027525 | O52: 13.10837768 | P52: 13.11400286 | Q52: 13.12930257 | R52: 13.14460229 | S52: 13.159902 | T52: 13.17520172 | U52: 13.19050143 | V52: 13.20580114 | W52: 13.22110086 | X52: 13.23640057 | Y52: 13.25170029 | Z52: 13.267 | AA52: 12.97868747 | AB52: 12.69037493 | AC52: 12.4020624 | AD52: 12.11374986 | AE52: 11.82543733 | AF52: 11.53712479 | AG52: 11.24881226 | AH52: 10.96049973 | AI52: 11.38571642 | AJ52: 11.81093311 | AK52: 12.23614981 | AL52: 12.6613665 | AM52: 13.0865832 | AN52: 13.51179989 | AO52: 13.93701658 | AP52: 14.36223328 | AQ52: 14.78744997 | AR52: 15.21266667 | AS52: 14.8953 | AT52: 14.57793333 | AU52: 14.26056667 | AV52: 13.9432 | AW52: 13.62583333 | AX52: 13.30846667 | AY52: 12.9911 | AZ52: 12.67373333 | BA52: 12.35636667 | BB52: 12.039 | BC52: 12.20672222 | BD52: 12.37444444 | BE52: 12.54216667 | BF52: 12.70988889 | BG52: 12.87761111 | BH52: 13.04533333
A53: 10 | D53: 4.47 | E53: 9 | F53: 0,11 | G53: 4.47 | H53: 3.49 | I53: 4.06 | J53: 5.5 | K53: 0
A54: 10
A55: 11 | B55: Altherma 4 H W 6 kW | D55: 4.75 | E55: 3.72 | I55: Temperatur | J55: -10 | K55: -9.5 | L55: -9 | M55: -8.5 | N55: -8 | O55: -7.5 | P55: -7 | Q55: -6.5 | R55: -6 | S55: -5.5 | T55: -5 | U55: -4.5 | V55: -4 | W55: -3.5 | X55: -3 | Y55: -2.5 | Z55: -2 | AA55: -1.5 | AB55: -1 | AC55: -0.5 | AD55: 0 | AE55: 0.5 | AF55: 1 | AG55: 1.5 | AH55: 2 | AI55: 2.5 | AJ55: 3 | AK55: 3.5 | AL55: 4 | AM55: 4.5 | AN55: 5 | AO55: 5.5 | AP55: 6 | AQ55: 6.5 | AR55: 7 | AS55: 7.5 | AT55: 8 | AU55: 8.5 | AV55: 9 | AW55: 9.5 | AX55: 10 | AY55: 10.5 | AZ55: 11 | BA55: 11.5 | BB55: 12 | BC55: 12.5 | BD55: 13 | BE55: 13.5 | BF55: 14 | BG55: 14.5 | BH55: 15
A56: 11 | B56: 18 | C56: -0.04928176727 | D56: 6.417612318 | E56: -1.834827723 | F56: 0 | G56: 0 | H56: 6.508035871 | I56: Heizlast | J56: 9.664541833 | K56: 9.471250996 | L56: 9.277960159 | M56: 9.084669323 | N56: 8.891378486 | O56: 8.698087649 | P56: 8.504796813 | Q56: 8.311505976 | R56: 8.118215139 | S56: 7.924924303 | T56: 7.731633466 | U56: 7.538342629 | V56: 7.345051793 | W56: 7.151760956 | X56: 6.95847012 | Y56: 6.765179283 | Z56: 6.571888446 | AA56: 6.37859761 | AB56: 6.185306773 | AC56: 5.992015936 | AD56: 5.7987251 | AE56: 5.605434263 | AF56: 5.412143426 | AG56: 5.21885259 | AH56: 5.025561753 | AI56: 4.832270916 | AJ56: 4.63898008 | AK56: 4.445689243 | AL56: 4.252398406 | AM56: 4.05910757 | AN56: 3.865816733 | AO56: 3.672525896 | AP56: 3.47923506 | AQ56: 3.285944223 | AR56: 3.092653386 | AS56: 2.89936255 | AT56: 2.706071713 | AU56: 2.512780876 | AV56: 2.31949004 | AW56: 2.126199203 | AX56: 1.932908367 | AY56: 1.73961753 | AZ56: 1.546326693 | BA56: 1.353035857 | BB56: 1.15974502 | BC56: 0.9664541833 | BD56: 0.7731633466 | BE56: 0.57987251 | BF56: 0.3865816733 | BG56: 0.1932908367 | BH56: -5.551115123e-17
A57: 11 | C57: -0.3865816733 | D57: 5.7987251 | E57: -1.834827723 | F57: 6.508035871 | G57: -1.834827723 | H57: 6.508035871 | I57: Leistung | J57: 6.074827254 | K57: 6.150689379 | L57: 6.226551503 | M57: 6.302413627 | N57: 6.378275751 | O57: 6.454137876 | P57: 6.53 | Q57: 6.528617585 | R57: 6.527235171 | S57: 6.525852756 | T57: 6.524470341 | U57: 6.523087926 | V57: 6.521705512 | W57: 6.520323097 | X57: 6.518940682 | Y57: 6.517558267 | Z57: 6.516175853 | AA57: 6.491534969 | AB57: 6.466894085 | AC57: 6.442253202 | AD57: 6.417612318 | AE57: 6.392971434 | AF57: 6.368330551 | AG57: 6.343689667 | AH57: 6.319048784 | AI57: 6.275036051 | AJ57: 6.231023318 | AK57: 6.187010585 | AL57: 6.142997853 | AM57: 6.09898512 | AN57: 6.054972387 | AO57: 6.010959654 | AP57: 5.966946921 | AQ57: 5.922934189 | AR57: 5.878921456 | AS57: 5.736793933 | AT57: 5.594666409 | AU57: 5.452538886 | AV57: 5.310411363 | AW57: 5.16828384 | AX57: 5.026156316 | AY57: 4.884028793 | AZ57: 4.74190127 | BA57: 4.599773746 | BB57: 4.457646223 | BC57: 4.502244134 | BD57: 4.546842044 | BE57: 4.591439955 | BF57: 4.636037866 | BG57: 4.680635776 | BH57: 4.725233687
A58: 11 | D58: 4.35 | E58: 9 | F58: 0,52 | G58: 4.52 | H58: 3.38 | I58: 4.46 | J58: 5.19 | K58: 0
A59: 11
A60: 12 | B60: Altherma 4 H W 8 kW | D60: 4.68 | E60: 3.59 | I60: Temperatur | J60: -10 | K60: -9.5 | L60: -9 | M60: -8.5 | N60: -8 | O60: -7.5 | P60: -7 | Q60: -6.5 | R60: -6 | S60: -5.5 | T60: -5 | U60: -4.5 | V60: -4 | W60: -3.5 | X60: -3 | Y60: -2.5 | Z60: -2 | AA60: -1.5 | AB60: -1 | AC60: -0.5 | AD60: 0 | AE60: 0.5 | AF60: 1 | AG60: 1.5 | AH60: 2 | AI60: 2.5 | AJ60: 3 | AK60: 3.5 | AL60: 4 | AM60: 4.5 | AN60: 5 | AO60: 5.5 | AP60: 6 | AQ60: 6.5 | AR60: 7 | AS60: 7.5 | AT60: 8 | AU60: 8.5 | AV60: 9 | AW60: 9.5 | AX60: 10 | AY60: 10.5 | AZ60: 11 | BA60: 11.5 | BB60: 12 | BC60: 12.5 | BD60: 13 | BE60: 13.5 | BF60: 14 | BG60: 14.5 | BH60: 15
A61: 12 | B61: 11 | C61: -0.1066052695 | D61: 7.2115594 | E61: -5.046262046 | F61: 0 | G61: 0 | H61: 7.749517525 | I61: Heizlast | J61: 9.664541833 | K61: 9.471250996 | L61: 9.277960159 | M61: 9.084669323 | N61: 8.891378486 | O61: 8.698087649 | P61: 8.504796813 | Q61: 8.311505976 | R61: 8.118215139 | S61: 7.924924303 | T61: 7.731633466 | U61: 7.538342629 | V61: 7.345051793 | W61: 7.151760956 | X61: 6.95847012 | Y61: 6.765179283 | Z61: 6.571888446 | AA61: 6.37859761 | AB61: 6.185306773 | AC61: 5.992015936 | AD61: 5.7987251 | AE61: 5.605434263 | AF61: 5.412143426 | AG61: 5.21885259 | AH61: 5.025561753 | AI61: 4.832270916 | AJ61: 4.63898008 | AK61: 4.445689243 | AL61: 4.252398406 | AM61: 4.05910757 | AN61: 3.865816733 | AO61: 3.672525896 | AP61: 3.47923506 | AQ61: 3.285944223 | AR61: 3.092653386 | AS61: 2.89936255 | AT61: 2.706071713 | AU61: 2.512780876 | AV61: 2.31949004 | AW61: 2.126199203 | AX61: 1.932908367 | AY61: 1.73961753 | AZ61: 1.546326693 | BA61: 1.353035857 | BB61: 1.15974502 | BC61: 0.9664541833 | BD61: 0.7731633466 | BE61: 0.57987251 | BF61: 0.3865816733 | BG61: 0.1932908367 | BH61: -5.551115123e-17
A62: 12 | C62: -0.3865816733 | D62: 5.7987251 | E62: -5.046262046 | F62: 7.749517525 | G62: -5.046262046 | H62: 7.749517525 | I62: Leistung | J62: 7.548005905 | K62: 7.616304302 | L62: 7.684602699 | M62: 7.752901096 | N62: 7.821199493 | O62: 7.88949789 | P62: 7.957796286 | Q62: 7.904493652 | R62: 7.851191017 | S62: 7.797888382 | T62: 7.744585747 | U62: 7.691283113 | V62: 7.637980478 | W62: 7.584677843 | X62: 7.531375208 | Y62: 7.478072574 | Z62: 7.424769939 | AA62: 7.310978978 | AB62: 7.197188018 | AC62: 7.083397058 | AD62: 6.969606097 | AE62: 6.855815137 | AF62: 6.742024177 | AG62: 6.628233216 | AH62: 6.514442256 | AI62: 6.630716009 | AJ62: 6.746989762 | AK62: 6.863263514 | AL62: 6.979537267 | AM62: 7.09581102 | AN62: 7.212084773 | AO62: 7.328358525 | AP62: 7.444632278 | AQ62: 7.560906031 | AR62: 7.677179784 | AS62: 7.483552607 | AT62: 7.28992543 | AU62: 7.096298253 | AV62: 6.902671076 | AW62: 6.709043899 | AX62: 6.515416722 | AY62: 6.321789545 | AZ62: 6.128162369 | BA62: 5.934535192 | BB62: 5.740908015 | BC62: 5.798344718 | BD62: 5.855781421 | BE62: 5.913218124 | BF62: 5.970654827 | BG62: 6.02809153 | BH62: 6.085528233
A63: 12 | C63: empfohlen | D63: 4.43 | E63: 9 | F63: 0,42 | G63: 4.43 | H63: 3.32 | I63: 4.46 | J63: 5.01 | K63: 0
A64: 12
A65: 13 | B65: Altherma 4 H W 10 kW | D65: 4.62 | E65: 3.54 | I65: Temperatur | J65: -10 | K65: -9.5 | L65: -9 | M65: -8.5 | N65: -8 | O65: -7.5 | P65: -7 | Q65: -6.5 | R65: -6 | S65: -5.5 | T65: -5 | U65: -4.5 | V65: -4 | W65: -3.5 | X65: -3 | Y65: -2.5 | Z65: -2 | AA65: -1.5 | AB65: -1 | AC65: -0.5 | AD65: 0 | AE65: 0.5 | AF65: 1 | AG65: 1.5 | AH65: 2 | AI65: 2.5 | AJ65: 3 | AK65: 3.5 | AL65: 4 | AM65: 4.5 | AN65: 5 | AO65: 5.5 | AP65: 6 | AQ65: 6.5 | AR65: 7 | AS65: 7.5 | AT65: 8 | AU65: 8.5 | AV65: 9 | AW65: 9.5 | AX65: 10 | AY65: 10.5 | AZ65: 11 | BA65: 11.5 | BB65: 12 | BC65: 12.5 | BD65: 13 | BE65: 13.5 | BF65: 14 | BG65: 14.5 | BH65: 15
A66: 13 | B66: 4 | C66: 0.1359158276 | D66: 10.31862363 | E66: -8.650564874 | F66: 0 | G66: 0 | H66: 9.142874944 | I66: Heizlast | J66: 9.664541833 | K66: 9.471250996 | L66: 9.277960159 | M66: 9.084669323 | N66: 8.891378486 | O66: 8.698087649 | P66: 8.504796813 | Q66: 8.311505976 | R66: 8.118215139 | S66: 7.924924303 | T66: 7.731633466 | U66: 7.538342629 | V66: 7.345051793 | W66: 7.151760956 | X66: 6.95847012 | Y66: 6.765179283 | Z66: 6.571888446 | AA66: 6.37859761 | AB66: 6.185306773 | AC66: 5.992015936 | AD66: 5.7987251 | AE66: 5.605434263 | AF66: 5.412143426 | AG66: 5.21885259 | AH66: 5.025561753 | AI66: 4.832270916 | AJ66: 4.63898008 | AK66: 4.445689243 | AL66: 4.252398406 | AM66: 4.05910757 | AN66: 3.865816733 | AO66: 3.672525896 | AP66: 3.47923506 | AQ66: 3.285944223 | AR66: 3.092653386 | AS66: 2.89936255 | AT66: 2.706071713 | AU66: 2.512780876 | AV66: 2.31949004 | AW66: 2.126199203 | AX66: 1.932908367 | AY66: 1.73961753 | AZ66: 1.546326693 | BA66: 1.353035857 | BB66: 1.15974502 | BC66: 0.9664541833 | BD66: 0.7731633466 | BE66: 0.57987251 | BF66: 0.3865816733 | BG66: 0.1932908367 | BH66: -5.551115123e-17
A67: 13 | C67: -0.3865816733 | D67: 5.7987251 | E67: -8.650564874 | F67: 9.142874944 | G67: -8.650564874 | H67: 9.142874944 | I67: Leistung | J67: 8.959465352 | K67: 9.027423266 | L67: 9.095381179 | M67: 9.163339093 | N67: 9.231297007 | O67: 9.299254921 | P67: 9.367212835 | Q67: 9.264211701 | R67: 9.161210568 | S67: 9.058209434 | T67: 8.955208301 | U67: 8.852207167 | V67: 8.749206034 | W67: 8.646204901 | X67: 8.543203767 | Y67: 8.440202634 | Z67: 8.3372015 | AA67: 8.255797921 | AB67: 8.174394341 | AC67: 8.092990762 | AD67: 8.011587182 | AE67: 7.930183603 | AF67: 7.848780023 | AG67: 7.767376444 | AH67: 7.685972864 | AI67: 7.913334036 | AJ67: 8.140695208 | AK67: 8.36805638 | AL67: 8.595417552 | AM67: 8.822778724 | AN67: 9.050139896 | AO67: 9.277501068 | AP67: 9.50486224 | AQ67: 9.732223412 | AR67: 9.959584584 | AS67: 9.713321172 | AT67: 9.467057761 | AU67: 9.220794349 | AV67: 8.974530937 | AW67: 8.728267525 | AX67: 8.482004113 | AY67: 8.235740702 | AZ67: 7.98947729 | BA67: 7.743213878 | BB67: 7.496950466 | BC67: 7.488429185 | BD67: 7.479907904 | BE67: 7.471386623 | BF67: 7.462865342 | BG67: 7.454344061 | BH67: 7.445822779
A68: 13 | D68: 4.38 | E68: 9 | F68: 0,32 | G68: 4.38 | H68: 2.85 | I68: 4.46 | J68: 4.94 | K68: 0
A69: 13
A70: 14 | B70: Altherma 4 H W 12 kW | D70: 4.61 | E70: 3.94 | I70: Temperatur | J70: -10 | K70: -9.5 | L70: -9 | M70: -8.5 | N70: -8 | O70: -7.5 | P70: -7 | Q70: -6.5 | R70: -6 | S70: -5.5 | T70: -5 | U70: -4.5 | V70: -4 | W70: -3.5 | X70: -3 | Y70: -2.5 | Z70: -2 | AA70: -1.5 | AB70: -1 | AC70: -0.5 | AD70: 0 | AE70: 0.5 | AF70: 1 | AG70: 1.5 | AH70: 2 | AI70: 2.5 | AJ70: 3 | AK70: 3.5 | AL70: 4 | AM70: 4.5 | AN70: 5 | AO70: 5.5 | AP70: 6 | AQ70: 6.5 | AR70: 7 | AS70: 7.5 | AT70: 8 | AU70: 8.5 | AV70: 9 | AW70: 9.5 | AX70: 10 | AY70: 10.5 | AZ70: 11 | BA70: 11.5 | BB70: 12 | BC70: 12.5 | BD70: 13 | BE70: 13.5 | BF70: 14 | BG70: 14.5 | BH70: 15
A71: 14 | B71: 1 | F71: 0 | G71: 0 | I71: Heizlast | J71: 9.664541833 | K71: 9.471250996 | L71: 9.277960159 | M71: 9.084669323 | N71: 8.891378486 | O71: 8.698087649 | P71: 8.504796813 | Q71: 8.311505976 | R71: 8.118215139 | S71: 7.924924303 | T71: 7.731633466 | U71: 7.538342629 | V71: 7.345051793 | W71: 7.151760956 | X71: 6.95847012 | Y71: 6.765179283 | Z71: 6.571888446 | AA71: 6.37859761 | AB71: 6.185306773 | AC71: 5.992015936 | AD71: 5.7987251 | AE71: 5.605434263 | AF71: 5.412143426 | AG71: 5.21885259 | AH71: 5.025561753 | AI71: 4.832270916 | AJ71: 4.63898008 | AK71: 4.445689243 | AL71: 4.252398406 | AM71: 4.05910757 | AN71: 3.865816733 | AO71: 3.672525896 | AP71: 3.47923506 | AQ71: 3.285944223 | AR71: 3.092653386 | AS71: 2.89936255 | AT71: 2.706071713 | AU71: 2.512780876 | AV71: 2.31949004 | AW71: 2.126199203 | AX71: 1.932908367 | AY71: 1.73961753 | AZ71: 1.546326693 | BA71: 1.353035857 | BB71: 1.15974502 | BC71: 0.9664541833 | BD71: 0.7731633466 | BE71: 0.57987251 | BF71: 0.3865816733 | BG71: 0.1932908367 | BH71: -5.551115123e-17
A72: 14 | I72: Leistung | J72: 10.83353698 | K72: 10.92579605 | L72: 11.01805511 | M72: 11.11031418 | N72: 11.20257324 | O72: 11.2948323 | P72: 11.38709137 | Q72: 11.27414029 | R72: 11.16118921 | S72: 11.04823813 | T72: 10.93528705 | U72: 10.82233597 | V72: 10.7093849 | W72: 10.59643382 | X72: 10.48348274 | Y72: 10.37053166 | Z72: 10.25758058 | AA72: 10.06044955 | AB72: 9.86331851 | AC72: 9.666187476 | AD72: 9.469056441 | AE72: 9.271925406 | AF72: 9.074794371 | AG72: 8.877663336 | AH72: 8.680532301 | AI72: 9.025082936 | AJ72: 9.36963357 | AK72: 9.714184205 | AL72: 10.05873484 | AM72: 10.40328547 | AN72: 10.74783611 | AO72: 11.09238674 | AP72: 11.43693738 | AQ72: 11.78148801 | AR72: 12.12603865 | AS72: 11.85466569 | AT72: 11.58329274 | AU72: 11.31191978 | AV72: 11.04054682 | AW72: 10.76917387 | AX72: 10.49780091 | AY72: 10.22642796 | AZ72: 9.955055002 | BA72: 9.683682047 | BB72: 9.412309091 | BC72: 9.543437374 | BD72: 9.674565657 | BE72: 9.805693939 | BF72: 9.936822222 | BG72: 10.06795051 | BH72: 10.19907879
A73: 14 | D73: 4.47 | E73: 9 | F73: 0,22 | G73: 4.47 | H73: 3.49 | I73: 4.06 | J73: 5.5 | K73: 0
A74: 14
A75: 15 | B75: Altherma 4 H W 14 kW | D75: 4.61 | E75: 3.94 | I75: Temperatur | J75: -10 | K75: -9.5 | L75: -9 | M75: -8.5 | N75: -8 | O75: -7.5 | P75: -7 | Q75: -6.5 | R75: -6 | S75: -5.5 | T75: -5 | U75: -4.5 | V75: -4 | W75: -3.5 | X75: -3 | Y75: -2.5 | Z75: -2 | AA75: -1.5 | AB75: -1 | AC75: -0.5 | AD75: 0 | AE75: 0.5 | AF75: 1 | AG75: 1.5 | AH75: 2 | AI75: 2.5 | AJ75: 3 | AK75: 3.5 | AL75: 4 | AM75: 4.5 | AN75: 5 | AO75: 5.5 | AP75: 6 | AQ75: 6.5 | AR75: 7 | AS75: 7.5 | AT75: 8 | AU75: 8.5 | AV75: 9 | AW75: 9.5 | AX75: 10 | AY75: 10.5 | AZ75: 11 | BA75: 11.5 | BB75: 12 | BC75: 12.5 | BD75: 13 | BE75: 13.5 | BF75: 14 | BG75: 14.5 | BH75: 15
A76: 15 | B76: 1 | F76: 0 | G76: 0 | I76: Heizlast | J76: 9.664541833 | K76: 9.471250996 | L76: 9.277960159 | M76: 9.084669323 | N76: 8.891378486 | O76: 8.698087649 | P76: 8.504796813 | Q76: 8.311505976 | R76: 8.118215139 | S76: 7.924924303 | T76: 7.731633466 | U76: 7.538342629 | V76: 7.345051793 | W76: 7.151760956 | X76: 6.95847012 | Y76: 6.765179283 | Z76: 6.571888446 | AA76: 6.37859761 | AB76: 6.185306773 | AC76: 5.992015936 | AD76: 5.7987251 | AE76: 5.605434263 | AF76: 5.412143426 | AG76: 5.21885259 | AH76: 5.025561753 | AI76: 4.832270916 | AJ76: 4.63898008 | AK76: 4.445689243 | AL76: 4.252398406 | AM76: 4.05910757 | AN76: 3.865816733 | AO76: 3.672525896 | AP76: 3.47923506 | AQ76: 3.285944223 | AR76: 3.092653386 | AS76: 2.89936255 | AT76: 2.706071713 | AU76: 2.512780876 | AV76: 2.31949004 | AW76: 2.126199203 | AX76: 1.932908367 | AY76: 1.73961753 | AZ76: 1.546326693 | BA76: 1.353035857 | BB76: 1.15974502 | BC76: 0.9664541833 | BD76: 0.7731633466 | BE76: 0.57987251 | BF76: 0.3865816733 | BG76: 0.1932908367 | BH76: -5.551115123e-17
A77: 15 | I77: Leistung | J77: 13.08025179 | K77: 13.08587697 | L77: 13.09150215 | M77: 13.09712732 | N77: 13.1027525 | O77: 13.10837768 | P77: 13.11400286 | Q77: 13.12930257 | R77: 13.14460229 | S77: 13.159902 | T77: 13.17520172 | U77: 13.19050143 | V77: 13.20580114 | W77: 13.22110086 | X77: 13.23640057 | Y77: 13.25170029 | Z77: 13.267 | AA77: 12.97868747 | AB77: 12.69037493 | AC77: 12.4020624 | AD77: 12.11374986 | AE77: 11.82543733 | AF77: 11.53712479 | AG77: 11.24881226 | AH77: 10.96049973 | AI77: 11.38571642 | AJ77: 11.81093311 | AK77: 12.23614981 | AL77: 12.6613665 | AM77: 13.0865832 | AN77: 13.51179989 | AO77: 13.93701658 | AP77: 14.36223328 | AQ77: 14.78744997 | AR77: 15.21266667 | AS77: 14.8953 | AT77: 14.57793333 | AU77: 14.26056667 | AV77: 13.9432 | AW77: 13.62583333 | AX77: 13.30846667 | AY77: 12.9911 | AZ77: 12.67373333 | BA77: 12.35636667 | BB77: 12.039 | BC77: 12.20672222 | BD77: 12.37444444 | BE77: 12.54216667 | BF77: 12.70988889 | BG77: 12.87761111 | BH77: 13.04533333
A78: 15 | D78: 4.47 | E78: 9 | F78: 0,13 | G78: 4.47 | H78: 3.49 | I78: 4.06 | J78: 5.5 | K78: 0
A79: 15

Sheet VDI 4650 (hidden)
A2: Tabelle 1: Korrekturfaktor FΔϑ für abweichende Temeperaturdifferenzen am Verflüssiger
K3: VDI 4650
B4: Temperaturdifferenz bei der Prüfstandsmessung ΔϑM in K | K4: - Stand 2016
A5: ΔϑB*) in K | B5: 3 | C5: 4 | D5: 5 | E5: 6 | F5: 7 | G5: 8 | H5: 9 | I5: 10
A6: 3 | B6: 1 | C6: 0.99 | D6: 0.98 | E6: 0.969 | F6: 0.959 | G6: 0.949 | H6: 0.939 | I6: 0.928
A7: 4 | B7: 1.01 | C7: 1 | D7: 0.99 | E7: 0.98 | F7: 0.969 | G7: 0.959 | H7: 0.949 | I7: 0.939
A8: 5 | B8: 1.02 | C8: 1.01 | D8: 1 | E8: 0.99 | F8: 0.98 | G8: 0.969 | H8: 0.959 | I8: 0.949
A9: 6 | B9: 1.031 | C9: 1.02 | D9: 1.01 | E9: 1 | F9: 0.99 | G9: 0.98 | H9: 0.969 | I9: 0.959
A10: 7 | B10: 1.041 | C10: 1.031 | D10: 1.02 | E10: 1.01 | F10: 1 | G10: 0.99 | H10: 0.98 | I10: 0.969
A11: 8 | B11: 1.051 | C11: 1.041 | D11: 1.031 | E11: 1.02 | F11: 1.01 | G11: 1 | H11: 0.99 | I11: 0.98
A12: 9 | B12: 1.061 | C12: 1.051 | D12: 1.041 | E12: 1.031 | F12: 1.02 | G12: 1.01 | H12: 1 | I12: 0.99
A13: 10 | B13: 1.072 | C13: 1.061 | D13: 1.051 | E13: 1.041 | F13: 1.031 | G13: 1.02 | H13: 1.01 | I13: 1
A14: *) ΔϑB – Temperaturdifferenz beim Betrieb im Auslegungspunkt der Heizungsanlage
A18: Tabelle 12: Korrekturfaktoren Fϑ1, Fϑ2, Fϑ3 für Luft-Wasser-Wärmepumpen (leistungsgeregelt) bei unterschiedlichen Betriebsbedingungen
A19: (HG = 15 °C)
D20: Maximale Vorlauftemperatur tvorl,max in °C
A21: Normaußentemperatur | B21: Lufttemperatur in °C | C21: Korrekturfaktor | D21: 30 | E21: 35 | F21: 40 | G21: 45 | H21: 50 | I21: 55 | J21: 60
A22: –8°C | B22: –7 | C22: Fϑ 1 | D22: 0.008 | E22: 0.008 | F22: 0.009 | G22: 0.01 | H22: 0.011 | I22: 0.012 | J22: 0.013 | K22: NEU
B23: 2 | C23: Fϑ 2 | D23: 0.458 | E23: 0.483 | F23: 0.512 | G23: 0.544 | H23: 0.581 | I23: 0.623 | J23: 0.665
B24: 7 | C24: Fϑ 3 | D24: 0.353 | E24: 0.368 | F24: 0.383 | G24: 0.4 | H24: 0.419 | I24: 0.439 | J24: 0.46
A25: –10°C | B25: –7 | C25: Fϑ 1 | D25: 0.02 | E25: 0.022 | F25: 0.024 | G25: 0.026 | H25: 0.028 | I25: 0.031 | J25: 0.035
B26: 2 | C26: Fϑ 2 | D26: 0.439 | E26: 0.462 | F26: 0.488 | G26: 0.517 | H26: 0.55 | I26: 0.587 | J26: 0.625
B27: 7 | C27: Fϑ 3 | D27: 0.398 | E27: 0.413 | F27: 0.43 | G27: 0.447 | H27: 0.466 | I27: 0.487 | J27: 0.508
A28: –12°C | B28: –7 | C28: Fϑ 1 | D28: 0.036 | E28: 0.038 | F28: 0.041 | G28: 0.045 | H28: 0.049 | I28: 0.054 | J28: 0.059
B29: 2 | C29: Fϑ 2 | D29: 0.5 | E29: 0.525 | F29: 0.553 | G29: 0.584 | H29: 0.619 | I29: 0.658 | J29: 0.698
B30: 7 | C30: Fϑ 3 | D30: 0.328 | E30: 0.34 | F30: 0.352 | G30: 0.366 | H30: 0.38 | I30: 0.396 | J30: 0.412
A31: –14°C | B31: –7 | C31: Fϑ 1 | D31: 0.089 | E31: 0.095 | F31: 0.102 | G31: 0.11 | H31: 0.119 | I31: 0.131 | J31: 0.142
B32: 2 | C32: Fϑ 2 | D32: 0.521 | E32: 0.547 | F32: 0.575 | G32: 0.606 | H32: 0.64 | I32: 0.679 | J32: 0.718
B33: 7 | C33: Fϑ 3 | D33: 0.264 | E33: 0.272 | F33: 0.282 | G33: 0.292 | H33: 0.303 | I33: 0.315 | J33: 0.326
A34: –16°C | B34: –7 | C34: Fϑ 1 | D34: 0.138 | E34: 0.147 | F34: 0.158 | G34: 0.171 | H34: 0.185 | I34: 0.203 | J34: 0.221
B35: 2 | C35: Fϑ 2 | D35: 0.52 | E35: 0.544 | F35: 0.571 | G35: 0.6 | H35: 0.632 | I35: 0.668 | J35: 0.703
B36: 7 | C36: Fϑ 3 | D36: 0.219 | E36: 0.226 | F36: 0.233 | G36: 0.241 | H36: 0.249 | I36: 0.258 | J36: 0.267
A40: Tabelle 14: Korrekturfaktoren Fϑ1, Fϑ2, Fϑ3 für Luft-Wasser-Wärmepumpen (leistungsgeregelt) bei unterschiedlichen Betriebsbedingungen
A41: (HG = 12 °C)
D42: Maximale Vorlauftemperatur tvorl,max in °C
A43: Normaußentemperatur | B43: Lufttemperatur in °C | C43: Korrekturfaktor | D43: 30 | E43: 35 | F43: 40 | G43: 45 | H43: 50 | I43: 55 | J43: 60
A44: –8°C | B44: –7 | C44: Fϑ 1 | D44: 0.01 | E44: 0.011 | F44: 0.012 | G44: 0.013 | H44: 0.014 | I44: 0.015 | J44: 0.017
B45: 2 | C45: Fϑ 2 | D45: 0.541 | E45: 0.571 | F45: 0.605 | G45: 0.643 | H45: 0.687 | I45: 0.736 | J45: 0.786
B46: 7 | C46: Fϑ 3 | D46: 0.28 | E46: 0.292 | F46: 0.305 | G46: 0.32 | H46: 0.336 | I46: 0.354 | J46: 0.372
A47: –10°C | B47: –7 | C47: Fϑ 1 | D47: 0.026 | E47: 0.028 | F47: 0.031 | G47: 0.034 | H47: 0.037 | I47: 0.041 | J47: 0.045
B48: 2 | C48: Fϑ 2 | D48: 0.523 | E48: 0.551 | F48: 0.582 | G48: 0.617 | H48: 0.657 | I48: 0.702 | J48: 0.747
B49: 7 | C49: Fϑ 3 | D49: 0.329 | E49: 0.342 | F49: 0.356 | G49: 0.371 | H49: 0.388 | I49: 0.406 | J49: 0.425
A50: –12°C | B50: –7 | C50: Fϑ 1 | D50: 0.045 | E50: 0.048 | F50: 0.052 | G50: 0.057 | H50: 0.062 | I50: 0.068 | J50: 0.075
B51: 2 | C51: Fϑ 2 | D51: 0.579 | E51: 0.608 | F51: 0.641 | G51: 0.677 | H51: 0.718 | I51: 0.764 | J51: 0.81
B52: 7 | C52: Fϑ 3 | D52: 0.259 | E52: 0.269 | F52: 0.28 | G52: 0.291 | H52: 0.303 | I52: 0.317 | J52: 0.33
A53: –14°C | B53: –7 | C53: Fϑ 1 | D53: 0.107 | E53: 0.115 | F53: 0.123 | G53: 0.133 | H53: 0.144 | I53: 0.158 | J53: 0.172
B54: 2 | C54: Fϑ 2 | D54: 0.583 | E54: 0.612 | F54: 0.643 | G54: 0.678 | H54: 0.717 | I54: 0.761 | J54: 0.805
B55: 7 | C55: Fϑ 3 | D55: 0.2 | E55: 0.207 | F55: 0.215 | G55: 0.223 | H55: 0.232 | I55: 0.242 | J55: 0.251
A56: –16°C | B56: –7 | C56: Fϑ 1 | D56: 0.164 | E56: 0.175 | F56: 0.188 | G56: 0.203 | H56: 0.221 | I56: 0.242 | J56: 0.264
B57: 2 | C57: Fϑ 2 | D57: 0.57 | E57: 0.596 | F57: 0.625 | G57: 0.657 | H57: 0.692 | I57: 0.731 | J57: 0.771
B58: 7 | C58: Fϑ 3 | D58: 0.16 | E58: 0.165 | F58: 0.171 | G58: 0.177 | H58: 0.183 | I58: 0.191 | J58: 0.198
A62: Tabelle 16: Korrekturfaktoren Fϑ1, Fϑ2, Fϑ3 für Luft-Wasser-Wärmepumpen (leistungsgeregelt) bei unterschiedlichen Betriebsbedingungen
A63: (HG = 10 °C)
D64: Maximale Vorlauftemperatur tvorl,max in °C
A65: Normaußentemperatur | B65: Lufttemperatur in °C | C65: Korrekturfaktor | D65: 30 | E65: 35 | F65: 40 | G65: 45 | H65: 50 | I65: 55 | J65: 60
A66: –8°C | B66: –7 | C66: Fϑ 1 | D66: 0.012 | E66: 0.013 | F66: 0.014 | G66: 0.015 | H66: 0.017 | I66: 0.019 | J66: 0.021
B67: 2 | C67: Fϑ 2 | D67: 0.611 | E67: 0.645 | F67: 0.684 | G67: 0.727 | H67: 0.777 | I67: 0.834 | J67: 0.89
B68: 7 | C68: Fϑ 3 | D68: 0.219 | E68: 0.229 | F68: 0.24 | G68: 0.252 | H68: 0.265 | I68: 0.28 | J68: 0.295
A69: –10°C | B69: –7 | C69: Fϑ 1 | D69: 0.033 | E69: 0.035 | F69: 0.038 | G69: 0.042 | H69: 0.046 | I69: 0.051 | J69: 0.056
B70: 2 | C70: Fϑ 2 | D70: 0.598 | E70: 0.63 | F70: 0.666 | G70: 0.706 | H70: 0.751 | I70: 0.803 | J70: 0.855
B71: 7 | C71: Fϑ 3 | D71: 0.26 | E71: 0.271 | F71: 0.283 | G71: 0.295 | H71: 0.309 | I71: 0.324 | J71: 0.34
A72: –12°C | B72: –7 | C72: Fϑ 1 | D72: 0.054 | E72: 0.058 | F72: 0.063 | G72: 0.068 | H72: 0.074 | I72: 0.082 | J72: 0.089
B73: 2 | C73: Fϑ 2 | D73: 0.64 | E73: 0.673 | F73: 0.709 | G73: 0.749 | H73: 0.795 | I73: 0.846 | J73: 0.897
B74: 7 | C74: Fϑ 3 | D74: 0.2 | E74: 0.208 | F74: 0.217 | G74: 0.226 | H74: 0.236 | I74: 0.246 | J74: 0.257
A75: –14°C | B75: –7 | C75: Fϑ 1 | D75: 0.124 | E75: 0.133 | F75: 0.143 | G75: 0.154 | H75: 0.167 | I75: 0.183 | J75: 0.199
B76: 2 | C76: Fϑ 2 | D76: 0.629 | E76: 0.659 | F76: 0.694 | G76: 0.731 | H76: 0.774 | I76: 0.821 | J76: 0.869
B77: 7 | C77: Fϑ 3 | D77: 0.148 | E77: 0.153 | F77: 0.159 | G77: 0.165 | H77: 0.172 | I77: 0.179 | J77: 0.187
A78: –16°C | B78: –7 | C78: Fϑ 1 | D78: 0.188 | E78: 0.201 | F78: 0.216 | G78: 0.233 | H78: 0.253 | I78: 0.278 | J78: 0.302
B79: 2 | C79: Fϑ 2 | D79: 0.602 | E79: 0.63 | F79: 0.661 | G79: 0.694 | H79: 0.732 | I79: 0.774 | J79: 0.816
B80: 7 | C80: Fϑ 3 | D80: 0.133 | E80: 0.117 | F80: 0.121 | G80: 0.126 | H80: 0.131 | I80: 0.136 | J80: 0.141
A84: Tabelle 28: Deckungsanteil α des Grundlast-Wärmeerzeugers Wärmepumpe für die Wärmequellen „Geothermie“ (Grundwasser/Erdreich) und „Luft“ in Abhängigkeit vom Leistungsanteil ξ bei monoenergetischem oder bivalentem (parallel oder alternativ) (Grundwasser/Erdreich) und „Luft“ in Abhängigkeit vom Leistungsanteil ξ bei monoenergetischem oder bivalentem (parallel oder alternativ)
A86: Quellen | B86: Betriebsweise bivalent oder monoenergetisch | C86: Leistungsanteil ξ der Wärmepumpe bei Normaußentemperatur in %
C87: 1 | D87: 0.9 | E87: 0.8 | F87: 0.7 | G87: 0.6 | H87: 0.5 | I87: 0.4 | J87: 0.3 | K87: 0.2
A88: Sole, Wasser, Direktverdampfer | B88: alternativ | C88: 1 | D88: 0.97 | E88: 0.93 | F88: 0.88 | G88: 0.78 | H88: 0.64 | I88: 0.42 | J88: 0.24 | K88: 0.11
B89: parallel | C89: 1 | D89: 1 | E89: 0.99 | F89: 0.98 | G89: 0.96 | H89: 0.92 | I89: 0.84 | J89: 0.71 | K89: 0.53
A90: Luft | B90: alternativ | C90: 1 | D90: 0.99 | E90: 0.97 | F90: 0.94 | G90: 0.91 | H90: 0.86 | I90: 0.76 | J90: 0.57 | K90: 0.33
B91: parallel | C91: 1 | D91: 1 | E91: 1 | F91: 0.99 | G91: 0.98 | H91: 0.97 | I91: 0.93 | J91: 0.87 | K91: 0.72

Sheet Korrekturfaktoren (hidden)
B1: ΔϑB*) in K | C1: Temperaturdifferenz bei der Prüfstandsmessung ΔϑM in K
B2: 3 | C2: 3 | D2: ='VDI 4650'!B$6 -> 1
B3: 3 | C3: 4 | D3: ='VDI 4650'!C$6 -> 0.99
B4: 3 | C4: 5 | D4: ='VDI 4650'!D$6 -> 0.98
B5: 3 | C5: 6 | D5: ='VDI 4650'!E$6 -> 0.969
B6: 3 | C6: 7 | D6: ='VDI 4650'!F$6 -> 0.959
B7: 3 | C7: 8 | D7: ='VDI 4650'!G$6 -> 0.949
B8: 3 | C8: 9 | D8: ='VDI 4650'!H$6 -> 0.939
B9: 3 | C9: 10 | D9: ='VDI 4650'!I$6 -> 0.928
B10: 4 | C10: 3 | D10: ='VDI 4650'!B$7 -> 1.01
B11: 4 | C11: 4 | D11: ='VDI 4650'!C$7 -> 1
B12: 4 | C12: 5 | D12: ='VDI 4650'!D$7 -> 0.99
B13: 4 | C13: 6 | D13: ='VDI 4650'!E$7 -> 0.98
B14: 4 | C14: 7 | D14: ='VDI 4650'!F$7 -> 0.969
B15: 4 | C15: 8 | D15: ='VDI 4650'!G$7 -> 0.959
B16: 4 | C16: 9 | D16: ='VDI 4650'!H$7 -> 0.949
B17: 4 | C17: 10 | D17: ='VDI 4650'!I$7 -> 0.939
B18: 5 | C18: 3 | D18: ='VDI 4650'!B$8 -> 1.02
B19: 5 | C19: 4 | D19: ='VDI 4650'!C$8 -> 1.01
B20: 5 | C20: 5 | D20: ='VDI 4650'!D$8 -> 1
B21: 5 | C21: 6 | D21: ='VDI 4650'!E$8 -> 0.99
B22: 5 | C22: 7 | D22: ='VDI 4650'!F$8 -> 0.98
B23: 5 | C23: 8 | D23: ='VDI 4650'!G$8 -> 0.969
B24: 5 | C24: 9 | D24: ='VDI 4650'!H$8 -> 0.959
B25: 5 | C25: 10 | D25: ='VDI 4650'!I$8 -> 0.949
B26: 6 | C26: 3 | D26: ='VDI 4650'!B$9 -> 1.031
B27: 6 | C27: 4 | D27: ='VDI 4650'!C$9 -> 1.02
B28: 6 | C28: 5 | D28: ='VDI 4650'!D$9 -> 1.01
B29: 6 | C29: 6 | D29: ='VDI 4650'!E$9 -> 1
B30: 6 | C30: 7 | D30: ='VDI 4650'!F$9 -> 0.99
B31: 6 | C31: 8 | D31: ='VDI 4650'!G$9 -> 0.98
B32: 6 | C32: 9 | D32: ='VDI 4650'!H$9 -> 0.969
B33: 6 | C33: 10 | D33: ='VDI 4650'!I$9 -> 0.959
B34: 7 | C34: 3 | D34: ='VDI 4650'!B$10 -> 1.041
B35: 7 | C35: 4 | D35: ='VDI 4650'!C$10 -> 1.031
B36: 7 | C36: 5 | D36: ='VDI 4650'!D$10 -> 1.02
B37: 7 | C37: 6 | D37: ='VDI 4650'!E$10 -> 1.01
B38: 7 | C38: 7 | D38: ='VDI 4650'!F$10 -> 1
B39: 7 | C39: 8 | D39: ='VDI 4650'!G$10 -> 0.99
B40: 7 | C40: 9 | D40: ='VDI 4650'!H$10 -> 0.98
B41: 7 | C41: 10 | D41: ='VDI 4650'!I$10 -> 0.969
B42: 8 | C42: 3 | D42: ='VDI 4650'!B$11 -> 1.051
B43: 8 | C43: 4 | D43: ='VDI 4650'!C$11 -> 1.041
B44: 8 | C44: 5 | D44: ='VDI 4650'!D$11 -> 1.031
B45: 8 | C45: 6 | D45: ='VDI 4650'!E$11 -> 1.02
B46: 8 | C46: 7 | D46: ='VDI 4650'!F$11 -> 1.01
B47: 8 | C47: 8 | D47: ='VDI 4650'!G$11 -> 1
B48: 8 | C48: 9 | D48: ='VDI 4650'!H$11 -> 0.99
B49: 8 | C49: 10 | D49: ='VDI 4650'!I$11 -> 0.98
B50: 9 | C50: 3 | D50: ='VDI 4650'!B$12 -> 1.061
B51: 9 | C51: 4 | D51: ='VDI 4650'!C$12 -> 1.051
B52: 9 | C52: 5 | D52: ='VDI 4650'!D$12 -> 1.041
B53: 9 | C53: 6 | D53: ='VDI 4650'!E$12 -> 1.031
B54: 9 | C54: 7 | D54: ='VDI 4650'!F$12 -> 1.02
B55: 9 | C55: 8 | D55: ='VDI 4650'!G$12 -> 1.01
B56: 9 | C56: 9 | D56: ='VDI 4650'!H$12 -> 1
B57: 9 | C57: 10 | D57: ='VDI 4650'!I$12 -> 0.99
B58: 10 | C58: 3 | D58: ='VDI 4650'!B$13 -> 1.072
B59: 10 | C59: 4 | D59: ='VDI 4650'!C$13 -> 1.061
B60: 10 | C60: 5 | D60: ='VDI 4650'!D$13 -> 1.051
B61: 10 | C61: 6 | D61: ='VDI 4650'!E$13 -> 1.041
B62: 10 | C62: 7 | D62: ='VDI 4650'!F$13 -> 1.031
B63: 10 | C63: 8 | D63: ='VDI 4650'!G$13 -> 1.02
B64: 10 | C64: 9 | D64: ='VDI 4650'!H$13 -> 1.01
B65: 10 | C65: 10 | D65: ='VDI 4650'!I$13 -> 1
H66: Zwischenwerte (-9,-11 etc.) haben keine Formel hinterlegt
B68: Heizgrenztemperatur | C68: Normaußentemperatur | D68: Lufttemperatur | E68: VLT
B69: 15 | C69: -8 | D69: -7 | E69: 30 | F69: ='VDI 4650'!D22 -> 0.008
B70: 15 | C70: -8 | D70: -7 | E70: 31 | F70: =ROUND($F69-(($F69-$F74)/5*A$256),3) -> 0.008
B71: 15 | C71: -8 | D71: -7 | E71: 32 | F71: =ROUND($F69-(($F69-$F74)/5*A$257),3) -> 0.008
B72: 15 | C72: -8 | D72: -7 | E72: 33 | F72: =ROUND($F69-(($F69-$F74)/5*A$258),3) -> 0.008
B73: 15 | C73: -8 | D73: -7 | E73: 34 | F73: =ROUND($F69-(($F69-$F74)/5*A$259),3) -> 0.008
B74: 15 | C74: -8 | D74: -7 | E74: 35 | F74: ='VDI 4650'!E22 -> 0.008
B75: 15 | C75: -8 | D75: -7 | E75: 36 | F75: =ROUND($F74-(($F74-$F79)/5*A$256),3) -> 0.008
B76: 15 | C76: -8 | D76: -7 | E76: 37 | F76: =ROUND($F74-(($F74-$F79)/5*A$257),3) -> 0.008
B77: 15 | C77: -8 | D77: -7 | E77: 38 | F77: =ROUND($F74-(($F74-$F79)/5*A$258),3) -> 0.009
B78: 15 | C78: -8 | D78: -7 | E78: 39 | F78: =ROUND($F74-(($F74-$F79)/5*A$259),3) -> 0.009
B79: 15 | C79: -8 | D79: -7 | E79: 40 | F79: ='VDI 4650'!F22 -> 0.009
B80: 15 | C80: -8 | D80: -7 | E80: 41 | F80: =ROUND($F79-(($F79-$F84)/5*A$256),3) -> 0.009
B81: 15 | C81: -8 | D81: -7 | E81: 42 | F81: =ROUND($F79-(($F79-$F84)/5*A$257),3) -> 0.009
B82: 15 | C82: -8 | D82: -7 | E82: 43 | F82: =ROUND($F79-(($F79-$F84)/5*A$258),3) -> 0.01
B83: 15 | C83: -8 | D83: -7 | E83: 44 | F83: =ROUND($F79-(($F79-$F84)/5*A$259),3) -> 0.01
B84: 15 | C84: -8 | D84: -7 | E84: 45 | F84: ='VDI 4650'!G22 -> 0.01
B85: 15 | C85: -8 | D85: -7 | E85: 46 | F85: =ROUND($F84-(($F84-$F89)/5*A$256),3) -> 0.01
B86: 15 | C86: -8 | D86: -7 | E86: 47 | F86: =ROUND($F84-(($F84-$F89)/5*A$257),3) -> 0.01
B87: 15 | C87: -8 | D87: -7 | E87: 48 | F87: =ROUND($F84-(($F84-$F89)/5*A$258),3) -> 0.011
B88: 15 | C88: -8 | D88: -7 | E88: 49 | F88: =ROUND($F84-(($F84-$F89)/5*A$259),3) -> 0.011
B89: 15 | C89: -8 | D89: -7 | E89: 50 | F89: ='VDI 4650'!H22 -> 0.011
B90: 15 | C90: -8 | D90: -7 | E90: 51 | F90: =ROUND($F89-(($F89-$F94)/5*A$256),3) -> 0.011
B91: 15 | C91: -8 | D91: -7 | E91: 52 | F91: =ROUND($F89-(($F89-$F94)/5*A$257),3) -> 0.011
B92: 15 | C92: -8 | D92: -7 | E92: 53 | F92: =ROUND($F89-(($F89-$F94)/5*A$258),3) -> 0.012
B93: 15 | C93: -8 | D93: -7 | E93: 54 | F93: =ROUND($F89-(($F89-$F94)/5*A$259),3) -> 0.012
B94: 15 | C94: -8 | D94: -7 | E94: 55 | F94: ='VDI 4650'!I22 -> 0.012
B95: 15 | C95: -8 | D95: -7 | E95: 56 | F95: =ROUND($F94-(($F94-$F99)/5*A$256),3) -> 0.012
B96: 15 | C96: -8 | D96: -7 | E96: 57 | F96: =ROUND($F94-(($F94-$F99)/5*A$257),3) -> 0.012
B97: 15 | C97: -8 | D97: -7 | E97: 58 | F97: =ROUND($F94-(($F94-$F99)/5*A$258),3) -> 0.013
B98: 15 | C98: -8 | D98: -7 | E98: 59 | F98: =ROUND($F94-(($F94-$F99)/5*A$259),3) -> 0.013
B99: 15 | C99: -8 | D99: -7 | E99: 60 | F99: ='VDI 4650'!J22 -> 0.013
B100: 15 | C100: -8 | D100: 2 | E100: 30 | F100: ='VDI 4650'!D23 -> 0.458
B101: 15 | C101: -8 | D101: 2 | E101: 31 | F101: =ROUND($F100-(($F100-$F105)/5*A$256),3) -> 0.463
B102: 15 | C102: -8 | D102: 2 | E102: 32 | F102: =ROUND($F100-(($F100-$F105)/5*A$257),3) -> 0.468
B103: 15 | C103: -8 | D103: 2 | E103: 33 | F103: =ROUND($F100-(($F100-$F105)/5*A$258),3) -> 0.473
B104: 15 | C104: -8 | D104: 2 | E104: 34 | F104: =ROUND($F100-(($F100-$F105)/5*A$259),3) -> 0.478
B105: 15 | C105: -8 | D105: 2 | E105: 35 | F105: ='VDI 4650'!E23 -> 0.483
B106: 15 | C106: -8 | D106: 2 | E106: 36 | F106: =ROUND($F105-(($F105-$F110)/5*A$256),3) -> 0.489
B107: 15 | C107: -8 | D107: 2 | E107: 37 | F107: =ROUND($F105-(($F105-$F110)/5*A$257),3) -> 0.495
B108: 15 | C108: -8 | D108: 2 | E108: 38 | F108: =ROUND($F105-(($F105-$F110)/5*A$258),3) -> 0.5
B109: 15 | C109: -8 | D109: 2 | E109: 39 | F109: =ROUND($F105-(($F105-$F110)/5*A$259),3) -> 0.506
B110: 15 | C110: -8 | D110: 2 | E110: 40 | F110: ='VDI 4650'!F23 -> 0.512
B111: 15 | C111: -8 | D111: 2 | E111: 41 | F111: =ROUND($F110-(($F110-$F115)/5*A$256),3) -> 0.518
B112: 15 | C112: -8 | D112: 2 | E112: 42 | F112: =ROUND($F110-(($F110-$F115)/5*A$257),3) -> 0.525
B113: 15 | C113: -8 | D113: 2 | E113: 43 | F113: =ROUND($F110-(($F110-$F115)/5*A$258),3) -> 0.531
B114: 15 | C114: -8 | D114: 2 | E114: 44 | F114: =ROUND($F110-(($F110-$F115)/5*A$259),3) -> 0.538
B115: 15 | C115: -8 | D115: 2 | E115: 45 | F115: ='VDI 4650'!G23 -> 0.544
B116: 15 | C116: -8 | D116: 2 | E116: 46 | F116: =ROUND($F115-(($F115-$F120)/5*A$256),3) -> 0.551
B117: 15 | C117: -8 | D117: 2 | E117: 47 | F117: =ROUND($F115-(($F115-$F120)/5*A$257),3) -> 0.559
B118: 15 | C118: -8 | D118: 2 | E118: 48 | F118: =ROUND($F115-(($F115-$F120)/5*A$258),3) -> 0.566
B119: 15 | C119: -8 | D119: 2 | E119: 49 | F119: =ROUND($F115-(($F115-$F120)/5*A$259),3) -> 0.574
B120: 15 | C120: -8 | D120: 2 | E120: 50 | F120: ='VDI 4650'!H23 -> 0.581
B121: 15 | C121: -8 | D121: 2 | E121: 51 | F121: =ROUND($F120-(($F120-$F125)/5*A$256),3) -> 0.589
B122: 15 | C122: -8 | D122: 2 | E122: 52 | F122: =ROUND($F120-(($F120-$F125)/5*A$257),3) -> 0.598
B123: 15 | C123: -8 | D123: 2 | E123: 53 | F123: =ROUND($F120-(($F120-$F125)/5*A$258),3) -> 0.606
B124: 15 | C124: -8 | D124: 2 | E124: 54 | F124: =ROUND($F120-(($F120-$F125)/5*A$259),3) -> 0.615
B125: 15 | C125: -8 | D125: 2 | E125: 55 | F125: ='VDI 4650'!I23 -> 0.623
B126: 15 | C126: -8 | D126: 2 | E126: 56 | F126: =ROUND($F125-(($F125-$F130)/5*A$256),3) -> 0.631
B127: 15 | C127: -8 | D127: 2 | E127: 57 | F127: =ROUND($F125-(($F125-$F130)/5*A$257),3) -> 0.64
B128: 15 | C128: -8 | D128: 2 | E128: 58 | F128: =ROUND($F125-(($F125-$F130)/5*A$258),3) -> 0.648
B129: 15 | C129: -8 | D129: 2 | E129: 59 | F129: =ROUND($F125-(($F125-$F130)/5*A$259),3) -> 0.657
B130: 15 | C130: -8 | D130: 2 | E130: 60 | F130: ='VDI 4650'!J23 -> 0.665
B131: 15 | C131: -8 | D131: 7 | E131: 30 | F131: ='VDI 4650'!D24 -> 0.353
B132: 15 | C132: -8 | D132: 7 | E132: 31 | F132: =ROUND($F131-(($F131-$F136)/5*A$256),3) -> 0.356
B133: 15 | C133: -8 | D133: 7 | E133: 32 | F133: =ROUND($F131-(($F131-$F136)/5*A$257),3) -> 0.359
B134: 15 | C134: -8 | D134: 7 | E134: 33 | F134: =ROUND($F131-(($F131-$F136)/5*A$258),3) -> 0.362
B135: 15 | C135: -8 | D135: 7 | E135: 34 | F135: =ROUND($F131-(($F131-$F136)/5*A$259),3) -> 0.365
B136: 15 | C136: -8 | D136: 7 | E136: 35 | F136: ='VDI 4650'!E24 -> 0.368
B137: 15 | C137: -8 | D137: 7 | E137: 36 | F137: =ROUND($F136-(($F136-$F141)/5*A$256),3) -> 0.371
B138: 15 | C138: -8 | D138: 7 | E138: 37 | F138: =ROUND($F136-(($F136-$F141)/5*A$257),3) -> 0.374
B139: 15 | C139: -8 | D139: 7 | E139: 38 | F139: =ROUND($F136-(($F136-$F141)/5*A$258),3) -> 0.377
B140: 15 | C140: -8 | D140: 7 | E140: 39 | F140: =ROUND($F136-(($F136-$F141)/5*A$259),3) -> 0.38
B141: 15 | C141: -8 | D141: 7 | E141: 40 | F141: ='VDI 4650'!F24 -> 0.383
B142: 15 | C142: -8 | D142: 7 | E142: 41 | F142: =ROUND($F141-(($F141-$F146)/5*A$256),3) -> 0.386
B143: 15 | C143: -8 | D143: 7 | E143: 42 | F143: =ROUND($F141-(($F141-$F146)/5*A$257),3) -> 0.39
B144: 15 | C144: -8 | D144: 7 | E144: 43 | F144: =ROUND($F141-(($F141-$F146)/5*A$258),3) -> 0.393
B145: 15 | C145: -8 | D145: 7 | E145: 44 | F145: =ROUND($F141-(($F141-$F146)/5*A$259),3) -> 0.397
B146: 15 | C146: -8 | D146: 7 | E146: 45 | F146: ='VDI 4650'!G24 -> 0.4
B147: 15 | C147: -8 | D147: 7 | E147: 46 | F147: =ROUND($F146-(($F146-$F151)/5*A$256),3) -> 0.404
B148: 15 | C148: -8 | D148: 7 | E148: 47 | F148: =ROUND($F146-(($F146-$F151)/5*A$257),3) -> 0.408
B149: 15 | C149: -8 | D149: 7 | E149: 48 | F149: =ROUND($F146-(($F146-$F151)/5*A$258),3) -> 0.411
B150: 15 | C150: -8 | D150: 7 | E150: 49 | F150: =ROUND($F146-(($F146-$F151)/5*A$259),3) -> 0.415
B151: 15 | C151: -8 | D151: 7 | E151: 50 | F151: ='VDI 4650'!H24 -> 0.419
B152: 15 | C152: -8 | D152: 7 | E152: 51 | F152: =ROUND($F151-(($F151-$F156)/5*A$256),3) -> 0.423
B153: 15 | C153: -8 | D153: 7 | E153: 52 | F153: =ROUND($F151-(($F151-$F156)/5*A$257),3) -> 0.427
B154: 15 | C154: -8 | D154: 7 | E154: 53 | F154: =ROUND($F151-(($F151-$F156)/5*A$258),3) -> 0.431
B155: 15 | C155: -8 | D155: 7 | E155: 54 | F155: =ROUND($F151-(($F151-$F156)/5*A$259),3) -> 0.435
B156: 15 | C156: -8 | D156: 7 | E156: 55 | F156: ='VDI 4650'!I24 -> 0.439
B157: 15 | C157: -8 | D157: 7 | E157: 56 | F157: =ROUND($F156-(($F156-$F161)/5*A$256),3) -> 0.443
B158: 15 | C158: -8 | D158: 7 | E158: 57 | F158: =ROUND($F156-(($F156-$F161)/5*A$257),3) -> 0.447
B159: 15 | C159: -8 | D159: 7 | E159: 58 | F159: =ROUND($F156-(($F156-$F161)/5*A$258),3) -> 0.452
B160: 15 | C160: -8 | D160: 7 | E160: 59 | F160: =ROUND($F156-(($F156-$F161)/5*A$259),3) -> 0.456
B161: 15 | C161: -8 | D161: 7 | E161: 60 | F161: ='VDI 4650'!J24 -> 0.46
B162: 15 | C162: -9 | D162: -7 | E162: 30 | F162: =F69 -> 0.008 | G162: =F255 -> 0.02
B163: 15 | C163: -9 | D163: -7 | E163: 31 | F163: =F70 -> 0.008 | G163: =F256 -> 0.02
B164: 15 | C164: -9 | D164: -7 | E164: 32 | F164: 0.008 | G164: 0.021
B165: 15 | C165: -9 | D165: -7 | E165: 33 | F165: 0.008 | G165: 0.021
B166: 15 | C166: -9 | D166: -7 | E166: 34 | F166: 0.008 | G166: 0.022
B167: 15 | C167: -9 | D167: -7 | E167: 35 | F167: 0.008 | G167: 0.022
B168: 15 | C168: -9 | D168: -7 | E168: 36 | F168: 0.008 | G168: 0.022
B169: 15 | C169: -9 | D169: -7 | E169: 37 | F169: 0.008 | G169: 0.023
B170: 15 | C170: -9 | D170: -7 | E170: 38 | F170: 0.009 | G170: 0.023
B171: 15 | C171: -9 | D171: -7 | E171: 39 | F171: 0.009 | G171: 0.024
B172: 15 | C172: -9 | D172: -7 | E172: 40 | F172: 0.009 | G172: 0.024
B173: 15 | C173: -9 | D173: -7 | E173: 41 | F173: 0.009 | G173: 0.024
B174: 15 | C174: -9 | D174: -7 | E174: 42 | F174: 0.009 | G174: 0.025
B175: 15 | C175: -9 | D175: -7 | E175: 43 | F175: 0.01 | G175: 0.025
B176: 15 | C176: -9 | D176: -7 | E176: 44 | F176: 0.01 | G176: 0.026
B177: 15 | C177: -9 | D177: -7 | E177: 45 | F177: 0.01 | G177: 0.026
B178: 15 | C178: -9 | D178: -7 | E178: 46 | F178: 0.01 | G178: 0.026
B179: 15 | C179: -9 | D179: -7 | E179: 47 | F179: 0.01 | G179: 0.027
B180: 15 | C180: -9 | D180: -7 | E180: 48 | F180: 0.011 | G180: 0.027
B181: 15 | C181: -9 | D181: -7 | E181: 49 | F181: 0.011 | G181: 0.028
B182: 15 | C182: -9 | D182: -7 | E182: 50 | F182: 0.011 | G182: 0.028
B183: 15 | C183: -9 | D183: -7 | E183: 51 | F183: 0.011 | G183: 0.029
B184: 15 | C184: -9 | D184: -7 | E184: 52 | F184: 0.011 | G184: 0.029
B185: 15 | C185: -9 | D185: -7 | E185: 53 | F185: 0.012 | G185: 0.03
B186: 15 | C186: -9 | D186: -7 | E186: 54 | F186: 0.012 | G186: 0.03
B187: 15 | C187: -9 | D187: -7 | E187: 55 | F187: 0.012 | G187: 0.031
B188: 15 | C188: -9 | D188: -7 | E188: 56 | F188: 0.012 | G188: 0.032
B189: 15 | C189: -9 | D189: -7 | E189: 57 | F189: 0.012 | G189: 0.033
B190: 15 | C190: -9 | D190: -7 | E190: 58 | F190: 0.013 | G190: 0.033
B191: 15 | C191: -9 | D191: -7 | E191: 59 | F191: 0.013 | G191: 0.034
B192: 15 | C192: -9 | D192: -7 | E192: 60 | F192: 0.013 | G192: 0.035
B193: 15 | C193: -9 | D193: 2 | E193: 30 | F193: 0.458 | G193: 0.439
B194: 15 | C194: -9 | D194: 2 | E194: 31 | F194: 0.463 | G194: 0.444
B195: 15 | C195: -9 | D195: 2 | E195: 32 | F195: 0.468 | G195: 0.448
B196: 15 | C196: -9 | D196: 2 | E196: 33 | F196: 0.473 | G196: 0.453
B197: 15 | C197: -9 | D197: 2 | E197: 34 | F197: 0.478 | G197: 0.457
B198: 15 | C198: -9 | D198: 2 | E198: 35 | F198: 0.483 | G198: 0.462
B199: 15 | C199: -9 | D199: 2 | E199: 36 | F199: 0.489 | G199: 0.467
B200: 15 | C200: -9 | D200: 2 | E200: 37 | F200: 0.495 | G200: 0.472
B201: 15 | C201: -9 | D201: 2 | E201: 38 | F201: 0.5 | G201: 0.478
... 2395 more rows

Sheet Rotex Leistungsdaten (hidden)
A1: 0 | B1: Produkt | C1: Leistung | D1: COP | G1: VLT | H1: Außentemperatur | M1: 1 | N1: 2 | O1: 3 | P1: 4 | Q1: 5 | R1: 6 | AM1: 1 | AN1: 2 | AO1: 3 | AP1: 4 | AQ1: 5 | AR1: 6 | CK1: Leistung Backup- / Boosterheater [kW]: | CM1: 9
D2: -7 | E2: 2 | F2: 7 | H2: -20 | I2: -19.5 | J2: -19 | K2: -18.5 | L2: -18 | M2: -17.5 | N2: -17 | O2: -16.5 | P2: -16 | Q2: -15.5 | R2: -15 | S2: -14.5 | T2: -14 | U2: -13.5 | V2: -13 | W2: -12.5 | X2: -12 | Y2: -11.5 | Z2: -11 | AA2: -10.5 | AB2: -10 | AC2: -9.5 | AD2: -9 | AE2: -8.5 | AF2: -8 | AG2: -7.5 | AH2: -7 | AI2: -6.5 | AJ2: -6 | AK2: -5.5 | AL2: -5 | AM2: -4.5 | AN2: -4 | AO2: -3.5 | AP2: -3 | AQ2: -2.5 | AR2: -2 | AS2: -1.5 | AT2: -1 | AU2: -0.5 | AV2: 0 | AW2: 0.5 | AX2: 1 | AY2: 1.5 | AZ2: 2 | BA2: 2.5 | BB2: 3 | BC2: 3.5 | BD2: 4 | BE2: 4.5 | BF2: 5 | BG2: 5.5 | BH2: 6 | BI2: 6.5 | BJ2: 7 | BK2: 7.5 | BL2: 8 | BM2: 8.5 | BN2: 9 | BO2: 9.5 | BP2: 10 | BQ2: 10.5 | BR2: 11 | BS2: 11.5 | BT2: 12 | BU2: 12.5 | BV2: 13 | BW2: 13.5 | BX2: 14 | BY2: 14.5 | BZ2: 15 | CA2: 15.5 | CB2: 16 | CC2: 16.5 | CD2: 17 | CE2: 17.5 | CF2: 18 | CG2: 18.5 | CH2: 19 | CI2: 19.5 | CJ2: 20 | CK2: wenn Personenzahl <= 2 dann Spalte OT; wenn >2 dann Spalte OU
I3: 1 | J3: 2 | K3: 3 | L3: 4 | M3: 5 | N3: 6 | O3: 7 | P3: 8 | Q3: 9 | R3: 10 | S3: 1 | T3: 2 | U3: 3 | V3: 4 | W3: 5 | X3: 6 | Y3: 7 | Z3: 8 | AA3: 9 | AB3: 10 | AC3: 11 | AD3: 12 | AE3: 13 | AF3: 14 | AG3: 15 | AH3: 16 | AI3: 1 | AJ3: 2 | AK3: 3 | AL3: 4 | AM3: 5 | AN3: 6 | AO3: 7 | AP3: 8 | AQ3: 9 | AR3: 10 | AS3: 1 | AT3: 2 | AU3: 3 | AV3: 4 | AW3: 5 | AX3: 6 | AY3: 7 | AZ3: 8 | BA3: 1 | BB3: 2 | BC3: 3 | BD3: 4 | BE3: 5 | BF3: 6 | BG3: 7 | BH3: 8 | BI3: 9 | BJ3: 10 | BK3: 1 | BL3: 2 | BM3: 3 | BN3: 4 | BO3: 5 | BP3: 6 | BQ3: 7 | BR3: 8 | BS3: 9 | BT3: 10 | BU3: 1 | BV3: 2 | BW3: 3 | BX3: 4 | BY3: 5 | BZ3: 6 | CA3: 1 | CB3: 2 | CC3: 3 | CD3: 4 | CE3: 5 | CF3: 6 | CG3: 7 | CH3: 8 | CI3: 9 | CJ3: 10 | CK3: Personen | CL3: Produktbezeichnung | CN3: Backupheater | CO3: Priorisierung | CQ3: Heizleistung (A7/W35)
A4: 1 | B4: Altherma 3 R W | C4: 4 | D4: ='Altherma 3 R'!$L$8 -> 3.1 | E4: ='Altherma 3 R'!$L$9 -> 4.1 | F4: ='Altherma 3 R'!$L$10 -> 5.1 | G4: 30 | H4: ='Altherma 3 R'!C7 -> 4.71 | I4: =$H4-(($H4-$R4)/$R$3*I$3) -> 4.758 | J4: 4.806 | K4: 4.854 | L4: 4.902 | M4: 4.95 | N4: 4.998 | O4: 5.046 | P4: 5.094 | Q4: 5.142 | R4: ='Altherma 3 R'!C8 -> 5.19 | S4: =$R4-(($R4-$AH4)/$AH$3*S$3) -> 5.2375 | T4: 5.285 | U4: 5.3325 | V4: 5.38 | W4: 5.4275 | X4: 5.475 | Y4: 5.5225 | Z4: 5.57 | AA4: 5.6175 | AB4: 5.665 | AC4: 5.7125 | AD4: 5.76 | AE4: 5.8075 | AF4: 5.855 | AG4: 5.9025 | AH4: ='Altherma 3 R'!C9 -> 5.95 | AI4: =$AH4-(($AH4-$AL4)/$AL$3*AI$3) -> 6.035 | AJ4: 6.12 | AK4: 6.205 | AL4: ='Altherma 3 R'!C11 -> 6.29 | AM4: =$AL4-(($AL4-$AR4)/$AR$1*AM$1) -> 6.268333333 | AN4: 6.246666667 | AO4: 6.225 | AP4: 6.203333333 | AQ4: 6.181666667 | AR4: ='Altherma 3 R'!C10 -> 6.16 | AS4: =$AR4-(($AR4-$AZ4)/$AZ$3*AS$3) -> 6.21125 | AT4: 6.2625 | AU4: 6.31375 | AV4: 6.365 | AW4: 6.41625 | AX4: 6.4675 | AY4: 6.51875 | AZ4: ='Altherma 3 R'!C12 -> 6.57 | BA4: =$AZ4-(($AZ4-$BJ4)/$BJ$3*BA$3) -> 6.578 | BB4: 6.586 | BC4: 6.594 | BD4: 6.602 | BE4: 6.61 | BF4: 6.618 | BG4: 6.626 | BH4: 6.634 | BI4: 6.642 | BJ4: ='Altherma 3 R'!C13 -> 6.65 | BK4: =$BJ4-(($BJ4-$BT4)/$BT$3*BK$3) -> 6.617 | BL4: 6.584 | BM4: 6.551 | BN4: 6.518 | BO4: 6.485 | BP4: 6.452 | BQ4: 6.419 | BR4: 6.386 | BS4: 6.353 | BT4: ='Altherma 3 R'!C14 -> 6.32 | BU4: =$BT4-(($BT4-$BZ4)/$BZ$3*BU$3) -> 6.273333333 | BV4: 6.226666667 | BW4: 6.18 | BX4: 6.133333333 | BY4: 6.086666667 | BZ4: ='Altherma 3 R'!C15 -> 6.04 | CA4: =$BZ4-(($BZ4-$CJ4)/$CJ$3*CA$3) -> 5.985 | CB4: 5.93 | CC4: 5.875 | CD4: 5.82 | CE4: 5.765 | CF4: 5.71 | CG4: 5.655 | CH4: 5.6 | CI4: 5.545 | CJ4: ='Altherma 3 R'!C16 -> 5.49 | CK4: =Eingabemaske!G$19 -> 4 | CL4: Altherma 3 R W 4 kW | CM4: Altherma 3 R W 4 kW | CN4: 9 | CO4: 3.8 | CQ4: 4.3
A5: 2 | B5: Altherma 3 R W | C5: 4 | D5: ='Altherma 3 R'!$L$8 -> 3.1 | E5: ='Altherma 3 R'!$L$9 -> 4.1 | F5: ='Altherma 3 R'!$L$10 -> 5.1 | G5: 31 | H5: =$H$4-(($H$4-$H$9)/5*A4) -> 4.702 | I5: 4.7492 | J5: 4.7964 | K5: 4.8436 | L5: 4.8908 | M5: 4.938 | N5: 4.9852 | O5: 5.0324 | P5: 5.0796 | Q5: 5.1268 | R5: =$R$4-(($R$4-$R$9)/5*A4) -> 5.174 | S5: 5.220625 | T5: 5.26725 | U5: 5.313875 | V5: 5.3605 | W5: 5.407125 | X5: 5.45375 | Y5: 5.500375 | Z5: 5.547 | AA5: 5.593625 | AB5: 5.64025 | AC5: 5.686875 | AD5: 5.7335 | AE5: 5.780125 | AF5: 5.82675 | AG5: 5.873375 | AH5: =$AH$4-(($AH$4-$AH$9)/5*A4) -> 5.92 | AI5: 6.0045 | AJ5: 6.089 | AK5: 6.1735 | AL5: =$AL$4-(($AL$4-$AL$9)/5*A4) -> 6.258 | AM5: 6.236333333 | AN5: 6.214666667 | AO5: 6.193 | AP5: 6.171333333 | AQ5: 6.149666667 | AR5: =$AR$4-(($AR$4-$AR$9)/5*A4) -> 6.128 | AS5: 6.17875 | AT5: 6.2295 | AU5: 6.28025 | AV5: 6.331 | AW5: 6.38175 | AX5: 6.4325 | AY5: 6.48325 | AZ5: =$AZ$4-(($AZ$4-$AZ$9)/5*A4) -> 6.534 | BA5: 6.5408 | BB5: 6.5476 | BC5: 6.5544 | BD5: 6.5612 | BE5: 6.568 | BF5: 6.5748 | BG5: 6.5816 | BH5: 6.5884 | BI5: 6.5952 | BJ5: =$BJ$4-(($BJ$4-$BJ$9)/5*A4) -> 6.602 | BK5: 6.5688 | BL5: 6.5356 | BM5: 6.5024 | BN5: 6.4692 | BO5: 6.436 | BP5: 6.4028 | BQ5: 6.3696 | BR5: 6.3364 | BS5: 6.3032 | BT5: =$BT$4-(($BT$4-$BT$9)/5*A4) -> 6.27 | BU5: 6.221 | BV5: 6.172 | BW5: 6.123 | BX5: 6.074 | BY5: 6.025 | BZ5: =$BZ$4-(($BZ$4-$BZ$9)/5*A4) -> 5.976 | CA5: 5.9206 | CB5: 5.8652 | CC5: 5.8098 | CD5: 5.7544 | CE5: 5.699 | CF5: 5.6436 | CG5: 5.5882 | CH5: 5.5328 | CI5: 5.4774 | CJ5: =$CJ$4-(($CJ$4-$CJ$9)/5*A4) -> 5.422 | CK5: =Eingabemaske!G$19 -> 4 | CL5: Altherma 3 R W 4 kW | CM5: Altherma 3 R W 4 kW | CN5: 9 | CO5: 3.8 | CQ5: 4.3
A6: 3 | B6: Altherma 3 R W | C6: 4 | D6: ='Altherma 3 R'!$L$8 -> 3.1 | E6: ='Altherma 3 R'!$L$9 -> 4.1 | F6: ='Altherma 3 R'!$L$10 -> 5.1 | G6: 32 | H6: =$H$4-(($H$4-$H$9)/5*A5) -> 4.694 | I6: 4.7404 | J6: 4.7868 | K6: 4.8332 | L6: 4.8796 | M6: 4.926 | N6: 4.9724 | O6: 5.0188 | P6: 5.0652 | Q6: 5.1116 | R6: =$R$4-(($R$4-$R$9)/5*A5) -> 5.158 | S6: 5.20375 | T6: 5.2495 | U6: 5.29525 | V6: 5.341 | W6: 5.38675 | X6: 5.4325 | Y6: 5.47825 | Z6: 5.524 | AA6: 5.56975 | AB6: 5.6155 | AC6: 5.66125 | AD6: 5.707 | AE6: 5.75275 | AF6: 5.7985 | AG6: 5.84425 | AH6: =$AH$4-(($AH$4-$AH$9)/5*A5) -> 5.89 | AI6: 5.974 | AJ6: 6.058 | AK6: 6.142 | AL6: =$AL$4-(($AL$4-$AL$9)/5*A5) -> 6.226 | AM6: 6.204333333 | AN6: 6.182666667 | AO6: 6.161 | AP6: 6.139333333 | AQ6: 6.117666667 | AR6: =$AR$4-(($AR$4-$AR$9)/5*A5) -> 6.096 | AS6: 6.14625 | AT6: 6.1965 | AU6: 6.24675 | AV6: 6.297 | AW6: 6.34725 | AX6: 6.3975 | AY6: 6.44775 | AZ6: =$AZ$4-(($AZ$4-$AZ$9)/5*A5) -> 6.498 | BA6: 6.5036 | BB6: 6.5092 | BC6: 6.5148 | BD6: 6.5204 | BE6: 6.526 | BF6: 6.5316 | BG6: 6.5372 | BH6: 6.5428 | BI6: 6.5484 | BJ6: =$BJ$4-(($BJ$4-$BJ$9)/5*A5) -> 6.554 | BK6: 6.5206 | BL6: 6.4872 | BM6: 6.4538 | BN6: 6.4204 | BO6: 6.387 | BP6: 6.3536 | BQ6: 6.3202 | BR6: 6.2868 | BS6: 6.2534 | BT6: =$BT$4-(($BT$4-$BT$9)/5*A5) -> 6.22 | BU6: 6.168666667 | BV6: 6.117333333 | BW6: 6.066 | BX6: 6.014666667 | BY6: 5.963333333 | BZ6: =$BZ$4-(($BZ$4-$BZ$9)/5*A5) -> 5.912 | CA6: 5.8562 | CB6: 5.8004 | CC6: 5.7446 | CD6: 5.6888 | CE6: 5.633 | CF6: 5.5772 | CG6: 5.5214 | CH6: 5.4656 | CI6: 5.4098 | CJ6: =$CJ$4-(($CJ$4-$CJ$9)/5*A5) -> 5.354 | CK6: =Eingabemaske!G$19 -> 4 | CL6: Altherma 3 R W 4 kW | CM6: Altherma 3 R W 4 kW | CN6: 9 | CO6: 3.8 | CQ6: 4.3
A7: 4 | B7: Altherma 3 R W | C7: 4 | D7: ='Altherma 3 R'!$L$8 -> 3.1 | E7: ='Altherma 3 R'!$L$9 -> 4.1 | F7: ='Altherma 3 R'!$L$10 -> 5.1 | G7: 33 | H7: 4.686 | I7: 4.7316 | J7: 4.7772 | K7: 4.8228 | L7: 4.8684 | M7: 4.914 | N7: 4.9596 | O7: 5.0052 | P7: 5.0508 | Q7: 5.0964 | R7: =$R$4-(($R$4-$R$9)/5*A6) -> 5.142 | S7: 5.186875 | T7: 5.23175 | U7: 5.276625 | V7: 5.3215 | W7: 5.366375 | X7: 5.41125 | Y7: 5.456125 | Z7: 5.501 | AA7: 5.545875 | AB7: 5.59075 | AC7: 5.635625 | AD7: 5.6805 | AE7: 5.725375 | AF7: 5.77025 | AG7: 5.815125 | AH7: =$AH$4-(($AH$4-$AH$9)/5*A6) -> 5.86 | AI7: 5.9435 | AJ7: 6.027 | AK7: 6.1105 | AL7: =$AL$4-(($AL$4-$AL$9)/5*A6) -> 6.194 | AM7: 6.172333333 | AN7: 6.150666667 | AO7: 6.129 | AP7: 6.107333333 | AQ7: 6.085666667 | AR7: =$AR$4-(($AR$4-$AR$9)/5*A6) -> 6.064 | AS7: 6.11375 | AT7: 6.1635 | AU7: 6.21325 | AV7: 6.263 | AW7: 6.31275 | AX7: 6.3625 | AY7: 6.41225 | AZ7: =$AZ$4-(($AZ$4-$AZ$9)/5*A6) -> 6.462 | BA7: 6.4664 | BB7: 6.4708 | BC7: 6.4752 | BD7: 6.4796 | BE7: 6.484 | BF7: 6.4884 | BG7: 6.4928 | BH7: 6.4972 | BI7: 6.5016 | BJ7: =$BJ$4-(($BJ$4-$BJ$9)/5*A6) -> 6.506 | BK7: 6.4724 | BL7: 6.4388 | BM7: 6.4052 | BN7: 6.3716 | BO7: 6.338 | BP7: 6.3044 | BQ7: 6.2708 | BR7: 6.2372 | BS7: 6.2036 | BT7: =$BT$4-(($BT$4-$BT$9)/5*A6) -> 6.17 | BU7: 6.116333333 | BV7: 6.062666667 | BW7: 6.009 | BX7: 5.955333333 | BY7: 5.901666667 | BZ7: =$BZ$4-(($BZ$4-$BZ$9)/5*A6) -> 5.848 | CA7: 5.7918 | CB7: 5.7356 | CC7: 5.6794 | CD7: 5.6232 | CE7: 5.567 | CF7: 5.5108 | CG7: 5.4546 | CH7: 5.3984 | CI7: 5.3422 | CJ7: =$CJ$4-(($CJ$4-$CJ$9)/5*A6) -> 5.286 | CK7: =Eingabemaske!G$19 -> 4 | CL7: Altherma 3 R W 4 kW | CM7: Altherma 3 R W 4 kW | CN7: 9 | CO7: 3.8 | CQ7: 4.3
A8: 5 | B8: Altherma 3 R W | C8: 4 | D8: ='Altherma 3 R'!$L$8 -> 3.1 | E8: ='Altherma 3 R'!$L$9 -> 4.1 | F8: ='Altherma 3 R'!$L$10 -> 5.1 | G8: 34 | H8: 4.678 | I8: 4.7228 | J8: 4.7676 | K8: 4.8124 | L8: 4.8572 | M8: 4.902 | N8: 4.9468 | O8: 4.9916 | P8: 5.0364 | Q8: 5.0812 | R8: =$R$4-(($R$4-$R$9)/5*A7) -> 5.126 | S8: 5.17 | T8: 5.214 | U8: 5.258 | V8: 5.302 | W8: 5.346 | X8: 5.39 | Y8: 5.434 | Z8: 5.478 | AA8: 5.522 | AB8: 5.566 | AC8: 5.61 | AD8: 5.654 | AE8: 5.698 | AF8: 5.742 | AG8: 5.786 | AH8: =$AH$4-(($AH$4-$AH$9)/5*A7) -> 5.83 | AI8: 5.913 | AJ8: 5.996 | AK8: 6.079 | AL8: =$AL$4-(($AL$4-$AL$9)/5*A7) -> 6.162 | AM8: 6.140333333 | AN8: 6.118666667 | AO8: 6.097 | AP8: 6.075333333 | AQ8: 6.053666667 | AR8: =$AR$4-(($AR$4-$AR$9)/5*A7) -> 6.032 | AS8: 6.08125 | AT8: 6.1305 | AU8: 6.17975 | AV8: 6.229 | AW8: 6.27825 | AX8: 6.3275 | AY8: 6.37675 | AZ8: =$AZ$4-(($AZ$4-$AZ$9)/5*A7) -> 6.426 | BA8: 6.4292 | BB8: 6.4324 | BC8: 6.4356 | BD8: 6.4388 | BE8: 6.442 | BF8: 6.4452 | BG8: 6.4484 | BH8: 6.4516 | BI8: 6.4548 | BJ8: =$BJ$4-(($BJ$4-$BJ$9)/5*A7) -> 6.458 | BK8: 6.4242 | BL8: 6.3904 | BM8: 6.3566 | BN8: 6.3228 | BO8: 6.289 | BP8: 6.2552 | BQ8: 6.2214 | BR8: 6.1876 | BS8: 6.1538 | BT8: =$BT$4-(($BT$4-$BT$9)/5*A7) -> 6.12 | BU8: 6.064 | BV8: 6.008 | BW8: 5.952 | BX8: 5.896 | BY8: 5.84 | BZ8: =$BZ$4-(($BZ$4-$BZ$9)/5*A7) -> 5.784 | CA8: 5.7274 | CB8: 5.6708 | CC8: 5.6142 | CD8: 5.5576 | CE8: 5.501 | CF8: 5.4444 | CG8: 5.3878 | CH8: 5.3312 | CI8: 5.2746 | CJ8: =$CJ$4-(($CJ$4-$CJ$9)/5*A7) -> 5.218 | CK8: =Eingabemaske!G$19 -> 4 | CL8: Altherma 3 R W 4 kW | CM8: Altherma 3 R W 4 kW | CN8: 9 | CO8: 3.8 | CQ8: 4.3
A9: 6 | B9: Altherma 3 R W | C9: 4 | D9: ='Altherma 3 R'!$L$8 -> 3.1 | E9: ='Altherma 3 R'!$L$9 -> 4.1 | F9: ='Altherma 3 R'!$L$10 -> 5.1 | G9: 35 | H9: ='Altherma 3 R'!D7 -> 4.67 | I9: 4.714 | J9: 4.758 | K9: 4.802 | L9: 4.846 | M9: 4.89 | N9: 4.934 | O9: 4.978 | P9: 5.022 | Q9: 5.066 | R9: ='Altherma 3 R'!D8 -> 5.11 | S9: 5.153125 | T9: 5.19625 | U9: 5.239375 | V9: 5.2825 | W9: 5.325625 | X9: 5.36875 | Y9: 5.411875 | Z9: 5.455 | AA9: 5.498125 | AB9: 5.54125 | AC9: 5.584375 | AD9: 5.6275 | AE9: 5.670625 | AF9: 5.71375 | AG9: 5.756875 | AH9: ='Altherma 3 R'!D9 -> 5.8 | AI9: 5.8825 | AJ9: 5.965 | AK9: 6.0475 | AL9: ='Altherma 3 R'!D11 -> 6.13 | AM9: 6.108333333 | AN9: 6.086666667 | AO9: 6.065 | AP9: 6.043333333 | AQ9: 6.021666667 | AR9: ='Altherma 3 R'!D10 -> 6 | AS9: 6.04875 | AT9: 6.0975 | AU9: 6.14625 | AV9: 6.195 | AW9: 6.24375 | AX9: 6.2925 | AY9: 6.34125 | AZ9: ='Altherma 3 R'!D12 -> 6.39 | BA9: 6.392 | BB9: 6.394 | BC9: 6.396 | BD9: 6.398 | BE9: 6.4 | BF9: 6.402 | BG9: 6.404 | BH9: 6.406 | BI9: 6.408 | BJ9: ='Altherma 3 R'!D13 -> 6.41 | BK9: 6.376 | BL9: 6.342 | BM9: 6.308 | BN9: 6.274 | BO9: 6.24 | BP9: 6.206 | BQ9: 6.172 | BR9: 6.138 | BS9: 6.104 | BT9: ='Altherma 3 R'!D14 -> 6.07 | BU9: 6.011666667 | BV9: 5.953333333 | BW9: 5.895 | BX9: 5.836666667 | BY9: 5.778333333 | BZ9: ='Altherma 3 R'!D15 -> 5.72 | CA9: 5.663 | CB9: 5.606 | CC9: 5.549 | CD9: 5.492 | CE9: 5.435 | CF9: 5.378 | CG9: 5.321 | CH9: 5.264 | CI9: 5.207 | CJ9: ='Altherma 3 R'!D16 -> 5.15 | CK9: =Eingabemaske!G$19 -> 4 | CL9: Altherma 3 R W 4 kW | CM9: Altherma 3 R W 4 kW | CN9: 9 | CO9: 3.8 | CQ9: 4.3
A10: 7 | B10: Altherma 3 R W | C10: 4 | D10: ='Altherma 3 R'!$L$8 -> 3.1 | E10: ='Altherma 3 R'!$L$9 -> 4.1 | F10: ='Altherma 3 R'!$L$10 -> 5.1 | G10: 36 | H10: =$H$9-(($H$9-$H$14)/5*A4) -> 4.664 | I10: 4.707 | J10: 4.75 | K10: 4.793 | L10: 4.836 | M10: 4.879 | N10: 4.922 | O10: 4.965 | P10: 5.008 | Q10: 5.051 | R10: =$R$9-(($R$9-$R$14)/5*A4) -> 5.094 | S10: 5.13625 | T10: 5.1785 | U10: 5.22075 | V10: 5.263 | W10: 5.30525 | X10: 5.3475 | Y10: 5.38975 | Z10: 5.432 | AA10: 5.47425 | AB10: 5.5165 | AC10: 5.55875 | AD10: 5.601 | AE10: 5.64325 | AF10: 5.6855 | AG10: 5.72775 | AH10: =$AH$9-(($AH$9-$AH$14)/5*A4) -> 5.77 | AI10: 5.8515 | AJ10: 5.933 | AK10: 6.0145 | AL10: =$AL$9-(($AL$9-$AL$14)/5*A4) -> 6.096 | AM10: 6.074666667 | AN10: 6.053333333 | AO10: 6.032 | AP10: 6.010666667 | AQ10: 5.989333333 | AR10: =$AR$9-(($AR$9-$AR$14)/5*A4) -> 5.968 | AS10: 6.01625 | AT10: 6.0645 | AU10: 6.11275 | AV10: 6.161 | AW10: 6.20925 | AX10: 6.2575 | AY10: 6.30575 | AZ10: =$AZ$9-(($AZ$9-$AZ$14)/5*A4) -> 6.354 | BA10: 6.3564 | BB10: 6.3588 | BC10: 6.3612 | BD10: 6.3636 | BE10: 6.366 | BF10: 6.3684 | BG10: 6.3708 | BH10: 6.3732 | BI10: 6.3756 | BJ10: =$BJ$9-(($BJ$9-$BJ$14)/5*A4) -> 6.378 | BK10: 6.341 | BL10: 6.304 | BM10: 6.267 | BN10: 6.23 | BO10: 6.193 | BP10: 6.156 | BQ10: 6.119 | BR10: 6.082 | BS10: 6.045 | BT10: =$BT$9-(($BT$9-$BT$14)/5*A4) -> 6.008 | BU10: 5.949333333 | BV10: 5.890666667 | BW10: 5.832 | BX10: 5.773333333 | BY10: 5.714666667 | BZ10: =$BZ$9-(($BZ$9-$BZ$14)/5*A4) -> 5.656 | CA10: 5.5984 | CB10: 5.5408 | CC10: 5.4832 | CD10: 5.4256 | CE10: 5.368 | CF10: 5.3104 | CG10: 5.2528 | CH10: 5.1952 | CI10: 5.1376 | CJ10: =$CJ$9-(($CJ$9-$CJ$14)/5*A4) -> 5.08 | CK10: =Eingabemaske!G$19 -> 4 | CL10: Altherma 3 R W 4 kW | CM10: Altherma 3 R W 4 kW | CN10: 9 | CO10: 3.8 | CQ10: 4.3
A11: 8 | B11: Altherma 3 R W | C11: 4 | D11: ='Altherma 3 R'!$L$8 -> 3.1 | E11: ='Altherma 3 R'!$L$9 -> 4.1 | F11: ='Altherma 3 R'!$L$10 -> 5.1 | G11: 37 | H11: =$H$9-(($H$9-$H$14)/5*A5) -> 4.658 | I11: 4.7 | J11: 4.742 | K11: 4.784 | L11: 4.826 | M11: 4.868 | N11: 4.91 | O11: 4.952 | P11: 4.994 | Q11: 5.036 | R11: =$R$9-(($R$9-$R$14)/5*A5) -> 5.078 | S11: 5.119375 | T11: 5.16075 | U11: 5.202125 | V11: 5.2435 | W11: 5.284875 | X11: 5.32625 | Y11: 5.367625 | Z11: 5.409 | AA11: 5.450375 | AB11: 5.49175 | AC11: 5.533125 | AD11: 5.5745 | AE11: 5.615875 | AF11: 5.65725 | AG11: 5.698625 | AH11: =$AH$9-(($AH$9-$AH$14)/5*A5) -> 5.74 | AI11: 5.8205 | AJ11: 5.901 | AK11: 5.9815 | AL11: =$AL$9-(($AL$9-$AL$14)/5*A5) -> 6.062 | AM11: 6.041 | AN11: 6.02 | AO11: 5.999 | AP11: 5.978 | AQ11: 5.957 | AR11: =$AR$9-(($AR$9-$AR$14)/5*A5) -> 5.936 | AS11: 5.98375 | AT11: 6.0315 | AU11: 6.07925 | AV11: 6.127 | AW11: 6.17475 | AX11: 6.2225 | AY11: 6.27025 | AZ11: =$AZ$9-(($AZ$9-$AZ$14)/5*A5) -> 6.318 | BA11: 6.3208 | BB11: 6.3236 | BC11: 6.3264 | BD11: 6.3292 | BE11: 6.332 | BF11: 6.3348 | BG11: 6.3376 | BH11: 6.3404 | BI11: 6.3432 | BJ11: =$BJ$9-(($BJ$9-$BJ$14)/5*A5) -> 6.346 | BK11: 6.306 | BL11: 6.266 | BM11: 6.226 | BN11: 6.186 | BO11: 6.146 | BP11: 6.106 | BQ11: 6.066 | BR11: 6.026 | BS11: 5.986 | BT11: =$BT$9-(($BT$9-$BT$14)/5*A5) -> 5.946 | BU11: 5.887 | BV11: 5.828 | BW11: 5.769 | BX11: 5.71 | BY11: 5.651 | BZ11: =$BZ$9-(($BZ$9-$BZ$14)/5*A5) -> 5.592 | CA11: 5.5338 | CB11: 5.4756 | CC11: 5.4174 | CD11: 5.3592 | CE11: 5.301 | CF11: 5.2428 | CG11: 5.1846 | CH11: 5.1264 | CI11: 5.0682 | CJ11: =$CJ$9-(($CJ$9-$CJ$14)/5*A5) -> 5.01 | CK11: =Eingabemaske!G$19 -> 4 | CL11: Altherma 3 R W 4 kW | CM11: Altherma 3 R W 4 kW | CN11: 9 | CO11: 3.8 | CQ11: 4.3
A12: 9 | B12: Altherma 3 R W | C12: 4 | D12: ='Altherma 3 R'!$L$8 -> 3.1 | E12: ='Altherma 3 R'!$L$9 -> 4.1 | F12: ='Altherma 3 R'!$L$10 -> 5.1 | G12: 38 | H12: 4.652 | I12: 4.693 | J12: 4.734 | K12: 4.775 | L12: 4.816 | M12: 4.857 | N12: 4.898 | O12: 4.939 | P12: 4.98 | Q12: 5.021 | R12: =$R$9-(($R$9-$R$14)/5*A6) -> 5.062 | S12: 5.1025 | T12: 5.143 | U12: 5.1835 | V12: 5.224 | W12: 5.2645 | X12: 5.305 | Y12: 5.3455 | Z12: 5.386 | AA12: 5.4265 | AB12: 5.467 | AC12: 5.5075 | AD12: 5.548 | AE12: 5.5885 | AF12: 5.629 | AG12: 5.6695 | AH12: =$AH$9-(($AH$9-$AH$14)/5*A6) -> 5.71 | AI12: 5.7895 | AJ12: 5.869 | AK12: 5.9485 | AL12: =$AL$9-(($AL$9-$AL$14)/5*A6) -> 6.028 | AM12: 6.007333333 | AN12: 5.986666667 | AO12: 5.966 | AP12: 5.945333333 | AQ12: 5.924666667 | AR12: =$AR$9-(($AR$9-$AR$14)/5*A6) -> 5.904 | AS12: 5.95125 | AT12: 5.9985 | AU12: 6.04575 | AV12: 6.093 | AW12: 6.14025 | AX12: 6.1875 | AY12: 6.23475 | AZ12: =$AZ$9-(($AZ$9-$AZ$14)/5*A6) -> 6.282 | BA12: 6.2852 | BB12: 6.2884 | BC12: 6.2916 | BD12: 6.2948 | BE12: 6.298 | BF12: 6.3012 | BG12: 6.3044 | BH12: 6.3076 | BI12: 6.3108 | BJ12: =$BJ$9-(($BJ$9-$BJ$14)/5*A6) -> 6.314 | BK12: 6.271 | BL12: 6.228 | BM12: 6.185 | BN12: 6.142 | BO12: 6.099 | BP12: 6.056 | BQ12: 6.013 | BR12: 5.97 | BS12: 5.927 | BT12: =$BT$9-(($BT$9-$BT$14)/5*A6) -> 5.884 | BU12: 5.824666667 | BV12: 5.765333333 | BW12: 5.706 | BX12: 5.646666667 | BY12: 5.587333333 | BZ12: =$BZ$9-(($BZ$9-$BZ$14)/5*A6) -> 5.528 | CA12: 5.4692 | CB12: 5.4104 | CC12: 5.3516 | CD12: 5.2928 | CE12: 5.234 | CF12: 5.1752 | CG12: 5.1164 | CH12: 5.0576 | CI12: 4.9988 | CJ12: =$CJ$9-(($CJ$9-$CJ$14)/5*A6) -> 4.94 | CK12: =Eingabemaske!G$19 -> 4 | CL12: Altherma 3 R W 4 kW | CM12: Altherma 3 R W 4 kW | CN12: 9 | CO12: 3.8 | CQ12: 4.3
B13: Altherma 3 R W | C13: 4 | D13: ='Altherma 3 R'!$L$8 -> 3.1 | E13: ='Altherma 3 R'!$L$9 -> 4.1 | F13: ='Altherma 3 R'!$L$10 -> 5.1 | G13: 39 | H13: 4.646 | I13: 4.686 | J13: 4.726 | K13: 4.766 | L13: 4.806 | M13: 4.846 | N13: 4.886 | O13: 4.926 | P13: 4.966 | Q13: 5.006 | R13: =$R$9-(($R$9-$R$14)/5*A7) -> 5.046 | S13: 5.085625 | T13: 5.12525 | U13: 5.164875 | V13: 5.2045 | W13: 5.244125 | X13: 5.28375 | Y13: 5.323375 | Z13: 5.363 | AA13: 5.402625 | AB13: 5.44225 | AC13: 5.481875 | AD13: 5.5215 | AE13: 5.561125 | AF13: 5.60075 | AG13: 5.640375 | AH13: =$AH$9-(($AH$9-$AH$14)/5*A7) -> 5.68 | AI13: 5.7585 | AJ13: 5.837 | AK13: 5.9155 | AL13: =$AL$9-(($AL$9-$AL$14)/5*A7) -> 5.994 | AM13: 5.973666667 | AN13: 5.953333333 | AO13: 5.933 | AP13: 5.912666667 | AQ13: 5.892333333 | AR13: =$AR$9-(($AR$9-$AR$14)/5*A7) -> 5.872 | AS13: 5.91875 | AT13: 5.9655 | AU13: 6.01225 | AV13: 6.059 | AW13: 6.10575 | AX13: 6.1525 | AY13: 6.19925 | AZ13: =$AZ$9-(($AZ$9-$AZ$14)/5*A7) -> 6.246 | BA13: 6.2496 | BB13: 6.2532 | BC13: 6.2568 | BD13: 6.2604 | BE13: 6.264 | BF13: 6.2676 | BG13: 6.2712 | BH13: 6.2748 | BI13: 6.2784 | BJ13: =$BJ$9-(($BJ$9-$BJ$14)/5*A7) -> 6.282 | BK13: 6.236 | BL13: 6.19 | BM13: 6.144 | BN13: 6.098 | BO13: 6.052 | BP13: 6.006 | BQ13: 5.96 | BR13: 5.914 | BS13: 5.868 | BT13: =$BT$9-(($BT$9-$BT$14)/5*A7) -> 5.822 | BU13: 5.762333333 | BV13: 5.702666667 | BW13: 5.643 | BX13: 5.583333333 | BY13: 5.523666667 | BZ13: =$BZ$9-(($BZ$9-$BZ$14)/5*A7) -> 5.464 | CA13: 5.4046 | CB13: 5.3452 | CC13: 5.2858 | CD13: 5.2264 | CE13: 5.167 | CF13: 5.1076 | CG13: 5.0482 | CH13: 4.9888 | CI13: 4.9294 | CJ13: =$CJ$9-(($CJ$9-$CJ$14)/5*A7) -> 4.87 | CK13: =Eingabemaske!G$19 -> 4 | CL13: Altherma 3 R W 4 kW | CM13: Altherma 3 R W 4 kW | CN13: 9 | CO13: 3.8 | CQ13: 4.3
B14: Altherma 3 R W | C14: 4 | D14: ='Altherma 3 R'!$L$8 -> 3.1 | E14: ='Altherma 3 R'!$L$9 -> 4.1 | F14: ='Altherma 3 R'!$L$10 -> 5.1 | G14: 40 | H14: ='Altherma 3 R'!E7 -> 4.64 | I14: =$H14-(($H14-$R14)/$R$3*I$3) -> 4.679 | J14: 4.718 | K14: 4.757 | L14: 4.796 | M14: 4.835 | N14: 4.874 | O14: 4.913 | P14: 4.952 | Q14: 4.991 | R14: ='Altherma 3 R'!E8 -> 5.03 | S14: =$R14-(($R14-$AH14)/$AH$3*S$3) -> 5.06875 | T14: 5.1075 | U14: 5.14625 | V14: 5.185 | W14: 5.22375 | X14: 5.2625 | Y14: 5.30125 | Z14: 5.34 | AA14: 5.37875 | AB14: 5.4175 | AC14: 5.45625 | AD14: 5.495 | AE14: 5.53375 | AF14: 5.5725 | AG14: 5.61125 | AH14: ='Altherma 3 R'!E9 -> 5.65 | AI14: 5.7275 | AJ14: 5.805 | AK14: 5.8825 | AL14: ='Altherma 3 R'!E11 -> 5.96 | AM14: =$AL14-(($AL14-$AR14)/$AR$1*AM$1) -> 5.94 | AN14: 5.92 | AO14: 5.9 | AP14: 5.88 | AQ14: 5.86 | AR14: ='Altherma 3 R'!E10 -> 5.84 | AS14: =$AR14-(($AR14-$AZ14)/$AZ$3*AS$3) -> 5.88625 | AT14: 5.9325 | AU14: 5.97875 | AV14: 6.025 | AW14: 6.07125 | AX14: 6.1175 | AY14: 6.16375 | AZ14: ='Altherma 3 R'!E12 -> 6.21 | BA14: =$AZ14-(($AZ14-$BJ14)/$BJ$3*BA$3) -> 6.214 | BB14: 6.218 | BC14: 6.222 | BD14: 6.226 | BE14: 6.23 | BF14: 6.234 | BG14: 6.238 | BH14: 6.242 | BI14: 6.246 | BJ14: ='Altherma 3 R'!E13 -> 6.25 | BK14: =$BJ14-(($BJ14-$BT14)/$BT$3*BK$3) -> 6.201 | BL14: 6.152 | BM14: 6.103 | BN14: 6.054 | BO14: 6.005 | BP14: 5.956 | BQ14: 5.907 | BR14: 5.858 | BS14: 5.809 | BT14: ='Altherma 3 R'!E14 -> 5.76 | BU14: =$BT14-(($BT14-$BZ14)/$BZ$3*BU$3) -> 5.7 | BV14: 5.64 | BW14: 5.58 | BX14: 5.52 | BY14: 5.46 | BZ14: ='Altherma 3 R'!E15 -> 5.4 | CA14: =$BZ14-(($BZ14-$CJ14)/$CJ$3*CA$3) -> 5.34 | CB14: 5.28 | CC14: 5.22 | CD14: 5.16 | CE14: 5.1 | CF14: 5.04 | CG14: 4.98 | CH14: 4.92 | CI14: 4.86 | CJ14: ='Altherma 3 R'!E16 -> 4.8 | CK14: =Eingabemaske!G$19 -> 4 | CL14: Altherma 3 R W 4 kW | CM14: Altherma 3 R W 4 kW | CN14: 9 | CO14: 3.8 | CQ14: 4.3
B15: Altherma 3 R W | C15: 4 | D15: ='Altherma 3 R'!$L$8 -> 3.1 | E15: ='Altherma 3 R'!$L$9 -> 4.1 | F15: ='Altherma 3 R'!$L$10 -> 5.1 | G15: 41 | H15: =$H$14-(($H$14-$H$19)/5*A4) -> 4.634 | I15: 4.672 | J15: 4.71 | K15: 4.748 | L15: 4.786 | M15: 4.824 | N15: 4.862 | O15: 4.9 | P15: 4.938 | Q15: 4.976 | R15: =$R$14-(($R$14-$R$19)/5*A4) -> 5.014 | S15: 5.051875 | T15: 5.08975 | U15: 5.127625 | V15: 5.1655 | W15: 5.203375 | X15: 5.24125 | Y15: 5.279125 | Z15: 5.317 | AA15: 5.354875 | AB15: 5.39275 | AC15: 5.430625 | AD15: 5.4685 | AE15: 5.506375 | AF15: 5.54425 | AG15: 5.582125 | AH15: =$AH$14-(($AH$14-$AH$19)/5*A4) -> 5.62 | AI15: 5.6965 | AJ15: 5.773 | AK15: 5.8495 | AL15: =$AL$14-(($AL$14-$AL$19)/5*A4) -> 5.926 | AM15: 5.906333333 | AN15: 5.886666667 | AO15: 5.867 | AP15: 5.847333333 | AQ15: 5.827666667 | AR15: =$AR$14-(($AR$14-$AR$19)/5*A4) -> 5.808 | AS15: 5.85375 | AT15: 5.8995 | AU15: 5.94525 | AV15: 5.991 | AW15: 6.03675 | AX15: 6.0825 | AY15: 6.12825 | AZ15: =$AZ$14-(($AZ$14-$AZ$19)/5*A4) -> 6.174 | BA15: 6.1782 | BB15: 6.1824 | BC15: 6.1866 | BD15: 6.1908 | BE15: 6.195 | BF15: 6.1992 | BG15: 6.2034 | BH15: 6.2076 | BI15: 6.2118 | BJ15: =$BJ$14-(($BJ$14-$BJ$19)/5*A4) -> 6.216 | BK15: 6.1644 | BL15: 6.1128 | BM15: 6.0612 | BN15: 6.0096 | BO15: 5.958 | BP15: 5.9064 | BQ15: 5.8548 | BR15: 5.8032 | BS15: 5.7516 | BT15: =$BT$14-(($BT$14-$BT$19)/5*A4) -> 5.7 | BU15: 5.639333333 | BV15: 5.578666667 | BW15: 5.518 | BX15: 5.457333333 | BY15: 5.396666667 | BZ15: =$BZ$14-(($BZ$14-$BZ$19)/5*A4) -> 5.336 | CA15: 5.2754 | CB15: 5.2148 | CC15: 5.1542 | CD15: 5.0936 | CE15: 5.033 | CF15: 4.9724 | CG15: 4.9118 | CH15: 4.8512 | CI15: 4.7906 | CJ15: =$CJ$14-(($CJ$14-$CJ$19)/5*A4) -> 4.73 | CK15: =Eingabemaske!G$19 -> 4 | CL15: Altherma 3 R W 4 kW | CM15: Altherma 3 R W 4 kW | CN15: 9 | CO15: 3.8 | CQ15: 4.3
B16: Altherma 3 R W | C16: 4 | D16: ='Altherma 3 R'!$L$8 -> 3.1 | E16: ='Altherma 3 R'!$L$9 -> 4.1 | F16: ='Altherma 3 R'!$L$10 -> 5.1 | G16: 42 | H16: =$H$14-(($H$14-$H$19)/5*A5) -> 4.628 | I16: 4.665 | J16: 4.702 | K16: 4.739 | L16: 4.776 | M16: 4.813 | N16: 4.85 | O16: 4.887 | P16: 4.924 | Q16: 4.961 | R16: =$R$14-(($R$14-$R$19)/5*A5) -> 4.998 | S16: 5.035 | T16: 5.072 | U16: 5.109 | V16: 5.146 | W16: 5.183 | X16: 5.22 | Y16: 5.257 | Z16: 5.294 | AA16: 5.331 | AB16: 5.368 | AC16: 5.405 | AD16: 5.442 | AE16: 5.479 | AF16: 5.516 | AG16: 5.553 | AH16: =$AH$14-(($AH$14-$AH$19)/5*A5) -> 5.59 | AI16: 5.6655 | AJ16: 5.741 | AK16: 5.8165 | AL16: =$AL$14-(($AL$14-$AL$19)/5*A5) -> 5.892 | AM16: 5.872666667 | AN16: 5.853333333 | AO16: 5.834 | AP16: 5.814666667 | AQ16: 5.795333333 | AR16: =$AR$14-(($AR$14-$AR$19)/5*A5) -> 5.776 | AS16: 5.82125 | AT16: 5.8665 | AU16: 5.91175 | AV16: 5.957 | AW16: 6.00225 | AX16: 6.0475 | AY16: 6.09275 | AZ16: =$AZ$14-(($AZ$14-$AZ$19)/5*A5) -> 6.138 | BA16: 6.1424 | BB16: 6.1468 | BC16: 6.1512 | BD16: 6.1556 | BE16: 6.16 | BF16: 6.1644 | BG16: 6.1688 | BH16: 6.1732 | BI16: 6.1776 | BJ16: =$BJ$14-(($BJ$14-$BJ$19)/5*A5) -> 6.182 | BK16: 6.1278 | BL16: 6.0736 | BM16: 6.0194 | BN16: 5.9652 | BO16: 5.911 | BP16: 5.8568 | BQ16: 5.8026 | BR16: 5.7484 | BS16: 5.6942 | BT16: =$BT$14-(($BT$14-$BT$19)/5*A5) -> 5.64 | BU16: 5.578666667 | BV16: 5.517333333 | BW16: 5.456 | BX16: 5.394666667 | BY16: 5.333333333 | BZ16: =$BZ$14-(($BZ$14-$BZ$19)/5*A5) -> 5.272 | CA16: 5.2108 | CB16: 5.1496 | CC16: 5.0884 | CD16: 5.0272 | CE16: 4.966 | CF16: 4.9048 | CG16: 4.8436 | CH16: 4.7824 | CI16: 4.7212 | CJ16: =$CJ$14-(($CJ$14-$CJ$19)/5*A5) -> 4.66 | CK16: =Eingabemaske!G$19 -> 4 | CL16: Altherma 3 R W 4 kW | CM16: Altherma 3 R W 4 kW | CN16: 9 | CO16: 3.8 | CQ16: 4.3
B17: Altherma 3 R W | C17: 4 | D17: ='Altherma 3 R'!$L$8 -> 3.1 | E17: ='Altherma 3 R'!$L$9 -> 4.1 | F17: ='Altherma 3 R'!$L$10 -> 5.1 | G17: 43 | H17: 4.622 | I17: 4.658 | J17: 4.694 | K17: 4.73 | L17: 4.766 | M17: 4.802 | N17: 4.838 | O17: 4.874 | P17: 4.91 | Q17: 4.946 | R17: =$R$14-(($R$14-$R$19)/5*A6) -> 4.982 | S17: 5.018125 | T17: 5.05425 | U17: 5.090375 | V17: 5.1265 | W17: 5.162625 | X17: 5.19875 | Y17: 5.234875 | Z17: 5.271 | AA17: 5.307125 | AB17: 5.34325 | AC17: 5.379375 | AD17: 5.4155 | AE17: 5.451625 | AF17: 5.48775 | AG17: 5.523875 | AH17: =$AH$14-(($AH$14-$AH$19)/5*A6) -> 5.56 | AI17: 5.6345 | AJ17: 5.709 | AK17: 5.7835 | AL17: =$AL$14-(($AL$14-$AL$19)/5*A6) -> 5.858 | AM17: 5.839 | AN17: 5.82 | AO17: 5.801 | AP17: 5.782 | AQ17: 5.763 | AR17: =$AR$14-(($AR$14-$AR$19)/5*A6) -> 5.744 | AS17: 5.78875 | AT17: 5.8335 | AU17: 5.87825 | AV17: 5.923 | AW17: 5.96775 | AX17: 6.0125 | AY17: 6.05725 | AZ17: =$AZ$14-(($AZ$14-$AZ$19)/5*A6) -> 6.102 | BA17: 6.1066 | BB17: 6.1112 | BC17: 6.1158 | BD17: 6.1204 | BE17: 6.125 | BF17: 6.1296 | BG17: 6.1342 | BH17: 6.1388 | BI17: 6.1434 | BJ17: =$BJ$14-(($BJ$14-$BJ$19)/5*A6) -> 6.148 | BK17: 6.0912 | BL17: 6.0344 | BM17: 5.9776 | BN17: 5.9208 | BO17: 5.864 | BP17: 5.8072 | BQ17: 5.7504 | BR17: 5.6936 | BS17: 5.6368 | BT17: =$BT$14-(($BT$14-$BT$19)/5*A6) -> 5.58 | BU17: 5.518 | BV17: 5.456 | BW17: 5.394 | BX17: 5.332 | BY17: 5.27 | BZ17: =$BZ$14-(($BZ$14-$BZ$19)/5*A6) -> 5.208 | CA17: 5.1462 | CB17: 5.0844 | CC17: 5.0226 | CD17: 4.9608 | CE17: 4.899 | CF17: 4.8372 | CG17: 4.7754 | CH17: 4.7136 | CI17: 4.6518 | CJ17: =$CJ$14-(($CJ$14-$CJ$19)/5*A6) -> 4.59 | CK17: =Eingabemaske!G$19 -> 4 | CL17: Altherma 3 R W 4 kW | CM17: Altherma 3 R W 4 kW | CN17: 9 | CO17: 3.8 | CQ17: 4.3
B18: Altherma 3 R W | C18: 4 | D18: ='Altherma 3 R'!$L$8 -> 3.1 | E18: ='Altherma 3 R'!$L$9 -> 4.1 | F18: ='Altherma 3 R'!$L$10 -> 5.1 | G18: 44 | H18: 4.616 | I18: 4.651 | J18: 4.686 | K18: 4.721 | L18: 4.756 | M18: 4.791 | N18: 4.826 | O18: 4.861 | P18: 4.896 | Q18: 4.931 | R18: =$R$14-(($R$14-$R$19)/5*A7) -> 4.966 | S18: 5.00125 | T18: 5.0365 | U18: 5.07175 | V18: 5.107 | W18: 5.14225 | X18: 5.1775 | Y18: 5.21275 | Z18: 5.248 | AA18: 5.28325 | AB18: 5.3185 | AC18: 5.35375 | AD18: 5.389 | AE18: 5.42425 | AF18: 5.4595 | AG18: 5.49475 | AH18: =$AH$14-(($AH$14-$AH$19)/5*A7) -> 5.53 | AI18: 5.6035 | AJ18: 5.677 | AK18: 5.7505 | AL18: =$AL$14-(($AL$14-$AL$19)/5*A7) -> 5.824 | AM18: 5.805333333 | AN18: 5.786666667 | AO18: 5.768 | AP18: 5.749333333 | AQ18: 5.730666667 | AR18: =$AR$14-(($AR$14-$AR$19)/5*A7) -> 5.712 | AS18: 5.75625 | AT18: 5.8005 | AU18: 5.84475 | AV18: 5.889 | AW18: 5.93325 | AX18: 5.9775 | AY18: 6.02175 | AZ18: =$AZ$14-(($AZ$14-$AZ$19)/5*A7) -> 6.066 | BA18: 6.0708 | BB18: 6.0756 | BC18: 6.0804 | BD18: 6.0852 | BE18: 6.09 | BF18: 6.0948 | BG18: 6.0996 | BH18: 6.1044 | BI18: 6.1092 | BJ18: =$BJ$14-(($BJ$14-$BJ$19)/5*A7) -> 6.114 | BK18: 6.0546 | BL18: 5.9952 | BM18: 5.9358 | BN18: 5.8764 | BO18: 5.817 | BP18: 5.7576 | BQ18: 5.6982 | BR18: 5.6388 | BS18: 5.5794 | BT18: =$BT$14-(($BT$14-$BT$19)/5*A7) -> 5.52 | BU18: 5.457333333 | BV18: 5.394666667 | BW18: 5.332 | BX18: 5.269333333 | BY18: 5.206666667 | BZ18: =$BZ$14-(($BZ$14-$BZ$19)/5*A7) -> 5.144 | CA18: 5.0816 | CB18: 5.0192 | CC18: 4.9568 | CD18: 4.8944 | CE18: 4.832 | CF18: 4.7696 | CG18: 4.7072 | CH18: 4.6448 | CI18: 4.5824 | CJ18: =$CJ$14-(($CJ$14-$CJ$19)/5*A7) -> 4.52 | CK18: =Eingabemaske!G$19 -> 4 | CL18: Altherma 3 R W 4 kW | CM18: Altherma 3 R W 4 kW | CN18: 9 | CO18: 3.8 | CQ18: 4.3
B19: Altherma 3 R W | C19: 4 | D19: ='Altherma 3 R'!$L$8 -> 3.1 | E19: ='Altherma 3 R'!$L$9 -> 4.1 | F19: ='Altherma 3 R'!$L$10 -> 5.1 | G19: 45 | H19: ='Altherma 3 R'!F7 -> 4.61 | I19: 4.644 | J19: 4.678 | K19: 4.712 | L19: 4.746 | M19: 4.78 | N19: 4.814 | O19: 4.848 | P19: 4.882 | Q19: 4.916 | R19: ='Altherma 3 R'!F8 -> 4.95 | S19: 4.984375 | T19: 5.01875 | U19: 5.053125 | V19: 5.0875 | W19: 5.121875 | X19: 5.15625 | Y19: 5.190625 | Z19: 5.225 | AA19: 5.259375 | AB19: 5.29375 | AC19: 5.328125 | AD19: 5.3625 | AE19: 5.396875 | AF19: 5.43125 | AG19: 5.465625 | AH19: ='Altherma 3 R'!F9 -> 5.5 | AI19: 5.5725 | AJ19: 5.645 | AK19: 5.7175 | AL19: ='Altherma 3 R'!F11 -> 5.79 | AM19: 5.771666667 | AN19: 5.753333333 | AO19: 5.735 | AP19: 5.716666667 | AQ19: 5.698333333 | AR19: ='Altherma 3 R'!F10 -> 5.68 | AS19: 5.72375 | AT19: 5.7675 | AU19: 5.81125 | AV19: 5.855 | AW19: 5.89875 | AX19: 5.9425 | AY19: 5.98625 | AZ19: ='Altherma 3 R'!F12 -> 6.03 | BA19: 6.035 | BB19: 6.04 | BC19: 6.045 | BD19: 6.05 | BE19: 6.055 | BF19: 6.06 | BG19: 6.065 | BH19: 6.07 | BI19: 6.075 | BJ19: ='Altherma 3 R'!F13 -> 6.08 | BK19: 6.018 | BL19: 5.956 | BM19: 5.894 | BN19: 5.832 | BO19: 5.77 | BP19: 5.708 | BQ19: 5.646 | BR19: 5.584 | BS19: 5.522 | BT19: ='Altherma 3 R'!F14 -> 5.46 | BU19: 5.396666667 | BV19: 5.333333333 | BW19: 5.27 | BX19: 5.206666667 | BY19: 5.143333333 | BZ19: ='Altherma 3 R'!F15 -> 5.08 | CA19: 5.017 | CB19: 4.954 | CC19: 4.891 | CD19: 4.828 | CE19: 4.765 | CF19: 4.702 | CG19: 4.639 | CH19: 4.576 | CI19: 4.513 | CJ19: ='Altherma 3 R'!F16 -> 4.45 | CK19: =Eingabemaske!G$19 -> 4 | CL19: Altherma 3 R W 4 kW | CM19: Altherma 3 R W 4 kW | CN19: 9 | CO19: 3.8 | CQ19: 4.3
B20: Altherma 3 R W | C20: 4 | D20: ='Altherma 3 R'!$L$8 -> 3.1 | E20: ='Altherma 3 R'!$L$9 -> 4.1 | F20: ='Altherma 3 R'!$L$10 -> 5.1 | G20: 46 | H20: =$H$19-(($H$19-$H$24)/5*A4) -> 4.534 | I20: 4.5672 | J20: 4.6004 | K20: 4.6336 | L20: 4.6668 | M20: 4.7 | N20: 4.7332 | O20: 4.7664 | P20: 4.7996 | Q20: 4.8328 | R20: =$R$19-(($R$19-$R$24)/5*A4) -> 4.866 | S20: 4.899125 | T20: 4.93225 | U20: 4.965375 | V20: 4.9985 | W20: 5.031625 | X20: 5.06475 | Y20: 5.097875 | Z20: 5.131 | AA20: 5.164125 | AB20: 5.19725 | AC20: 5.230375 | AD20: 5.2635 | AE20: 5.296625 | AF20: 5.32975 | AG20: 5.362875 | AH20: =$AH$19-(($AH$19-$AH$24)/5*A4) -> 5.396 | AI20: 5.4735 | AJ20: 5.551 | AK20: 5.6285 | AL20: =$AL$19-(($AL$19-$AL$24)/5*A4) -> 5.706 | AM20: 5.686 | AN20: 5.666 | AO20: 5.646 | AP20: 5.626 | AQ20: 5.606 | AR20: =$AR$19-(($AR$19-$AR$24)/5*A4) -> 5.586 | AS20: 5.63275 | AT20: 5.6795 | AU20: 5.72625 | AV20: 5.773 | AW20: 5.81975 | AX20: 5.8665 | AY20: 5.91325 | AZ20: =$AZ$19-(($AZ$19-$AZ$24)/5*A4) -> 5.96 | BA20: 5.9686 | BB20: 5.9772 | BC20: 5.9858 | BD20: 5.9944 | BE20: 6.003 | BF20: 6.0116 | BG20: 6.0202 | BH20: 6.0288 | BI20: 6.0374 | BJ20: =$BJ$19-(($BJ$19-$BJ$24)/5*A4) -> 6.046 | BK20: 5.9828 | BL20: 5.9196 | BM20: 5.8564 | BN20: 5.7932 | BO20: 5.73 | BP20: 5.6668 | BQ20: 5.6036 | BR20: 5.5404 | BS20: 5.4772 | BT20: =$BT$19-(($BT$19-$BT$24)/5*A4) -> 5.414 | BU20: 5.343 | BV20: 5.272 | BW20: 5.201 | BX20: 5.13 | BY20: 5.059 | BZ20: =$BZ$19-(($BZ$19-$BZ$24)/5*A4) -> 4.988 | CA20: 4.9176 | CB20: 4.8472 | CC20: 4.7768 | CD20: 4.7064 | CE20: 4.636 | CF20: 4.5656 | CG20: 4.4952 | CH20: 4.4248 | CI20: 4.3544 | CJ20: =$CJ$19-(($CJ$19-$CJ$24)/5*A4) -> 4.284 | CK20: =Eingabemaske!G$19 -> 4 | CL20: Altherma 3 R W 4 kW | CM20: Altherma 3 R W 4 kW | CN20: 9 | CO20: 3.8 | CQ20: 4.3
B21: Altherma 3 R W | C21: 4 | D21: ='Altherma 3 R'!$L$8 -> 3.1 | E21: ='Altherma 3 R'!$L$9 -> 4.1 | F21: ='Altherma 3 R'!$L$10 -> 5.1 | G21: 47 | H21: =$H$19-(($H$19-$H$24)/5*A5) -> 4.458 | I21: 4.4904 | J21: 4.5228 | K21: 4.5552 | L21: 4.5876 | M21: 4.62 | N21: 4.6524 | O21: 4.6848 | P21: 4.7172 | Q21: 4.7496 | R21: =$R$19-(($R$19-$R$24)/5*A5) -> 4.782 | S21: 4.813875 | T21: 4.84575 | U21: 4.877625 | V21: 4.9095 | W21: 4.941375 | X21: 4.97325 | Y21: 5.005125 | Z21: 5.037 | AA21: 5.068875 | AB21: 5.10075 | AC21: 5.132625 | AD21: 5.1645 | AE21: 5.196375 | AF21: 5.22825 | AG21: 5.260125 | AH21: =$AH$19-(($AH$19-$AH$24)/5*A5) -> 5.292 | AI21: 5.3745 | AJ21: 5.457 | AK21: 5.5395 | AL21: =$AL$19-(($AL$19-$AL$24)/5*A5) -> 5.622 | AM21: 5.600333333 | AN21: 5.578666667 | AO21: 5.557 | AP21: 5.535333333 | AQ21: 5.513666667 | AR21: =$AR$19-(($AR$19-$AR$24)/5*A5) -> 5.492 | AS21: 5.54175 | AT21: 5.5915 | AU21: 5.64125 | AV21: 5.691 | AW21: 5.74075 | AX21: 5.7905 | AY21: 5.84025 | AZ21: =$AZ$19-(($AZ$19-$AZ$24)/5*A5) -> 5.89 | BA21: 5.9022 | BB21: 5.9144 | BC21: 5.9266 | BD21: 5.9388 | BE21: 5.951 | BF21: 5.9632 | BG21: 5.9754 | BH21: 5.9876 | BI21: 5.9998 | BJ21: =$BJ$19-(($BJ$19-$BJ$24)/5*A5) -> 6.012 | BK21: 5.9476 | BL21: 5.8832 | BM21: 5.8188 | BN21: 5.7544 | BO21: 5.69 | BP21: 5.6256 | BQ21: 5.5612 | BR21: 5.4968 | BS21: 5.4324 | BT21: =$BT$19-(($BT$19-$BT$24)/5*A5) -> 5.368 | BU21: 5.289333333 | BV21: 5.210666667 | BW21: 5.132 | BX21: 5.053333333 | BY21: 4.974666667 | BZ21: =$BZ$19-(($BZ$19-$BZ$24)/5*A5) -> 4.896 | CA21: 4.8182 | CB21: 4.7404 | CC21: 4.6626 | CD21: 4.5848 | CE21: 4.507 | CF21: 4.4292 | CG21: 4.3514 | CH21: 4.2736 | CI21: 4.1958 | CJ21: =$CJ$19-(($CJ$19-$CJ$24)/5*A5) -> 4.118 | CK21: =Eingabemaske!G$19 -> 4 | CL21: Altherma 3 R W 4 kW | CM21: Altherma 3 R W 4 kW | CN21: 9 | CO21: 3.8 | CQ21: 4.3
B22: Altherma 3 R W | C22: 4 | D22: ='Altherma 3 R'!$L$8 -> 3.1 | E22: ='Altherma 3 R'!$L$9 -> 4.1 | F22: ='Altherma 3 R'!$L$10 -> 5.1 | G22: 48 | H22: 4.382 | I22: 4.4136 | J22: 4.4452 | K22: 4.4768 | L22: 4.5084 | M22: 4.54 | N22: 4.5716 | O22: 4.6032 | P22: 4.6348 | Q22: 4.6664 | R22: =$R$19-(($R$19-$R$24)/5*A6) -> 4.698 | S22: 4.728625 | T22: 4.75925 | U22: 4.789875 | V22: 4.8205 | W22: 4.851125 | X22: 4.88175 | Y22: 4.912375 | Z22: 4.943 | AA22: 4.973625 | AB22: 5.00425 | AC22: 5.034875 | AD22: 5.0655 | AE22: 5.096125 | AF22: 5.12675 | AG22: 5.157375 | AH22: =$AH$19-(($AH$19-$AH$24)/5*A6) -> 5.188 | AI22: 5.2755 | AJ22: 5.363 | AK22: 5.4505 | AL22: =$AL$19-(($AL$19-$AL$24)/5*A6) -> 5.538 | AM22: 5.514666667 | AN22: 5.491333333 | AO22: 5.468 | AP22: 5.444666667 | AQ22: 5.421333333 | AR22: =$AR$19-(($AR$19-$AR$24)/5*A6) -> 5.398 | AS22: 5.45075 | AT22: 5.5035 | AU22: 5.55625 | AV22: 5.609 | AW22: 5.66175 | AX22: 5.7145 | AY22: 5.76725 | AZ22: =$AZ$19-(($AZ$19-$AZ$24)/5*A6) -> 5.82 | BA22: 5.8358 | BB22: 5.8516 | BC22: 5.8674 | BD22: 5.8832 | BE22: 5.899 | BF22: 5.9148 | BG22: 5.9306 | BH22: 5.9464 | BI22: 5.9622 | BJ22: =$BJ$19-(($BJ$19-$BJ$24)/5*A6) -> 5.978 | BK22: 5.9124 | BL22: 5.8468 | BM22: 5.7812 | BN22: 5.7156 | BO22: 5.65 | BP22: 5.5844 | BQ22: 5.5188 | BR22: 5.4532 | BS22: 5.3876 | BT22: =$BT$19-(($BT$19-$BT$24)/5*A6) -> 5.322 | BU22: 5.235666667 | BV22: 5.149333333 | BW22: 5.063 | BX22: 4.976666667 | BY22: 4.890333333 | BZ22: =$BZ$19-(($BZ$19-$BZ$24)/5*A6) -> 4.804 | CA22: 4.7188 | CB22: 4.6336 | CC22: 4.5484 | CD22: 4.4632 | CE22: 4.378 | CF22: 4.2928 | CG22: 4.2076 | CH22: 4.1224 | CI22: 4.0372 | CJ22: =$CJ$19-(($CJ$19-$CJ$24)/5*A6) -> 3.952 | CK22: =Eingabemaske!G$19 -> 4 | CL22: Altherma 3 R W 4 kW | CM22: Altherma 3 R W 4 kW | CN22: 9 | CO22: 3.8 | CQ22: 4.3
B23: Altherma 3 R W | C23: 4 | D23: ='Altherma 3 R'!$L$8 -> 3.1 | E23: ='Altherma 3 R'!$L$9 -> 4.1 | F23: ='Altherma 3 R'!$L$10 -> 5.1 | G23: 49 | H23: 4.306 | I23: 4.3368 | J23: 4.3676 | K23: 4.3984 | L23: 4.4292 | M23: 4.46 | N23: 4.4908 | O23: 4.5216 | P23: 4.5524 | Q23: 4.5832 | R23: =$R$19-(($R$19-$R$24)/5*A7) -> 4.614 | S23: 4.643375 | T23: 4.67275 | U23: 4.702125 | V23: 4.7315 | W23: 4.760875 | X23: 4.79025 | Y23: 4.819625 | Z23: 4.849 | AA23: 4.878375 | AB23: 4.90775 | AC23: 4.937125 | AD23: 4.9665 | AE23: 4.995875 | AF23: 5.02525 | AG23: 5.054625 | AH23: =$AH$19-(($AH$19-$AH$24)/5*A7) -> 5.084 | AI23: 5.1765 | AJ23: 5.269 | AK23: 5.3615 | AL23: =$AL$19-(($AL$19-$AL$24)/5*A7) -> 5.454 | AM23: 5.429 | AN23: 5.404 | AO23: 5.379 | AP23: 5.354 | AQ23: 5.329 | AR23: =$AR$19-(($AR$19-$AR$24)/5*A7) -> 5.304 | AS23: 5.35975 | AT23: 5.4155 | AU23: 5.47125 | AV23: 5.527 | AW23: 5.58275 | AX23: 5.6385 | AY23: 5.69425 | AZ23: =$AZ$19-(($AZ$19-$AZ$24)/5*A7) -> 5.75 | BA23: 5.7694 | BB23: 5.7888 | BC23: 5.8082 | BD23: 5.8276 | BE23: 5.847 | BF23: 5.8664 | BG23: 5.8858 | BH23: 5.9052 | BI23: 5.9246 | BJ23: =$BJ$19-(($BJ$19-$BJ$24)/5*A7) -> 5.944 | BK23: 5.8772 | BL23: 5.8104 | BM23: 5.7436 | BN23: 5.6768 | BO23: 5.61 | BP23: 5.5432 | BQ23: 5.4764 | BR23: 5.4096 | BS23: 5.3428 | BT23: =$BT$19-(($BT$19-$BT$24)/5*A7) -> 5.276 | BU23: 5.182 | BV23: 5.088 | BW23: 4.994 | BX23: 4.9 | BY23: 4.806 | BZ23: =$BZ$19-(($BZ$19-$BZ$24)/5*A7) -> 4.712 | CA23: 4.6194 | CB23: 4.5268 | CC23: 4.4342 | CD23: 4.3416 | CE23: 4.249 | CF23: 4.1564 | CG23: 4.0638 | CH23: 3.9712 | CI23: 3.8786 | CJ23: =$CJ$19-(($CJ$19-$CJ$24)/5*A7) -> 3.786 | CK23: =Eingabemaske!G$19 -> 4 | CL23: Altherma 3 R W 4 kW | CM23: Altherma 3 R W 4 kW | CN23: 9 | CO23: 3.8 | CQ23: 4.3
B24: Altherma 3 R W | C24: 4 | D24: ='Altherma 3 R'!$L$8 -> 3.1 | E24: ='Altherma 3 R'!$L$9 -> 4.1 | F24: ='Altherma 3 R'!$L$10 -> 5.1 | G24: 50 | H24: ='Altherma 3 R'!G7 -> 4.23 | I24: 4.26 | J24: 4.29 | K24: 4.32 | L24: 4.35 | M24: 4.38 | N24: 4.41 | O24: 4.44 | P24: 4.47 | Q24: 4.5 | R24: ='Altherma 3 R'!G8 -> 4.53 | S24: =$R24-(($R24-$AH24)/$AH$3*S$3) -> 4.558125 | T24: 4.58625 | U24: 4.614375 | V24: 4.6425 | W24: 4.670625 | X24: 4.69875 | Y24: 4.726875 | Z24: 4.755 | AA24: 4.783125 | AB24: 4.81125 | AC24: 4.839375 | AD24: 4.8675 | AE24: 4.895625 | AF24: 4.92375 | AG24: 4.951875 | AH24: ='Altherma 3 R'!G9 -> 4.98 | AI24: 5.0775 | AJ24: 5.175 | AK24: 5.2725 | AL24: ='Altherma 3 R'!G11 -> 5.37 | AM24: =$AL24-(($AL24-$AR24)/$AR$1*AM$1) -> 5.343333333 | AN24: 5.316666667 | AO24: 5.29 | AP24: 5.263333333 | AQ24: 5.236666667 | AR24: ='Altherma 3 R'!G10 -> 5.21 | AS24: =$AR24-(($AR24-$AZ24)/$AZ$3*AS$3) -> 5.26875 | AT24: 5.3275 | AU24: 5.38625 | AV24: 5.445 | AW24: 5.50375 | AX24: 5.5625 | AY24: 5.62125 | AZ24: ='Altherma 3 R'!G12 -> 5.68 | BA24: =$AZ24-(($AZ24-$BJ24)/$BJ$3*BA$3) -> 5.703 | BB24: 5.726 | BC24: 5.749 | BD24: 5.772 | BE24: 5.795 | BF24: 5.818 | BG24: 5.841 | BH24: 5.864 | BI24: 5.887 | BJ24: ='Altherma 3 R'!G13 -> 5.91 | BK24: =$BJ24-(($BJ24-$BT24)/$BT$3*BK$3) -> 5.842 | BL24: 5.774 | BM24: 5.706 | BN24: 5.638 | BO24: 5.57 | BP24: 5.502 | BQ24: 5.434 | BR24: 5.366 | BS24: 5.298 | BT24: ='Altherma 3 R'!G14 -> 5.23 | BU24: =$BT24-(($BT24-$BZ24)/$BZ$3*BU$3) -> 5.128333333 | BV24: 5.026666667 | BW24: 4.925 | BX24: 4.823333333 | BY24: 4.721666667 | BZ24: ='Altherma 3 R'!G15 -> 4.62 | CA24: =$BZ24-(($BZ24-$CJ24)/$CJ$3*CA$3) -> 4.52 | CB24: 4.42 | CC24: 4.32 | CD24: 4.22 | CE24: 4.12 | CF24: 4.02 | CG24: 3.92 | CH24: 3.82 | CI24: 3.72 | CJ24: ='Altherma 3 R'!G16 -> 3.62 | CK24: =Eingabemaske!G$19 -> 4 | CL24: Altherma 3 R W 4 kW | CM24: Altherma 3 R W 4 kW | CN24: 9 | CO24: 3.8 | CQ24: 4.3
B25: Altherma 3 R W | C25: 4 | D25: ='Altherma 3 R'!$L$8 -> 3.1 | E25: ='Altherma 3 R'!$L$9 -> 4.1 | F25: ='Altherma 3 R'!$L$10 -> 5.1 | G25: 51 | R25: =$R$24-(($R$24-$R$29)/5*A4) -> 4.412 | S25: 4.440875 | T25: 4.46975 | U25: 4.498625 | V25: 4.5275 | W25: 4.556375 | X25: 4.58525 | Y25: 4.614125 | Z25: 4.643 | AA25: 4.671875 | AB25: 4.70075 | AC25: 4.729625 | AD25: 4.7585 | AE25: 4.787375 | AF25: 4.81625 | AG25: 4.845125 | AH25: =$AH$24-(($AH$24-$AH$29)/5*A4) -> 4.874 | AI25: 4.9765 | AJ25: 5.079 | AK25: 5.1815 | AL25: =$AL$24-(($AL$24-$AL$29)/5*A4) -> 5.284 | AM25: 5.256333333 | AN25: 5.228666667 | AO25: 5.201 | AP25: 5.173333333 | AQ25: 5.145666667 | AR25: =$AR$24-(($AR$24-$AR$29)/5*A4) -> 5.118 | AS25: 5.1795 | AT25: 5.241 | AU25: 5.3025 | AV25: 5.364 | AW25: 5.4255 | AX25: 5.487 | AY25: 5.5485 | AZ25: =$AZ$24-(($AZ$24-$AZ$29)/5*A4) -> 5.61 | BA25: 5.6364 | BB25: 5.6628 | BC25: 5.6892 | BD25: 5.7156 | BE25: 5.742 | BF25: 5.7684 | BG25: 5.7948 | BH25: 5.8212 | BI25: 5.8476 | BJ25: =$BJ$24-(($BJ$24-$BJ$29)/5*A4) -> 5.874 | BK25: 5.8048 | BL25: 5.7356 | BM25: 5.6664 | BN25: 5.5972 | BO25: 5.528 | BP25: 5.4588 | BQ25: 5.3896 | BR25: 5.3204 | BS25: 5.2512 | BT25: =$BT$24-(($BT$24-$BT$29)/5*A4) -> 5.182 | BU25: 5.073333333 | BV25: 4.964666667 | BW25: 4.856 | BX25: 4.747333333 | BY25: 4.638666667 | BZ25: =$BZ$24-(($BZ$24-$BZ$29)/5*A4) -> 4.53 | CA25: 4.4226 | CB25: 4.3152 | CC25: 4.2078 | CD25: 4.1004 | CE25: 3.993 | CF25: 3.8856 | CG25: 3.7782 | CH25: 3.6708 | CI25: 3.5634 | CJ25: =$CJ$24-(($CJ$24-$CJ$29)/5*A4) -> 3.456 | CK25: =Eingabemaske!G$19 -> 4 | CL25: Altherma 3 R W 4 kW | CM25: Altherma 3 R W 4 kW | CN25: 9 | CO25: 3.8 | CQ25: 4.3
B26: Altherma 3 R W | C26: 4 | D26: ='Altherma 3 R'!$L$8 -> 3.1 | E26: ='Altherma 3 R'!$L$9 -> 4.1 | F26: ='Altherma 3 R'!$L$10 -> 5.1 | G26: 52 | R26: =$R$24-(($R$24-$R$29)/5*A5) -> 4.294 | S26: 4.323625 | T26: 4.35325 | U26: 4.382875 | V26: 4.4125 | W26: 4.442125 | X26: 4.47175 | Y26: 4.501375 | Z26: 4.531 | AA26: 4.560625 | AB26: 4.59025 | AC26: 4.619875 | AD26: 4.6495 | AE26: 4.679125 | AF26: 4.70875 | AG26: 4.738375 | AH26: =$AH$24-(($AH$24-$AH$29)/5*A5) -> 4.768 | AI26: 4.8755 | AJ26: 4.983 | AK26: 5.0905 | AL26: =$AL$24-(($AL$24-$AL$29)/5*A5) -> 5.198 | AM26: 5.169333333 | AN26: 5.140666667 | AO26: 5.112 | AP26: 5.083333333 | AQ26: 5.054666667 | AR26: =$AR$24-(($AR$24-$AR$29)/5*A5) -> 5.026 | AS26: 5.09025 | AT26: 5.1545 | AU26: 5.21875 | AV26: 5.283 | AW26: 5.34725 | AX26: 5.4115 | AY26: 5.47575 | AZ26: =$AZ$24-(($AZ$24-$AZ$29)/5*A5) -> 5.54 | BA26: 5.5698 | BB26: 5.5996 | BC26: 5.6294 | BD26: 5.6592 | BE26: 5.689 | BF26: 5.7188 | BG26: 5.7486 | BH26: 5.7784 | BI26: 5.8082 | BJ26: =$BJ$24-(($BJ$24-$BJ$29)/5*A5) -> 5.838 | BK26: 5.7676 | BL26: 5.6972 | BM26: 5.6268 | BN26: 5.5564 | BO26: 5.486 | BP26: 5.4156 | BQ26: 5.3452 | BR26: 5.2748 | BS26: 5.2044 | BT26: =$BT$24-(($BT$24-$BT$29)/5*A5) -> 5.134 | BU26: 5.018333333 | BV26: 4.902666667 | BW26: 4.787 | BX26: 4.671333333 | BY26: 4.555666667 | BZ26: =$BZ$24-(($BZ$24-$BZ$29)/5*A5) -> 4.44 | CA26: 4.3252 | CB26: 4.2104 | CC26: 4.0956 | CD26: 3.9808 | CE26: 3.866 | CF26: 3.7512 | CG26: 3.6364 | CH26: 3.5216 | CI26: 3.4068 | CJ26: =$CJ$24-(($CJ$24-$CJ$29)/5*A5) -> 3.292 | CK26: =Eingabemaske!G$19 -> 4 | CL26: Altherma 3 R W 4 kW | CM26: Altherma 3 R W 4 kW | CN26: 9 | CO26: 3.8 | CQ26: 4.3
B27: Altherma 3 R W | C27: 4 | D27: ='Altherma 3 R'!$L$8 -> 3.1 | E27: ='Altherma 3 R'!$L$9 -> 4.1 | F27: ='Altherma 3 R'!$L$10 -> 5.1 | G27: 53 | R27: =$R$24-(($R$24-$R$29)/5*A6) -> 4.176 | S27: 4.206375 | T27: 4.23675 | U27: 4.267125 | V27: 4.2975 | W27: 4.327875 | X27: 4.35825 | Y27: 4.388625 | Z27: 4.419 | AA27: 4.449375 | AB27: 4.47975 | AC27: 4.510125 | AD27: 4.5405 | AE27: 4.570875 | AF27: 4.60125 | AG27: 4.631625 | AH27: =$AH$24-(($AH$24-$AH$29)/5*A6) -> 4.662 | AI27: 4.7745 | AJ27: 4.887 | AK27: 4.9995 | AL27: =$AL$24-(($AL$24-$AL$29)/5*A6) -> 5.112 | AM27: 5.082333333 | AN27: 5.052666667 | AO27: 5.023 | AP27: 4.993333333 | AQ27: 4.963666667 | AR27: =$AR$24-(($AR$24-$AR$29)/5*A6) -> 4.934 | AS27: 5.001 | AT27: 5.068 | AU27: 5.135 | AV27: 5.202 | AW27: 5.269 | AX27: 5.336 | AY27: 5.403 | AZ27: =$AZ$24-(($AZ$24-$AZ$29)/5*A6) -> 5.47 | BA27: 5.5032 | BB27: 5.5364 | BC27: 5.5696 | BD27: 5.6028 | BE27: 5.636 | BF27: 5.6692 | BG27: 5.7024 | BH27: 5.7356 | BI27: 5.7688 | BJ27: =$BJ$24-(($BJ$24-$BJ$29)/5*A6) -> 5.802 | BK27: 5.7304 | BL27: 5.6588 | BM27: 5.5872 | BN27: 5.5156 | BO27: 5.444 | BP27: 5.3724 | BQ27: 5.3008 | BR27: 5.2292 | BS27: 5.1576 | BT27: =$BT$24-(($BT$24-$BT$29)/5*A6) -> 5.086 | BU27: 4.963333333 | BV27: 4.840666667 | BW27: 4.718 | BX27: 4.595333333 | BY27: 4.472666667 | BZ27: =$BZ$24-(($BZ$24-$BZ$29)/5*A6) -> 4.35 | CA27: 4.2278 | CB27: 4.1056 | CC27: 3.9834 | CD27: 3.8612 | CE27: 3.739 | CF27: 3.6168 | CG27: 3.4946 | CH27: 3.3724 | CI27: 3.2502 | CJ27: =$CJ$24-(($CJ$24-$CJ$29)/5*A6) -> 3.128 | CK27: =Eingabemaske!G$19 -> 4 | CL27: Altherma 3 R W 4 kW | CM27: Altherma 3 R W 4 kW | CN27: 9 | CO27: 3.8 | CQ27: 4.3
B28: Altherma 3 R W | C28: 4 | D28: ='Altherma 3 R'!$L$8 -> 3.1 | E28: ='Altherma 3 R'!$L$9 -> 4.1 | F28: ='Altherma 3 R'!$L$10 -> 5.1 | G28: 54 | R28: =$R$24-(($R$24-$R$29)/5*A7) -> 4.058 | S28: 4.089125 | T28: 4.12025 | U28: 4.151375 | V28: 4.1825 | W28: 4.213625 | X28: 4.24475 | Y28: 4.275875 | Z28: 4.307 | AA28: 4.338125 | AB28: 4.36925 | AC28: 4.400375 | AD28: 4.4315 | AE28: 4.462625 | AF28: 4.49375 | AG28: 4.524875 | AH28: =$AH$24-(($AH$24-$AH$29)/5*A7) -> 4.556 | AI28: 4.6735 | AJ28: 4.791 | AK28: 4.9085 | AL28: =$AL$24-(($AL$24-$AL$29)/5*A7) -> 5.026 | AM28: 4.995333333 | AN28: 4.964666667 | AO28: 4.934 | AP28: 4.903333333 | AQ28: 4.872666667 | AR28: =$AR$24-(($AR$24-$AR$29)/5*A7) -> 4.842 | AS28: 4.91175 | AT28: 4.9815 | AU28: 5.05125 | AV28: 5.121 | AW28: 5.19075 | AX28: 5.2605 | AY28: 5.33025 | AZ28: =$AZ$24-(($AZ$24-$AZ$29)/5*A7) -> 5.4 | BA28: 5.4366 | BB28: 5.4732 | BC28: 5.5098 | BD28: 5.5464 | BE28: 5.583 | BF28: 5.6196 | BG28: 5.6562 | BH28: 5.6928 | BI28: 5.7294 | BJ28: =$BJ$24-(($BJ$24-$BJ$29)/5*A7) -> 5.766 | BK28: 5.6932 | BL28: 5.6204 | BM28: 5.5476 | BN28: 5.4748 | BO28: 5.402 | BP28: 5.3292 | BQ28: 5.2564 | BR28: 5.1836 | BS28: 5.1108 | BT28: =$BT$24-(($BT$24-$BT$29)/5*A7) -> 5.038 | BU28: 4.908333333 | BV28: 4.778666667 | BW28: 4.649 | BX28: 4.519333333 | BY28: 4.389666667 | BZ28: =$BZ$24-(($BZ$24-$BZ$29)/5*A7) -> 4.26 | CA28: 4.1304 | CB28: 4.0008 | CC28: 3.8712 | CD28: 3.7416 | CE28: 3.612 | CF28: 3.4824 | CG28: 3.3528 | CH28: 3.2232 | CI28: 3.0936 | CJ28: =$CJ$24-(($CJ$24-$CJ$29)/5*A7) -> 2.964 | CK28: =Eingabemaske!G$19 -> 4 | CL28: Altherma 3 R W 4 kW | CM28: Altherma 3 R W 4 kW | CN28: 9 | CO28: 3.8 | CQ28: 4.3
B29: Altherma 3 R W | C29: 4 | D29: ='Altherma 3 R'!$L$8 -> 3.1 | E29: ='Altherma 3 R'!$L$9 -> 4.1 | F29: ='Altherma 3 R'!$L$10 -> 5.1 | G29: 55 | R29: 3.94 | S29: 3.971875 | T29: 4.00375 | U29: 4.035625 | V29: 4.0675 | W29: 4.099375 | X29: 4.13125 | Y29: 4.163125 | Z29: 4.195 | AA29: 4.226875 | AB29: 4.25875 | AC29: 4.290625 | AD29: 4.3225 | AE29: 4.354375 | AF29: 4.38625 | AG29: 4.418125 | AH29: ='Altherma 3 R'!H9 -> 4.45 | AI29: 4.5725 | AJ29: 4.695 | AK29: 4.8175 | AL29: ='Altherma 3 R'!H11 -> 4.94 | AM29: 4.908333333 | AN29: 4.876666667 | AO29: 4.845 | AP29: 4.813333333 | AQ29: 4.781666667 | AR29: ='Altherma 3 R'!H10 -> 4.75 | AS29: 4.8225 | AT29: 4.895 | AU29: 4.9675 | AV29: 5.04 | AW29: 5.1125 | AX29: 5.185 | AY29: 5.2575 | AZ29: ='Altherma 3 R'!H12 -> 5.33 | BA29: 5.37 | BB29: 5.41 | BC29: 5.45 | BD29: 5.49 | BE29: 5.53 | BF29: 5.57 | BG29: 5.61 | BH29: 5.65 | BI29: 5.69 | BJ29: ='Altherma 3 R'!H13 -> 5.73 | BK29: 5.656 | BL29: 5.582 | BM29: 5.508 | BN29: 5.434 | BO29: 5.36 | BP29: 5.286 | BQ29: 5.212 | BR29: 5.138 | BS29: 5.064 | BT29: ='Altherma 3 R'!H14 -> 4.99 | BU29: 4.853333333 | BV29: 4.716666667 | BW29: 4.58 | BX29: 4.443333333 | BY29: 4.306666667 | BZ29: ='Altherma 3 R'!H15 -> 4.17 | CA29: 4.033 | CB29: 3.896 | CC29: 3.759 | CD29: 3.622 | CE29: 3.485 | CF29: 3.348 | CG29: 3.211 | CH29: 3.074 | CI29: 2.937 | CJ29: ='Altherma 3 R'!H16 -> 2.8 | CK29: =Eingabemaske!G$19 -> 4 | CL29: Altherma 3 R W 4 kW | CM29: Altherma 3 R W 4 kW | CN29: 9 | CO29: 3.8 | CQ29: 4.3
B30: Altherma 3 R W | C30: 4 | D30: ='Altherma 3 R'!$L$8 -> 3.1 | E30: ='Altherma 3 R'!$L$9 -> 4.1 | F30: ='Altherma 3 R'!$L$10 -> 5.1 | G30: 56 | AL30: =$AL$29-(($AL$29-$AL$34)/5*A4) -> 4.818 | AM30: 4.783666667 | AN30: 4.749333333 | AO30: 4.715 | AP30: 4.680666667 | AQ30: 4.646333333 | AR30: =$AR$29-(($AR$29-$AR$34)/5*A4) -> 4.612 | AS30: 4.69 | AT30: 4.768 | AU30: 4.846 | AV30: 4.924 | AW30: 5.002 | AX30: 5.08 | AY30: 5.158 | AZ30: =$AZ$29-(($AZ$29-$AZ$34)/5*A4) -> 5.236 | BA30: 5.2824 | BB30: 5.3288 | BC30: 5.3752 | BD30: 5.4216 | BE30: 5.468 | BF30: 5.5144 | BG30: 5.5608 | BH30: 5.6072 | BI30: 5.6536 | BJ30: =$BJ$29-(($BJ$29-$BJ$34)/5*A4) -> 5.7 | BK30: 5.6276 | BL30: 5.5552 | BM30: 5.4828 | BN30: 5.4104 | BO30: 5.338 | BP30: 5.2656 | BQ30: 5.1932 | BR30: 5.1208 | BS30: 5.0484 | BT30: =$BT$29-(($BT$29-$BT$34)/5*A4) -> 4.976 | BU30: 4.824333333 | BV30: 4.672666667 | BW30: 4.521 | BX30: 4.369333333 | BY30: 4.217666667 | BZ30: =$BZ$29-(($BZ$29-$BZ$34)/5*A4) -> 4.066 | CA30: 3.9198 | CB30: 3.7736 | CC30: 3.6274 | CD30: 3.4812 | CE30: 3.335 | CF30: 3.1888 | CG30: 3.0426 | CH30: 2.8964 | CI30: 2.7502 | CJ30: =$CJ$29-(($CJ$29-$CJ$34)/5*A4) -> 2.604 | CK30: =Eingabemaske!G$19 -> 4 | CL30: Altherma 3 R W 4 kW | CM30: Altherma 3 R W 4 kW | CN30: 9 | CO30: 3.8 | CQ30: 4.3
B31: Altherma 3 R W | C31: 4 | D31: ='Altherma 3 R'!$L$8 -> 3.1 | E31: ='Altherma 3 R'!$L$9 -> 4.1 | F31: ='Altherma 3 R'!$L$10 -> 5.1 | G31: 57 | AL31: =$AL$29-(($AL$29-$AL$34)/5*A5) -> 4.696 | AM31: 4.659 | AN31: 4.622 | AO31: 4.585 | AP31: 4.548 | AQ31: 4.511 | AR31: =$AR$29-(($AR$29-$AR$34)/5*A5) -> 4.474 | AS31: 4.5575 | AT31: 4.641 | AU31: 4.7245 | AV31: 4.808 | AW31: 4.8915 | AX31: 4.975 | AY31: 5.0585 | AZ31: =$AZ$29-(($AZ$29-$AZ$34)/5*A5) -> 5.142 | BA31: 5.1948 | BB31: 5.2476 | BC31: 5.3004 | BD31: 5.3532 | BE31: 5.406 | BF31: 5.4588 | BG31: 5.5116 | BH31: 5.5644 | BI31: 5.6172 | BJ31: =$BJ$29-(($BJ$29-$BJ$34)/5*A5) -> 5.67 | BK31: 5.5992 | BL31: 5.5284 | BM31: 5.4576 | BN31: 5.3868 | BO31: 5.316 | BP31: 5.2452 | BQ31: 5.1744 | BR31: 5.1036 | BS31: 5.0328 | BT31: =$BT$29-(($BT$29-$BT$34)/5*A5) -> 4.962 | BU31: 4.795333333 | BV31: 4.628666667 | BW31: 4.462 | BX31: 4.295333333 | BY31: 4.128666667 | BZ31: =$BZ$29-(($BZ$29-$BZ$34)/5*A5) -> 3.962 | CA31: 3.8066 | CB31: 3.6512 | CC31: 3.4958 | CD31: 3.3404 | CE31: 3.185 | CF31: 3.0296 | CG31: 2.8742 | CH31: 2.7188 | CI31: 2.5634 | CJ31: =$CJ$29-(($CJ$29-$CJ$34)/5*A5) -> 2.408 | CK31: =Eingabemaske!G$19 -> 4 | CL31: Altherma 3 R W 4 kW | CM31: Altherma 3 R W 4 kW | CN31: 9 | CO31: 3.8 | CQ31: 4.3
B32: Altherma 3 R W | C32: 4 | D32: ='Altherma 3 R'!$L$8 -> 3.1 | E32: ='Altherma 3 R'!$L$9 -> 4.1 | F32: ='Altherma 3 R'!$L$10 -> 5.1 | G32: 58 | AL32: =$AL$29-(($AL$29-$AL$34)/5*A6) -> 4.574 | AM32: 4.534333333 | AN32: 4.494666667 | AO32: 4.455 | AP32: 4.415333333 | AQ32: 4.375666667 | AR32: =$AR$29-(($AR$29-$AR$34)/5*A6) -> 4.336 | AS32: 4.425 | AT32: 4.514 | AU32: 4.603 | AV32: 4.692 | AW32: 4.781 | AX32: 4.87 | AY32: 4.959 | AZ32: =$AZ$29-(($AZ$29-$AZ$34)/5*A6) -> 5.048 | BA32: 5.1072 | BB32: 5.1664 | BC32: 5.2256 | BD32: 5.2848 | BE32: 5.344 | BF32: 5.4032 | BG32: 5.4624 | BH32: 5.5216 | BI32: 5.5808 | BJ32: =$BJ$29-(($BJ$29-$BJ$34)/5*A6) -> 5.64 | BK32: 5.5708 | BL32: 5.5016 | BM32: 5.4324 | BN32: 5.3632 | BO32: 5.294 | BP32: 5.2248 | BQ32: 5.1556 | BR32: 5.0864 | BS32: 5.0172 | BT32: =$BT$29-(($BT$29-$BT$34)/5*A6) -> 4.948 | BU32: 4.766333333 | BV32: 4.584666667 | BW32: 4.403 | BX32: 4.221333333 | BY32: 4.039666667 | BZ32: =$BZ$29-(($BZ$29-$BZ$34)/5*A6) -> 3.858 | CA32: 3.6934 | CB32: 3.5288 | CC32: 3.3642 | CD32: 3.1996 | CE32: 3.035 | CF32: 2.8704 | CG32: 2.7058 | CH32: 2.5412 | CI32: 2.3766 | CJ32: =$CJ$29-(($CJ$29-$CJ$34)/5*A6) -> 2.212 | CK32: =Eingabemaske!G$19 -> 4 | CL32: Altherma 3 R W 4 kW | CM32: Altherma 3 R W 4 kW | CN32: 9 | CO32: 3.8 | CQ32: 4.3
B33: Altherma 3 R W | C33: 4 | D33: ='Altherma 3 R'!$L$8 -> 3.1 | E33: ='Altherma 3 R'!$L$9 -> 4.1 | F33: ='Altherma 3 R'!$L$10 -> 5.1 | G33: 59 | AL33: =$AL$29-(($AL$29-$AL$34)/5*A7) -> 4.452 | AM33: 4.409666667 | AN33: 4.367333333 | AO33: 4.325 | AP33: 4.282666667 | AQ33: 4.240333333 | AR33: =$AR$29-(($AR$29-$AR$34)/5*A7) -> 4.198 | AS33: 4.2925 | AT33: 4.387 | AU33: 4.4815 | AV33: 4.576 | AW33: 4.6705 | AX33: 4.765 | AY33: 4.8595 | AZ33: =$AZ$29-(($AZ$29-$AZ$34)/5*A7) -> 4.954 | BA33: 5.0196 | BB33: 5.0852 | BC33: 5.1508 | BD33: 5.2164 | BE33: 5.282 | BF33: 5.3476 | BG33: 5.4132 | BH33: 5.4788 | BI33: 5.5444 | BJ33: =$BJ$29-(($BJ$29-$BJ$34)/5*A7) -> 5.61 | BK33: 5.5424 | BL33: 5.4748 | BM33: 5.4072 | BN33: 5.3396 | BO33: 5.272 | BP33: 5.2044 | BQ33: 5.1368 | BR33: 5.0692 | BS33: 5.0016 | BT33: =$BT$29-(($BT$29-$BT$34)/5*A7) -> 4.934 | BU33: 4.737333333 | BV33: 4.540666667 | BW33: 4.344 | BX33: 4.147333333 | BY33: 3.950666667 | BZ33: =$BZ$29-(($BZ$29-$BZ$34)/5*A7) -> 3.754 | CA33: 3.5802 | CB33: 3.4064 | CC33: 3.2326 | CD33: 3.0588 | CE33: 2.885 | CF33: 2.7112 | CG33: 2.5374 | CH33: 2.3636 | CI33: 2.1898 | CJ33: =$CJ$29-(($CJ$29-$CJ$34)/5*A7) -> 2.016 | CK33: =Eingabemaske!G$19 -> 4 | CL33: Altherma 3 R W 4 kW | CM33: Altherma 3 R W 4 kW | CN33: 9 | CO33: 3.8 | CQ33: 4.3
B34: Altherma 3 R W | C34: 4 | D34: ='Altherma 3 R'!$L$8 -> 3.1 | E34: ='Altherma 3 R'!$L$9 -> 4.1 | F34: ='Altherma 3 R'!$L$10 -> 5.1 | G34: 60 | AL34: ='Altherma 3 R'!I11 -> 4.33 | AM34: 4.285 | AN34: 4.24 | AO34: 4.195 | AP34: 4.15 | AQ34: 4.105 | AR34: ='Altherma 3 R'!I10 -> 4.06 | AS34: 4.16 | AT34: 4.26 | AU34: 4.36 | AV34: 4.46 | AW34: 4.56 | AX34: 4.66 | AY34: 4.76 | AZ34: ='Altherma 3 R'!I12 -> 4.86 | BA34: 4.932 | BB34: 5.004 | BC34: 5.076 | BD34: 5.148 | BE34: 5.22 | BF34: 5.292 | BG34: 5.364 | BH34: 5.436 | BI34: 5.508 | BJ34: ='Altherma 3 R'!I13 -> 5.58 | BK34: 5.514 | BL34: 5.448 | BM34: 5.382 | BN34: 5.316 | BO34: 5.25 | BP34: 5.184 | BQ34: 5.118 | BR34: 5.052 | BS34: 4.986 | BT34: ='Altherma 3 R'!I14 -> 4.92 | BU34: 4.708333333 | BV34: 4.496666667 | BW34: 4.285 | BX34: 4.073333333 | BY34: 3.861666667 | BZ34: ='Altherma 3 R'!I15 -> 3.65 | CA34: 3.467 | CB34: 3.284 | CC34: 3.101 | CD34: 2.918 | CE34: 2.735 | CF34: 2.552 | CG34: 2.369 | CH34: 2.186 | CI34: 2.003 | CJ34: ='Altherma 3 R'!I16 -> 1.82 | CK34: =Eingabemaske!G$19 -> 4 | CL34: Altherma 3 R W 4 kW | CM34: Altherma 3 R W 4 kW | CN34: 9 | CO34: 3.8 | CQ34: 4.3
B35: Altherma 3 R W | C35: 4 | D35: ='Altherma 3 R'!$L$8 -> 3.1 | E35: ='Altherma 3 R'!$L$9 -> 4.1 | F35: ='Altherma 3 R'!$L$10 -> 5.1 | G35: 61 | CK35: =Eingabemaske!G$19 -> 4 | CL35: Altherma 3 R W 4 kW | CM35: Altherma 3 R W 4 kW | CN35: 9 | CO35: 3.8 | CQ35: 4.3
B36: Altherma 3 R W | C36: 4 | D36: ='Altherma 3 R'!$L$8 -> 3.1 | E36: ='Altherma 3 R'!$L$9 -> 4.1 | F36: ='Altherma 3 R'!$L$10 -> 5.1 | G36: 62 | CK36: =Eingabemaske!G$19 -> 4 | CL36: Altherma 3 R W 4 kW | CM36: Altherma 3 R W 4 kW | CN36: 9 | CO36: 3.8 | CQ36: 4.3
B37: Altherma 3 R W | C37: 4 | D37: ='Altherma 3 R'!$L$8 -> 3.1 | E37: ='Altherma 3 R'!$L$9 -> 4.1 | F37: ='Altherma 3 R'!$L$10 -> 5.1 | G37: 63 | CK37: =Eingabemaske!G$19 -> 4 | CL37: Altherma 3 R W 4 kW | CM37: Altherma 3 R W 4 kW | CN37: 9 | CO37: 3.8 | CQ37: 4.3
B38: Altherma 3 R W | C38: 4 | D38: ='Altherma 3 R'!$L$8 -> 3.1 | E38: ='Altherma 3 R'!$L$9 -> 4.1 | F38: ='Altherma 3 R'!$L$10 -> 5.1 | G38: 64 | CK38: =Eingabemaske!G$19 -> 4 | CL38: Altherma 3 R W 4 kW | CM38: Altherma 3 R W 4 kW | CN38: 9 | CO38: 3.8 | CQ38: 4.3
B39: Altherma 3 R W | C39: 4 | D39: ='Altherma 3 R'!$L$8 -> 3.1 | E39: ='Altherma 3 R'!$L$9 -> 4.1 | F39: ='Altherma 3 R'!$L$10 -> 5.1 | G39: 65 | CK39: =Eingabemaske!G$19 -> 4 | CL39: Altherma 3 R W 4 kW | CM39: Altherma 3 R W 4 kW | CN39: 9 | CO39: 3.8 | CQ39: 4.3
B40: Altherma 3 R W | C40: 4 | D40: ='Altherma 3 R'!$L$8 -> 3.1 | E40: ='Altherma 3 R'!$L$9 -> 4.1 | F40: ='Altherma 3 R'!$L$10 -> 5.1 | G40: 66 | CK40: =Eingabemaske!G$19 -> 4 | CL40: Altherma 3 R W 4 kW | CM40: Altherma 3 R W 4 kW | CN40: 9 | CO40: 3.8 | CQ40: 4.3
B41: Altherma 3 R W | C41: 4 | D41: ='Altherma 3 R'!$L$8 -> 3.1 | E41: ='Altherma 3 R'!$L$9 -> 4.1 | F41: ='Altherma 3 R'!$L$10 -> 5.1 | G41: 67 | CK41: =Eingabemaske!G$19 -> 4 | CL41: Altherma 3 R W 4 kW | CM41: Altherma 3 R W 4 kW | CN41: 9 | CO41: 3.8 | CQ41: 4.3
B42: Altherma 3 R W | C42: 4 | D42: ='Altherma 3 R'!$L$8 -> 3.1 | E42: ='Altherma 3 R'!$L$9 -> 4.1 | F42: ='Altherma 3 R'!$L$10 -> 5.1 | G42: 68 | CK42: =Eingabemaske!G$19 -> 4 | CL42: Altherma 3 R W 4 kW | CM42: Altherma 3 R W 4 kW | CN42: 9 | CO42: 3.8 | CQ42: 4.3
B43: Altherma 3 R W | C43: 4 | D43: ='Altherma 3 R'!$L$8 -> 3.1 | E43: ='Altherma 3 R'!$L$9 -> 4.1 | F43: ='Altherma 3 R'!$L$10 -> 5.1 | G43: 69 | CK43: =Eingabemaske!G$19 -> 4 | CL43: Altherma 3 R W 4 kW | CM43: Altherma 3 R W 4 kW | CN43: 9 | CO43: 3.8 | CQ43: 4.3
B44: Altherma 3 R W | C44: 4 | D44: ='Altherma 3 R'!$L$8 -> 3.1 | E44: ='Altherma 3 R'!$L$9 -> 4.1 | F44: ='Altherma 3 R'!$L$10 -> 5.1 | G44: 70 | CK44: =Eingabemaske!G$19 -> 4 | CL44: Altherma 3 R W 4 kW | CM44: Altherma 3 R W 4 kW | CN44: 9 | CO44: 3.8 | CQ44: 4.3
B45: Altherma 3 R W | C45: 7 | D45: 3.1 | E45: 4.29 | F45: 5.23 | G45: 30 | H45: =H4 -> 4.71 | I45: =I4 -> 4.758 | J45: 4.806 | K45: 4.854 | L45: 4.902 | M45: 4.95 | N45: 4.998 | O45: 5.046 | P45: 5.094 | Q45: 5.142 | R45: =R4 -> 5.19 | S45: =S4 -> 5.2375 | T45: 5.285 | U45: 5.3325 | V45: 5.38 | W45: 5.4275 | X45: 5.475 | Y45: 5.5225 | Z45: 5.57 | AA45: 5.6175 | AB45: 5.665 | AC45: 5.7125 | AD45: 5.76 | AE45: 5.8075 | AF45: 5.855 | AG45: 5.9025 | AH45: =AH4 -> 5.95 | AI45: 6.035 | AJ45: 6.12 | AK45: 6.205 | AL45: 6.29 | AM45: 6.268333333 | AN45: 6.246666667 | AO45: 6.225 | AP45: 6.203333333 | AQ45: 6.181666667 | AR45: =AR4 -> 6.16 | AS45: 6.21125 | AT45: 6.2625 | AU45: 6.31375 | AV45: 6.365 | AW45: 6.41625 | AX45: 6.4675 | AY45: 6.51875 | AZ45: 6.57 | BA45: 6.578 | BB45: 6.586 | BC45: 6.594 | BD45: 6.602 | BE45: 6.61 | BF45: 6.618 | BG45: 6.626 | BH45: 6.634 | BI45: 6.642 | BJ45: =BJ4 -> 6.65 | BK45: 6.617 | BL45: 6.584 | BM45: 6.551 | BN45: 6.518 | BO45: 6.485 | BP45: 6.452 | BQ45: 6.419 | BR45: 6.386 | BS45: 6.353 | BT45: =BT4 -> 6.32 | BU45: 6.273333333 | BV45: 6.226666667 | BW45: 6.18 | BX45: 6.133333333 | BY45: 6.086666667 | BZ45: 6.04 | CA45: 5.985 | CB45: 5.93 | CC45: 5.875 | CD45: 5.82 | CE45: 5.765 | CF45: 5.71 | CG45: 5.655 | CH45: 5.6 | CI45: 5.545 | CJ45: =CJ4 -> 5.49 | CK45: 4 | CL45: Altherma 3 R W 07 | CM45: Altherma 3 R W 07 | CN45: 9 | CO45: 3.85 | CQ45: 4.36
B46: Altherma 3 R W | C46: 7 | D46: 3.1 | E46: 4.29 | F46: 5.23 | G46: 31 | H46: =H5 -> 4.702 | I46: =I5 -> 4.7492 | J46: 4.7964 | K46: 4.8436 | L46: 4.8908 | M46: 4.938 | N46: 4.9852 | O46: 5.0324 | P46: 5.0796 | Q46: 5.1268 | R46: 5.174 | S46: =S5 -> 5.220625 | T46: 5.26725 | U46: 5.313875 | V46: 5.3605 | W46: 5.407125 | X46: 5.45375 | Y46: 5.500375 | Z46: 5.547 | AA46: 5.593625 | AB46: 5.64025 | AC46: 5.686875 | AD46: 5.7335 | AE46: 5.780125 | AF46: 5.82675 | AG46: 5.873375 | AH46: =AH5 -> 5.92 | AI46: 6.0045 | AJ46: 6.089 | AK46: 6.1735 | AL46: 6.258 | AM46: 6.236333333 | AN46: 6.214666667 | AO46: 6.193 | AP46: 6.171333333 | AQ46: 6.149666667 | AR46: =AR5 -> 6.128 | AS46: 6.17875 | AT46: 6.2295 | AU46: 6.28025 | AV46: 6.331 | AW46: 6.38175 | AX46: 6.4325 | AY46: 6.48325 | AZ46: 6.534 | BA46: 6.5408 | BB46: 6.5476 | BC46: 6.5544 | BD46: 6.5612 | BE46: 6.568 | BF46: 6.5748 | BG46: 6.5816 | BH46: 6.5884 | BI46: 6.5952 | BJ46: =BJ5 -> 6.602 | BK46: 6.5688 | BL46: 6.5356 | BM46: 6.5024 | BN46: 6.4692 | BO46: 6.436 | BP46: 6.4028 | BQ46: 6.3696 | BR46: 6.3364 | BS46: 6.3032 | BT46: =BT5 -> 6.27 | BU46: 6.221 | BV46: 6.172 | BW46: 6.123 | BX46: 6.074 | BY46: 6.025 | BZ46: 5.976 | CA46: 5.9206 | CB46: 5.8652 | CC46: 5.8098 | CD46: 5.7544 | CE46: 5.699 | CF46: 5.6436 | CG46: 5.5882 | CH46: 5.5328 | CI46: 5.4774 | CJ46: =CJ5 -> 5.422 | CK46: 4 | CL46: Altherma 3 R W 07 | CM46: Altherma 3 R W 07 | CN46: 9 | CO46: 3.85 | CQ46: 4.36
B47: Altherma 3 R W | C47: 7 | D47: 3.1 | E47: 4.29 | F47: 5.23 | G47: 32 | H47: 4.694 | I47: 4.7404 | J47: 4.7868 | K47: 4.8332 | L47: 4.8796 | M47: 4.926 | N47: 4.9724 | O47: 5.0188 | P47: 5.0652 | Q47: 5.1116 | R47: 5.158 | S47: =S6 -> 5.20375 | T47: 5.2495 | U47: 5.29525 | V47: 5.341 | W47: 5.38675 | X47: 5.4325 | Y47: 5.47825 | Z47: 5.524 | AA47: 5.56975 | AB47: 5.6155 | AC47: 5.66125 | AD47: 5.707 | AE47: 5.75275 | AF47: 5.7985 | AG47: 5.84425 | AH47: =AH6 -> 5.89 | AI47: 5.974 | AJ47: 6.058 | AK47: 6.142 | AL47: 6.226 | AM47: 6.204333333 | AN47: 6.182666667 | AO47: 6.161 | AP47: 6.139333333 | AQ47: 6.117666667 | AR47: =AR6 -> 6.096 | AS47: 6.14625 | AT47: 6.1965 | AU47: 6.24675 | AV47: 6.297 | AW47: 6.34725 | AX47: 6.3975 | AY47: 6.44775 | AZ47: 6.498 | BA47: 6.5036 | BB47: 6.5092 | BC47: 6.5148 | BD47: 6.5204 | BE47: 6.526 | BF47: 6.5316 | BG47: 6.5372 | BH47: 6.5428 | BI47: 6.5484 | BJ47: =BJ6 -> 6.554 | BK47: 6.5206 | BL47: 6.4872 | BM47: 6.4538 | BN47: 6.4204 | BO47: 6.387 | BP47: 6.3536 | BQ47: 6.3202 | BR47: 6.2868 | BS47: 6.2534 | BT47: =BT6 -> 6.22 | BU47: 6.168666667 | BV47: 6.117333333 | BW47: 6.066 | BX47: 6.014666667 | BY47: 5.963333333 | BZ47: 5.912 | CA47: 5.8562 | CB47: 5.8004 | CC47: 5.7446 | CD47: 5.6888 | CE47: 5.633 | CF47: 5.5772 | CG47: 5.5214 | CH47: 5.4656 | CI47: 5.4098 | CJ47: =CJ6 -> 5.354 | CK47: 4 | CL47: Altherma 3 R W 07 | CM47: Altherma 3 R W 07 | CN47: 9 | CO47: 3.85 | CQ47: 4.36
B48: Altherma 3 R W | C48: 7 | D48: 3.1 | E48: 4.29 | F48: 5.23 | G48: 33 | H48: 4.686 | I48: 4.7316 | J48: 4.7772 | K48: 4.8228 | L48: 4.8684 | M48: 4.914 | N48: 4.9596 | O48: 5.0052 | P48: 5.0508 | Q48: 5.0964 | R48: 5.142 | S48: =S7 -> 5.186875 | T48: 5.23175 | U48: 5.276625 | V48: 5.3215 | W48: 5.366375 | X48: 5.41125 | Y48: 5.456125 | Z48: 5.501 | AA48: 5.545875 | AB48: 5.59075 | AC48: 5.635625 | AD48: 5.6805 | AE48: 5.725375 | AF48: 5.77025 | AG48: 5.815125 | AH48: =AH7 -> 5.86 | AI48: 5.9435 | AJ48: 6.027 | AK48: 6.1105 | AL48: 6.194 | AM48: 6.172333333 | AN48: 6.150666667 | AO48: 6.129 | AP48: 6.107333333 | AQ48: 6.085666667 | AR48: =AR7 -> 6.064 | AS48: 6.11375 | AT48: 6.1635 | AU48: 6.21325 | AV48: 6.263 | AW48: 6.31275 | AX48: 6.3625 | AY48: 6.41225 | AZ48: 6.462 | BA48: 6.4664 | BB48: 6.4708 | BC48: 6.4752 | BD48: 6.4796 | BE48: 6.484 | BF48: 6.4884 | BG48: 6.4928 | BH48: 6.4972 | BI48: 6.5016 | BJ48: =BJ7 -> 6.506 | BK48: 6.4724 | BL48: 6.4388 | BM48: 6.4052 | BN48: 6.3716 | BO48: 6.338 | BP48: 6.3044 | BQ48: 6.2708 | BR48: 6.2372 | BS48: 6.2036 | BT48: =BT7 -> 6.17 | BU48: 6.116333333 | BV48: 6.062666667 | BW48: 6.009 | BX48: 5.955333333 | BY48: 5.901666667 | BZ48: 5.848 | CA48: 5.7918 | CB48: 5.7356 | CC48: 5.6794 | CD48: 5.6232 | CE48: 5.567 | CF48: 5.5108 | CG48: 5.4546 | CH48: 5.3984 | CI48: 5.3422 | CJ48: =CJ7 -> 5.286 | CK48: 4 | CL48: Altherma 3 R W 07 | CM48: Altherma 3 R W 07 | CN48: 9 | CO48: 3.85 | CQ48: 4.36
B49: Altherma 3 R W | C49: 7 | D49: 3.1 | E49: 4.29 | F49: 5.23 | G49: 34 | H49: 4.678 | I49: 4.7228 | J49: 4.7676 | K49: 4.8124 | L49: 4.8572 | M49: 4.902 | N49: 4.9468 | O49: 4.9916 | P49: 5.0364 | Q49: 5.0812 | R49: 5.126 | S49: =S8 -> 5.17 | T49: 5.214 | U49: 5.258 | V49: 5.302 | W49: 5.346 | X49: 5.39 | Y49: 5.434 | Z49: 5.478 | AA49: 5.522 | AB49: 5.566 | AC49: 5.61 | AD49: 5.654 | AE49: 5.698 | AF49: 5.742 | AG49: 5.786 | AH49: =AH8 -> 5.83 | AI49: 5.913 | AJ49: 5.996 | AK49: 6.079 | AL49: 6.162 | AM49: 6.140333333 | AN49: 6.118666667 | AO49: 6.097 | AP49: 6.075333333 | AQ49: 6.053666667 | AR49: =AR8 -> 6.032 | AS49: 6.08125 | AT49: 6.1305 | AU49: 6.17975 | AV49: 6.229 | AW49: 6.27825 | AX49: 6.3275 | AY49: 6.37675 | AZ49: 6.426 | BA49: 6.4292 | BB49: 6.4324 | BC49: 6.4356 | BD49: 6.4388 | BE49: 6.442 | BF49: 6.4452 | BG49: 6.4484 | BH49: 6.4516 | BI49: 6.4548 | BJ49: =BJ8 -> 6.458 | BK49: 6.4242 | BL49: 6.3904 | BM49: 6.3566 | BN49: 6.3228 | BO49: 6.289 | BP49: 6.2552 | BQ49: 6.2214 | BR49: 6.1876 | BS49: 6.1538 | BT49: =BT8 -> 6.12 | BU49: 6.064 | BV49: 6.008 | BW49: 5.952 | BX49: 5.896 | BY49: 5.84 | BZ49: 5.784 | CA49: 5.7274 | CB49: 5.6708 | CC49: 5.6142 | CD49: 5.5576 | CE49: 5.501 | CF49: 5.4444 | CG49: 5.3878 | CH49: 5.3312 | CI49: 5.2746 | CJ49: =CJ8 -> 5.218 | CK49: 4 | CL49: Altherma 3 R W 07 | CM49: Altherma 3 R W 07 | CN49: 9 | CO49: 3.85 | CQ49: 4.36
B50: Altherma 3 R W | C50: 7 | D50: 3.1 | E50: 4.29 | F50: 5.23 | G50: 35 | H50: 4.67 | I50: 4.714 | J50: 4.758 | K50: 4.802 | L50: 4.846 | M50: 4.89 | N50: 4.934 | O50: 4.978 | P50: 5.022 | Q50: 5.066 | R50: 5.11 | S50: =S9 -> 5.153125 | T50: 5.19625 | U50: 5.239375 | V50: 5.2825 | W50: 5.325625 | X50: 5.36875 | Y50: 5.411875 | Z50: 5.455 | AA50: 5.498125 | AB50: 5.54125 | AC50: 5.584375 | AD50: 5.6275 | AE50: 5.670625 | AF50: 5.71375 | AG50: 5.756875 | AH50: =AH9 -> 5.8 | AI50: 5.8825 | AJ50: 5.965 | AK50: 6.0475 | AL50: 6.13 | AM50: 6.108333333 | AN50: 6.086666667 | AO50: 6.065 | AP50: 6.043333333 | AQ50: 6.021666667 | AR50: =AR9 -> 6 | AS50: 6.04875 | AT50: 6.0975 | AU50: 6.14625 | AV50: 6.195 | AW50: 6.24375 | AX50: 6.2925 | AY50: 6.34125 | AZ50: 6.39 | BA50: 6.392 | BB50: 6.394 | BC50: 6.396 | BD50: 6.398 | BE50: 6.4 | BF50: 6.402 | BG50: 6.404 | BH50: 6.406 | BI50: 6.408 | BJ50: =BJ9 -> 6.41 | BK50: 6.376 | BL50: 6.342 | BM50: 6.308 | BN50: 6.274 | BO50: 6.24 | BP50: 6.206 | BQ50: 6.172 | BR50: 6.138 | BS50: 6.104 | BT50: =BT9 -> 6.07 | BU50: 6.011666667 | BV50: 5.953333333 | BW50: 5.895 | BX50: 5.836666667 | BY50: 5.778333333 | BZ50: 5.72 | CA50: 5.663 | CB50: 5.606 | CC50: 5.549 | CD50: 5.492 | CE50: 5.435 | CF50: 5.378 | CG50: 5.321 | CH50: 5.264 | CI50: 5.207 | CJ50: =CJ9 -> 5.15 | CK50: 4 | CL50: Altherma 3 R W 07 | CM50: Altherma 3 R W 07 | CN50: 9 | CO50: 3.85 | CQ50: 4.36
B51: Altherma 3 R W | C51: 7 | D51: 3.1 | E51: 4.29 | F51: 5.23 | G51: 36 | H51: 4.664 | I51: =I10 -> 4.707 | J51: 4.75 | K51: 4.793 | L51: 4.836 | M51: 4.879 | N51: 4.922 | O51: 4.965 | P51: 5.008 | Q51: 5.051 | R51: 5.094 | S51: =S10 -> 5.13625 | T51: 5.1785 | U51: 5.22075 | V51: 5.263 | W51: 5.30525 | X51: 5.3475 | Y51: 5.38975 | Z51: 5.432 | AA51: 5.47425 | AB51: 5.5165 | AC51: 5.55875 | AD51: 5.601 | AE51: 5.64325 | AF51: 5.6855 | AG51: 5.72775 | AH51: =AH10 -> 5.77 | AI51: 5.8515 | AJ51: 5.933 | AK51: 6.0145 | AL51: 6.096 | AM51: 6.074666667 | AN51: 6.053333333 | AO51: 6.032 | AP51: 6.010666667 | AQ51: 5.989333333 | AR51: =AR10 -> 5.968 | AS51: 6.01625 | AT51: 6.0645 | AU51: 6.11275 | AV51: 6.161 | AW51: 6.20925 | AX51: 6.2575 | AY51: 6.30575 | AZ51: 6.354 | BA51: 6.3564 | BB51: 6.3588 | BC51: 6.3612 | BD51: 6.3636 | BE51: 6.366 | BF51: 6.3684 | BG51: 6.3708 | BH51: 6.3732 | BI51: 6.3756 | BJ51: =BJ10 -> 6.378 | BK51: 6.341 | BL51: 6.304 | BM51: 6.267 | BN51: 6.23 | BO51: 6.193 | BP51: 6.156 | BQ51: 6.119 | BR51: 6.082 | BS51: 6.045 | BT51: =BT10 -> 6.008 | BU51: 5.949333333 | BV51: 5.890666667 | BW51: 5.832 | BX51: 5.773333333 | BY51: 5.714666667 | BZ51: 5.656 | CA51: 5.5984 | CB51: 5.5408 | CC51: 5.4832 | CD51: 5.4256 | CE51: 5.368 | CF51: 5.3104 | CG51: 5.2528 | CH51: 5.1952 | CI51: 5.1376 | CJ51: =CJ10 -> 5.08 | CK51: 4 | CL51: Altherma 3 R W 07 | CM51: Altherma 3 R W 07 | CN51: 9 | CO51: 3.85 | CQ51: 4.36
B52: Altherma 3 R W | C52: 7 | D52: 3.1 | E52: 4.29 | F52: 5.23 | G52: 37 | H52: 4.658 | I52: 4.7 | J52: 4.742 | K52: 4.784 | L52: 4.826 | M52: 4.868 | N52: 4.91 | O52: 4.952 | P52: 4.994 | Q52: 5.036 | R52: 5.078 | S52: =S11 -> 5.119375 | T52: 5.16075 | U52: 5.202125 | V52: 5.2435 | W52: 5.284875 | X52: 5.32625 | Y52: 5.367625 | Z52: 5.409 | AA52: 5.450375 | AB52: 5.49175 | AC52: 5.533125 | AD52: 5.5745 | AE52: 5.615875 | AF52: 5.65725 | AG52: 5.698625 | AH52: =AH11 -> 5.74 | AI52: 5.8205 | AJ52: 5.901 | AK52: 5.9815 | AL52: 6.062 | AM52: 6.041 | AN52: 6.02 | AO52: 5.999 | AP52: 5.978 | AQ52: 5.957 | AR52: =AR11 -> 5.936 | AS52: 5.98375 | AT52: 6.0315 | AU52: 6.07925 | AV52: 6.127 | AW52: 6.17475 | AX52: 6.2225 | AY52: 6.27025 | AZ52: 6.318 | BA52: 6.3208 | BB52: 6.3236 | BC52: 6.3264 | BD52: 6.3292 | BE52: 6.332 | BF52: 6.3348 | BG52: 6.3376 | BH52: 6.3404 | BI52: 6.3432 | BJ52: =BJ11 -> 6.346 | BK52: 6.306 | BL52: 6.266 | BM52: 6.226 | BN52: 6.186 | BO52: 6.146 | BP52: 6.106 | BQ52: 6.066 | BR52: 6.026 | BS52: 5.986 | BT52: =BT11 -> 5.946 | BU52: 5.887 | BV52: 5.828 | BW52: 5.769 | BX52: 5.71 | BY52: 5.651 | BZ52: 5.592 | CA52: 5.5338 | CB52: 5.4756 | CC52: 5.4174 | CD52: 5.3592 | CE52: 5.301 | CF52: 5.2428 | CG52: 5.1846 | CH52: 5.1264 | CI52: 5.0682 | CJ52: =CJ11 -> 5.01 | CK52: 4 | CL52: Altherma 3 R W 07 | CM52: Altherma 3 R W 07 | CN52: 9 | CO52: 3.85 | CQ52: 4.36
B53: Altherma 3 R W | C53: 7 | D53: 3.1 | E53: 4.29 | F53: 5.23 | G53: 38 | H53: 4.652 | I53: 4.693 | J53: 4.734 | K53: 4.775 | L53: 4.816 | M53: 4.857 | N53: 4.898 | O53: 4.939 | P53: 4.98 | Q53: 5.021 | R53: 5.062 | S53: =S12 -> 5.1025 | T53: 5.143 | U53: 5.1835 | V53: 5.224 | W53: 5.2645 | X53: 5.305 | Y53: 5.3455 | Z53: 5.386 | AA53: 5.4265 | AB53: 5.467 | AC53: 5.5075 | AD53: 5.548 | AE53: 5.5885 | AF53: 5.629 | AG53: 5.6695 | AH53: =AH12 -> 5.71 | AI53: 5.7895 | AJ53: 5.869 | AK53: 5.9485 | AL53: 6.028 | AM53: 6.007333333 | AN53: 5.986666667 | AO53: 5.966 | AP53: 5.945333333 | AQ53: 5.924666667 | AR53: =AR12 -> 5.904 | AS53: 5.95125 | AT53: 5.9985 | AU53: 6.04575 | AV53: 6.093 | AW53: 6.14025 | AX53: 6.1875 | AY53: 6.23475 | AZ53: 6.282 | BA53: 6.2852 | BB53: 6.2884 | BC53: 6.2916 | BD53: 6.2948 | BE53: 6.298 | BF53: 6.3012 | BG53: 6.3044 | BH53: 6.3076 | BI53: 6.3108 | BJ53: =BJ12 -> 6.314 | BK53: 6.271 | BL53: 6.228 | BM53: 6.185 | BN53: 6.142 | BO53: 6.099 | BP53: 6.056 | BQ53: 6.013 | BR53: 5.97 | BS53: 5.927 | BT53: =BT12 -> 5.884 | BU53: 5.824666667 | BV53: 5.765333333 | BW53: 5.706 | BX53: 5.646666667 | BY53: 5.587333333 | BZ53: 5.528 | CA53: 5.4692 | CB53: 5.4104 | CC53: 5.3516 | CD53: 5.2928 | CE53: 5.234 | CF53: 5.1752 | CG53: 5.1164 | CH53: 5.0576 | CI53: 4.9988 | CJ53: =CJ12 -> 4.94 | CK53: 4 | CL53: Altherma 3 R W 07 | CM53: Altherma 3 R W 07 | CN53: 9 | CO53: 3.85 | CQ53: 4.36
B54: Altherma 3 R W | C54: 7 | D54: 3.1 | E54: 4.29 | F54: 5.23 | G54: 39 | H54: 4.646 | I54: 4.686 | J54: 4.726 | K54: 4.766 | L54: 4.806 | M54: 4.846 | N54: 4.886 | O54: 4.926 | P54: 4.966 | Q54: 5.006 | R54: 5.046 | S54: =S13 -> 5.085625 | T54: 5.12525 | U54: 5.164875 | V54: 5.2045 | W54: 5.244125 | X54: 5.28375 | Y54: 5.323375 | Z54: 5.363 | AA54: 5.402625 | AB54: 5.44225 | AC54: 5.481875 | AD54: 5.5215 | AE54: 5.561125 | AF54: 5.60075 | AG54: 5.640375 | AH54: =AH13 -> 5.68 | AI54: 5.7585 | AJ54: 5.837 | AK54: 5.9155 | AL54: 5.994 | AM54: 5.973666667 | AN54: 5.953333333 | AO54: 5.933 | AP54: 5.912666667 | AQ54: 5.892333333 | AR54: =AR13 -> 5.872 | AS54: 5.91875 | AT54: 5.9655 | AU54: 6.01225 | AV54: 6.059 | AW54: 6.10575 | AX54: 6.1525 | AY54: 6.19925 | AZ54: 6.246 | BA54: 6.2496 | BB54: 6.2532 | BC54: 6.2568 | BD54: 6.2604 | BE54: 6.264 | BF54: 6.2676 | BG54: 6.2712 | BH54: 6.2748 | BI54: 6.2784 | BJ54: =BJ13 -> 6.282 | BK54: 6.236 | BL54: 6.19 | BM54: 6.144 | BN54: 6.098 | BO54: 6.052 | BP54: 6.006 | BQ54: 5.96 | BR54: 5.914 | BS54: 5.868 | BT54: =BT13 -> 5.822 | BU54: 5.762333333 | BV54: 5.702666667 | BW54: 5.643 | BX54: 5.583333333 | BY54: 5.523666667 | BZ54: 5.464 | CA54: 5.4046 | CB54: 5.3452 | CC54: 5.2858 | CD54: 5.2264 | CE54: 5.167 | CF54: 5.1076 | CG54: 5.0482 | CH54: 4.9888 | CI54: 4.9294 | CJ54: =CJ13 -> 4.87 | CK54: 4 | CL54: Altherma 3 R W 07 | CM54: Altherma 3 R W 07 | CN54: 9 | CO54: 3.85 | CQ54: 4.36
B55: Altherma 3 R W | C55: 7 | D55: 3.1 | E55: 4.29 | F55: 5.23 | G55: 40 | H55: 4.64 | I55: 4.679 | J55: 4.718 | K55: 4.757 | L55: 4.796 | M55: 4.835 | N55: 4.874 | O55: 4.913 | P55: 4.952 | Q55: 4.991 | R55: 5.03 | S55: =S14 -> 5.06875 | T55: 5.1075 | U55: 5.14625 | V55: 5.185 | W55: 5.22375 | X55: 5.2625 | Y55: 5.30125 | Z55: 5.34 | AA55: 5.37875 | AB55: 5.4175 | AC55: 5.45625 | AD55: 5.495 | AE55: 5.53375 | AF55: 5.5725 | AG55: 5.61125 | AH55: =AH14 -> 5.65 | AI55: 5.7275 | AJ55: 5.805 | AK55: 5.8825 | AL55: 5.96 | AM55: 5.94 | AN55: 5.92 | AO55: 5.9 | AP55: 5.88 | AQ55: 5.86 | AR55: =AR14 -> 5.84 | AS55: 5.88625 | AT55: 5.9325 | AU55: 5.97875 | AV55: 6.025 | AW55: 6.07125 | AX55: 6.1175 | AY55: 6.16375 | AZ55: 6.21 | BA55: 6.214 | BB55: 6.218 | BC55: 6.222 | BD55: 6.226 | BE55: 6.23 | BF55: 6.234 | BG55: 6.238 | BH55: 6.242 | BI55: 6.246 | BJ55: =BJ14 -> 6.25 | BK55: 6.201 | BL55: 6.152 | BM55: 6.103 | BN55: 6.054 | BO55: 6.005 | BP55: 5.956 | BQ55: 5.907 | BR55: 5.858 | BS55: 5.809 | BT55: =BT14 -> 5.76 | BU55: 5.7 | BV55: 5.64 | BW55: 5.58 | BX55: 5.52 | BY55: 5.46 | BZ55: 5.4 | CA55: 5.34 | CB55: 5.28 | CC55: 5.22 | CD55: 5.16 | CE55: 5.1 | CF55: 5.04 | CG55: 4.98 | CH55: 4.92 | CI55: 4.86 | CJ55: =CJ14 -> 4.8 | CK55: 4 | CL55: Altherma 3 R W 07 | CM55: Altherma 3 R W 07 | CN55: 9 | CO55: 3.85 | CQ55: 4.36
B56: Altherma 3 R W | C56: 7 | D56: 3.1 | E56: 4.29 | F56: 5.23 | G56: 41 | H56: 4.634 | I56: =I15 -> 4.672 | J56: 4.71 | K56: 4.748 | L56: 4.786 | M56: 4.824 | N56: 4.862 | O56: 4.9 | P56: 4.938 | Q56: 4.976 | R56: 5.014 | S56: =S15 -> 5.051875 | T56: 5.08975 | U56: 5.127625 | V56: 5.1655 | W56: 5.203375 | X56: 5.24125 | Y56: 5.279125 | Z56: 5.317 | AA56: 5.354875 | AB56: 5.39275 | AC56: 5.430625 | AD56: 5.4685 | AE56: 5.506375 | AF56: 5.54425 | AG56: 5.582125 | AH56: =AH15 -> 5.62 | AI56: 5.6965 | AJ56: 5.773 | AK56: 5.8495 | AL56: 5.926 | AM56: 5.906333333 | AN56: 5.886666667 | AO56: 5.867 | AP56: 5.847333333 | AQ56: 5.827666667 | AR56: =AR15 -> 5.808 | AS56: 5.85375 | AT56: 5.8995 | AU56: 5.94525 | AV56: 5.991 | AW56: 6.03675 | AX56: 6.0825 | AY56: 6.12825 | AZ56: 6.174 | BA56: 6.1782 | BB56: 6.1824 | BC56: 6.1866 | BD56: 6.1908 | BE56: 6.195 | BF56: 6.1992 | BG56: 6.2034 | BH56: 6.2076 | BI56: 6.2118 | BJ56: =BJ15 -> 6.216 | BK56: 6.1644 | BL56: 6.1128 | BM56: 6.0612 | BN56: 6.0096 | BO56: 5.958 | BP56: 5.9064 | BQ56: 5.8548 | BR56: 5.8032 | BS56: 5.7516 | BT56: =BT15 -> 5.7 | BU56: 5.639333333 | BV56: 5.578666667 | BW56: 5.518 | BX56: 5.457333333 | BY56: 5.396666667 | BZ56: 5.336 | CA56: 5.2754 | CB56: 5.2148 | CC56: 5.1542 | CD56: 5.0936 | CE56: 5.033 | CF56: 4.9724 | CG56: 4.9118 | CH56: 4.8512 | CI56: 4.7906 | CJ56: =CJ15 -> 4.73 | CK56: 4 | CL56: Altherma 3 R W 07 | CM56: Altherma 3 R W 07 | CN56: 9 | CO56: 3.85 | CQ56: 4.36
B57: Altherma 3 R W | C57: 7 | D57: 3.1 | E57: 4.29 | F57: 5.23 | G57: 42 | H57: 4.628 | I57: 4.665 | J57: 4.702 | K57: 4.739 | L57: 4.776 | M57: 4.813 | N57: 4.85 | O57: 4.887 | P57: 4.924 | Q57: 4.961 | R57: 4.998 | S57: =S16 -> 5.035 | T57: 5.072 | U57: 5.109 | V57: 5.146 | W57: 5.183 | X57: 5.22 | Y57: 5.257 | Z57: 5.294 | AA57: 5.331 | AB57: 5.368 | AC57: 5.405 | AD57: 5.442 | AE57: 5.479 | AF57: 5.516 | AG57: 5.553 | AH57: =AH16 -> 5.59 | AI57: 5.6655 | AJ57: 5.741 | AK57: 5.8165 | AL57: 5.892 | AM57: 5.872666667 | AN57: 5.853333333 | AO57: 5.834 | AP57: 5.814666667 | AQ57: 5.795333333 | AR57: =AR16 -> 5.776 | AS57: 5.82125 | AT57: 5.8665 | AU57: 5.91175 | AV57: 5.957 | AW57: 6.00225 | AX57: 6.0475 | AY57: 6.09275 | AZ57: 6.138 | BA57: 6.1424 | BB57: 6.1468 | BC57: 6.1512 | BD57: 6.1556 | BE57: 6.16 | BF57: 6.1644 | BG57: 6.1688 | BH57: 6.1732 | BI57: 6.1776 | BJ57: =BJ16 -> 6.182 | BK57: 6.1278 | BL57: 6.0736 | BM57: 6.0194 | BN57: 5.9652 | BO57: 5.911 | BP57: 5.8568 | BQ57: 5.8026 | BR57: 5.7484 | BS57: 5.6942 | BT57: =BT16 -> 5.64 | BU57: 5.578666667 | BV57: 5.517333333 | BW57: 5.456 | BX57: 5.394666667 | BY57: 5.333333333 | BZ57: 5.272 | CA57: 5.2108 | CB57: 5.1496 | CC57: 5.0884 | CD57: 5.0272 | CE57: 4.966 | CF57: 4.9048 | CG57: 4.8436 | CH57: 4.7824 | CI57: 4.7212 | CJ57: =CJ16 -> 4.66 | CK57: 4 | CL57: Altherma 3 R W 07 | CM57: Altherma 3 R W 07 | CN57: 9 | CO57: 3.85 | CQ57: 4.36
B58: Altherma 3 R W | C58: 7 | D58: 3.1 | E58: 4.29 | F58: 5.23 | G58: 43 | H58: 4.622 | I58: 4.658 | J58: 4.694 | K58: 4.73 | L58: 4.766 | M58: 4.802 | N58: 4.838 | O58: 4.874 | P58: 4.91 | Q58: 4.946 | R58: 4.982 | S58: =S17 -> 5.018125 | T58: 5.05425 | U58: 5.090375 | V58: 5.1265 | W58: 5.162625 | X58: 5.19875 | Y58: 5.234875 | Z58: 5.271 | AA58: 5.307125 | AB58: 5.34325 | AC58: 5.379375 | AD58: 5.4155 | AE58: 5.451625 | AF58: 5.48775 | AG58: 5.523875 | AH58: =AH17 -> 5.56 | AI58: 5.6345 | AJ58: 5.709 | AK58: 5.7835 | AL58: 5.858 | AM58: 5.839 | AN58: 5.82 | AO58: 5.801 | AP58: 5.782 | AQ58: 5.763 | AR58: =AR17 -> 5.744 | AS58: 5.78875 | AT58: 5.8335 | AU58: 5.87825 | AV58: 5.923 | AW58: 5.96775 | AX58: 6.0125 | AY58: 6.05725 | AZ58: 6.102 | BA58: 6.1066 | BB58: 6.1112 | BC58: 6.1158 | BD58: 6.1204 | BE58: 6.125 | BF58: 6.1296 | BG58: 6.1342 | BH58: 6.1388 | BI58: 6.1434 | BJ58: =BJ17 -> 6.148 | BK58: 6.0912 | BL58: 6.0344 | BM58: 5.9776 | BN58: 5.9208 | BO58: 5.864 | BP58: 5.8072 | BQ58: 5.7504 | BR58: 5.6936 | BS58: 5.6368 | BT58: =BT17 -> 5.58 | BU58: 5.518 | BV58: 5.456 | BW58: 5.394 | BX58: 5.332 | BY58: 5.27 | BZ58: 5.208 | CA58: 5.1462 | CB58: 5.0844 | CC58: 5.0226 | CD58: 4.9608 | CE58: 4.899 | CF58: 4.8372 | CG58: 4.7754 | CH58: 4.7136 | CI58: 4.6518 | CJ58: =CJ17 -> 4.59 | CK58: 4 | CL58: Altherma 3 R W 07 | CM58: Altherma 3 R W 07 | CN58: 9 | CO58: 3.85 | CQ58: 4.36
B59: Altherma 3 R W | C59: 7 | D59: 3.1 | E59: 4.29 | F59: 5.23 | G59: 44 | H59: 4.616 | I59: 4.651 | J59: 4.686 | K59: 4.721 | L59: 4.756 | M59: 4.791 | N59: 4.826 | O59: 4.861 | P59: 4.896 | Q59: 4.931 | R59: 4.966 | S59: =S18 -> 5.00125 | T59: 5.0365 | U59: 5.07175 | V59: 5.107 | W59: 5.14225 | X59: 5.1775 | Y59: 5.21275 | Z59: 5.248 | AA59: 5.28325 | AB59: 5.3185 | AC59: 5.35375 | AD59: 5.389 | AE59: 5.42425 | AF59: 5.4595 | AG59: 5.49475 | AH59: =AH18 -> 5.53 | AI59: 5.6035 | AJ59: 5.677 | AK59: 5.7505 | AL59: 5.824 | AM59: 5.805333333 | AN59: 5.786666667 | AO59: 5.768 | AP59: 5.749333333 | AQ59: 5.730666667 | AR59: =AR18 -> 5.712 | AS59: 5.75625 | AT59: 5.8005 | AU59: 5.84475 | AV59: 5.889 | AW59: 5.93325 | AX59: 5.9775 | AY59: 6.02175 | AZ59: 6.066 | BA59: 6.0708 | BB59: 6.0756 | BC59: 6.0804 | BD59: 6.0852 | BE59: 6.09 | BF59: 6.0948 | BG59: 6.0996 | BH59: 6.1044 | BI59: 6.1092 | BJ59: =BJ18 -> 6.114 | BK59: 6.0546 | BL59: 5.9952 | BM59: 5.9358 | BN59: 5.8764 | BO59: 5.817 | BP59: 5.7576 | BQ59: 5.6982 | BR59: 5.6388 | BS59: 5.5794 | BT59: =BT18 -> 5.52 | BU59: 5.457333333 | BV59: 5.394666667 | BW59: 5.332 | BX59: 5.269333333 | BY59: 5.206666667 | BZ59: 5.144 | CA59: 5.0816 | CB59: 5.0192 | CC59: 4.9568 | CD59: 4.8944 | CE59: 4.832 | CF59: 4.7696 | CG59: 4.7072 | CH59: 4.6448 | CI59: 4.5824 | CJ59: =CJ18 -> 4.52 | CK59: 4 | CL59: Altherma 3 R W 07 | CM59: Altherma 3 R W 07 | CN59: 9 | CO59: 3.85 | CQ59: 4.36
B60: Altherma 3 R W | C60: 7 | D60: 3.1 | E60: 4.29 | F60: 5.23 | G60: 45 | H60: 4.61 | I60: 4.644 | J60: 4.678 | K60: 4.712 | L60: 4.746 | M60: 4.78 | N60: 4.814 | O60: 4.848 | P60: 4.882 | Q60: 4.916 | R60: 4.95 | S60: =S19 -> 4.984375 | T60: 5.01875 | U60: 5.053125 | V60: 5.0875 | W60: 5.121875 | X60: 5.15625 | Y60: 5.190625 | Z60: 5.225 | AA60: 5.259375 | AB60: 5.29375 | AC60: 5.328125 | AD60: 5.3625 | AE60: 5.396875 | AF60: 5.43125 | AG60: 5.465625 | AH60: =AH19 -> 5.5 | AI60: 5.5725 | AJ60: 5.645 | AK60: 5.7175 | AL60: 5.79 | AM60: 5.771666667 | AN60: 5.753333333 | AO60: 5.735 | AP60: 5.716666667 | AQ60: 5.698333333 | AR60: =AR19 -> 5.68 | AS60: 5.72375 | AT60: 5.7675 | AU60: 5.81125 | AV60: 5.855 | AW60: 5.89875 | AX60: 5.9425 | AY60: 5.98625 | AZ60: 6.03 | BA60: 6.035 | BB60: 6.04 | BC60: 6.045 | BD60: 6.05 | BE60: 6.055 | BF60: 6.06 | BG60: 6.065 | BH60: 6.07 | BI60: 6.075 | BJ60: =BJ19 -> 6.08 | BK60: 6.018 | BL60: 5.956 | BM60: 5.894 | BN60: 5.832 | BO60: 5.77 | BP60: 5.708 | BQ60: 5.646 | BR60: 5.584 | BS60: 5.522 | BT60: =BT19 -> 5.46 | BU60: 5.396666667 | BV60: 5.333333333 | BW60: 5.27 | BX60: 5.206666667 | BY60: 5.143333333 | BZ60: 5.08 | CA60: 5.017 | CB60: 4.954 | CC60: 4.891 | CD60: 4.828 | CE60: 4.765 | CF60: 4.702 | CG60: 4.639 | CH60: 4.576 | CI60: 4.513 | CJ60: =CJ19 -> 4.45 | CK60: 4 | CL60: Altherma 3 R W 07 | CM60: Altherma 3 R W 07 | CN60: 9 | CO60: 3.85 | CQ60: 4.36
B61: Altherma 3 R W | C61: 7 | D61: 3.1 | E61: 4.29 | F61: 5.23 | G61: 46 | H61: 4.534 | I61: =I20 -> 4.5672 | J61: 4.6004 | K61: 4.6336 | L61: 4.6668 | M61: 4.7 | N61: 4.7332 | O61: 4.7664 | P61: 4.7996 | Q61: 4.8328 | R61: 4.866 | S61: =S20 -> 4.899125 | T61: 4.93225 | U61: 4.965375 | V61: 4.9985 | W61: 5.031625 | X61: 5.06475 | Y61: 5.097875 | Z61: 5.131 | AA61: 5.164125 | AB61: 5.19725 | AC61: 5.230375 | AD61: 5.2635 | AE61: 5.296625 | AF61: 5.32975 | AG61: 5.362875 | AH61: =AH20 -> 5.396 | AI61: 5.4735 | AJ61: 5.551 | AK61: 5.6285 | AL61: 5.706 | AM61: 5.686 | AN61: 5.666 | AO61: 5.646 | AP61: 5.626 | AQ61: 5.606 | AR61: =AR20 -> 5.586 | AS61: 5.63275 | AT61: 5.6795 | AU61: 5.72625 | AV61: 5.773 | AW61: 5.81975 | AX61: 5.8665 | AY61: 5.91325 | AZ61: 5.96 | BA61: 5.9686 | BB61: 5.9772 | BC61: 5.9858 | BD61: 5.9944 | BE61: 6.003 | BF61: 6.0116 | BG61: 6.0202 | BH61: 6.0288 | BI61: 6.0374 | BJ61: =BJ20 -> 6.046 | BK61: 5.9828 | BL61: 5.9196 | BM61: 5.8564 | BN61: 5.7932 | BO61: 5.73 | BP61: 5.6668 | BQ61: 5.6036 | BR61: 5.5404 | BS61: 5.4772 | BT61: =BT20 -> 5.414 | BU61: 5.343 | BV61: 5.272 | BW61: 5.201 | BX61: 5.13 | BY61: 5.059 | BZ61: 4.988 | CA61: 4.9176 | CB61: 4.8472 | CC61: 4.7768 | CD61: 4.7064 | CE61: 4.636 | CF61: 4.5656 | CG61: 4.4952 | CH61: 4.4248 | CI61: 4.3544 | CJ61: =CJ20 -> 4.284 | CK61: 4 | CL61: Altherma 3 R W 07 | CM61: Altherma 3 R W 07 | CN61: 9 | CO61: 3.85 | CQ61: 4.36
B62: Altherma 3 R W | C62: 7 | D62: 3.1 | E62: 4.29 | F62: 5.23 | G62: 47 | H62: 4.458 | I62: 4.4904 | J62: 4.5228 | K62: 4.5552 | L62: 4.5876 | M62: 4.62 | N62: 4.6524 | O62: 4.6848 | P62: 4.7172 | Q62: 4.7496 | R62: 4.782 | S62: =S21 -> 4.813875 | T62: 4.84575 | U62: 4.877625 | V62: 4.9095 | W62: 4.941375 | X62: 4.97325 | Y62: 5.005125 | Z62: 5.037 | AA62: 5.068875 | AB62: 5.10075 | AC62: 5.132625 | AD62: 5.1645 | AE62: 5.196375 | AF62: 5.22825 | AG62: 5.260125 | AH62: =AH21 -> 5.292 | AI62: 5.3745 | AJ62: 5.457 | AK62: 5.5395 | AL62: 5.622 | AM62: 5.600333333 | AN62: 5.578666667 | AO62: 5.557 | AP62: 5.535333333 | AQ62: 5.513666667 | AR62: =AR21 -> 5.492 | AS62: 5.54175 | AT62: 5.5915 | AU62: 5.64125 | AV62: 5.691 | AW62: 5.74075 | AX62: 5.7905 | AY62: 5.84025 | AZ62: 5.89 | BA62: 5.9022 | BB62: 5.9144 | BC62: 5.9266 | BD62: 5.9388 | BE62: 5.951 | BF62: 5.9632 | BG62: 5.9754 | BH62: 5.9876 | BI62: 5.9998 | BJ62: =BJ21 -> 6.012 | BK62: 5.9476 | BL62: 5.8832 | BM62: 5.8188 | BN62: 5.7544 | BO62: 5.69 | BP62: 5.6256 | BQ62: 5.5612 | BR62: 5.4968 | BS62: 5.4324 | BT62: =BT21 -> 5.368 | BU62: 5.289333333 | BV62: 5.210666667 | BW62: 5.132 | BX62: 5.053333333 | BY62: 4.974666667 | BZ62: 4.896 | CA62: 4.8182 | CB62: 4.7404 | CC62: 4.6626 | CD62: 4.5848 | CE62: 4.507 | CF62: 4.4292 | CG62: 4.3514 | CH62: 4.2736 | CI62: 4.1958 | CJ62: =CJ21 -> 4.118 | CK62: 4 | CL62: Altherma 3 R W 07 | CM62: Altherma 3 R W 07 | CN62: 9 | CO62: 3.85 | CQ62: 4.36
B63: Altherma 3 R W | C63: 7 | D63: 3.1 | E63: 4.29 | F63: 5.23 | G63: 48 | H63: 4.382 | I63: 4.4136 | J63: 4.4452 | K63: 4.4768 | L63: 4.5084 | M63: 4.54 | N63: 4.5716 | O63: 4.6032 | P63: 4.6348 | Q63: 4.6664 | R63: 4.698 | S63: =S22 -> 4.728625 | T63: 4.75925 | U63: 4.789875 | V63: 4.8205 | W63: 4.851125 | X63: 4.88175 | Y63: 4.912375 | Z63: 4.943 | AA63: 4.973625 | AB63: 5.00425 | AC63: 5.034875 | AD63: 5.0655 | AE63: 5.096125 | AF63: 5.12675 | AG63: 5.157375 | AH63: =AH22 -> 5.188 | AI63: 5.2755 | AJ63: 5.363 | AK63: 5.4505 | AL63: 5.538 | AM63: 5.514666667 | AN63: 5.491333333 | AO63: 5.468 | AP63: 5.444666667 | AQ63: 5.421333333 | AR63: =AR22 -> 5.398 | AS63: 5.45075 | AT63: 5.5035 | AU63: 5.55625 | AV63: 5.609 | AW63: 5.66175 | AX63: 5.7145 | AY63: 5.76725 | AZ63: 5.82 | BA63: 5.8358 | BB63: 5.8516 | BC63: 5.8674 | BD63: 5.8832 | BE63: 5.899 | BF63: 5.9148 | BG63: 5.9306 | BH63: 5.9464 | BI63: 5.9622 | BJ63: =BJ22 -> 5.978 | BK63: 5.9124 | BL63: 5.8468 | BM63: 5.7812 | BN63: 5.7156 | BO63: 5.65 | BP63: 5.5844 | BQ63: 5.5188 | BR63: 5.4532 | BS63: 5.3876 | BT63: =BT22 -> 5.322 | BU63: 5.235666667 | BV63: 5.149333333 | BW63: 5.063 | BX63: 4.976666667 | BY63: 4.890333333 | BZ63: 4.804 | CA63: 4.7188 | CB63: 4.6336 | CC63: 4.5484 | CD63: 4.4632 | CE63: 4.378 | CF63: 4.2928 | CG63: 4.2076 | CH63: 4.1224 | CI63: 4.0372 | CJ63: =CJ22 -> 3.952 | CK63: 4 | CL63: Altherma 3 R W 07 | CM63: Altherma 3 R W 07 | CN63: 9 | CO63: 3.85 | CQ63: 4.36
B64: Altherma 3 R W | C64: 7 | D64: 3.1 | E64: 4.29 | F64: 5.23 | G64: 49 | H64: 4.306 | I64: 4.3368 | J64: 4.3676 | K64: 4.3984 | L64: 4.4292 | M64: 4.46 | N64: 4.4908 | O64: 4.5216 | P64: 4.5524 | Q64: 4.5832 | R64: 4.614 | S64: =S23 -> 4.643375 | T64: 4.67275 | U64: 4.702125 | V64: 4.7315 | W64: 4.760875 | X64: 4.79025 | Y64: 4.819625 | Z64: 4.849 | AA64: 4.878375 | AB64: 4.90775 | AC64: 4.937125 | AD64: 4.9665 | AE64: 4.995875 | AF64: 5.02525 | AG64: 5.054625 | AH64: =AH23 -> 5.084 | AI64: 5.1765 | AJ64: 5.269 | AK64: 5.3615 | AL64: 5.454 | AM64: 5.429 | AN64: 5.404 | AO64: 5.379 | AP64: 5.354 | AQ64: 5.329 | AR64: =AR23 -> 5.304 | AS64: 5.35975 | AT64: 5.4155 | AU64: 5.47125 | AV64: 5.527 | AW64: 5.58275 | AX64: 5.6385 | AY64: 5.69425 | AZ64: 5.75 | BA64: 5.7694 | BB64: 5.7888 | BC64: 5.8082 | BD64: 5.8276 | BE64: 5.847 | BF64: 5.8664 | BG64: 5.8858 | BH64: 5.9052 | BI64: 5.9246 | BJ64: =BJ23 -> 5.944 | BK64: 5.8772 | BL64: 5.8104 | BM64: 5.7436 | BN64: 5.6768 | BO64: 5.61 | BP64: 5.5432 | BQ64: 5.4764 | BR64: 5.4096 | BS64: 5.3428 | BT64: =BT23 -> 5.276 | BU64: 5.182 | BV64: 5.088 | BW64: 4.994 | BX64: 4.9 | BY64: 4.806 | BZ64: 4.712 | CA64: 4.6194 | CB64: 4.5268 | CC64: 4.4342 | CD64: 4.3416 | CE64: 4.249 | CF64: 4.1564 | CG64: 4.0638 | CH64: 3.9712 | CI64: 3.8786 | CJ64: =CJ23 -> 3.786 | CK64: 4 | CL64: Altherma 3 R W 07 | CM64: Altherma 3 R W 07 | CN64: 9 | CO64: 3.85 | CQ64: 4.36
B65: Altherma 3 R W | C65: 7 | D65: 3.1 | E65: 4.29 | F65: 5.23 | G65: 50 | H65: 4.23 | I65: 4.26 | J65: 4.29 | K65: 4.32 | L65: 4.35 | M65: 4.38 | N65: 4.41 | O65: 4.44 | P65: 4.47 | Q65: 4.5 | R65: 4.53 | S65: =S24 -> 4.558125 | T65: 4.58625 | U65: 4.614375 | V65: 4.6425 | W65: 4.670625 | X65: 4.69875 | Y65: 4.726875 | Z65: 4.755 | AA65: 4.783125 | AB65: 4.81125 | AC65: 4.839375 | AD65: 4.8675 | AE65: 4.895625 | AF65: 4.92375 | AG65: 4.951875 | AH65: =AH24 -> 4.98 | AI65: 5.0775 | AJ65: 5.175 | AK65: 5.2725 | AL65: 5.37 | AM65: 5.343333333 | AN65: 5.316666667 | AO65: 5.29 | AP65: 5.263333333 | AQ65: 5.236666667 | AR65: =AR24 -> 5.21 | AS65: 5.26875 | AT65: 5.3275 | AU65: 5.38625 | AV65: 5.445 | AW65: 5.50375 | AX65: 5.5625 | AY65: 5.62125 | AZ65: 5.68 | BA65: 5.703 | BB65: 5.726 | BC65: 5.749 | BD65: 5.772 | BE65: 5.795 | BF65: 5.818 | BG65: 5.841 | BH65: 5.864 | BI65: 5.887 | BJ65: =BJ24 -> 5.91 | BK65: 5.842 | BL65: 5.774 | BM65: 5.706 | BN65: 5.638 | BO65: 5.57 | BP65: 5.502 | BQ65: 5.434 | BR65: 5.366 | BS65: 5.298 | BT65: =BT24 -> 5.23 | BU65: 5.128333333 | BV65: 5.026666667 | BW65: 4.925 | BX65: 4.823333333 | BY65: 4.721666667 | BZ65: 4.62 | CA65: 4.52 | CB65: 4.42 | CC65: 4.32 | CD65: 4.22 | CE65: 4.12 | CF65: 4.02 | CG65: 3.92 | CH65: 3.82 | CI65: 3.72 | CJ65: =CJ24 -> 3.62 | CK65: 4 | CL65: Altherma 3 R W 07 | CM65: Altherma 3 R W 07 | CN65: 9 | CO65: 3.85 | CQ65: 4.36
B66: Altherma 3 R W | C66: 7 | D66: 3.1 | E66: 4.29 | F66: 5.23 | G66: 51 | R66: 4.412 | S66: =S25 -> 4.440875 | T66: 4.46975 | U66: 4.498625 | V66: 4.5275 | W66: 4.556375 | X66: 4.58525 | Y66: 4.614125 | Z66: 4.643 | AA66: 4.671875 | AB66: 4.70075 | AC66: 4.729625 | AD66: 4.7585 | AE66: 4.787375 | AF66: 4.81625 | AG66: 4.845125 | AH66: =AH25 -> 4.874 | AI66: 4.9765 | AJ66: 5.079 | AK66: 5.1815 | AL66: 5.284 | AM66: 5.256333333 | AN66: 5.228666667 | AO66: 5.201 | AP66: 5.173333333 | AQ66: 5.145666667 | AR66: =AR25 -> 5.118 | AS66: 5.1795 | AT66: 5.241 | AU66: 5.3025 | AV66: 5.364 | AW66: 5.4255 | AX66: 5.487 | AY66: 5.5485 | AZ66: 5.61 | BA66: 5.6364 | BB66: 5.6628 | BC66: 5.6892 | BD66: 5.7156 | BE66: 5.742 | BF66: 5.7684 | BG66: 5.7948 | BH66: 5.8212 | BI66: 5.8476 | BJ66: =BJ25 -> 5.874 | BK66: 5.8048 | BL66: 5.7356 | BM66: 5.6664 | BN66: 5.5972 | BO66: 5.528 | BP66: 5.4588 | BQ66: 5.3896 | BR66: 5.3204 | BS66: 5.2512 | BT66: =BT25 -> 5.182 | BU66: 5.073333333 | BV66: 4.964666667 | BW66: 4.856 | BX66: 4.747333333 | BY66: 4.638666667 | BZ66: 4.53 | CA66: 4.4226 | CB66: 4.3152 | CC66: 4.2078 | CD66: 4.1004 | CE66: 3.993 | CF66: 3.8856 | CG66: 3.7782 | CH66: 3.6708 | CI66: 3.5634 | CJ66: =CJ25 -> 3.456 | CK66: 4 | CL66: Altherma 3 R W 07 | CM66: Altherma 3 R W 07 | CN66: 9 | CO66: 3.85 | CQ66: 4.36
B67: Altherma 3 R W | C67: 7 | D67: 3.1 | E67: 4.29 | F67: 5.23 | G67: 52 | R67: 4.294 | S67: =S26 -> 4.323625 | T67: 4.35325 | U67: 4.382875 | V67: 4.4125 | W67: 4.442125 | X67: 4.47175 | Y67: 4.501375 | Z67: 4.531 | AA67: 4.560625 | AB67: 4.59025 | AC67: 4.619875 | AD67: 4.6495 | AE67: 4.679125 | AF67: 4.70875 | AG67: 4.738375 | AH67: =AH26 -> 4.768 | AI67: 4.8755 | AJ67: 4.983 | AK67: 5.0905 | AL67: 5.198 | AM67: 5.169333333 | AN67: 5.140666667 | AO67: 5.112 | AP67: 5.083333333 | AQ67: 5.054666667 | AR67: =AR26 -> 5.026 | AS67: 5.09025 | AT67: 5.1545 | AU67: 5.21875 | AV67: 5.283 | AW67: 5.34725 | AX67: 5.4115 | AY67: 5.47575 | AZ67: 5.54 | BA67: 5.5698 | BB67: 5.5996 | BC67: 5.6294 | BD67: 5.6592 | BE67: 5.689 | BF67: 5.7188 | BG67: 5.7486 | BH67: 5.7784 | BI67: 5.8082 | BJ67: =BJ26 -> 5.838 | BK67: 5.7676 | BL67: 5.6972 | BM67: 5.6268 | BN67: 5.5564 | BO67: 5.486 | BP67: 5.4156 | BQ67: 5.3452 | BR67: 5.2748 | BS67: 5.2044 | BT67: =BT26 -> 5.134 | BU67: 5.018333333 | BV67: 4.902666667 | BW67: 4.787 | BX67: 4.671333333 | BY67: 4.555666667 | BZ67: 4.44 | CA67: 4.3252 | CB67: 4.2104 | CC67: 4.0956 | CD67: 3.9808 | CE67: 3.866 | CF67: 3.7512 | CG67: 3.6364 | CH67: 3.5216 | CI67: 3.4068 | CJ67: =CJ26 -> 3.292 | CK67: 4 | CL67: Altherma 3 R W 07 | CM67: Altherma 3 R W 07 | CN67: 9 | CO67: 3.85 | CQ67: 4.36
B68: Altherma 3 R W | C68: 7 | D68: 3.1 | E68: 4.29 | F68: 5.23 | G68: 53 | R68: 4.176 | S68: =S27 -> 4.206375 | T68: 4.23675 | U68: 4.267125 | V68: 4.2975 | W68: 4.327875 | X68: 4.35825 | Y68: 4.388625 | Z68: 4.419 | AA68: 4.449375 | AB68: 4.47975 | AC68: 4.510125 | AD68: 4.5405 | AE68: 4.570875 | AF68: 4.60125 | AG68: 4.631625 | AH68: =AH27 -> 4.662 | AI68: 4.7745 | AJ68: 4.887 | AK68: 4.9995 | AL68: 5.112 | AM68: 5.082333333 | AN68: 5.052666667 | AO68: 5.023 | AP68: 4.993333333 | AQ68: 4.963666667 | AR68: =AR27 -> 4.934 | AS68: 5.001 | AT68: 5.068 | AU68: 5.135 | AV68: 5.202 | AW68: 5.269 | AX68: 5.336 | AY68: 5.403 | AZ68: 5.47 | BA68: 5.5032 | BB68: 5.5364 | BC68: 5.5696 | BD68: 5.6028 | BE68: 5.636 | BF68: 5.6692 | BG68: 5.7024 | BH68: 5.7356 | BI68: 5.7688 | BJ68: =BJ27 -> 5.802 | BK68: 5.7304 | BL68: 5.6588 | BM68: 5.5872 | BN68: 5.5156 | BO68: 5.444 | BP68: 5.3724 | BQ68: 5.3008 | BR68: 5.2292 | BS68: 5.1576 | BT68: =BT27 -> 5.086 | BU68: 4.963333333 | BV68: 4.840666667 | BW68: 4.718 | BX68: 4.595333333 | BY68: 4.472666667 | BZ68: 4.35 | CA68: 4.2278 | CB68: 4.1056 | CC68: 3.9834 | CD68: 3.8612 | CE68: 3.739 | CF68: 3.6168 | CG68: 3.4946 | CH68: 3.3724 | CI68: 3.2502 | CJ68: =CJ27 -> 3.128 | CK68: 4 | CL68: Altherma 3 R W 07 | CM68: Altherma 3 R W 07 | CN68: 9 | CO68: 3.85 | CQ68: 4.36
B69: Altherma 3 R W | C69: 7 | D69: 3.1 | E69: 4.29 | F69: 5.23 | G69: 54 | R69: 4.058 | S69: =S28 -> 4.089125 | T69: 4.12025 | U69: 4.151375 | V69: 4.1825 | W69: 4.213625 | X69: 4.24475 | Y69: 4.275875 | Z69: 4.307 | AA69: 4.338125 | AB69: 4.36925 | AC69: 4.400375 | AD69: 4.4315 | AE69: 4.462625 | AF69: 4.49375 | AG69: 4.524875 | AH69: =AH28 -> 4.556 | AI69: 4.6735 | AJ69: 4.791 | AK69: 4.9085 | AL69: 5.026 | AM69: 4.995333333 | AN69: 4.964666667 | AO69: 4.934 | AP69: 4.903333333 | AQ69: 4.872666667 | AR69: =AR28 -> 4.842 | AS69: 4.91175 | AT69: 4.9815 | AU69: 5.05125 | AV69: 5.121 | AW69: 5.19075 | AX69: 5.2605 | AY69: 5.33025 | AZ69: 5.4 | BA69: 5.4366 | BB69: 5.4732 | BC69: 5.5098 | BD69: 5.5464 | BE69: 5.583 | BF69: 5.6196 | BG69: 5.6562 | BH69: 5.6928 | BI69: 5.7294 | BJ69: =BJ28 -> 5.766 | BK69: 5.6932 | BL69: 5.6204 | BM69: 5.5476 | BN69: 5.4748 | BO69: 5.402 | BP69: 5.3292 | BQ69: 5.2564 | BR69: 5.1836 | BS69: 5.1108 | BT69: =BT28 -> 5.038 | BU69: 4.908333333 | BV69: 4.778666667 | BW69: 4.649 | BX69: 4.519333333 | BY69: 4.389666667 | BZ69: 4.26 | CA69: 4.1304 | CB69: 4.0008 | CC69: 3.8712 | CD69: 3.7416 | CE69: 3.612 | CF69: 3.4824 | CG69: 3.3528 | CH69: 3.2232 | CI69: 3.0936 | CJ69: =CJ28 -> 2.964 | CK69: 4 | CL69: Altherma 3 R W 07 | CM69: Altherma 3 R W 07 | CN69: 9 | CO69: 3.85 | CQ69: 4.36
B70: Altherma 3 R W | C70: 7 | D70: 3.1 | E70: 4.29 | F70: 5.23 | G70: 55 | R70: 3.94 | S70: =S29 -> 3.971875 | T70: 4.00375 | U70: 4.035625 | V70: 4.0675 | W70: 4.099375 | X70: 4.13125 | Y70: 4.163125 | Z70: 4.195 | AA70: 4.226875 | AB70: 4.25875 | AC70: 4.290625 | AD70: 4.3225 | AE70: 4.354375 | AF70: 4.38625 | AG70: 4.418125 | AH70: =AH29 -> 4.45 | AI70: 4.5725 | AJ70: 4.695 | AK70: 4.8175 | AL70: =AL29 -> 4.94 | AM70: 4.908333333 | AN70: 4.876666667 | AO70: 4.845 | AP70: 4.813333333 | AQ70: 4.781666667 | AR70: =AR29 -> 4.75 | AS70: 4.8225 | AT70: 4.895 | AU70: 4.9675 | AV70: 5.04 | AW70: 5.1125 | AX70: 5.185 | AY70: 5.2575 | AZ70: 5.33 | BA70: 5.37 | BB70: 5.41 | BC70: 5.45 | BD70: 5.49 | BE70: 5.53 | BF70: 5.57 | BG70: 5.61 | BH70: 5.65 | BI70: 5.69 | BJ70: =BJ29 -> 5.73 | BK70: 5.656 | BL70: 5.582 | BM70: 5.508 | BN70: 5.434 | BO70: 5.36 | BP70: 5.286 | BQ70: 5.212 | BR70: 5.138 | BS70: 5.064 | BT70: =BT29 -> 4.99 | BU70: 4.853333333 | BV70: 4.716666667 | BW70: 4.58 | BX70: 4.443333333 | BY70: 4.306666667 | BZ70: 4.17 | CA70: 4.033 | CB70: 3.896 | CC70: 3.759 | CD70: 3.622 | CE70: 3.485 | CF70: 3.348 | CG70: 3.211 | CH70: 3.074 | CI70: 2.937 | CJ70: =CJ29 -> 2.8 | CK70: 4 | CL70: Altherma 3 R W 07 | CM70: Altherma 3 R W 07 | CN70: 9 | CO70: 3.85 | CQ70: 4.36
B71: Altherma 3 R W | C71: 7 | D71: 3.1 | E71: 4.29 | F71: 5.23 | G71: 56 | AL71: =AL30 -> 4.818 | AM71: 4.783666667 | AN71: 4.749333333 | AO71: 4.715 | AP71: 4.680666667 | AQ71: 4.646333333 | AR71: 4.612 | AS71: =AS30 -> 4.69 | AT71: 4.768 | AU71: 4.846 | AV71: 4.924 | AW71: 5.002 | AX71: 5.08 | AY71: 5.158 | AZ71: 5.236 | BA71: =BA30 -> 5.2824 | BB71: 5.3288 | BC71: 5.3752 | BD71: 5.4216 | BE71: 5.468 | BF71: 5.5144 | BG71: 5.5608 | BH71: 5.6072 | BI71: 5.6536 | BJ71: 5.7 | BK71: =BK30 -> 5.6276 | BL71: 5.5552 | BM71: 5.4828 | BN71: 5.4104 | BO71: 5.338 | BP71: 5.2656 | BQ71: 5.1932 | BR71: 5.1208 | BS71: 5.0484 | BT71: 4.976 | BU71: =BU30 -> 4.824333333 | BV71: 4.672666667 | BW71: 4.521 | BX71: 4.369333333 | BY71: 4.217666667 | BZ71: 4.066 | CA71: =CA30 -> 3.9198 | CB71: 3.7736 | CC71: 3.6274 | CD71: 3.4812 | CE71: 3.335 | CF71: 3.1888 | CG71: 3.0426 | CH71: 2.8964 | CI71: 2.7502 | CJ71: 2.604 | CK71: 4 | CL71: Altherma 3 R W 07 | CM71: Altherma 3 R W 07 | CN71: 9 | CO71: 3.85 | CQ71: 4.36
B72: Altherma 3 R W | C72: 7 | D72: 3.1 | E72: 4.29 | F72: 5.23 | G72: 57 | AL72: 4.696 | AM72: =AM31 -> 4.659 | AN72: 4.622 | AO72: 4.585 | AP72: 4.548 | AQ72: 4.511 | AR72: 4.474 | AS72: =AS31 -> 4.5575 | AT72: 4.641 | AU72: 4.7245 | AV72: 4.808 | AW72: 4.8915 | AX72: 4.975 | AY72: 5.0585 | AZ72: 5.142 | BA72: =BA31 -> 5.1948 | BB72: 5.2476 | BC72: 5.3004 | BD72: 5.3532 | BE72: 5.406 | BF72: 5.4588 | BG72: 5.5116 | BH72: 5.5644 | BI72: 5.6172 | BJ72: 5.67 | BK72: =BK31 -> 5.5992 | BL72: 5.5284 | BM72: 5.4576 | BN72: 5.3868 | BO72: 5.316 | BP72: 5.2452 | BQ72: 5.1744 | BR72: 5.1036 | BS72: 5.0328 | BT72: 4.962 | BU72: =BU31 -> 4.795333333 | BV72: 4.628666667 | BW72: 4.462 | BX72: 4.295333333 | BY72: 4.128666667 | BZ72: 3.962 | CA72: =CA31 -> 3.8066 | CB72: 3.6512 | CC72: 3.4958 | CD72: 3.3404 | CE72: 3.185 | CF72: 3.0296 | CG72: 2.8742 | CH72: 2.7188 | CI72: 2.5634 | CJ72: 2.408 | CK72: 4 | CL72: Altherma 3 R W 07 | CM72: Altherma 3 R W 07 | CN72: 9 | CO72: 3.85 | CQ72: 4.36
B73: Altherma 3 R W | C73: 7 | D73: 3.1 | E73: 4.29 | F73: 5.23 | G73: 58 | AL73: 4.574 | AM73: 4.534333333 | AN73: 4.494666667 | AO73: 4.455 | AP73: 4.415333333 | AQ73: 4.375666667 | AR73: 4.336 | AS73: =AS32 -> 4.425 | AT73: 4.514 | AU73: 4.603 | AV73: 4.692 | AW73: 4.781 | AX73: 4.87 | AY73: 4.959 | AZ73: 5.048 | BA73: =BA32 -> 5.1072 | BB73: 5.1664 | BC73: 5.2256 | BD73: 5.2848 | BE73: 5.344 | BF73: 5.4032 | BG73: 5.4624 | BH73: 5.5216 | BI73: 5.5808 | BJ73: 5.64 | BK73: =BK32 -> 5.5708 | BL73: 5.5016 | BM73: 5.4324 | BN73: 5.3632 | BO73: 5.294 | BP73: 5.2248 | BQ73: 5.1556 | BR73: 5.0864 | BS73: 5.0172 | BT73: 4.948 | BU73: =BU32 -> 4.766333333 | BV73: 4.584666667 | BW73: 4.403 | BX73: 4.221333333 | BY73: 4.039666667 | BZ73: 3.858 | CA73: =CA32 -> 3.6934 | CB73: 3.5288 | CC73: 3.3642 | CD73: 3.1996 | CE73: 3.035 | CF73: 2.8704 | CG73: 2.7058 | CH73: 2.5412 | CI73: 2.3766 | CJ73: 2.212 | CK73: 4 | CL73: Altherma 3 R W 07 | CM73: Altherma 3 R W 07 | CN73: 9 | CO73: 3.85 | CQ73: 4.36
B74: Altherma 3 R W | C74: 7 | D74: 3.1 | E74: 4.29 | F74: 5.23 | G74: 59 | AL74: 4.452 | AM74: 4.409666667 | AN74: 4.367333333 | AO74: 4.325 | AP74: 4.282666667 | AQ74: 4.240333333 | AR74: 4.198 | AS74: =AS33 -> 4.2925 | AT74: 4.387 | AU74: 4.4815 | AV74: 4.576 | AW74: 4.6705 | AX74: 4.765 | AY74: 4.8595 | AZ74: 4.954 | BA74: =BA33 -> 5.0196 | BB74: 5.0852 | BC74: 5.1508 | BD74: 5.2164 | BE74: 5.282 | BF74: 5.3476 | BG74: 5.4132 | BH74: 5.4788 | BI74: 5.5444 | BJ74: 5.61 | BK74: =BK33 -> 5.5424 | BL74: 5.4748 | BM74: 5.4072 | BN74: 5.3396 | BO74: 5.272 | BP74: 5.2044 | BQ74: 5.1368 | BR74: 5.0692 | BS74: 5.0016 | BT74: 4.934 | BU74: =BU33 -> 4.737333333 | BV74: 4.540666667 | BW74: 4.344 | BX74: 4.147333333 | BY74: 3.950666667 | BZ74: 3.754 | CA74: =CA33 -> 3.5802 | CB74: 3.4064 | CC74: 3.2326 | CD74: 3.0588 | CE74: 2.885 | CF74: 2.7112 | CG74: 2.5374 | CH74: 2.3636 | CI74: 2.1898 | CJ74: 2.016 | CK74: 4 | CL74: Altherma 3 R W 07 | CM74: Altherma 3 R W 07 | CN74: 9 | CO74: 3.85 | CQ74: 4.36
B75: Altherma 3 R W | C75: 7 | D75: 3.1 | E75: 4.29 | F75: 5.23 | G75: 60 | AL75: 4.33 | AM75: 4.285 | AN75: 4.24 | AO75: 4.195 | AP75: 4.15 | AQ75: 4.105 | AR75: 4.06 | AS75: =AS34 -> 4.16 | AT75: 4.26 | AU75: 4.36 | AV75: 4.46 | AW75: 4.56 | AX75: 4.66 | AY75: 4.76 | AZ75: 4.86 | BA75: =BA34 -> 4.932 | BB75: 5.004 | BC75: 5.076 | BD75: 5.148 | BE75: 5.22 | BF75: 5.292 | BG75: 5.364 | BH75: 5.436 | BI75: 5.508 | BJ75: 5.58 | BK75: =BK34 -> 5.514 | BL75: 5.448 | BM75: 5.382 | BN75: 5.316 | BO75: 5.25 | BP75: 5.184 | BQ75: 5.118 | BR75: 5.052 | BS75: 4.986 | BT75: 4.92 | BU75: =BU34 -> 4.708333333 | BV75: 4.496666667 | BW75: 4.285 | BX75: 4.073333333 | BY75: 3.861666667 | BZ75: 3.65 | CA75: =CA34 -> 3.467 | CB75: 3.284 | CC75: 3.101 | CD75: 2.918 | CE75: 2.735 | CF75: 2.552 | CG75: 2.369 | CH75: 2.186 | CI75: 2.003 | CJ75: 1.82 | CK75: 4 | CL75: Altherma 3 R W 07 | CM75: Altherma 3 R W 07 | CN75: 9 | CO75: 3.85 | CQ75: 4.36
B76: Altherma 3 R W | C76: 7 | D76: 3.1 | E76: 4.29 | F76: 5.23 | G76: 61 | CK76: 4 | CL76: Altherma 3 R W 07 | CM76: Altherma 3 R W 07 | CN76: 9 | CO76: 3.85 | CQ76: 4.36
B77: Altherma 3 R W | C77: 7 | D77: 3.1 | E77: 4.29 | F77: 5.23 | G77: 62 | CK77: 4 | CL77: Altherma 3 R W 07 | CM77: Altherma 3 R W 07 | CN77: 9 | CO77: 3.85 | CQ77: 4.36
B78: Altherma 3 R W | C78: 7 | D78: 3.1 | E78: 4.29 | F78: 5.23 | G78: 63 | CK78: 4 | CL78: Altherma 3 R W 07 | CM78: Altherma 3 R W 07 | CN78: 9 | CO78: 3.85 | CQ78: 4.36
B79: Altherma 3 R W | C79: 7 | D79: 3.1 | E79: 4.29 | F79: 5.23 | G79: 64 | CK79: 4 | CL79: Altherma 3 R W 07 | CM79: Altherma 3 R W 07 | CN79: 9 | CO79: 3.85 | CQ79: 4.36
B80: Altherma 3 R W | C80: 7 | D80: 3.1 | E80: 4.29 | F80: 5.23 | G80: 65 | CK80: 4 | CL80: Altherma 3 R W 07 | CM80: Altherma 3 R W 07 | CN80: 9 | CO80: 3.85 | CQ80: 4.36
B81: Altherma 3 R W | C81: 7 | D81: 3.1 | E81: 4.29 | F81: 5.23 | G81: 66 | CK81: 4 | CL81: Altherma 3 R W 07 | CM81: Altherma 3 R W 07 | CN81: 9 | CO81: 3.85 | CQ81: 4.36
B82: Altherma 3 R W | C82: 7 | D82: 3.1 | E82: 4.29 | F82: 5.23 | G82: 67 | CK82: 4 | CL82: Altherma 3 R W 07 | CM82: Altherma 3 R W 07 | CN82: 9 | CO82: 3.85 | CQ82: 4.36
B83: Altherma 3 R W | C83: 7 | D83: 3.1 | E83: 4.29 | F83: 5.23 | G83: 68 | CK83: 4 | CL83: Altherma 3 R W 07 | CM83: Altherma 3 R W 07 | CN83: 9 | CO83: 3.85 | CQ83: 4.36
B84: Altherma 3 R W | C84: 7 | D84: 3.1 | E84: 4.29 | F84: 5.23 | G84: 69 | CK84: 4 | CL84: Altherma 3 R W 07 | CM84: Altherma 3 R W 07 | CN84: 9 | CO84: 3.85 | CQ84: 4.36
B85: Altherma 3 R W | C85: 7 | D85: 3.1 | E85: 4.29 | F85: 5.23 | G85: 70 | CK85: 4 | CL85: Altherma 3 R W 07 | CM85: Altherma 3 R W 07 | CN85: 9 | CO85: 3.85 | CQ85: 4.36
B86: Altherma 3 R W | C86: 6 | D86: ='Altherma 3 R'!$L$20 -> 2.9 | E86: ='Altherma 3 R'!$L$21 -> 3.75 | F86: ='Altherma 3 R'!$L$22 -> 4.85 | G86: 30 | H86: ='Altherma 3 R'!C19 -> 5.93 | I86: =$H86-(($H86-$R86)/$R$3*I$3) -> 5.991 | J86: 6.052 | K86: 6.113 | L86: 6.174 | M86: 6.235 | N86: 6.296 | O86: 6.357 | P86: 6.418 | Q86: 6.479 | R86: ='Altherma 3 R'!C20 -> 6.54 | S86: =$R86-(($R86-$AH86)/$AH$3*S$3) -> 6.6 | T86: 6.66 | U86: 6.72 | V86: 6.78 | W86: 6.84 | X86: 6.9 | Y86: 6.96 | Z86: 7.02 | AA86: 7.08 | AB86: 7.14 | AC86: 7.2 | AD86: 7.26 | AE86: 7.32 | AF86: 7.38 | AG86: 7.44 | AH86: ='Altherma 3 R'!C21 -> 7.5 | AI86: =$AH86-(($AH86-$AL86)/$AL$3*AI$3) -> 7.535 | AJ86: 7.57 | AK86: 7.605 | AL86: ='Altherma 3 R'!C23 -> 7.64 | AM86: =$AL86-(($AL86-$AR86)/$AR$1*AM$1) -> 7.63 | AN86: 7.62 | AO86: 7.61 | AP86: 7.6 | AQ86: 7.59 | AR86: ='Altherma 3 R'!C22 -> 7.58 | AS86: =$AR86-(($AR86-$AZ86)/$AZ$3*AS$3) -> 7.60125 | AT86: 7.6225 | AU86: 7.64375 | AV86: 7.665 | AW86: 7.68625 | AX86: 7.7075 | AY86: 7.72875 | AZ86: ='Altherma 3 R'!C24 -> 7.75 | BA86: =$AZ86-(($AZ86-$BJ86)/$BJ$3*BA$3) -> 7.767 | BB86: 7.784 | BC86: 7.801 | BD86: 7.818 | BE86: 7.835 | BF86: 7.852 | BG86: 7.869 | BH86: 7.886 | BI86: 7.903 | BJ86: ='Altherma 3 R'!C25 -> 7.92 | BK86: =$BJ86-(($BJ86-$BT86)/$BT$3*BK$3) -> 7.903 | BL86: 7.886 | BM86: 7.869 | BN86: 7.852 | BO86: 7.835 | BP86: 7.818 | BQ86: 7.801 | BR86: 7.784 | BS86: 7.767 | BT86: ='Altherma 3 R'!C26 -> 7.75 | BU86: =$BT86-(($BT86-$BZ86)/$BZ$3*BU$3) -> 7.721666667 | BV86: 7.693333333 | BW86: 7.665 | BX86: 7.636666667 | BY86: 7.608333333 | BZ86: ='Altherma 3 R'!C27 -> 7.58 | CA86: =$BZ86-(($BZ86-$CJ86)/$CJ$3*CA$3) -> 7.551 | CB86: 7.522 | CC86: 7.493 | CD86: 7.464 | CE86: 7.435 | CF86: 7.406 | CG86: 7.377 | CH86: 7.348 | CI86: 7.319 | CJ86: ='Altherma 3 R'!C28 -> 7.29 | CK86: =Eingabemaske!G$19 -> 4 | CL86: Altherma 3 R W 6 kW | CM86: Altherma 3 R W 6 kW | CN86: 9 | CO86: 3.7 | CQ86: 6
B87: Altherma 3 R W | C87: 6 | D87: ='Altherma 3 R'!$L$20 -> 2.9 | E87: ='Altherma 3 R'!$L$21 -> 3.75 | F87: ='Altherma 3 R'!$L$22 -> 4.85 | G87: 31 | H87: =$H$86-(($H$86-$H$91)/5*A4) -> 5.91 | I87: 5.9696 | J87: 6.0292 | K87: 6.0888 | L87: 6.1484 | M87: 6.208 | N87: 6.2676 | O87: 6.3272 | P87: 6.3868 | Q87: 6.4464 | R87: =$R$86-(($R$86-$R$91)/5*A4) -> 6.506 | S87: 6.56475 | T87: 6.6235 | U87: 6.68225 | V87: 6.741 | W87: 6.79975 | X87: 6.8585 | Y87: 6.91725 | Z87: 6.976 | AA87: 7.03475 | AB87: 7.0935 | AC87: 7.15225 | AD87: 7.211 | AE87: 7.26975 | AF87: 7.3285 | AG87: 7.38725 | AH87: =$AH$86-(($AH$86-$AH$91)/5*A4) -> 7.446 | AI87: 7.4825 | AJ87: 7.519 | AK87: 7.5555 | AL87: =$AL$86-(($AL$86-$AL$91)/5*A4) -> 7.592 | AM87: 7.581666667 | AN87: 7.571333333 | AO87: 7.561 | AP87: 7.550666667 | AQ87: 7.540333333 | AR87: =$AR$86-(($AR$86-$AR$91)/5*A4) -> 7.53 | AS87: 7.55225 | AT87: 7.5745 | AU87: 7.59675 | AV87: 7.619 | AW87: 7.64125 | AX87: 7.6635 | AY87: 7.68575 | AZ87: =$AZ$86-(($AZ$86-$AZ$91)/5*A4) -> 7.708 | BA87: 7.7256 | BB87: 7.7432 | BC87: 7.7608 | BD87: 7.7784 | BE87: 7.796 | BF87: 7.8136 | BG87: 7.8312 | BH87: 7.8488 | BI87: 7.8664 | BJ87: =$BJ$86-(($BJ$86-$BJ$91)/5*A4) -> 7.884 | BK87: 7.8654 | BL87: 7.8468 | BM87: 7.8282 | BN87: 7.8096 | BO87: 7.791 | BP87: 7.7724 | BQ87: 7.7538 | BR87: 7.7352 | BS87: 7.7166 | BT87: =$BT$86-(($BT$86-$BT$91)/5*A4) -> 7.698 | BU87: 7.666666667 | BV87: 7.635333333 | BW87: 7.604 | BX87: 7.572666667 | BY87: 7.541333333 | BZ87: =$BZ$86-(($BZ$86-$BZ$91)/5*A4) -> 7.51 | CA87: 7.478 | CB87: 7.446 | CC87: 7.414 | CD87: 7.382 | CE87: 7.35 | CF87: 7.318 | CG87: 7.286 | CH87: 7.254 | CI87: 7.222 | CJ87: =$CJ$86-(($CJ$86-$CJ$91)/5*A4) -> 7.19 | CK87: =Eingabemaske!G$19 -> 4 | CL87: Altherma 3 R W 6 kW | CM87: Altherma 3 R W 6 kW | CN87: 9 | CO87: 3.7 | CQ87: 6
B88: Altherma 3 R W | C88: 6 | D88: ='Altherma 3 R'!$L$20 -> 2.9 | E88: ='Altherma 3 R'!$L$21 -> 3.75 | F88: ='Altherma 3 R'!$L$22 -> 4.85 | G88: 32 | H88: =$H$86-(($H$86-$H$91)/5*A5) -> 5.89 | I88: 5.9482 | J88: 6.0064 | K88: 6.0646 | L88: 6.1228 | M88: 6.181 | N88: 6.2392 | O88: 6.2974 | P88: 6.3556 | Q88: 6.4138 | R88: =$R$86-(($R$86-$R$91)/5*A5) -> 6.472 | S88: 6.5295 | T88: 6.587 | U88: 6.6445 | V88: 6.702 | W88: 6.7595 | X88: 6.817 | Y88: 6.8745 | Z88: 6.932 | AA88: 6.9895 | AB88: 7.047 | AC88: 7.1045 | AD88: 7.162 | AE88: 7.2195 | AF88: 7.277 | AG88: 7.3345 | AH88: =$AH$86-(($AH$86-$AH$91)/5*A5) -> 7.392 | AI88: 7.43 | AJ88: 7.468 | AK88: 7.506 | AL88: =$AL$86-(($AL$86-$AL$91)/5*A5) -> 7.544 | AM88: 7.533333333 | AN88: 7.522666667 | AO88: 7.512 | AP88: 7.501333333 | AQ88: 7.490666667 | AR88: =$AR$86-(($AR$86-$AR$91)/5*A5) -> 7.48 | AS88: 7.50325 | AT88: 7.5265 | AU88: 7.54975 | AV88: 7.573 | AW88: 7.59625 | AX88: 7.6195 | AY88: 7.64275 | AZ88: =$AZ$86-(($AZ$86-$AZ$91)/5*A5) -> 7.666 | BA88: 7.6842 | BB88: 7.7024 | BC88: 7.7206 | BD88: 7.7388 | BE88: 7.757 | BF88: 7.7752 | BG88: 7.7934 | BH88: 7.8116 | BI88: 7.8298 | BJ88: =$BJ$86-(($BJ$86-$BJ$91)/5*A5) -> 7.848 | BK88: 7.8278 | BL88: 7.8076 | BM88: 7.7874 | BN88: 7.7672 | BO88: 7.747 | BP88: 7.7268 | BQ88: 7.7066 | BR88: 7.6864 | BS88: 7.6662 | BT88: =$BT$86-(($BT$86-$BT$91)/5*A5) -> 7.646 | BU88: 7.611666667 | BV88: 7.577333333 | BW88: 7.543 | BX88: 7.508666667 | BY88: 7.474333333 | BZ88: =$BZ$86-(($BZ$86-$BZ$91)/5*A5) -> 7.44 | CA88: 7.405 | CB88: 7.37 | CC88: 7.335 | CD88: 7.3 | CE88: 7.265 | CF88: 7.23 | CG88: 7.195 | CH88: 7.16 | CI88: 7.125 | CJ88: =$CJ$86-(($CJ$86-$CJ$91)/5*A5) -> 7.09 | CK88: =Eingabemaske!G$19 -> 4 | CL88: Altherma 3 R W 6 kW | CM88: Altherma 3 R W 6 kW | CN88: 9 | CO88: 3.7 | CQ88: 6
B89: Altherma 3 R W | C89: 6 | D89: ='Altherma 3 R'!$L$20 -> 2.9 | E89: ='Altherma 3 R'!$L$21 -> 3.75 | F89: ='Altherma 3 R'!$L$22 -> 4.85 | G89: 33 | H89: =$H$86-(($H$86-$H$91)/5*A6) -> 5.87 | I89: 5.9268 | J89: 5.9836 | K89: 6.0404 | L89: 6.0972 | M89: 6.154 | N89: 6.2108 | O89: 6.2676 | P89: 6.3244 | Q89: 6.3812 | R89: =$R$86-(($R$86-$R$91)/5*A6) -> 6.438 | S89: 6.49425 | T89: 6.5505 | U89: 6.60675 | V89: 6.663 | W89: 6.71925 | X89: 6.7755 | Y89: 6.83175 | Z89: 6.888 | AA89: 6.94425 | AB89: 7.0005 | AC89: 7.05675 | AD89: 7.113 | AE89: 7.16925 | AF89: 7.2255 | AG89: 7.28175 | AH89: =$AH$86-(($AH$86-$AH$91)/5*A6) -> 7.338 | AI89: 7.3775 | AJ89: 7.417 | AK89: 7.4565 | AL89: =$AL$86-(($AL$86-$AL$91)/5*A6) -> 7.496 | AM89: 7.485 | AN89: 7.474 | AO89: 7.463 | AP89: 7.452 | AQ89: 7.441 | AR89: =$AR$86-(($AR$86-$AR$91)/5*A6) -> 7.43 | AS89: 7.45425 | AT89: 7.4785 | AU89: 7.50275 | AV89: 7.527 | AW89: 7.55125 | AX89: 7.5755 | AY89: 7.59975 | AZ89: =$AZ$86-(($AZ$86-$AZ$91)/5*A6) -> 7.624 | BA89: 7.6428 | BB89: 7.6616 | BC89: 7.6804 | BD89: 7.6992 | BE89: 7.718 | BF89: 7.7368 | BG89: 7.7556 | BH89: 7.7744 | BI89: 7.7932 | BJ89: =$BJ$86-(($BJ$86-$BJ$91)/5*A6) -> 7.812 | BK89: 7.7902 | BL89: 7.7684 | BM89: 7.7466 | BN89: 7.7248 | BO89: 7.703 | BP89: 7.6812 | BQ89: 7.6594 | BR89: 7.6376 | BS89: 7.6158 | BT89: =$BT$86-(($BT$86-$BT$91)/5*A6) -> 7.594 | BU89: 7.556666667 | BV89: 7.519333333 | BW89: 7.482 | BX89: 7.444666667 | BY89: 7.407333333 | BZ89: =$BZ$86-(($BZ$86-$BZ$91)/5*A6) -> 7.37 | CA89: 7.332 | CB89: 7.294 | CC89: 7.256 | CD89: 7.218 | CE89: 7.18 | CF89: 7.142 | CG89: 7.104 | CH89: 7.066 | CI89: 7.028 | CJ89: =$CJ$86-(($CJ$86-$CJ$91)/5*A6) -> 6.99 | CK89: =Eingabemaske!G$19 -> 4 | CL89: Altherma 3 R W 6 kW | CM89: Altherma 3 R W 6 kW | CN89: 9 | CO89: 3.7 | CQ89: 6
B90: Altherma 3 R W | C90: 6 | D90: ='Altherma 3 R'!$L$20 -> 2.9 | E90: ='Altherma 3 R'!$L$21 -> 3.75 | F90: ='Altherma 3 R'!$L$22 -> 4.85 | G90: 34 | H90: =$H$86-(($H$86-$H$91)/5*A7) -> 5.85 | I90: 5.9054 | J90: 5.9608 | K90: 6.0162 | L90: 6.0716 | M90: 6.127 | N90: 6.1824 | O90: 6.2378 | P90: 6.2932 | Q90: 6.3486 | R90: =$R$86-(($R$86-$R$91)/5*A7) -> 6.404 | S90: 6.459 | T90: 6.514 | U90: 6.569 | V90: 6.624 | W90: 6.679 | X90: 6.734 | Y90: 6.789 | Z90: 6.844 | AA90: 6.899 | AB90: 6.954 | AC90: 7.009 | AD90: 7.064 | AE90: 7.119 | AF90: 7.174 | AG90: 7.229 | AH90: =$AH$86-(($AH$86-$AH$91)/5*A7) -> 7.284 | AI90: 7.325 | AJ90: 7.366 | AK90: 7.407 | AL90: =$AL$86-(($AL$86-$AL$91)/5*A7) -> 7.448 | AM90: 7.436666667 | AN90: 7.425333333 | AO90: 7.414 | AP90: 7.402666667 | AQ90: 7.391333333 | AR90: =$AR$86-(($AR$86-$AR$91)/5*A7) -> 7.38 | AS90: 7.40525 | AT90: 7.4305 | AU90: 7.45575 | AV90: 7.481 | AW90: 7.50625 | AX90: 7.5315 | AY90: 7.55675 | AZ90: =$AZ$86-(($AZ$86-$AZ$91)/5*A7) -> 7.582 | BA90: 7.6014 | BB90: 7.6208 | BC90: 7.6402 | BD90: 7.6596 | BE90: 7.679 | BF90: 7.6984 | BG90: 7.7178 | BH90: 7.7372 | BI90: 7.7566 | BJ90: =$BJ$86-(($BJ$86-$BJ$91)/5*A7) -> 7.776 | BK90: 7.7526 | BL90: 7.7292 | BM90: 7.7058 | BN90: 7.6824 | BO90: 7.659 | BP90: 7.6356 | BQ90: 7.6122 | BR90: 7.5888 | BS90: 7.5654 | BT90: =$BT$86-(($BT$86-$BT$91)/5*A7) -> 7.542 | BU90: 7.501666667 | BV90: 7.461333333 | BW90: 7.421 | BX90: 7.380666667 | BY90: 7.340333333 | BZ90: =$BZ$86-(($BZ$86-$BZ$91)/5*A7) -> 7.3 | CA90: 7.259 | CB90: 7.218 | CC90: 7.177 | CD90: 7.136 | CE90: 7.095 | CF90: 7.054 | CG90: 7.013 | CH90: 6.972 | CI90: 6.931 | CJ90: =$CJ$86-(($CJ$86-$CJ$91)/5*A7) -> 6.89 | CK90: =Eingabemaske!G$19 -> 4 | CL90: Altherma 3 R W 6 kW | CM90: Altherma 3 R W 6 kW | CN90: 9 | CO90: 3.7 | CQ90: 6
B91: Altherma 3 R W | C91: 6 | D91: ='Altherma 3 R'!$L$20 -> 2.9 | E91: ='Altherma 3 R'!$L$21 -> 3.75 | F91: ='Altherma 3 R'!$L$22 -> 4.85 | G91: 35 | H91: ='Altherma 3 R'!D19 -> 5.83 | I91: 5.884 | J91: 5.938 | K91: 5.992 | L91: 6.046 | M91: 6.1 | N91: 6.154 | O91: 6.208 | P91: 6.262 | Q91: 6.316 | R91: ='Altherma 3 R'!D20 -> 6.37 | S91: 6.42375 | T91: 6.4775 | U91: 6.53125 | V91: 6.585 | W91: 6.63875 | X91: 6.6925 | Y91: 6.74625 | Z91: 6.8 | AA91: 6.85375 | AB91: 6.9075 | AC91: 6.96125 | AD91: 7.015 | AE91: 7.06875 | AF91: 7.1225 | AG91: 7.17625 | AH91: ='Altherma 3 R'!D21 -> 7.23 | AI91: 7.2725 | AJ91: 7.315 | AK91: 7.3575 | AL91: ='Altherma 3 R'!D23 -> 7.4 | AM91: 7.388333333 | AN91: 7.376666667 | AO91: 7.365 | AP91: 7.353333333 | AQ91: 7.341666667 | AR91: ='Altherma 3 R'!D22 -> 7.33 | AS91: 7.35625 | AT91: 7.3825 | AU91: 7.40875 | AV91: 7.435 | AW91: 7.46125 | AX91: 7.4875 | AY91: 7.51375 | AZ91: ='Altherma 3 R'!D24 -> 7.54 | BA91: 7.56 | BB91: 7.58 | BC91: 7.6 | BD91: 7.62 | BE91: 7.64 | BF91: 7.66 | BG91: 7.68 | BH91: 7.7 | BI91: 7.72 | BJ91: ='Altherma 3 R'!D25 -> 7.74 | BK91: 7.715 | BL91: 7.69 | BM91: 7.665 | BN91: 7.64 | BO91: 7.615 | BP91: 7.59 | BQ91: 7.565 | BR91: 7.54 | BS91: 7.515 | BT91: ='Altherma 3 R'!D26 -> 7.49 | BU91: 7.446666667 | BV91: 7.403333333 | BW91: 7.36 | BX91: 7.316666667 | BY91: 7.273333333 | BZ91: ='Altherma 3 R'!D27 -> 7.23 | CA91: 7.186 | CB91: 7.142 | CC91: 7.098 | CD91: 7.054 | CE91: 7.01 | CF91: 6.966 | CG91: 6.922 | CH91: 6.878 | CI91: 6.834 | CJ91: ='Altherma 3 R'!D28 -> 6.79 | CK91: =Eingabemaske!G$19 -> 4 | CL91: Altherma 3 R W 6 kW | CM91: Altherma 3 R W 6 kW | CN91: 9 | CO91: 3.7 | CQ91: 6
B92: Altherma 3 R W | C92: 6 | D92: ='Altherma 3 R'!$L$20 -> 2.9 | E92: ='Altherma 3 R'!$L$21 -> 3.75 | F92: ='Altherma 3 R'!$L$22 -> 4.85 | G92: 36 | H92: =$H$91-(($H$91-$H$96)/5*A4) -> 5.808 | I92: 5.8608 | J92: 5.9136 | K92: 5.9664 | L92: 6.0192 | M92: 6.072 | N92: 6.1248 | O92: 6.1776 | P92: 6.2304 | Q92: 6.2832 | R92: =$R$91-(($R$91-$R$96)/5*A4) -> 6.336 | S92: 6.3885 | T92: 6.441 | U92: 6.4935 | V92: 6.546 | W92: 6.5985 | X92: 6.651 | Y92: 6.7035 | Z92: 6.756 | AA92: 6.8085 | AB92: 6.861 | AC92: 6.9135 | AD92: 6.966 | AE92: 7.0185 | AF92: 7.071 | AG92: 7.1235 | AH92: =$AH$91-(($AH$91-$AH$96)/5*A4) -> 7.176 | AI92: 7.2205 | AJ92: 7.265 | AK92: 7.3095 | AL92: =$AL$91-(($AL$91-$AL$96)/5*A4) -> 7.354 | AM92: 7.341666667 | AN92: 7.329333333 | AO92: 7.317 | AP92: 7.304666667 | AQ92: 7.292333333 | AR92: =$AR$91-(($AR$91-$AR$96)/5*A4) -> 7.28 | AS92: 7.30725 | AT92: 7.3345 | AU92: 7.36175 | AV92: 7.389 | AW92: 7.41625 | AX92: 7.4435 | AY92: 7.47075 | AZ92: =$AZ$91-(($AZ$91-$AZ$96)/5*A4) -> 7.498 | BA92: 7.5188 | BB92: 7.5396 | BC92: 7.5604 | BD92: 7.5812 | BE92: 7.602 | BF92: 7.6228 | BG92: 7.6436 | BH92: 7.6644 | BI92: 7.6852 | BJ92: =$BJ$91-(($BJ$91-$BJ$96)/5*A4) -> 7.706 | BK92: 7.6794 | BL92: 7.6528 | BM92: 7.6262 | BN92: 7.5996 | BO92: 7.573 | BP92: 7.5464 | BQ92: 7.5198 | BR92: 7.4932 | BS92: 7.4666 | BT92: =$BT$91-(($BT$91-$BT$96)/5*A4) -> 7.44 | BU92: 7.393333333 | BV92: 7.346666667 | BW92: 7.3 | BX92: 7.253333333 | BY92: 7.206666667 | BZ92: =$BZ$91-(($BZ$91-$BZ$96)/5*A4) -> 7.16 | CA92: 7.113 | CB92: 7.066 | CC92: 7.019 | CD92: 6.972 | CE92: 6.925 | CF92: 6.878 | CG92: 6.831 | CH92: 6.784 | CI92: 6.737 | CJ92: =$CJ$91-(($CJ$91-$CJ$96)/5*A4) -> 6.69 | CK92: =Eingabemaske!G$19 -> 4 | CL92: Altherma 3 R W 6 kW | CM92: Altherma 3 R W 6 kW | CN92: 9 | CO92: 3.7 | CQ92: 6
B93: Altherma 3 R W | C93: 6 | D93: ='Altherma 3 R'!$L$20 -> 2.9 | E93: ='Altherma 3 R'!$L$21 -> 3.75 | F93: ='Altherma 3 R'!$L$22 -> 4.85 | G93: 37 | H93: =$H$91-(($H$91-$H$96)/5*A5) -> 5.786 | I93: 5.8376 | J93: 5.8892 | K93: 5.9408 | L93: 5.9924 | M93: 6.044 | N93: 6.0956 | O93: 6.1472 | P93: 6.1988 | Q93: 6.2504 | R93: =$R$91-(($R$91-$R$96)/5*A5) -> 6.302 | S93: 6.35325 | T93: 6.4045 | U93: 6.45575 | V93: 6.507 | W93: 6.55825 | X93: 6.6095 | Y93: 6.66075 | Z93: 6.712 | AA93: 6.76325 | AB93: 6.8145 | AC93: 6.86575 | AD93: 6.917 | AE93: 6.96825 | AF93: 7.0195 | AG93: 7.07075 | AH93: =$AH$91-(($AH$91-$AH$96)/5*A5) -> 7.122 | AI93: 7.1685 | AJ93: 7.215 | AK93: 7.2615 | AL93: =$AL$91-(($AL$91-$AL$96)/5*A5) -> 7.308 | AM93: 7.295 | AN93: 7.282 | AO93: 7.269 | AP93: 7.256 | AQ93: 7.243 | AR93: =$AR$91-(($AR$91-$AR$96)/5*A5) -> 7.23 | AS93: 7.25825 | AT93: 7.2865 | AU93: 7.31475 | AV93: 7.343 | AW93: 7.37125 | AX93: 7.3995 | AY93: 7.42775 | AZ93: =$AZ$91-(($AZ$91-$AZ$96)/5*A5) -> 7.456 | BA93: 7.4776 | BB93: 7.4992 | BC93: 7.5208 | BD93: 7.5424 | BE93: 7.564 | BF93: 7.5856 | BG93: 7.6072 | BH93: 7.6288 | BI93: 7.6504 | BJ93: =$BJ$91-(($BJ$91-$BJ$96)/5*A5) -> 7.672 | BK93: 7.6438 | BL93: 7.6156 | BM93: 7.5874 | BN93: 7.5592 | BO93: 7.531 | BP93: 7.5028 | BQ93: 7.4746 | BR93: 7.4464 | BS93: 7.4182 | BT93: =$BT$91-(($BT$91-$BT$96)/5*A5) -> 7.39 | BU93: 7.34 | BV93: 7.29 | BW93: 7.24 | BX93: 7.19 | BY93: 7.14 | BZ93: =$BZ$91-(($BZ$91-$BZ$96)/5*A5) -> 7.09 | CA93: 7.04 | CB93: 6.99 | CC93: 6.94 | CD93: 6.89 | CE93: 6.84 | CF93: 6.79 | CG93: 6.74 | CH93: 6.69 | CI93: 6.64 | CJ93: =$CJ$91-(($CJ$91-$CJ$96)/5*A5) -> 6.59 | CK93: =Eingabemaske!G$19 -> 4 | CL93: Altherma 3 R W 6 kW | CM93: Altherma 3 R W 6 kW | CN93: 9 | CO93: 3.7 | CQ93: 6
B94: Altherma 3 R W | C94: 6 | D94: ='Altherma 3 R'!$L$20 -> 2.9 | E94: ='Altherma 3 R'!$L$21 -> 3.75 | F94: ='Altherma 3 R'!$L$22 -> 4.85 | G94: 38 | H94: =$H$91-(($H$91-$H$96)/5*A6) -> 5.764 | I94: 5.8144 | J94: 5.8648 | K94: 5.9152 | L94: 5.9656 | M94: 6.016 | N94: 6.0664 | O94: 6.1168 | P94: 6.1672 | Q94: 6.2176 | R94: =$R$91-(($R$91-$R$96)/5*A6) -> 6.268 | S94: 6.318 | T94: 6.368 | U94: 6.418 | V94: 6.468 | W94: 6.518 | X94: 6.568 | Y94: 6.618 | Z94: 6.668 | AA94: 6.718 | AB94: 6.768 | AC94: 6.818 | AD94: 6.868 | AE94: 6.918 | AF94: 6.968 | AG94: 7.018 | AH94: =$AH$91-(($AH$91-$AH$96)/5*A6) -> 7.068 | AI94: 7.1165 | AJ94: 7.165 | AK94: 7.2135 | AL94: =$AL$91-(($AL$91-$AL$96)/5*A6) -> 7.262 | AM94: 7.248333333 | AN94: 7.234666667 | AO94: 7.221 | AP94: 7.207333333 | AQ94: 7.193666667 | AR94: =$AR$91-(($AR$91-$AR$96)/5*A6) -> 7.18 | AS94: 7.20925 | AT94: 7.2385 | AU94: 7.26775 | AV94: 7.297 | AW94: 7.32625 | AX94: 7.3555 | AY94: 7.38475 | AZ94: =$AZ$91-(($AZ$91-$AZ$96)/5*A6) -> 7.414 | BA94: 7.4364 | BB94: 7.4588 | BC94: 7.4812 | BD94: 7.5036 | BE94: 7.526 | BF94: 7.5484 | BG94: 7.5708 | BH94: 7.5932 | BI94: 7.6156 | BJ94: =$BJ$91-(($BJ$91-$BJ$96)/5*A6) -> 7.638 | BK94: 7.6082 | BL94: 7.5784 | BM94: 7.5486 | BN94: 7.5188 | BO94: 7.489 | BP94: 7.4592 | BQ94: 7.4294 | BR94: 7.3996 | BS94: 7.3698 | BT94: =$BT$91-(($BT$91-$BT$96)/5*A6) -> 7.34 | BU94: 7.286666667 | BV94: 7.233333333 | BW94: 7.18 | BX94: 7.126666667 | BY94: 7.073333333 | BZ94: =$BZ$91-(($BZ$91-$BZ$96)/5*A6) -> 7.02 | CA94: 6.967 | CB94: 6.914 | CC94: 6.861 | CD94: 6.808 | CE94: 6.755 | CF94: 6.702 | CG94: 6.649 | CH94: 6.596 | CI94: 6.543 | CJ94: =$CJ$91-(($CJ$91-$CJ$96)/5*A6) -> 6.49 | CK94: =Eingabemaske!G$19 -> 4 | CL94: Altherma 3 R W 6 kW | CM94: Altherma 3 R W 6 kW | CN94: 9 | CO94: 3.7 | CQ94: 6
B95: Altherma 3 R W | C95: 6 | D95: ='Altherma 3 R'!$L$20 -> 2.9 | E95: ='Altherma 3 R'!$L$21 -> 3.75 | F95: ='Altherma 3 R'!$L$22 -> 4.85 | G95: 39 | H95: =$H$91-(($H$91-$H$96)/5*A7) -> 5.742 | I95: 5.7912 | J95: 5.8404 | K95: 5.8896 | L95: 5.9388 | M95: 5.988 | N95: 6.0372 | O95: 6.0864 | P95: 6.1356 | Q95: 6.1848 | R95: =$R$91-(($R$91-$R$96)/5*A7) -> 6.234 | S95: 6.28275 | T95: 6.3315 | U95: 6.38025 | V95: 6.429 | W95: 6.47775 | X95: 6.5265 | Y95: 6.57525 | Z95: 6.624 | AA95: 6.67275 | AB95: 6.7215 | AC95: 6.77025 | AD95: 6.819 | AE95: 6.86775 | AF95: 6.9165 | AG95: 6.96525 | AH95: =$AH$91-(($AH$91-$AH$96)/5*A7) -> 7.014 | AI95: 7.0645 | AJ95: 7.115 | AK95: 7.1655 | AL95: =$AL$91-(($AL$91-$AL$96)/5*A7) -> 7.216 | AM95: 7.201666667 | AN95: 7.187333333 | AO95: 7.173 | AP95: 7.158666667 | AQ95: 7.144333333 | AR95: =$AR$91-(($AR$91-$AR$96)/5*A7) -> 7.13 | AS95: 7.16025 | AT95: 7.1905 | AU95: 7.22075 | AV95: 7.251 | AW95: 7.28125 | AX95: 7.3115 | AY95: 7.34175 | AZ95: =$AZ$91-(($AZ$91-$AZ$96)/5*A7) -> 7.372 | BA95: 7.3952 | BB95: 7.4184 | BC95: 7.4416 | BD95: 7.4648 | BE95: 7.488 | BF95: 7.5112 | BG95: 7.5344 | BH95: 7.5576 | BI95: 7.5808 | BJ95: =$BJ$91-(($BJ$91-$BJ$96)/5*A7) -> 7.604 | BK95: 7.5726 | BL95: 7.5412 | BM95: 7.5098 | BN95: 7.4784 | BO95: 7.447 | BP95: 7.4156 | BQ95: 7.3842 | BR95: 7.3528 | BS95: 7.3214 | BT95: =$BT$91-(($BT$91-$BT$96)/5*A7) -> 7.29 | BU95: 7.233333333 | BV95: 7.176666667 | BW95: 7.12 | BX95: 7.063333333 | BY95: 7.006666667 | BZ95: =$BZ$91-(($BZ$91-$BZ$96)/5*A7) -> 6.95 | CA95: 6.894 | CB95: 6.838 | CC95: 6.782 | CD95: 6.726 | CE95: 6.67 | CF95: 6.614 | CG95: 6.558 | CH95: 6.502 | CI95: 6.446 | CJ95: =$CJ$91-(($CJ$91-$CJ$96)/5*A7) -> 6.39 | CK95: =Eingabemaske!G$19 -> 4 | CL95: Altherma 3 R W 6 kW | CM95: Altherma 3 R W 6 kW | CN95: 9 | CO95: 3.7 | CQ95: 6
B96: Altherma 3 R W | C96: 6 | D96: ='Altherma 3 R'!$L$20 -> 2.9 | E96: ='Altherma 3 R'!$L$21 -> 3.75 | F96: ='Altherma 3 R'!$L$22 -> 4.85 | G96: 40 | H96: ='Altherma 3 R'!E19 -> 5.72 | I96: =$H96-(($H96-$R96)/$R$3*I$3) -> 5.768 | J96: 5.816 | K96: 5.864 | L96: 5.912 | M96: 5.96 | N96: 6.008 | O96: 6.056 | P96: 6.104 | Q96: 6.152 | R96: ='Altherma 3 R'!E20 -> 6.2 | S96: =$R96-(($R96-$AH96)/$AH$3*S$3) -> 6.2475 | T96: 6.295 | U96: 6.3425 | V96: 6.39 | W96: 6.4375 | X96: 6.485 | Y96: 6.5325 | Z96: 6.58 | AA96: 6.6275 | AB96: 6.675 | AC96: 6.7225 | AD96: 6.77 | AE96: 6.8175 | AF96: 6.865 | AG96: 6.9125 | AH96: ='Altherma 3 R'!E21 -> 6.96 | AI96: 7.0125 | AJ96: 7.065 | AK96: 7.1175 | AL96: ='Altherma 3 R'!E23 -> 7.17 | AM96: =$AL96-(($AL96-$AR96)/$AR$1*AM$1) -> 7.155 | AN96: 7.14 | AO96: 7.125 | AP96: 7.11 | AQ96: 7.095 | AR96: ='Altherma 3 R'!E22 -> 7.08 | AS96: =$AR96-(($AR96-$AZ96)/$AZ$3*AS$3) -> 7.11125 | AT96: 7.1425 | AU96: 7.17375 | AV96: 7.205 | AW96: 7.23625 | AX96: 7.2675 | AY96: 7.29875 | AZ96: ='Altherma 3 R'!E24 -> 7.33 | BA96: =$AZ96-(($AZ96-$BJ96)/$BJ$3*BA$3) -> 7.354 | BB96: 7.378 | BC96: 7.402 | BD96: 7.426 | BE96: 7.45 | BF96: 7.474 | BG96: 7.498 | BH96: 7.522 | BI96: 7.546 | BJ96: ='Altherma 3 R'!E25 -> 7.57 | BK96: =$BJ96-(($BJ96-$BT96)/$BT$3*BK$3) -> 7.537 | BL96: 7.504 | BM96: 7.471 | BN96: 7.438 | BO96: 7.405 | BP96: 7.372 | BQ96: 7.339 | BR96: 7.306 | BS96: 7.273 | BT96: ='Altherma 3 R'!E26 -> 7.24 | BU96: =$BT96-(($BT96-$BZ96)/$BZ$3*BU$3) -> 7.18 | BV96: 7.12 | BW96: 7.06 | BX96: 7 | BY96: 6.94 | BZ96: ='Altherma 3 R'!E27 -> 6.88 | CA96: =$BZ96-(($BZ96-$CJ96)/$CJ$3*CA$3) -> 6.821 | CB96: 6.762 | CC96: 6.703 | CD96: 6.644 | CE96: 6.585 | CF96: 6.526 | CG96: 6.467 | CH96: 6.408 | CI96: 6.349 | CJ96: ='Altherma 3 R'!E28 -> 6.29 | CK96: =Eingabemaske!G$19 -> 4 | CL96: Altherma 3 R W 6 kW | CM96: Altherma 3 R W 6 kW | CN96: 9 | CO96: 3.7 | CQ96: 6
B97: Altherma 3 R W | C97: 6 | D97: ='Altherma 3 R'!$L$20 -> 2.9 | E97: ='Altherma 3 R'!$L$21 -> 3.75 | F97: ='Altherma 3 R'!$L$22 -> 4.85 | G97: 41 | H97: =$H$96-(($H$96-$H$101)/5*A4) -> 5.7 | I97: 5.7466 | J97: 5.7932 | K97: 5.8398 | L97: 5.8864 | M97: 5.933 | N97: 5.9796 | O97: 6.0262 | P97: 6.0728 | Q97: 6.1194 | R97: =$R$96-(($R$96-$R$101)/5*A4) -> 6.166 | S97: 6.21225 | T97: 6.2585 | U97: 6.30475 | V97: 6.351 | W97: 6.39725 | X97: 6.4435 | Y97: 6.48975 | Z97: 6.536 | AA97: 6.58225 | AB97: 6.6285 | AC97: 6.67475 | AD97: 6.721 | AE97: 6.76725 | AF97: 6.8135 | AG97: 6.85975 | AH97: =$AH$96-(($AH$96-$AH$101)/5*A4) -> 6.906 | AI97: 6.96 | AJ97: 7.014 | AK97: 7.068 | AL97: =$AL$96-(($AL$96-$AL$101)/5*A4) -> 7.122 | AM97: 7.106666667 | AN97: 7.091333333 | AO97: 7.076 | AP97: 7.060666667 | AQ97: 7.045333333 | AR97: =$AR$96-(($AR$96-$AR$101)/5*A4) -> 7.03 | AS97: 7.06225 | AT97: 7.0945 | AU97: 7.12675 | AV97: 7.159 | AW97: 7.19125 | AX97: 7.2235 | AY97: 7.25575 | AZ97: =$AZ$96-(($AZ$96-$AZ$101)/5*A4) -> 7.288 | BA97: 7.3128 | BB97: 7.3376 | BC97: 7.3624 | BD97: 7.3872 | BE97: 7.412 | BF97: 7.4368 | BG97: 7.4616 | BH97: 7.4864 | BI97: 7.5112 | BJ97: =$BJ$96-(($BJ$96-$BJ$101)/5*A4) -> 7.536 | BK97: 7.5014 | BL97: 7.4668 | BM97: 7.4322 | BN97: 7.3976 | BO97: 7.363 | BP97: 7.3284 | BQ97: 7.2938 | BR97: 7.2592 | BS97: 7.2246 | BT97: =$BT$96-(($BT$96-$BT$101)/5*A4) -> 7.19 | BU97: 7.127 | BV97: 7.064 | BW97: 7.001 | BX97: 6.938 | BY97: 6.875 | BZ97: =$BZ$96-(($BZ$96-$BZ$101)/5*A4) -> 6.812 | CA97: 6.7496 | CB97: 6.6872 | CC97: 6.6248 | CD97: 6.5624 | CE97: 6.5 | CF97: 6.4376 | CG97: 6.3752 | CH97: 6.3128 | CI97: 6.2504 | CJ97: =$CJ$96-(($CJ$96-$CJ$101)/5*A4) -> 6.188 | CK97: =Eingabemaske!G$19 -> 4 | CL97: Altherma 3 R W 6 kW | CM97: Altherma 3 R W 6 kW | CN97: 9 | CO97: 3.7 | CQ97: 6
B98: Altherma 3 R W | C98: 6 | D98: ='Altherma 3 R'!$L$20 -> 2.9 | E98: ='Altherma 3 R'!$L$21 -> 3.75 | F98: ='Altherma 3 R'!$L$22 -> 4.85 | G98: 42 | H98: =$H$96-(($H$96-$H$101)/5*A5) -> 5.68 | I98: 5.7252 | J98: 5.7704 | K98: 5.8156 | L98: 5.8608 | M98: 5.906 | N98: 5.9512 | O98: 5.9964 | P98: 6.0416 | Q98: 6.0868 | R98: =$R$96-(($R$96-$R$101)/5*A5) -> 6.132 | S98: 6.177 | T98: 6.222 | U98: 6.267 | V98: 6.312 | W98: 6.357 | X98: 6.402 | Y98: 6.447 | Z98: 6.492 | AA98: 6.537 | AB98: 6.582 | AC98: 6.627 | AD98: 6.672 | AE98: 6.717 | AF98: 6.762 | AG98: 6.807 | AH98: =$AH$96-(($AH$96-$AH$101)/5*A5) -> 6.852 | AI98: 6.9075 | AJ98: 6.963 | AK98: 7.0185 | AL98: =$AL$96-(($AL$96-$AL$101)/5*A5) -> 7.074 | AM98: 7.058333333 | AN98: 7.042666667 | AO98: 7.027 | AP98: 7.011333333 | AQ98: 6.995666667 | AR98: =$AR$96-(($AR$96-$AR$101)/5*A5) -> 6.98 | AS98: 7.01325 | AT98: 7.0465 | AU98: 7.07975 | AV98: 7.113 | AW98: 7.14625 | AX98: 7.1795 | AY98: 7.21275 | AZ98: =$AZ$96-(($AZ$96-$AZ$101)/5*A5) -> 7.246 | BA98: 7.2716 | BB98: 7.2972 | BC98: 7.3228 | BD98: 7.3484 | BE98: 7.374 | BF98: 7.3996 | BG98: 7.4252 | BH98: 7.4508 | BI98: 7.4764 | BJ98: =$BJ$96-(($BJ$96-$BJ$101)/5*A5) -> 7.502 | BK98: 7.4658 | BL98: 7.4296 | BM98: 7.3934 | BN98: 7.3572 | BO98: 7.321 | BP98: 7.2848 | BQ98: 7.2486 | BR98: 7.2124 | BS98: 7.1762 | BT98: =$BT$96-(($BT$96-$BT$101)/5*A5) -> 7.14 | BU98: 7.074 | BV98: 7.008 | BW98: 6.942 | BX98: 6.876 | BY98: 6.81 | BZ98: =$BZ$96-(($BZ$96-$BZ$101)/5*A5) -> 6.744 | CA98: 6.6782 | CB98: 6.6124 | CC98: 6.5466 | CD98: 6.4808 | CE98: 6.415 | CF98: 6.3492 | CG98: 6.2834 | CH98: 6.2176 | CI98: 6.1518 | CJ98: =$CJ$96-(($CJ$96-$CJ$101)/5*A5) -> 6.086 | CK98: =Eingabemaske!G$19 -> 4 | CL98: Altherma 3 R W 6 kW | CM98: Altherma 3 R W 6 kW | CN98: 9 | CO98: 3.7 | CQ98: 6
B99: Altherma 3 R W | C99: 6 | D99: ='Altherma 3 R'!$L$20 -> 2.9 | E99: ='Altherma 3 R'!$L$21 -> 3.75 | F99: ='Altherma 3 R'!$L$22 -> 4.85 | G99: 43 | H99: =$H$96-(($H$96-$H$101)/5*A6) -> 5.66 | I99: 5.7038 | J99: 5.7476 | K99: 5.7914 | L99: 5.8352 | M99: 5.879 | N99: 5.9228 | O99: 5.9666 | P99: 6.0104 | Q99: 6.0542 | R99: =$R$96-(($R$96-$R$101)/5*A6) -> 6.098 | S99: 6.14175 | T99: 6.1855 | U99: 6.22925 | V99: 6.273 | W99: 6.31675 | X99: 6.3605 | Y99: 6.40425 | Z99: 6.448 | AA99: 6.49175 | AB99: 6.5355 | AC99: 6.57925 | AD99: 6.623 | AE99: 6.66675 | AF99: 6.7105 | AG99: 6.75425 | AH99: =$AH$96-(($AH$96-$AH$101)/5*A6) -> 6.798 | AI99: 6.855 | AJ99: 6.912 | AK99: 6.969 | AL99: =$AL$96-(($AL$96-$AL$101)/5*A6) -> 7.026 | AM99: 7.01 | AN99: 6.994 | AO99: 6.978 | AP99: 6.962 | AQ99: 6.946 | AR99: =$AR$96-(($AR$96-$AR$101)/5*A6) -> 6.93 | AS99: 6.96425 | AT99: 6.9985 | AU99: 7.03275 | AV99: 7.067 | AW99: 7.10125 | AX99: 7.1355 | AY99: 7.16975 | AZ99: =$AZ$96-(($AZ$96-$AZ$101)/5*A6) -> 7.204 | BA99: 7.2304 | BB99: 7.2568 | BC99: 7.2832 | BD99: 7.3096 | BE99: 7.336 | BF99: 7.3624 | BG99: 7.3888 | BH99: 7.4152 | BI99: 7.4416 | BJ99: =$BJ$96-(($BJ$96-$BJ$101)/5*A6) -> 7.468 | BK99: 7.4302 | BL99: 7.3924 | BM99: 7.3546 | BN99: 7.3168 | BO99: 7.279 | BP99: 7.2412 | BQ99: 7.2034 | BR99: 7.1656 | BS99: 7.1278 | BT99: =$BT$96-(($BT$96-$BT$101)/5*A6) -> 7.09 | BU99: 7.021 | BV99: 6.952 | BW99: 6.883 | BX99: 6.814 | BY99: 6.745 | BZ99: =$BZ$96-(($BZ$96-$BZ$101)/5*A6) -> 6.676 | CA99: 6.6068 | CB99: 6.5376 | CC99: 6.4684 | CD99: 6.3992 | CE99: 6.33 | CF99: 6.2608 | CG99: 6.1916 | CH99: 6.1224 | CI99: 6.0532 | CJ99: =$CJ$96-(($CJ$96-$CJ$101)/5*A6) -> 5.984 | CK99: =Eingabemaske!G$19 -> 4 | CL99: Altherma 3 R W 6 kW | CM99: Altherma 3 R W 6 kW | CN99: 9 | CO99: 3.7 | CQ99: 6
B100: Altherma 3 R W | C100: 6 | D100: ='Altherma 3 R'!$L$20 -> 2.9 | E100: ='Altherma 3 R'!$L$21 -> 3.75 | F100: ='Altherma 3 R'!$L$22 -> 4.85 | G100: 44 | H100: =$H$96-(($H$96-$H$101)/5*A7) -> 5.64 | I100: 5.6824 | J100: 5.7248 | K100: 5.7672 | L100: 5.8096 | M100: 5.852 | N100: 5.8944 | O100: 5.9368 | P100: 5.9792 | Q100: 6.0216 | R100: =$R$96-(($R$96-$R$101)/5*A7) -> 6.064 | S100: 6.1065 | T100: 6.149 | U100: 6.1915 | V100: 6.234 | W100: 6.2765 | X100: 6.319 | Y100: 6.3615 | Z100: 6.404 | AA100: 6.4465 | AB100: 6.489 | AC100: 6.5315 | AD100: 6.574 | AE100: 6.6165 | AF100: 6.659 | AG100: 6.7015 | AH100: =$AH$96-(($AH$96-$AH$101)/5*A7) -> 6.744 | AI100: 6.8025 | AJ100: 6.861 | AK100: 6.9195 | AL100: =$AL$96-(($AL$96-$AL$101)/5*A7) -> 6.978 | AM100: 6.961666667 | AN100: 6.945333333 | AO100: 6.929 | AP100: 6.912666667 | AQ100: 6.896333333 | AR100: =$AR$96-(($AR$96-$AR$101)/5*A7) -> 6.88 | AS100: 6.91525 | AT100: 6.9505 | AU100: 6.98575 | AV100: 7.021 | AW100: 7.05625 | AX100: 7.0915 | AY100: 7.12675 | AZ100: =$AZ$96-(($AZ$96-$AZ$101)/5*A7) -> 7.162 | BA100: 7.1892 | BB100: 7.2164 | BC100: 7.2436 | BD100: 7.2708 | BE100: 7.298 | BF100: 7.3252 | BG100: 7.3524 | BH100: 7.3796 | BI100: 7.4068 | BJ100: =$BJ$96-(($BJ$96-$BJ$101)/5*A7) -> 7.434 | BK100: 7.3946 | BL100: 7.3552 | BM100: 7.3158 | BN100: 7.2764 | BO100: 7.237 | BP100: 7.1976 | BQ100: 7.1582 | BR100: 7.1188 | BS100: 7.0794 | BT100: =$BT$96-(($BT$96-$BT$101)/5*A7) -> 7.04 | BU100: 6.968 | BV100: 6.896 | BW100: 6.824 | BX100: 6.752 | BY100: 6.68 | BZ100: =$BZ$96-(($BZ$96-$BZ$101)/5*A7) -> 6.608 | CA100: 6.5354 | CB100: 6.4628 | CC100: 6.3902 | CD100: 6.3176 | CE100: 6.245 | CF100: 6.1724 | CG100: 6.0998 | CH100: 6.0272 | CI100: 5.9546 | CJ100: =$CJ$96-(($CJ$96-$CJ$101)/5*A7) -> 5.882 | CK100: =Eingabemaske!G$19 -> 4 | CL100: Altherma 3 R W 6 kW | CM100: Altherma 3 R W 6 kW | CN100: 9 | CO100: 3.7 | CQ100: 6
B101: Altherma 3 R W | C101: 6 | D101: ='Altherma 3 R'!$L$20 -> 2.9 | E101: ='Altherma 3 R'!$L$21 -> 3.75 | F101: ='Altherma 3 R'!$L$22 -> 4.85 | G101: 45 | H101: ='Altherma 3 R'!F19 -> 5.62 | I101: 5.661 | J101: 5.702 | K101: 5.743 | L101: 5.784 | M101: 5.825 | N101: 5.866 | O101: 5.907 | P101: 5.948 | Q101: 5.989 | R101: ='Altherma 3 R'!F20 -> 6.03 | S101: 6.07125 | T101: 6.1125 | U101: 6.15375 | V101: 6.195 | W101: 6.23625 | X101: 6.2775 | Y101: 6.31875 | Z101: 6.36 | AA101: 6.40125 | AB101: 6.4425 | AC101: 6.48375 | AD101: 6.525 | AE101: 6.56625 | AF101: 6.6075 | AG101: 6.64875 | AH101: ='Altherma 3 R'!F21 -> 6.69 | AI101: 6.75 | AJ101: 6.81 | AK101: 6.87 | AL101: ='Altherma 3 R'!F23 -> 6.93 | AM101: 6.913333333 | AN101: 6.896666667 | AO101: 6.88 | AP101: 6.863333333 | AQ101: 6.846666667 | AR101: ='Altherma 3 R'!F22 -> 6.83 | AS101: 6.86625 | AT101: 6.9025 | AU101: 6.93875 | AV101: 6.975 | AW101: 7.01125 | AX101: 7.0475 | AY101: 7.08375 | AZ101: ='Altherma 3 R'!F24 -> 7.12 | BA101: 7.148 | BB101: 7.176 | BC101: 7.204 | BD101: 7.232 | BE101: 7.26 | BF101: 7.288 | BG101: 7.316 | BH101: 7.344 | BI101: 7.372 | BJ101: ='Altherma 3 R'!F25 -> 7.4 | BK101: 7.359 | BL101: 7.318 | BM101: 7.277 | BN101: 7.236 | BO101: 7.195 | BP101: 7.154 | BQ101: 7.113 | BR101: 7.072 | BS101: 7.031 | BT101: ='Altherma 3 R'!F26 -> 6.99 | BU101: 6.915 | BV101: 6.84 | BW101: 6.765 | BX101: 6.69 | BY101: 6.615 | BZ101: ='Altherma 3 R'!F27 -> 6.54 | CA101: 6.464 | CB101: 6.388 | CC101: 6.312 | CD101: 6.236 | CE101: 6.16 | CF101: 6.084 | CG101: 6.008 | CH101: 5.932 | CI101: 5.856 | CJ101: ='Altherma 3 R'!F28 -> 5.78 | CK101: =Eingabemaske!G$19 -> 4 | CL101: Altherma 3 R W 6 kW | CM101: Altherma 3 R W 6 kW | CN101: 9 | CO101: 3.7 | CQ101: 6
B102: Altherma 3 R W | C102: 6 | D102: ='Altherma 3 R'!$L$20 -> 2.9 | E102: ='Altherma 3 R'!$L$21 -> 3.75 | F102: ='Altherma 3 R'!$L$22 -> 4.85 | G102: 46 | H102: =$H$101-(($H$101-$H$106)/5*A4) -> 5.576 | I102: 5.6144 | J102: 5.6528 | K102: 5.6912 | L102: 5.7296 | M102: 5.768 | N102: 5.8064 | O102: 5.8448 | P102: 5.8832 | Q102: 5.9216 | R102: =$R$101-(($R$101-$R$106)/5*A4) -> 5.96 | S102: 5.9985 | T102: 6.037 | U102: 6.0755 | V102: 6.114 | W102: 6.1525 | X102: 6.191 | Y102: 6.2295 | Z102: 6.268 | AA102: 6.3065 | AB102: 6.345 | AC102: 6.3835 | AD102: 6.422 | AE102: 6.4605 | AF102: 6.499 | AG102: 6.5375 | AH102: =$AH$101-(($AH$101-$AH$106)/5*A4) -> 6.576 | AI102: 6.6425 | AJ102: 6.709 | AK102: 6.7755 | AL102: =$AL$101-(($AL$101-$AL$106)/5*A4) -> 6.842 | AM102: 6.823666667 | AN102: 6.805333333 | AO102: 6.787 | AP102: 6.768666667 | AQ102: 6.750333333 | AR102: =$AR$101-(($AR$101-$AR$106)/5*A4) -> 6.732 | AS102: 6.77225 | AT102: 6.8125 | AU102: 6.85275 | AV102: 6.893 | AW102: 6.93325 | AX102: 6.9735 | AY102: 7.01375 | AZ102: =$AZ$101-(($AZ$101-$AZ$106)/5*A4) -> 7.054 | BA102: 7.085 | BB102: 7.116 | BC102: 7.147 | BD102: 7.178 | BE102: 7.209 | BF102: 7.24 | BG102: 7.271 | BH102: 7.302 | BI102: 7.333 | BJ102: =$BJ$101-(($BJ$101-$BJ$106)/5*A4) -> 7.364 | BK102: 7.322 | BL102: 7.28 | BM102: 7.238 | BN102: 7.196 | BO102: 7.154 | BP102: 7.112 | BQ102: 7.07 | BR102: 7.028 | BS102: 6.986 | BT102: =$BT$101-(($BT$101-$BT$106)/5*A4) -> 6.944 | BU102: 6.864333333 | BV102: 6.784666667 | BW102: 6.705 | BX102: 6.625333333 | BY102: 6.545666667 | BZ102: =$BZ$101-(($BZ$101-$BZ$106)/5*A4) -> 6.466 | CA102: 6.3856 | CB102: 6.3052 | CC102: 6.2248 | CD102: 6.1444 | CE102: 6.064 | CF102: 5.9836 | CG102: 5.9032 | CH102: 5.8228 | CI102: 5.7424 | CJ102: =$CJ$101-(($CJ$101-$CJ$106)/5*A4) -> 5.662 | CK102: =Eingabemaske!G$19 -> 4 | CL102: Altherma 3 R W 6 kW | CM102: Altherma 3 R W 6 kW | CN102: 9 | CO102: 3.7 | CQ102: 6
B103: Altherma 3 R W | C103: 6 | D103: ='Altherma 3 R'!$L$20 -> 2.9 | E103: ='Altherma 3 R'!$L$21 -> 3.75 | F103: ='Altherma 3 R'!$L$22 -> 4.85 | G103: 47 | H103: =$H$101-(($H$101-$H$106)/5*A5) -> 5.532 | I103: 5.5678 | J103: 5.6036 | K103: 5.6394 | L103: 5.6752 | M103: 5.711 | N103: 5.7468 | O103: 5.7826 | P103: 5.8184 | Q103: 5.8542 | R103: =$R$101-(($R$101-$R$106)/5*A5) -> 5.89 | S103: 5.92575 | T103: 5.9615 | U103: 5.99725 | V103: 6.033 | W103: 6.06875 | X103: 6.1045 | Y103: 6.14025 | Z103: 6.176 | AA103: 6.21175 | AB103: 6.2475 | AC103: 6.28325 | AD103: 6.319 | AE103: 6.35475 | AF103: 6.3905 | AG103: 6.42625 | AH103: =$AH$101-(($AH$101-$AH$106)/5*A5) -> 6.462 | AI103: 6.535 | AJ103: 6.608 | AK103: 6.681 | AL103: =$AL$101-(($AL$101-$AL$106)/5*A5) -> 6.754 | AM103: 6.734 | AN103: 6.714 | AO103: 6.694 | AP103: 6.674 | AQ103: 6.654 | AR103: =$AR$101-(($AR$101-$AR$106)/5*A5) -> 6.634 | AS103: 6.67825 | AT103: 6.7225 | AU103: 6.76675 | AV103: 6.811 | AW103: 6.85525 | AX103: 6.8995 | AY103: 6.94375 | AZ103: =$AZ$101-(($AZ$101-$AZ$106)/5*A5) -> 6.988 | BA103: 7.022 | BB103: 7.056 | BC103: 7.09 | BD103: 7.124 | BE103: 7.158 | BF103: 7.192 | BG103: 7.226 | BH103: 7.26 | BI103: 7.294 | BJ103: =$BJ$101-(($BJ$101-$BJ$106)/5*A5) -> 7.328 | BK103: 7.285 | BL103: 7.242 | BM103: 7.199 | BN103: 7.156 | BO103: 7.113 | BP103: 7.07 | BQ103: 7.027 | BR103: 6.984 | BS103: 6.941 | BT103: =$BT$101-(($BT$101-$BT$106)/5*A5) -> 6.898 | BU103: 6.813666667 | BV103: 6.729333333 | BW103: 6.645 | BX103: 6.560666667 | BY103: 6.476333333 | BZ103: =$BZ$101-(($BZ$101-$BZ$106)/5*A5) -> 6.392 | CA103: 6.3072 | CB103: 6.2224 | CC103: 6.1376 | CD103: 6.0528 | CE103: 5.968 | CF103: 5.8832 | CG103: 5.7984 | CH103: 5.7136 | CI103: 5.6288 | CJ103: =$CJ$101-(($CJ$101-$CJ$106)/5*A5) -> 5.544 | CK103: =Eingabemaske!G$19 -> 4 | CL103: Altherma 3 R W 6 kW | CM103: Altherma 3 R W 6 kW | CN103: 9 | CO103: 3.7 | CQ103: 6
B104: Altherma 3 R W | C104: 6 | D104: ='Altherma 3 R'!$L$20 -> 2.9 | E104: ='Altherma 3 R'!$L$21 -> 3.75 | F104: ='Altherma 3 R'!$L$22 -> 4.85 | G104: 48 | H104: =$H$101-(($H$101-$H$106)/5*A6) -> 5.488 | I104: 5.5212 | J104: 5.5544 | K104: 5.5876 | L104: 5.6208 | M104: 5.654 | N104: 5.6872 | O104: 5.7204 | P104: 5.7536 | Q104: 5.7868 | R104: =$R$101-(($R$101-$R$106)/5*A6) -> 5.82 | S104: 5.853 | T104: 5.886 | U104: 5.919 | V104: 5.952 | W104: 5.985 | X104: 6.018 | Y104: 6.051 | Z104: 6.084 | AA104: 6.117 | AB104: 6.15 | AC104: 6.183 | AD104: 6.216 | AE104: 6.249 | AF104: 6.282 | AG104: 6.315 | AH104: =$AH$101-(($AH$101-$AH$106)/5*A6) -> 6.348 | AI104: 6.4275 | AJ104: 6.507 | AK104: 6.5865 | AL104: =$AL$101-(($AL$101-$AL$106)/5*A6) -> 6.666 | AM104: 6.644333333 | AN104: 6.622666667 | AO104: 6.601 | AP104: 6.579333333 | AQ104: 6.557666667 | AR104: =$AR$101-(($AR$101-$AR$106)/5*A6) -> 6.536 | AS104: 6.58425 | AT104: 6.6325 | AU104: 6.68075 | AV104: 6.729 | AW104: 6.77725 | AX104: 6.8255 | AY104: 6.87375 | AZ104: =$AZ$101-(($AZ$101-$AZ$106)/5*A6) -> 6.922 | BA104: 6.959 | BB104: 6.996 | BC104: 7.033 | BD104: 7.07 | BE104: 7.107 | BF104: 7.144 | BG104: 7.181 | BH104: 7.218 | BI104: 7.255 | BJ104: =$BJ$101-(($BJ$101-$BJ$106)/5*A6) -> 7.292 | BK104: 7.248 | BL104: 7.204 | BM104: 7.16 | BN104: 7.116 | BO104: 7.072 | BP104: 7.028 | BQ104: 6.984 | BR104: 6.94 | BS104: 6.896 | BT104: =$BT$101-(($BT$101-$BT$106)/5*A6) -> 6.852 | BU104: 6.763 | BV104: 6.674 | BW104: 6.585 | BX104: 6.496 | BY104: 6.407 | BZ104: =$BZ$101-(($BZ$101-$BZ$106)/5*A6) -> 6.318 | CA104: 6.2288 | CB104: 6.1396 | CC104: 6.0504 | CD104: 5.9612 | CE104: 5.872 | CF104: 5.7828 | CG104: 5.6936 | CH104: 5.6044 | CI104: 5.5152 | CJ104: =$CJ$101-(($CJ$101-$CJ$106)/5*A6) -> 5.426 | CK104: =Eingabemaske!G$19 -> 4 | CL104: Altherma 3 R W 6 kW | CM104: Altherma 3 R W 6 kW | CN104: 9 | CO104: 3.7 | CQ104: 6
B105: Altherma 3 R W | C105: 6 | D105: ='Altherma 3 R'!$L$20 -> 2.9 | E105: ='Altherma 3 R'!$L$21 -> 3.75 | F105: ='Altherma 3 R'!$L$22 -> 4.85 | G105: 49 | H105: =$H$101-(($H$101-$H$106)/5*A7) -> 5.444 | I105: 5.4746 | J105: 5.5052 | K105: 5.5358 | L105: 5.5664 | M105: 5.597 | N105: 5.6276 | O105: 5.6582 | P105: 5.6888 | Q105: 5.7194 | R105: =$R$101-(($R$101-$R$106)/5*A7) -> 5.75 | S105: 5.78025 | T105: 5.8105 | U105: 5.84075 | V105: 5.871 | W105: 5.90125 | X105: 5.9315 | Y105: 5.96175 | Z105: 5.992 | AA105: 6.02225 | AB105: 6.0525 | AC105: 6.08275 | AD105: 6.113 | AE105: 6.14325 | AF105: 6.1735 | AG105: 6.20375 | AH105: =$AH$101-(($AH$101-$AH$106)/5*A7) -> 6.234 | AI105: 6.32 | AJ105: 6.406 | AK105: 6.492 | AL105: =$AL$101-(($AL$101-$AL$106)/5*A7) -> 6.578 | AM105: 6.554666667 | AN105: 6.531333333 | AO105: 6.508 | AP105: 6.484666667 | AQ105: 6.461333333 | AR105: =$AR$101-(($AR$101-$AR$106)/5*A7) -> 6.438 | AS105: 6.49025 | AT105: 6.5425 | AU105: 6.59475 | AV105: 6.647 | AW105: 6.69925 | AX105: 6.7515 | AY105: 6.80375 | AZ105: =$AZ$101-(($AZ$101-$AZ$106)/5*A7) -> 6.856 | BA105: 6.896 | BB105: 6.936 | BC105: 6.976 | BD105: 7.016 | BE105: 7.056 | BF105: 7.096 | BG105: 7.136 | BH105: 7.176 | BI105: 7.216 | BJ105: =$BJ$101-(($BJ$101-$BJ$106)/5*A7) -> 7.256 | BK105: 7.211 | BL105: 7.166 | BM105: 7.121 | BN105: 7.076 | BO105: 7.031 | BP105: 6.986 | BQ105: 6.941 | BR105: 6.896 | BS105: 6.851 | BT105: =$BT$101-(($BT$101-$BT$106)/5*A7) -> 6.806 | BU105: 6.712333333 | BV105: 6.618666667 | BW105: 6.525 | BX105: 6.431333333 | BY105: 6.337666667 | BZ105: =$BZ$101-(($BZ$101-$BZ$106)/5*A7) -> 6.244 | CA105: 6.1504 | CB105: 6.0568 | CC105: 5.9632 | CD105: 5.8696 | CE105: 5.776 | CF105: 5.6824 | CG105: 5.5888 | CH105: 5.4952 | CI105: 5.4016 | CJ105: =$CJ$101-(($CJ$101-$CJ$106)/5*A7) -> 5.308 | CK105: =Eingabemaske!G$19 -> 4 | CL105: Altherma 3 R W 6 kW | CM105: Altherma 3 R W 6 kW | CN105: 9 | CO105: 3.7 | CQ105: 6
B106: Altherma 3 R W | C106: 6 | D106: ='Altherma 3 R'!$L$20 -> 2.9 | E106: ='Altherma 3 R'!$L$21 -> 3.75 | F106: ='Altherma 3 R'!$L$22 -> 4.85 | G106: 50 | H106: ='Altherma 3 R'!G19 -> 5.4 | I106: 5.428 | J106: 5.456 | K106: 5.484 | L106: 5.512 | M106: 5.54 | N106: 5.568 | O106: 5.596 | P106: 5.624 | Q106: 5.652 | R106: ='Altherma 3 R'!G20 -> 5.68 | S106: =$R106-(($R106-$AH106)/$AH$3*S$3) -> 5.7075 | T106: 5.735 | U106: 5.7625 | V106: 5.79 | W106: 5.8175 | X106: 5.845 | Y106: 5.8725 | Z106: 5.9 | AA106: 5.9275 | AB106: 5.955 | AC106: 5.9825 | AD106: 6.01 | AE106: 6.0375 | AF106: 6.065 | AG106: 6.0925 | AH106: ='Altherma 3 R'!G21 -> 6.12 | AI106: 6.2125 | AJ106: 6.305 | AK106: 6.3975 | AL106: ='Altherma 3 R'!G23 -> 6.49 | AM106: =$AL106-(($AL106-$AR106)/$AR$1*AM$1) -> 6.465 | AN106: 6.44 | AO106: 6.415 | AP106: 6.39 | AQ106: 6.365 | AR106: ='Altherma 3 R'!G22 -> 6.34 | AS106: =$AR106-(($AR106-$AZ106)/$AZ$3*AS$3) -> 6.39625 | AT106: 6.4525 | AU106: 6.50875 | AV106: 6.565 | AW106: 6.62125 | AX106: 6.6775 | AY106: 6.73375 | AZ106: ='Altherma 3 R'!G24 -> 6.79 | BA106: =$AZ106-(($AZ106-$BJ106)/$BJ$3*BA$3) -> 6.833 | BB106: 6.876 | BC106: 6.919 | BD106: 6.962 | BE106: 7.005 | BF106: 7.048 | BG106: 7.091 | BH106: 7.134 | BI106: 7.177 | BJ106: ='Altherma 3 R'!G25 -> 7.22 | BK106: =$BJ106-(($BJ106-$BT106)/$BT$3*BK$3) -> 7.174 | BL106: 7.128 | BM106: 7.082 | BN106: 7.036 | BO106: 6.99 | BP106: 6.944 | BQ106: 6.898 | BR106: 6.852 | BS106: 6.806 | BT106: ='Altherma 3 R'!G26 -> 6.76 | BU106: =$BT106-(($BT106-$BZ106)/$BZ$3*BU$3) -> 6.661666667 | BV106: 6.563333333 | BW106: 6.465 | BX106: 6.366666667 | BY106: 6.268333333 | BZ106: ='Altherma 3 R'!G27 -> 6.17 | CA106: =$BZ106-(($BZ106-$CJ106)/$CJ$3*CA$3) -> 6.072 | CB106: 5.974 | CC106: 5.876 | CD106: 5.778 | CE106: 5.68 | CF106: 5.582 | CG106: 5.484 | CH106: 5.386 | CI106: 5.288 | CJ106: ='Altherma 3 R'!G28 -> 5.19 | CK106: =Eingabemaske!G$19 -> 4 | CL106: Altherma 3 R W 6 kW | CM106: Altherma 3 R W 6 kW | CN106: 9 | CO106: 3.7 | CQ106: 6
B107: Altherma 3 R W | C107: 6 | D107: ='Altherma 3 R'!$L$20 -> 2.9 | E107: ='Altherma 3 R'!$L$21 -> 3.75 | F107: ='Altherma 3 R'!$L$22 -> 4.85 | G107: 51 | R107: =$R$106-(($R$106-$R$111)/5*A4) -> 5.526 | S107: 5.556 | T107: 5.586 | U107: 5.616 | V107: 5.646 | W107: 5.676 | X107: 5.706 | Y107: 5.736 | Z107: 5.766 | AA107: 5.796 | AB107: 5.826 | AC107: 5.856 | AD107: 5.886 | AE107: 5.916 | AF107: 5.946 | AG107: 5.976 | AH107: =$AH$106-(($AH$106-$AH$111)/5*A4) -> 6.006 | AI107: 6.1055 | AJ107: 6.205 | AK107: 6.3045 | AL107: =$AL$106-(($AL$106-$AL$111)/5*A4) -> 6.404 | AM107: 6.377 | AN107: 6.35 | AO107: 6.323 | AP107: 6.296 | AQ107: 6.269 | AR107: =$AR$106-(($AR$106-$AR$111)/5*A4) -> 6.242 | AS107: 6.30225 | AT107: 6.3625 | AU107: 6.42275 | AV107: 6.483 | AW107: 6.54325 | AX107: 6.6035 | AY107: 6.66375 | AZ107: =$AZ$106-(($AZ$106-$AZ$111)/5*A4) -> 6.724 | BA107: 6.7698 | BB107: 6.8156 | BC107: 6.8614 | BD107: 6.9072 | BE107: 6.953 | BF107: 6.9988 | BG107: 7.0446 | BH107: 7.0904 | BI107: 7.1362 | BJ107: =$BJ$106-(($BJ$106-$BJ$111)/5*A4) -> 7.182 | BK107: 7.1354 | BL107: 7.0888 | BM107: 7.0422 | BN107: 6.9956 | BO107: 6.949 | BP107: 6.9024 | BQ107: 6.8558 | BR107: 6.8092 | BS107: 6.7626 | BT107: =$BT$106-(($BT$106-$BT$111)/5*A4) -> 6.716 | BU107: 6.613 | BV107: 6.51 | BW107: 6.407 | BX107: 6.304 | BY107: 6.201 | BZ107: =$BZ$106-(($BZ$106-$BZ$111)/5*A4) -> 6.098 | CA107: 5.9954 | CB107: 5.8928 | CC107: 5.7902 | CD107: 5.6876 | CE107: 5.585 | CF107: 5.4824 | CG107: 5.3798 | CH107: 5.2772 | CI107: 5.1746 | CJ107: =$CJ$106-(($CJ$106-$CJ$111)/5*A4) -> 5.072 | CK107: =Eingabemaske!G$19 -> 4 | CL107: Altherma 3 R W 6 kW | CM107: Altherma 3 R W 6 kW | CN107: 9 | CO107: 3.7 | CQ107: 6
B108: Altherma 3 R W | C108: 6 | D108: ='Altherma 3 R'!$L$20 -> 2.9 | E108: ='Altherma 3 R'!$L$21 -> 3.75 | F108: ='Altherma 3 R'!$L$22 -> 4.85 | G108: 52 | R108: =$R$106-(($R$106-$R$111)/5*A5) -> 5.372 | S108: 5.4045 | T108: 5.437 | U108: 5.4695 | V108: 5.502 | W108: 5.5345 | X108: 5.567 | Y108: 5.5995 | Z108: 5.632 | AA108: 5.6645 | AB108: 5.697 | AC108: 5.7295 | AD108: 5.762 | AE108: 5.7945 | AF108: 5.827 | AG108: 5.8595 | AH108: =$AH$106-(($AH$106-$AH$111)/5*A5) -> 5.892 | AI108: 5.9985 | AJ108: 6.105 | AK108: 6.2115 | AL108: =$AL$106-(($AL$106-$AL$111)/5*A5) -> 6.318 | AM108: 6.289 | AN108: 6.26 | AO108: 6.231 | AP108: 6.202 | AQ108: 6.173 | AR108: =$AR$106-(($AR$106-$AR$111)/5*A5) -> 6.144 | AS108: 6.20825 | AT108: 6.2725 | AU108: 6.33675 | AV108: 6.401 | AW108: 6.46525 | AX108: 6.5295 | AY108: 6.59375 | AZ108: =$AZ$106-(($AZ$106-$AZ$111)/5*A5) -> 6.658 | BA108: 6.7066 | BB108: 6.7552 | BC108: 6.8038 | BD108: 6.8524 | BE108: 6.901 | BF108: 6.9496 | BG108: 6.9982 | BH108: 7.0468 | BI108: 7.0954 | BJ108: =$BJ$106-(($BJ$106-$BJ$111)/5*A5) -> 7.144 | BK108: 7.0968 | BL108: 7.0496 | BM108: 7.0024 | BN108: 6.9552 | BO108: 6.908 | BP108: 6.8608 | BQ108: 6.8136 | BR108: 6.7664 | BS108: 6.7192 | BT108: =$BT$106-(($BT$106-$BT$111)/5*A5) -> 6.672 | BU108: 6.564333333 | BV108: 6.456666667 | BW108: 6.349 | BX108: 6.241333333 | BY108: 6.133666667 | BZ108: =$BZ$106-(($BZ$106-$BZ$111)/5*A5) -> 6.026 | CA108: 5.9188 | CB108: 5.8116 | CC108: 5.7044 | CD108: 5.5972 | CE108: 5.49 | CF108: 5.3828 | CG108: 5.2756 | CH108: 5.1684 | CI108: 5.0612 | CJ108: =$CJ$106-(($CJ$106-$CJ$111)/5*A5) -> 4.954 | CK108: =Eingabemaske!G$19 -> 4 | CL108: Altherma 3 R W 6 kW | CM108: Altherma 3 R W 6 kW | CN108: 9 | CO108: 3.7 | CQ108: 6
B109: Altherma 3 R W | C109: 6 | D109: ='Altherma 3 R'!$L$20 -> 2.9 | E109: ='Altherma 3 R'!$L$21 -> 3.75 | F109: ='Altherma 3 R'!$L$22 -> 4.85 | G109: 53 | R109: =$R$106-(($R$106-$R$111)/5*A6) -> 5.218 | S109: 5.253 | T109: 5.288 | U109: 5.323 | V109: 5.358 | W109: 5.393 | X109: 5.428 | Y109: 5.463 | Z109: 5.498 | AA109: 5.533 | AB109: 5.568 | AC109: 5.603 | AD109: 5.638 | AE109: 5.673 | AF109: 5.708 | AG109: 5.743 | AH109: =$AH$106-(($AH$106-$AH$111)/5*A6) -> 5.778 | AI109: 5.8915 | AJ109: 6.005 | AK109: 6.1185 | AL109: =$AL$106-(($AL$106-$AL$111)/5*A6) -> 6.232 | AM109: 6.201 | AN109: 6.17 | AO109: 6.139 | AP109: 6.108 | AQ109: 6.077 | AR109: =$AR$106-(($AR$106-$AR$111)/5*A6) -> 6.046 | AS109: 6.11425 | AT109: 6.1825 | AU109: 6.25075 | AV109: 6.319 | AW109: 6.38725 | AX109: 6.4555 | AY109: 6.52375 | AZ109: =$AZ$106-(($AZ$106-$AZ$111)/5*A6) -> 6.592 | BA109: 6.6434 | BB109: 6.6948 | BC109: 6.7462 | BD109: 6.7976 | BE109: 6.849 | BF109: 6.9004 | BG109: 6.9518 | BH109: 7.0032 | BI109: 7.0546 | BJ109: =$BJ$106-(($BJ$106-$BJ$111)/5*A6) -> 7.106 | BK109: 7.0582 | BL109: 7.0104 | BM109: 6.9626 | BN109: 6.9148 | BO109: 6.867 | BP109: 6.8192 | BQ109: 6.7714 | BR109: 6.7236 | BS109: 6.6758 | BT109: =$BT$106-(($BT$106-$BT$111)/5*A6) -> 6.628 | BU109: 6.515666667 | BV109: 6.403333333 | BW109: 6.291 | BX109: 6.178666667 | BY109: 6.066333333 | BZ109: =$BZ$106-(($BZ$106-$BZ$111)/5*A6) -> 5.954 | CA109: 5.8422 | CB109: 5.7304 | CC109: 5.6186 | CD109: 5.5068 | CE109: 5.395 | CF109: 5.2832 | CG109: 5.1714 | CH109: 5.0596 | CI109: 4.9478 | CJ109: =$CJ$106-(($CJ$106-$CJ$111)/5*A6) -> 4.836 | CK109: =Eingabemaske!G$19 -> 4 | CL109: Altherma 3 R W 6 kW | CM109: Altherma 3 R W 6 kW | CN109: 9 | CO109: 3.7 | CQ109: 6
B110: Altherma 3 R W | C110: 6 | D110: ='Altherma 3 R'!$L$20 -> 2.9 | E110: ='Altherma 3 R'!$L$21 -> 3.75 | F110: ='Altherma 3 R'!$L$22 -> 4.85 | G110: 54 | R110: =$R$106-(($R$106-$R$111)/5*A7) -> 5.064 | S110: 5.1015 | T110: 5.139 | U110: 5.1765 | V110: 5.214 | W110: 5.2515 | X110: 5.289 | Y110: 5.3265 | Z110: 5.364 | AA110: 5.4015 | AB110: 5.439 | AC110: 5.4765 | AD110: 5.514 | AE110: 5.5515 | AF110: 5.589 | AG110: 5.6265 | AH110: =$AH$106-(($AH$106-$AH$111)/5*A7) -> 5.664 | AI110: 5.7845 | AJ110: 5.905 | AK110: 6.0255 | AL110: =$AL$106-(($AL$106-$AL$111)/5*A7) -> 6.146 | AM110: 6.113 | AN110: 6.08 | AO110: 6.047 | AP110: 6.014 | AQ110: 5.981 | AR110: =$AR$106-(($AR$106-$AR$111)/5*A7) -> 5.948 | AS110: 6.02025 | AT110: 6.0925 | AU110: 6.16475 | AV110: 6.237 | AW110: 6.30925 | AX110: 6.3815 | AY110: 6.45375 | AZ110: =$AZ$106-(($AZ$106-$AZ$111)/5*A7) -> 6.526 | BA110: 6.5802 | BB110: 6.6344 | BC110: 6.6886 | BD110: 6.7428 | BE110: 6.797 | BF110: 6.8512 | BG110: 6.9054 | BH110: 6.9596 | BI110: 7.0138 | BJ110: =$BJ$106-(($BJ$106-$BJ$111)/5*A7) -> 7.068 | BK110: 7.0196 | BL110: 6.9712 | BM110: 6.9228 | BN110: 6.8744 | BO110: 6.826 | BP110: 6.7776 | BQ110: 6.7292 | BR110: 6.6808 | BS110: 6.6324 | BT110: =$BT$106-(($BT$106-$BT$111)/5*A7) -> 6.584 | BU110: 6.467 | BV110: 6.35 | BW110: 6.233 | BX110: 6.116 | BY110: 5.999 | BZ110: =$BZ$106-(($BZ$106-$BZ$111)/5*A7) -> 5.882 | CA110: 5.7656 | CB110: 5.6492 | CC110: 5.5328 | CD110: 5.4164 | CE110: 5.3 | CF110: 5.1836 | CG110: 5.0672 | CH110: 4.9508 | CI110: 4.8344 | CJ110: =$CJ$106-(($CJ$106-$CJ$111)/5*A7) -> 4.718 | CK110: =Eingabemaske!G$19 -> 4 | CL110: Altherma 3 R W 6 kW | CM110: Altherma 3 R W 6 kW | CN110: 9 | CO110: 3.7 | CQ110: 6
B111: Altherma 3 R W | C111: 6 | D111: ='Altherma 3 R'!$L$20 -> 2.9 | E111: ='Altherma 3 R'!$L$21 -> 3.75 | F111: ='Altherma 3 R'!$L$22 -> 4.85 | G111: 55 | R111: 4.91 | S111: 4.95 | T111: 4.99 | U111: 5.03 | V111: 5.07 | W111: 5.11 | X111: 5.15 | Y111: 5.19 | Z111: 5.23 | AA111: 5.27 | AB111: 5.31 | AC111: 5.35 | AD111: 5.39 | AE111: 5.43 | AF111: 5.47 | AG111: 5.51 | AH111: ='Altherma 3 R'!H21 -> 5.55 | AI111: 5.6775 | AJ111: 5.805 | AK111: 5.9325 | AL111: ='Altherma 3 R'!H23 -> 6.06 | AM111: 6.025 | AN111: 5.99 | AO111: 5.955 | AP111: 5.92 | AQ111: 5.885 | AR111: ='Altherma 3 R'!H22 -> 5.85 | AS111: 5.92625 | AT111: 6.0025 | AU111: 6.07875 | AV111: 6.155 | AW111: 6.23125 | AX111: 6.3075 | AY111: 6.38375 | AZ111: ='Altherma 3 R'!H24 -> 6.46 | BA111: 6.517 | BB111: 6.574 | BC111: 6.631 | BD111: 6.688 | BE111: 6.745 | BF111: 6.802 | BG111: 6.859 | BH111: 6.916 | BI111: 6.973 | BJ111: ='Altherma 3 R'!H25 -> 7.03 | BK111: 6.981 | BL111: 6.932 | BM111: 6.883 | BN111: 6.834 | BO111: 6.785 | BP111: 6.736 | BQ111: 6.687 | BR111: 6.638 | BS111: 6.589 | BT111: ='Altherma 3 R'!H26 -> 6.54 | BU111: 6.418333333 | BV111: 6.296666667 | BW111: 6.175 | BX111: 6.053333333 | BY111: 5.931666667 | BZ111: ='Altherma 3 R'!H27 -> 5.81 | CA111: 5.689 | CB111: 5.568 | CC111: 5.447 | CD111: 5.326 | CE111: 5.205 | CF111: 5.084 | CG111: 4.963 | CH111: 4.842 | CI111: 4.721 | CJ111: ='Altherma 3 R'!H28 -> 4.6 | CK111: =Eingabemaske!G$19 -> 4 | CL111: Altherma 3 R W 6 kW | CM111: Altherma 3 R W 6 kW | CN111: 9 | CO111: 3.7 | CQ111: 6
B112: Altherma 3 R W | C112: 6 | D112: ='Altherma 3 R'!$L$20 -> 2.9 | E112: ='Altherma 3 R'!$L$21 -> 3.75 | F112: ='Altherma 3 R'!$L$22 -> 4.85 | G112: 56 | AL112: =$AL$111-(($AL$111-$AL$116)/5*A4) -> 5.94 | AM112: 5.91 | AN112: 5.88 | AO112: 5.85 | AP112: 5.82 | AQ112: 5.79 | AR112: =$AR$111-(($AR$111-$AR$116)/5*A4) -> 5.76 | AS112: 5.83425 | AT112: 5.9085 | AU112: 5.98275 | AV112: 6.057 | AW112: 6.13125 | AX112: 6.2055 | AY112: 6.27975 | AZ112: =$AZ$111-(($AZ$111-$AZ$116)/5*A4) -> 6.354 | BA112: 6.4178 | BB112: 6.4816 | BC112: 6.5454 | BD112: 6.6092 | BE112: 6.673 | BF112: 6.7368 | BG112: 6.8006 | BH112: 6.8644 | BI112: 6.9282 | BJ112: =$BJ$111-(($BJ$111-$BJ$116)/5*A4) -> 6.992 | BK112: 6.9454 | BL112: 6.8988 | BM112: 6.8522 | BN112: 6.8056 | BO112: 6.759 | BP112: 6.7124 | BQ112: 6.6658 | BR112: 6.6192 | BS112: 6.5726 | BT112: =$BT$111-(($BT$111-$BT$116)/5*A4) -> 6.526 | BU112: 6.396666667 | BV112: 6.267333333 | BW112: 6.138 | BX112: 6.008666667 | BY112: 5.879333333 | BZ112: =$BZ$111-(($BZ$111-$BZ$116)/5*A4) -> 5.75 | CA112: 5.6214 | CB112: 5.4928 | CC112: 5.3642 | CD112: 5.2356 | CE112: 5.107 | CF112: 4.9784 | CG112: 4.8498 | CH112: 4.7212 | CI112: 4.5926 | CJ112: =$CJ$111-(($CJ$111-$CJ$116)/5*A4) -> 4.464 | CK112: =Eingabemaske!G$19 -> 4 | CL112: Altherma 3 R W 6 kW | CM112: Altherma 3 R W 6 kW | CN112: 9 | CO112: 3.7 | CQ112: 6
B113: Altherma 3 R W | C113: 6 | D113: ='Altherma 3 R'!$L$20 -> 2.9 | E113: ='Altherma 3 R'!$L$21 -> 3.75 | F113: ='Altherma 3 R'!$L$22 -> 4.85 | G113: 57 | AL113: =$AL$111-(($AL$111-$AL$116)/5*A5) -> 5.82 | AM113: 5.795 | AN113: 5.77 | AO113: 5.745 | AP113: 5.72 | AQ113: 5.695 | AR113: =$AR$111-(($AR$111-$AR$116)/5*A5) -> 5.67 | AS113: 5.74225 | AT113: 5.8145 | AU113: 5.88675 | AV113: 5.959 | AW113: 6.03125 | AX113: 6.1035 | AY113: 6.17575 | AZ113: =$AZ$111-(($AZ$111-$AZ$116)/5*A5) -> 6.248 | BA113: 6.3186 | BB113: 6.3892 | BC113: 6.4598 | BD113: 6.5304 | BE113: 6.601 | BF113: 6.6716 | BG113: 6.7422 | BH113: 6.8128 | BI113: 6.8834 | BJ113: =$BJ$111-(($BJ$111-$BJ$116)/5*A5) -> 6.954 | BK113: 6.9098 | BL113: 6.8656 | BM113: 6.8214 | BN113: 6.7772 | BO113: 6.733 | BP113: 6.6888 | BQ113: 6.6446 | BR113: 6.6004 | BS113: 6.5562 | BT113: =$BT$111-(($BT$111-$BT$116)/5*A5) -> 6.512 | BU113: 6.375 | BV113: 6.238 | BW113: 6.101 | BX113: 5.964 | BY113: 5.827 | BZ113: =$BZ$111-(($BZ$111-$BZ$116)/5*A5) -> 5.69 | CA113: 5.5538 | CB113: 5.4176 | CC113: 5.2814 | CD113: 5.1452 | CE113: 5.009 | CF113: 4.8728 | CG113: 4.7366 | CH113: 4.6004 | CI113: 4.4642 | CJ113: =$CJ$111-(($CJ$111-$CJ$116)/5*A5) -> 4.328 | CK113: =Eingabemaske!G$19 -> 4 | CL113: Altherma 3 R W 6 kW | CM113: Altherma 3 R W 6 kW | CN113: 9 | CO113: 3.7 | CQ113: 6
B114: Altherma 3 R W | C114: 6 | D114: ='Altherma 3 R'!$L$20 -> 2.9 | E114: ='Altherma 3 R'!$L$21 -> 3.75 | F114: ='Altherma 3 R'!$L$22 -> 4.85 | G114: 58 | AL114: =$AL$111-(($AL$111-$AL$116)/5*A6) -> 5.7 | AM114: 5.68 | AN114: 5.66 | AO114: 5.64 | AP114: 5.62 | AQ114: 5.6 | AR114: =$AR$111-(($AR$111-$AR$116)/5*A6) -> 5.58 | AS114: 5.65025 | AT114: 5.7205 | AU114: 5.79075 | AV114: 5.861 | AW114: 5.93125 | AX114: 6.0015 | AY114: 6.07175 | AZ114: =$AZ$111-(($AZ$111-$AZ$116)/5*A6) -> 6.142 | BA114: 6.2194 | BB114: 6.2968 | BC114: 6.3742 | BD114: 6.4516 | BE114: 6.529 | BF114: 6.6064 | BG114: 6.6838 | BH114: 6.7612 | BI114: 6.8386 | BJ114: =$BJ$111-(($BJ$111-$BJ$116)/5*A6) -> 6.916 | BK114: 6.8742 | BL114: 6.8324 | BM114: 6.7906 | BN114: 6.7488 | BO114: 6.707 | BP114: 6.6652 | BQ114: 6.6234 | BR114: 6.5816 | BS114: 6.5398 | BT114: =$BT$111-(($BT$111-$BT$116)/5*A6) -> 6.498 | BU114: 6.353333333 | BV114: 6.208666667 | BW114: 6.064 | BX114: 5.919333333 | BY114: 5.774666667 | BZ114: =$BZ$111-(($BZ$111-$BZ$116)/5*A6) -> 5.63 | CA114: 5.4862 | CB114: 5.3424 | CC114: 5.1986 | CD114: 5.0548 | CE114: 4.911 | CF114: 4.7672 | CG114: 4.6234 | CH114: 4.4796 | CI114: 4.3358 | CJ114: =$CJ$111-(($CJ$111-$CJ$116)/5*A6) -> 4.192 | CK114: =Eingabemaske!G$19 -> 4 | CL114: Altherma 3 R W 6 kW | CM114: Altherma 3 R W 6 kW | CN114: 9 | CO114: 3.7 | CQ114: 6
B115: Altherma 3 R W | C115: 6 | D115: ='Altherma 3 R'!$L$20 -> 2.9 | E115: ='Altherma 3 R'!$L$21 -> 3.75 | F115: ='Altherma 3 R'!$L$22 -> 4.85 | G115: 59 | AL115: =$AL$111-(($AL$111-$AL$116)/5*A7) -> 5.58 | AM115: 5.565 | AN115: 5.55 | AO115: 5.535 | AP115: 5.52 | AQ115: 5.505 | AR115: =$AR$111-(($AR$111-$AR$116)/5*A7) -> 5.49 | AS115: 5.55825 | AT115: 5.6265 | AU115: 5.69475 | AV115: 5.763 | AW115: 5.83125 | AX115: 5.8995 | AY115: 5.96775 | AZ115: =$AZ$111-(($AZ$111-$AZ$116)/5*A7) -> 6.036 | BA115: 6.1202 | BB115: 6.2044 | BC115: 6.2886 | BD115: 6.3728 | BE115: 6.457 | BF115: 6.5412 | BG115: 6.6254 | BH115: 6.7096 | BI115: 6.7938 | BJ115: =$BJ$111-(($BJ$111-$BJ$116)/5*A7) -> 6.878 | BK115: 6.8386 | BL115: 6.7992 | BM115: 6.7598 | BN115: 6.7204 | BO115: 6.681 | BP115: 6.6416 | BQ115: 6.6022 | BR115: 6.5628 | BS115: 6.5234 | BT115: =$BT$111-(($BT$111-$BT$116)/5*A7) -> 6.484 | BU115: 6.331666667 | BV115: 6.179333333 | BW115: 6.027 | BX115: 5.874666667 | BY115: 5.722333333 | BZ115: =$BZ$111-(($BZ$111-$BZ$116)/5*A7) -> 5.57 | CA115: 5.4186 | CB115: 5.2672 | CC115: 5.1158 | CD115: 4.9644 | CE115: 4.813 | CF115: 4.6616 | CG115: 4.5102 | CH115: 4.3588 | CI115: 4.2074 | CJ115: =$CJ$111-(($CJ$111-$CJ$116)/5*A7) -> 4.056 | CK115: =Eingabemaske!G$19 -> 4 | CL115: Altherma 3 R W 6 kW | CM115: Altherma 3 R W 6 kW | CN115: 9 | CO115: 3.7 | CQ115: 6
B116: Altherma 3 R W | C116: 6 | D116: ='Altherma 3 R'!$L$20 -> 2.9 | E116: ='Altherma 3 R'!$L$21 -> 3.75 | F116: ='Altherma 3 R'!$L$22 -> 4.85 | G116: 60 | AL116: ='Altherma 3 R'!I23 -> 5.46 | AM116: 5.45 | AN116: 5.44 | AO116: 5.43 | AP116: 5.42 | AQ116: 5.41 | AR116: ='Altherma 3 R'!I22 -> 5.4 | AS116: 5.46625 | AT116: 5.5325 | AU116: 5.59875 | AV116: 5.665 | AW116: 5.73125 | AX116: 5.7975 | AY116: 5.86375 | AZ116: ='Altherma 3 R'!I24 -> 5.93 | BA116: 6.021 | BB116: 6.112 | BC116: 6.203 | BD116: 6.294 | BE116: 6.385 | BF116: 6.476 | BG116: 6.567 | BH116: 6.658 | BI116: 6.749 | BJ116: ='Altherma 3 R'!I25 -> 6.84 | BK116: 6.803 | BL116: 6.766 | BM116: 6.729 | BN116: 6.692 | BO116: 6.655 | BP116: 6.618 | BQ116: 6.581 | BR116: 6.544 | BS116: 6.507 | BT116: ='Altherma 3 R'!I26 -> 6.47 | BU116: 6.31 | BV116: 6.15 | BW116: 5.99 | BX116: 5.83 | BY116: 5.67 | BZ116: ='Altherma 3 R'!I27 -> 5.51 | CA116: 5.351 | CB116: 5.192 | CC116: 5.033 | CD116: 4.874 | CE116: 4.715 | CF116: 4.556 | CG116: 4.397 | CH116: 4.238 | CI116: 4.079 | CJ116: ='Altherma 3 R'!I28 -> 3.92 | CK116: =Eingabemaske!G$19 -> 4 | CL116: Altherma 3 R W 6 kW | CM116: Altherma 3 R W 6 kW | CN116: 9 | CO116: 3.7 | CQ116: 6
B117: Altherma 3 R W | C117: 6 | D117: ='Altherma 3 R'!$L$20 -> 2.9 | E117: ='Altherma 3 R'!$L$21 -> 3.75 | F117: ='Altherma 3 R'!$L$22 -> 4.85 | G117: 61 | CK117: =Eingabemaske!G$19 -> 4 | CL117: Altherma 3 R W 6 kW | CM117: Altherma 3 R W 6 kW | CN117: 9 | CO117: 3.7 | CQ117: 6
B118: Altherma 3 R W | C118: 6 | D118: ='Altherma 3 R'!$L$20 -> 2.9 | E118: ='Altherma 3 R'!$L$21 -> 3.75 | F118: ='Altherma 3 R'!$L$22 -> 4.85 | G118: 62 | CK118: =Eingabemaske!G$19 -> 4 | CL118: Altherma 3 R W 6 kW | CM118: Altherma 3 R W 6 kW | CN118: 9 | CO118: 3.7 | CQ118: 6
B119: Altherma 3 R W | C119: 6 | D119: ='Altherma 3 R'!$L$20 -> 2.9 | E119: ='Altherma 3 R'!$L$21 -> 3.75 | F119: ='Altherma 3 R'!$L$22 -> 4.85 | G119: 63 | CK119: =Eingabemaske!G$19 -> 4 | CL119: Altherma 3 R W 6 kW | CM119: Altherma 3 R W 6 kW | CN119: 9 | CO119: 3.7 | CQ119: 6
B120: Altherma 3 R W | C120: 6 | D120: ='Altherma 3 R'!$L$20 -> 2.9 | E120: ='Altherma 3 R'!$L$21 -> 3.75 | F120: ='Altherma 3 R'!$L$22 -> 4.85 | G120: 64 | CK120: =Eingabemaske!G$19 -> 4 | CL120: Altherma 3 R W 6 kW | CM120: Altherma 3 R W 6 kW | CN120: 9 | CO120: 3.7 | CQ120: 6
B121: Altherma 3 R W | C121: 6 | D121: ='Altherma 3 R'!$L$20 -> 2.9 | E121: ='Altherma 3 R'!$L$21 -> 3.75 | F121: ='Altherma 3 R'!$L$22 -> 4.85 | G121: 65 | CK121: =Eingabemaske!G$19 -> 4 | CL121: Altherma 3 R W 6 kW | CM121: Altherma 3 R W 6 kW | CN121: 9 | CO121: 3.7 | CQ121: 6
B122: Altherma 3 R W | C122: 6 | D122: ='Altherma 3 R'!$L$20 -> 2.9 | E122: ='Altherma 3 R'!$L$21 -> 3.75 | F122: ='Altherma 3 R'!$L$22 -> 4.85 | G122: 66 | CK122: =Eingabemaske!G$19 -> 4 | CL122: Altherma 3 R W 6 kW | CM122: Altherma 3 R W 6 kW | CN122: 9 | CO122: 3.7 | CQ122: 6
B123: Altherma 3 R W | C123: 6 | D123: ='Altherma 3 R'!$L$20 -> 2.9 | E123: ='Altherma 3 R'!$L$21 -> 3.75 | F123: ='Altherma 3 R'!$L$22 -> 4.85 | G123: 67 | CK123: =Eingabemaske!G$19 -> 4 | CL123: Altherma 3 R W 6 kW | CM123: Altherma 3 R W 6 kW | CN123: 9 | CO123: 3.7 | CQ123: 6
B124: Altherma 3 R W | C124: 6 | D124: ='Altherma 3 R'!$L$20 -> 2.9 | E124: ='Altherma 3 R'!$L$21 -> 3.75 | F124: ='Altherma 3 R'!$L$22 -> 4.85 | G124: 68 | CK124: =Eingabemaske!G$19 -> 4 | CL124: Altherma 3 R W 6 kW | CM124: Altherma 3 R W 6 kW | CN124: 9 | CO124: 3.7 | CQ124: 6
B125: Altherma 3 R W | C125: 6 | D125: ='Altherma 3 R'!$L$20 -> 2.9 | E125: ='Altherma 3 R'!$L$21 -> 3.75 | F125: ='Altherma 3 R'!$L$22 -> 4.85 | G125: 69 | CK125: =Eingabemaske!G$19 -> 4 | CL125: Altherma 3 R W 6 kW | CM125: Altherma 3 R W 6 kW | CN125: 9 | CO125: 3.7 | CQ125: 6
B126: Altherma 3 R W | C126: 6 | D126: ='Altherma 3 R'!$L$20 -> 2.9 | E126: ='Altherma 3 R'!$L$21 -> 3.75 | F126: ='Altherma 3 R'!$L$22 -> 4.85 | G126: 70 | CK126: =Eingabemaske!G$19 -> 4 | CL126: Altherma 3 R W 6 kW | CM126: Altherma 3 R W 6 kW | CN126: 9 | CO126: 3.7 | CQ126: 6
B127: Altherma 3 R W | C127: 8 | D127: ='Altherma 3 R'!$L$32 -> 2.7 | E127: ='Altherma 3 R'!$L$33 -> 3.64 | F127: ='Altherma 3 R'!$L$34 -> 4.6 | G127: 30 | H127: ='Altherma 3 R'!C31 -> 6.87 | I127: =$H127-(($H127-$R127)/$R$3*I$3) -> 6.935 | J127: 7 | K127: 7.065 | L127: 7.13 | M127: 7.195 | N127: 7.26 | O127: 7.325 | P127: 7.39 | Q127: 7.455 | R127: ='Altherma 3 R'!C32 -> 7.52 | S127: =$R127-(($R127-$AH127)/$AH$3*S$3) -> 7.584375 | T127: 7.64875 | U127: 7.713125 | V127: 7.7775 | W127: 7.841875 | X127: 7.90625 | Y127: 7.970625 | Z127: 8.035 | AA127: 8.099375 | AB127: 8.16375 | AC127: 8.228125 | AD127: 8.2925 | AE127: 8.356875 | AF127: 8.42125 | AG127: 8.485625 | AH127: ='Altherma 3 R'!C33 -> 8.55 | AI127: =$AH127-(($AH127-$AL127)/$AL$3*AI$3) -> 8.6775 | AJ127: 8.805 | AK127: 8.9325 | AL127: ='Altherma 3 R'!C35 -> 9.06 | AM127: =$AL127-(($AL127-$AR127)/$AR$1*AM$1) -> 9.025 | AN127: 8.99 | AO127: 8.955 | AP127: 8.92 | AQ127: 8.885 | AR127: ='Altherma 3 R'!C34 -> 8.85 | AS127: =$AR127-(($AR127-$AZ127)/$AZ$3*AS$3) -> 8.92625 | AT127: 9.0025 | AU127: 9.07875 | AV127: 9.155 | AW127: 9.23125 | AX127: 9.3075 | AY127: 9.38375 | AZ127: ='Altherma 3 R'!C36 -> 9.46 | BA127: =$AZ127-(($AZ127-$BJ127)/$BJ$3*BA$3) -> 9.477 | BB127: 9.494 | BC127: 9.511 | BD127: 9.528 | BE127: 9.545 | BF127: 9.562 | BG127: 9.579 | BH127: 9.596 | BI127: 9.613 | BJ127: ='Altherma 3 R'!C37 -> 9.63 | BK127: =$BJ127-(($BJ127-$BT127)/$BT$3*BK$3) -> 9.619 | BL127: 9.608 | BM127: 9.597 | BN127: 9.586 | BO127: 9.575 | BP127: 9.564 | BQ127: 9.553 | BR127: 9.542 | BS127: 9.531 | BT127: ='Altherma 3 R'!C38 -> 9.52 | BU127: =$BT127-(($BT127-$BZ127)/$BZ$3*BU$3) -> 9.47 | BV127: 9.42 | BW127: 9.37 | BX127: 9.32 | BY127: 9.27 | BZ127: ='Altherma 3 R'!C39 -> 9.22 | CA127: =$BZ127-(($BZ127-$CJ127)/$CJ$3*CA$3) -> 9.169 | CB127: 9.118 | CC127: 9.067 | CD127: 9.016 | CE127: 8.965 | CF127: 8.914 | CG127: 8.863 | CH127: 8.812 | CI127: 8.761 | CJ127: ='Altherma 3 R'!C40 -> 8.71 | CK127: =Eingabemaske!G$19 -> 4 | CL127: Altherma 3 R W 8 kW | CM127: Altherma 3 R W 8 kW | CN127: 9 | CO127: 3.6 | CQ127: 7.5
B128: Altherma 3 R W | C128: 8 | D128: ='Altherma 3 R'!$L$32 -> 2.7 | E128: ='Altherma 3 R'!$L$33 -> 3.64 | F128: ='Altherma 3 R'!$L$34 -> 4.6 | G128: 31 | H128: =$H$127-(($H$127-$H$132)/5*A4) -> 6.846 | I128: 6.9102 | J128: 6.9744 | K128: 7.0386 | L128: 7.1028 | M128: 7.167 | N128: 7.2312 | O128: 7.2954 | P128: 7.3596 | Q128: 7.4238 | R128: =$R$127-(($R$127-$R$132)/5*A4) -> 7.488 | S128: 7.551625 | T128: 7.61525 | U128: 7.678875 | V128: 7.7425 | W128: 7.806125 | X128: 7.86975 | Y128: 7.933375 | Z128: 7.997 | AA128: 8.060625 | AB128: 8.12425 | AC128: 8.187875 | AD128: 8.2515 | AE128: 8.315125 | AF128: 8.37875 | AG128: 8.442375 | AH128: =$AH$127-(($AH$127-$AH$132)/5*A4) -> 8.506 | AI128: 8.6325 | AJ128: 8.759 | AK128: 8.8855 | AL128: =$AL$127-(($AL$127-$AL$132)/5*A4) -> 9.012 | AM128: 8.977333333 | AN128: 8.942666667 | AO128: 8.908 | AP128: 8.873333333 | AQ128: 8.838666667 | AR128: =$AR$127-(($AR$127-$AR$132)/5*A4) -> 8.804 | AS128: 8.8795 | AT128: 8.955 | AU128: 9.0305 | AV128: 9.106 | AW128: 9.1815 | AX128: 9.257 | AY128: 9.3325 | AZ128: =$AZ$127-(($AZ$127-$AZ$132)/5*A4) -> 9.408 | BA128: 9.425 | BB128: 9.442 | BC128: 9.459 | BD128: 9.476 | BE128: 9.493 | BF128: 9.51 | BG128: 9.527 | BH128: 9.544 | BI128: 9.561 | BJ128: =$BJ$127-(($BJ$127-$BJ$132)/5*A4) -> 9.578 | BK128: 9.566 | BL128: 9.554 | BM128: 9.542 | BN128: 9.53 | BO128: 9.518 | BP128: 9.506 | BQ128: 9.494 | BR128: 9.482 | BS128: 9.47 | BT128: =$BT$127-(($BT$127-$BT$132)/5*A4) -> 9.458 | BU128: 9.405 | BV128: 9.352 | BW128: 9.299 | BX128: 9.246 | BY128: 9.193 | BZ128: =$BZ$127-(($BZ$127-$BZ$132)/5*A4) -> 9.14 | CA128: 9.086 | CB128: 9.032 | CC128: 8.978 | CD128: 8.924 | CE128: 8.87 | CF128: 8.816 | CG128: 8.762 | CH128: 8.708 | CI128: 8.654 | CJ128: =$CJ$127-(($CJ$127-$CJ$132)/5*A4) -> 8.6 | CK128: =Eingabemaske!G$19 -> 4 | CL128: Altherma 3 R W 8 kW | CM128: Altherma 3 R W 8 kW | CN128: 9 | CO128: 3.6 | CQ128: 7.5
B129: Altherma 3 R W | C129: 8 | D129: ='Altherma 3 R'!$L$32 -> 2.7 | E129: ='Altherma 3 R'!$L$33 -> 3.64 | F129: ='Altherma 3 R'!$L$34 -> 4.6 | G129: 32 | H129: =$H$127-(($H$127-$H$132)/5*A5) -> 6.822 | I129: 6.8854 | J129: 6.9488 | K129: 7.0122 | L129: 7.0756 | M129: 7.139 | N129: 7.2024 | O129: 7.2658 | P129: 7.3292 | Q129: 7.3926 | R129: =$R$127-(($R$127-$R$132)/5*A5) -> 7.456 | S129: 7.518875 | T129: 7.58175 | U129: 7.644625 | V129: 7.7075 | W129: 7.770375 | X129: 7.83325 | Y129: 7.896125 | Z129: 7.959 | AA129: 8.021875 | AB129: 8.08475 | AC129: 8.147625 | AD129: 8.2105 | AE129: 8.273375 | AF129: 8.33625 | AG129: 8.399125 | AH129: =$AH$127-(($AH$127-$AH$132)/5*A5) -> 8.462 | AI129: 8.5875 | AJ129: 8.713 | AK129: 8.8385 | AL129: =$AL$127-(($AL$127-$AL$132)/5*A5) -> 8.964 | AM129: 8.929666667 | AN129: 8.895333333 | AO129: 8.861 | AP129: 8.826666667 | AQ129: 8.792333333 | AR129: =$AR$127-(($AR$127-$AR$132)/5*A5) -> 8.758 | AS129: 8.83275 | AT129: 8.9075 | AU129: 8.98225 | AV129: 9.057 | AW129: 9.13175 | AX129: 9.2065 | AY129: 9.28125 | AZ129: =$AZ$127-(($AZ$127-$AZ$132)/5*A5) -> 9.356 | BA129: 9.373 | BB129: 9.39 | BC129: 9.407 | BD129: 9.424 | BE129: 9.441 | BF129: 9.458 | BG129: 9.475 | BH129: 9.492 | BI129: 9.509 | BJ129: =$BJ$127-(($BJ$127-$BJ$132)/5*A5) -> 9.526 | BK129: 9.513 | BL129: 9.5 | BM129: 9.487 | BN129: 9.474 | BO129: 9.461 | BP129: 9.448 | BQ129: 9.435 | BR129: 9.422 | BS129: 9.409 | BT129: =$BT$127-(($BT$127-$BT$132)/5*A5) -> 9.396 | BU129: 9.34 | BV129: 9.284 | BW129: 9.228 | BX129: 9.172 | BY129: 9.116 | BZ129: =$BZ$127-(($BZ$127-$BZ$132)/5*A5) -> 9.06 | CA129: 9.003 | CB129: 8.946 | CC129: 8.889 | CD129: 8.832 | CE129: 8.775 | CF129: 8.718 | CG129: 8.661 | CH129: 8.604 | CI129: 8.547 | CJ129: =$CJ$127-(($CJ$127-$CJ$132)/5*A5) -> 8.49 | CK129: =Eingabemaske!G$19 -> 4 | CL129: Altherma 3 R W 8 kW | CM129: Altherma 3 R W 8 kW | CN129: 9 | CO129: 3.6 | CQ129: 7.5
B130: Altherma 3 R W | C130: 8 | D130: ='Altherma 3 R'!$L$32 -> 2.7 | E130: ='Altherma 3 R'!$L$33 -> 3.64 | F130: ='Altherma 3 R'!$L$34 -> 4.6 | G130: 33 | H130: =$H$127-(($H$127-$H$132)/5*A6) -> 6.798 | I130: 6.8606 | J130: 6.9232 | K130: 6.9858 | L130: 7.0484 | M130: 7.111 | N130: 7.1736 | O130: 7.2362 | P130: 7.2988 | Q130: 7.3614 | R130: =$R$127-(($R$127-$R$132)/5*A6) -> 7.424 | S130: 7.486125 | T130: 7.54825 | U130: 7.610375 | V130: 7.6725 | W130: 7.734625 | X130: 7.79675 | Y130: 7.858875 | Z130: 7.921 | AA130: 7.983125 | AB130: 8.04525 | AC130: 8.107375 | AD130: 8.1695 | AE130: 8.231625 | AF130: 8.29375 | AG130: 8.355875 | AH130: =$AH$127-(($AH$127-$AH$132)/5*A6) -> 8.418 | AI130: 8.5425 | AJ130: 8.667 | AK130: 8.7915 | AL130: =$AL$127-(($AL$127-$AL$132)/5*A6) -> 8.916 | AM130: 8.882 | AN130: 8.848 | AO130: 8.814 | AP130: 8.78 | AQ130: 8.746 | AR130: =$AR$127-(($AR$127-$AR$132)/5*A6) -> 8.712 | AS130: 8.786 | AT130: 8.86 | AU130: 8.934 | AV130: 9.008 | AW130: 9.082 | AX130: 9.156 | AY130: 9.23 | AZ130: =$AZ$127-(($AZ$127-$AZ$132)/5*A6) -> 9.304 | BA130: 9.321 | BB130: 9.338 | BC130: 9.355 | BD130: 9.372 | BE130: 9.389 | BF130: 9.406 | BG130: 9.423 | BH130: 9.44 | BI130: 9.457 | BJ130: =$BJ$127-(($BJ$127-$BJ$132)/5*A6) -> 9.474 | BK130: 9.46 | BL130: 9.446 | BM130: 9.432 | BN130: 9.418 | BO130: 9.404 | BP130: 9.39 | BQ130: 9.376 | BR130: 9.362 | BS130: 9.348 | BT130: =$BT$127-(($BT$127-$BT$132)/5*A6) -> 9.334 | BU130: 9.275 | BV130: 9.216 | BW130: 9.157 | BX130: 9.098 | BY130: 9.039 | BZ130: =$BZ$127-(($BZ$127-$BZ$132)/5*A6) -> 8.98 | CA130: 8.92 | CB130: 8.86 | CC130: 8.8 | CD130: 8.74 | CE130: 8.68 | CF130: 8.62 | CG130: 8.56 | CH130: 8.5 | CI130: 8.44 | CJ130: =$CJ$127-(($CJ$127-$CJ$132)/5*A6) -> 8.38 | CK130: =Eingabemaske!G$19 -> 4 | CL130: Altherma 3 R W 8 kW | CM130: Altherma 3 R W 8 kW | CN130: 9 | CO130: 3.6 | CQ130: 7.5
B131: Altherma 3 R W | C131: 8 | D131: ='Altherma 3 R'!$L$32 -> 2.7 | E131: ='Altherma 3 R'!$L$33 -> 3.64 | F131: ='Altherma 3 R'!$L$34 -> 4.6 | G131: 34 | H131: =$H$127-(($H$127-$H$132)/5*A7) -> 6.774 | I131: 6.8358 | J131: 6.8976 | K131: 6.9594 | L131: 7.0212 | M131: 7.083 | N131: 7.1448 | O131: 7.2066 | P131: 7.2684 | Q131: 7.3302 | R131: =$R$127-(($R$127-$R$132)/5*A7) -> 7.392 | S131: 7.453375 | T131: 7.51475 | U131: 7.576125 | V131: 7.6375 | W131: 7.698875 | X131: 7.76025 | Y131: 7.821625 | Z131: 7.883 | AA131: 7.944375 | AB131: 8.00575 | AC131: 8.067125 | AD131: 8.1285 | AE131: 8.189875 | AF131: 8.25125 | AG131: 8.312625 | AH131: =$AH$127-(($AH$127-$AH$132)/5*A7) -> 8.374 | AI131: 8.4975 | AJ131: 8.621 | AK131: 8.7445 | AL131: =$AL$127-(($AL$127-$AL$132)/5*A7) -> 8.868 | AM131: 8.834333333 | AN131: 8.800666667 | AO131: 8.767 | AP131: 8.733333333 | AQ131: 8.699666667 | AR131: =$AR$127-(($AR$127-$AR$132)/5*A7) -> 8.666 | AS131: 8.73925 | AT131: 8.8125 | AU131: 8.88575 | AV131: 8.959 | AW131: 9.03225 | AX131: 9.1055 | AY131: 9.17875 | AZ131: =$AZ$127-(($AZ$127-$AZ$132)/5*A7) -> 9.252 | BA131: 9.269 | BB131: 9.286 | BC131: 9.303 | BD131: 9.32 | BE131: 9.337 | BF131: 9.354 | BG131: 9.371 | BH131: 9.388 | BI131: 9.405 | BJ131: =$BJ$127-(($BJ$127-$BJ$132)/5*A7) -> 9.422 | BK131: 9.407 | BL131: 9.392 | BM131: 9.377 | BN131: 9.362 | BO131: 9.347 | BP131: 9.332 | BQ131: 9.317 | BR131: 9.302 | BS131: 9.287 | BT131: =$BT$127-(($BT$127-$BT$132)/5*A7) -> 9.272 | BU131: 9.21 | BV131: 9.148 | BW131: 9.086 | BX131: 9.024 | BY131: 8.962 | BZ131: =$BZ$127-(($BZ$127-$BZ$132)/5*A7) -> 8.9 | CA131: 8.837 | CB131: 8.774 | CC131: 8.711 | CD131: 8.648 | CE131: 8.585 | CF131: 8.522 | CG131: 8.459 | CH131: 8.396 | CI131: 8.333 | CJ131: =$CJ$127-(($CJ$127-$CJ$132)/5*A7) -> 8.27 | CK131: =Eingabemaske!G$19 -> 4 | CL131: Altherma 3 R W 8 kW | CM131: Altherma 3 R W 8 kW | CN131: 9 | CO131: 3.6 | CQ131: 7.5
B132: Altherma 3 R W | C132: 8 | D132: ='Altherma 3 R'!$L$32 -> 2.7 | E132: ='Altherma 3 R'!$L$33 -> 3.64 | F132: ='Altherma 3 R'!$L$34 -> 4.6 | G132: 35 | H132: ='Altherma 3 R'!D31 -> 6.75 | I132: 6.811 | J132: 6.872 | K132: 6.933 | L132: 6.994 | M132: 7.055 | N132: 7.116 | O132: 7.177 | P132: 7.238 | Q132: 7.299 | R132: ='Altherma 3 R'!D32 -> 7.36 | S132: 7.420625 | T132: 7.48125 | U132: 7.541875 | V132: 7.6025 | W132: 7.663125 | X132: 7.72375 | Y132: 7.784375 | Z132: 7.845 | AA132: 7.905625 | AB132: 7.96625 | AC132: 8.026875 | AD132: 8.0875 | AE132: 8.148125 | AF132: 8.20875 | AG132: 8.269375 | AH132: ='Altherma 3 R'!D33 -> 8.33 | AI132: 8.4525 | AJ132: 8.575 | AK132: 8.6975 | AL132: ='Altherma 3 R'!D35 -> 8.82 | AM132: 8.786666667 | AN132: 8.753333333 | AO132: 8.72 | AP132: 8.686666667 | AQ132: 8.653333333 | AR132: ='Altherma 3 R'!D34 -> 8.62 | AS132: 8.6925 | AT132: 8.765 | AU132: 8.8375 | AV132: 8.91 | AW132: 8.9825 | AX132: 9.055 | AY132: 9.1275 | AZ132: ='Altherma 3 R'!D36 -> 9.2 | BA132: 9.217 | BB132: 9.234 | BC132: 9.251 | BD132: 9.268 | BE132: 9.285 | BF132: 9.302 | BG132: 9.319 | BH132: 9.336 | BI132: 9.353 | BJ132: ='Altherma 3 R'!D37 -> 9.37 | BK132: 9.354 | BL132: 9.338 | BM132: 9.322 | BN132: 9.306 | BO132: 9.29 | BP132: 9.274 | BQ132: 9.258 | BR132: 9.242 | BS132: 9.226 | BT132: ='Altherma 3 R'!D38 -> 9.21 | BU132: 9.145 | BV132: 9.08 | BW132: 9.015 | BX132: 8.95 | BY132: 8.885 | BZ132: ='Altherma 3 R'!D39 -> 8.82 | CA132: 8.754 | CB132: 8.688 | CC132: 8.622 | CD132: 8.556 | CE132: 8.49 | CF132: 8.424 | CG132: 8.358 | CH132: 8.292 | CI132: 8.226 | CJ132: ='Altherma 3 R'!D40 -> 8.16 | CK132: =Eingabemaske!G$19 -> 4 | CL132: Altherma 3 R W 8 kW | CM132: Altherma 3 R W 8 kW | CN132: 9 | CO132: 3.6 | CQ132: 7.5
B133: Altherma 3 R W | C133: 8 | D133: ='Altherma 3 R'!$L$32 -> 2.7 | E133: ='Altherma 3 R'!$L$33 -> 3.64 | F133: ='Altherma 3 R'!$L$34 -> 4.6 | G133: 36 | H133: =$H$132-(($H$132-$H$137)/5*A4) -> 6.724 | I133: 6.7844 | J133: 6.8448 | K133: 6.9052 | L133: 6.9656 | M133: 7.026 | N133: 7.0864 | O133: 7.1468 | P133: 7.2072 | Q133: 7.2676 | R133: =$R$132-(($R$132-$R$137)/5*A4) -> 7.328 | S133: 7.388 | T133: 7.448 | U133: 7.508 | V133: 7.568 | W133: 7.628 | X133: 7.688 | Y133: 7.748 | Z133: 7.808 | AA133: 7.868 | AB133: 7.928 | AC133: 7.988 | AD133: 8.048 | AE133: 8.108 | AF133: 8.168 | AG133: 8.228 | AH133: =$AH$132-(($AH$132-$AH$137)/5*A4) -> 8.288 | AI133: 8.409 | AJ133: 8.53 | AK133: 8.651 | AL133: =$AL$132-(($AL$132-$AL$137)/5*A4) -> 8.772 | AM133: 8.739 | AN133: 8.706 | AO133: 8.673 | AP133: 8.64 | AQ133: 8.607 | AR133: =$AR$132-(($AR$132-$AR$137)/5*A4) -> 8.574 | AS133: 8.64575 | AT133: 8.7175 | AU133: 8.78925 | AV133: 8.861 | AW133: 8.93275 | AX133: 9.0045 | AY133: 9.07625 | AZ133: =$AZ$132-(($AZ$132-$AZ$137)/5*A4) -> 9.148 | BA133: 9.1652 | BB133: 9.1824 | BC133: 9.1996 | BD133: 9.2168 | BE133: 9.234 | BF133: 9.2512 | BG133: 9.2684 | BH133: 9.2856 | BI133: 9.3028 | BJ133: =$BJ$132-(($BJ$132-$BJ$137)/5*A4) -> 9.32 | BK133: 9.303 | BL133: 9.286 | BM133: 9.269 | BN133: 9.252 | BO133: 9.235 | BP133: 9.218 | BQ133: 9.201 | BR133: 9.184 | BS133: 9.167 | BT133: =$BT$132-(($BT$132-$BT$137)/5*A4) -> 9.15 | BU133: 9.081666667 | BV133: 9.013333333 | BW133: 8.945 | BX133: 8.876666667 | BY133: 8.808333333 | BZ133: =$BZ$132-(($BZ$132-$BZ$137)/5*A4) -> 8.74 | CA133: 8.6708 | CB133: 8.6016 | CC133: 8.5324 | CD133: 8.4632 | CE133: 8.394 | CF133: 8.3248 | CG133: 8.2556 | CH133: 8.1864 | CI133: 8.1172 | CJ133: =$CJ$132-(($CJ$132-$CJ$137)/5*A4) -> 8.048 | CK133: =Eingabemaske!G$19 -> 4 | CL133: Altherma 3 R W 8 kW | CM133: Altherma 3 R W 8 kW | CN133: 9 | CO133: 3.6 | CQ133: 7.5
B134: Altherma 3 R W | C134: 8 | D134: ='Altherma 3 R'!$L$32 -> 2.7 | E134: ='Altherma 3 R'!$L$33 -> 3.64 | F134: ='Altherma 3 R'!$L$34 -> 4.6 | G134: 37 | H134: =$H$132-(($H$132-$H$137)/5*A5) -> 6.698 | I134: 6.7578 | J134: 6.8176 | K134: 6.8774 | L134: 6.9372 | M134: 6.997 | N134: 7.0568 | O134: 7.1166 | P134: 7.1764 | Q134: 7.2362 | R134: =$R$132-(($R$132-$R$137)/5*A5) -> 7.296 | S134: 7.355375 | T134: 7.41475 | U134: 7.474125 | V134: 7.5335 | W134: 7.592875 | X134: 7.65225 | Y134: 7.711625 | Z134: 7.771 | AA134: 7.830375 | AB134: 7.88975 | AC134: 7.949125 | AD134: 8.0085 | AE134: 8.067875 | AF134: 8.12725 | AG134: 8.186625 | AH134: =$AH$132-(($AH$132-$AH$137)/5*A5) -> 8.246 | AI134: 8.3655 | AJ134: 8.485 | AK134: 8.6045 | AL134: =$AL$132-(($AL$132-$AL$137)/5*A5) -> 8.724 | AM134: 8.691333333 | AN134: 8.658666667 | AO134: 8.626 | AP134: 8.593333333 | AQ134: 8.560666667 | AR134: =$AR$132-(($AR$132-$AR$137)/5*A5) -> 8.528 | AS134: 8.599 | AT134: 8.67 | AU134: 8.741 | AV134: 8.812 | AW134: 8.883 | AX134: 8.954 | AY134: 9.025 | AZ134: =$AZ$132-(($AZ$132-$AZ$137)/5*A5) -> 9.096 | BA134: 9.1134 | BB134: 9.1308 | BC134: 9.1482 | BD134: 9.1656 | BE134: 9.183 | BF134: 9.2004 | BG134: 9.2178 | BH134: 9.2352 | BI134: 9.2526 | BJ134: =$BJ$132-(($BJ$132-$BJ$137)/5*A5) -> 9.27 | BK134: 9.252 | BL134: 9.234 | BM134: 9.216 | BN134: 9.198 | BO134: 9.18 | BP134: 9.162 | BQ134: 9.144 | BR134: 9.126 | BS134: 9.108 | BT134: =$BT$132-(($BT$132-$BT$137)/5*A5) -> 9.09 | BU134: 9.018333333 | BV134: 8.946666667 | BW134: 8.875 | BX134: 8.803333333 | BY134: 8.731666667 | BZ134: =$BZ$132-(($BZ$132-$BZ$137)/5*A5) -> 8.66 | CA134: 8.5876 | CB134: 8.5152 | CC134: 8.4428 | CD134: 8.3704 | CE134: 8.298 | CF134: 8.2256 | CG134: 8.1532 | CH134: 8.0808 | CI134: 8.0084 | CJ134: =$CJ$132-(($CJ$132-$CJ$137)/5*A5) -> 7.936 | CK134: =Eingabemaske!G$19 -> 4 | CL134: Altherma 3 R W 8 kW | CM134: Altherma 3 R W 8 kW | CN134: 9 | CO134: 3.6 | CQ134: 7.5
B135: Altherma 3 R W | C135: 8 | D135: ='Altherma 3 R'!$L$32 -> 2.7 | E135: ='Altherma 3 R'!$L$33 -> 3.64 | F135: ='Altherma 3 R'!$L$34 -> 4.6 | G135: 38 | H135: =$H$132-(($H$132-$H$137)/5*A6) -> 6.672 | I135: 6.7312 | J135: 6.7904 | K135: 6.8496 | L135: 6.9088 | M135: 6.968 | N135: 7.0272 | O135: 7.0864 | P135: 7.1456 | Q135: 7.2048 | R135: =$R$132-(($R$132-$R$137)/5*A6) -> 7.264 | S135: 7.32275 | T135: 7.3815 | U135: 7.44025 | V135: 7.499 | W135: 7.55775 | X135: 7.6165 | Y135: 7.67525 | Z135: 7.734 | AA135: 7.79275 | AB135: 7.8515 | AC135: 7.91025 | AD135: 7.969 | AE135: 8.02775 | AF135: 8.0865 | AG135: 8.14525 | AH135: =$AH$132-(($AH$132-$AH$137)/5*A6) -> 8.204 | AI135: 8.322 | AJ135: 8.44 | AK135: 8.558 | AL135: =$AL$132-(($AL$132-$AL$137)/5*A6) -> 8.676 | AM135: 8.643666667 | AN135: 8.611333333 | AO135: 8.579 | AP135: 8.546666667 | AQ135: 8.514333333 | AR135: =$AR$132-(($AR$132-$AR$137)/5*A6) -> 8.482 | AS135: 8.55225 | AT135: 8.6225 | AU135: 8.69275 | AV135: 8.763 | AW135: 8.83325 | AX135: 8.9035 | AY135: 8.97375 | AZ135: =$AZ$132-(($AZ$132-$AZ$137)/5*A6) -> 9.044 | BA135: 9.0616 | BB135: 9.0792 | BC135: 9.0968 | BD135: 9.1144 | BE135: 9.132 | BF135: 9.1496 | BG135: 9.1672 | BH135: 9.1848 | BI135: 9.2024 | BJ135: =$BJ$132-(($BJ$132-$BJ$137)/5*A6) -> 9.22 | BK135: 9.201 | BL135: 9.182 | BM135: 9.163 | BN135: 9.144 | BO135: 9.125 | BP135: 9.106 | BQ135: 9.087 | BR135: 9.068 | BS135: 9.049 | BT135: =$BT$132-(($BT$132-$BT$137)/5*A6) -> 9.03 | BU135: 8.955 | BV135: 8.88 | BW135: 8.805 | BX135: 8.73 | BY135: 8.655 | BZ135: =$BZ$132-(($BZ$132-$BZ$137)/5*A6) -> 8.58 | CA135: 8.5044 | CB135: 8.4288 | CC135: 8.3532 | CD135: 8.2776 | CE135: 8.202 | CF135: 8.1264 | CG135: 8.0508 | CH135: 7.9752 | CI135: 7.8996 | CJ135: =$CJ$132-(($CJ$132-$CJ$137)/5*A6) -> 7.824 | CK135: =Eingabemaske!G$19 -> 4 | CL135: Altherma 3 R W 8 kW | CM135: Altherma 3 R W 8 kW | CN135: 9 | CO135: 3.6 | CQ135: 7.5
B136: Altherma 3 R W | C136: 8 | D136: ='Altherma 3 R'!$L$32 -> 2.7 | E136: ='Altherma 3 R'!$L$33 -> 3.64 | F136: ='Altherma 3 R'!$L$34 -> 4.6 | G136: 39 | H136: =$H$132-(($H$132-$H$137)/5*A7) -> 6.646 | I136: 6.7046 | J136: 6.7632 | K136: 6.8218 | L136: 6.8804 | M136: 6.939 | N136: 6.9976 | O136: 7.0562 | P136: 7.1148 | Q136: 7.1734 | R136: =$R$132-(($R$132-$R$137)/5*A7) -> 7.232 | S136: 7.290125 | T136: 7.34825 | U136: 7.406375 | V136: 7.4645 | W136: 7.522625 | X136: 7.58075 | Y136: 7.638875 | Z136: 7.697 | AA136: 7.755125 | AB136: 7.81325 | AC136: 7.871375 | AD136: 7.9295 | AE136: 7.987625 | AF136: 8.04575 | AG136: 8.103875 | AH136: =$AH$132-(($AH$132-$AH$137)/5*A7) -> 8.162 | AI136: 8.2785 | AJ136: 8.395 | AK136: 8.5115 | AL136: =$AL$132-(($AL$132-$AL$137)/5*A7) -> 8.628 | AM136: 8.596 | AN136: 8.564 | AO136: 8.532 | AP136: 8.5 | AQ136: 8.468 | AR136: =$AR$132-(($AR$132-$AR$137)/5*A7) -> 8.436 | AS136: 8.5055 | AT136: 8.575 | AU136: 8.6445 | AV136: 8.714 | AW136: 8.7835 | AX136: 8.853 | AY136: 8.9225 | AZ136: =$AZ$132-(($AZ$132-$AZ$137)/5*A7) -> 8.992 | BA136: 9.0098 | BB136: 9.0276 | BC136: 9.0454 | BD136: 9.0632 | BE136: 9.081 | BF136: 9.0988 | BG136: 9.1166 | BH136: 9.1344 | BI136: 9.1522 | BJ136: =$BJ$132-(($BJ$132-$BJ$137)/5*A7) -> 9.17 | BK136: 9.15 | BL136: 9.13 | BM136: 9.11 | BN136: 9.09 | BO136: 9.07 | BP136: 9.05 | BQ136: 9.03 | BR136: 9.01 | BS136: 8.99 | BT136: =$BT$132-(($BT$132-$BT$137)/5*A7) -> 8.97 | BU136: 8.891666667 | BV136: 8.813333333 | BW136: 8.735 | BX136: 8.656666667 | BY136: 8.578333333 | BZ136: =$BZ$132-(($BZ$132-$BZ$137)/5*A7) -> 8.5 | CA136: 8.4212 | CB136: 8.3424 | CC136: 8.2636 | CD136: 8.1848 | CE136: 8.106 | CF136: 8.0272 | CG136: 7.9484 | CH136: 7.8696 | CI136: 7.7908 | CJ136: =$CJ$132-(($CJ$132-$CJ$137)/5*A7) -> 7.712 | CK136: =Eingabemaske!G$19 -> 4 | CL136: Altherma 3 R W 8 kW | CM136: Altherma 3 R W 8 kW | CN136: 9 | CO136: 3.6 | CQ136: 7.5
B137: Altherma 3 R W | C137: 8 | D137: ='Altherma 3 R'!$L$32 -> 2.7 | E137: ='Altherma 3 R'!$L$33 -> 3.64 | F137: ='Altherma 3 R'!$L$34 -> 4.6 | G137: 40 | H137: ='Altherma 3 R'!E31 -> 6.62 | I137: =$H137-(($H137-$R137)/$R$3*I$3) -> 6.678 | J137: 6.736 | K137: 6.794 | L137: 6.852 | M137: 6.91 | N137: 6.968 | O137: 7.026 | P137: 7.084 | Q137: 7.142 | R137: ='Altherma 3 R'!E32 -> 7.2 | S137: =$R137-(($R137-$AH137)/$AH$3*S$3) -> 7.2575 | T137: 7.315 | U137: 7.3725 | V137: 7.43 | W137: 7.4875 | X137: 7.545 | Y137: 7.6025 | Z137: 7.66 | AA137: 7.7175 | AB137: 7.775 | AC137: 7.8325 | AD137: 7.89 | AE137: 7.9475 | AF137: 8.005 | AG137: 8.0625 | AH137: ='Altherma 3 R'!E33 -> 8.12 | AI137: 8.235 | AJ137: 8.35 | AK137: 8.465 | AL137: ='Altherma 3 R'!E35 -> 8.58 | AM137: =$AL137-(($AL137-$AR137)/$AR$1*AM$1) -> 8.548333333 | AN137: 8.516666667 | AO137: 8.485 | AP137: 8.453333333 | AQ137: 8.421666667 | AR137: ='Altherma 3 R'!E34 -> 8.39 | AS137: =$AR137-(($AR137-$AZ137)/$AZ$3*AS$3) -> 8.45875 | AT137: 8.5275 | AU137: 8.59625 | AV137: 8.665 | AW137: 8.73375 | AX137: 8.8025 | AY137: 8.87125 | AZ137: ='Altherma 3 R'!E36 -> 8.94 | BA137: =$AZ137-(($AZ137-$BJ137)/$BJ$3*BA$3) -> 8.958 | BB137: 8.976 | BC137: 8.994 | BD137: 9.012 | BE137: 9.03 | BF137: 9.048 | BG137: 9.066 | BH137: 9.084 | BI137: 9.102 | BJ137: ='Altherma 3 R'!E37 -> 9.12 | BK137: =$BJ137-(($BJ137-$BT137)/$BT$3*BK$3) -> 9.099 | BL137: 9.078 | BM137: 9.057 | BN137: 9.036 | BO137: 9.015 | BP137: 8.994 | BQ137: 8.973 | BR137: 8.952 | BS137: 8.931 | BT137: ='Altherma 3 R'!E38 -> 8.91 | BU137: =$BT137-(($BT137-$BZ137)/$BZ$3*BU$3) -> 8.828333333 | BV137: 8.746666667 | BW137: 8.665 | BX137: 8.583333333 | BY137: 8.501666667 | BZ137: ='Altherma 3 R'!E39 -> 8.42 | CA137: =$BZ137-(($BZ137-$CJ137)/$CJ$3*CA$3) -> 8.338 | CB137: 8.256 | CC137: 8.174 | CD137: 8.092 | CE137: 8.01 | CF137: 7.928 | CG137: 7.846 | CH137: 7.764 | CI137: 7.682 | CJ137: ='Altherma 3 R'!E40 -> 7.6 | CK137: =Eingabemaske!G$19 -> 4 | CL137: Altherma 3 R W 8 kW | CM137: Altherma 3 R W 8 kW | CN137: 9 | CO137: 3.6 | CQ137: 7.5
B138: Altherma 3 R W | C138: 8 | D138: ='Altherma 3 R'!$L$32 -> 2.7 | E138: ='Altherma 3 R'!$L$33 -> 3.64 | F138: ='Altherma 3 R'!$L$34 -> 4.6 | G138: 41 | H138: =$H$137-(($H$137-$H$142)/5*A4) -> 6.596 | I138: 6.6532 | J138: 6.7104 | K138: 6.7676 | L138: 6.8248 | M138: 6.882 | N138: 6.9392 | O138: 6.9964 | P138: 7.0536 | Q138: 7.1108 | R138: =$R$137-(($R$137-$R$142)/5*A4) -> 7.168 | S138: 7.22475 | T138: 7.2815 | U138: 7.33825 | V138: 7.395 | W138: 7.45175 | X138: 7.5085 | Y138: 7.56525 | Z138: 7.622 | AA138: 7.67875 | AB138: 7.7355 | AC138: 7.79225 | AD138: 7.849 | AE138: 7.90575 | AF138: 7.9625 | AG138: 8.01925 | AH138: =$AH$137-(($AH$137-$AH$142)/5*A4) -> 8.076 | AI138: 8.19 | AJ138: 8.304 | AK138: 8.418 | AL138: =$AL$137-(($AL$137-$AL$142)/5*A4) -> 8.532 | AM138: 8.500666667 | AN138: 8.469333333 | AO138: 8.438 | AP138: 8.406666667 | AQ138: 8.375333333 | AR138: =$AR$137-(($AR$137-$AR$142)/5*A4) -> 8.344 | AS138: 8.41225 | AT138: 8.4805 | AU138: 8.54875 | AV138: 8.617 | AW138: 8.68525 | AX138: 8.7535 | AY138: 8.82175 | AZ138: =$AZ$137-(($AZ$137-$AZ$142)/5*A4) -> 8.89 | BA138: 8.9078 | BB138: 8.9256 | BC138: 8.9434 | BD138: 8.9612 | BE138: 8.979 | BF138: 8.9968 | BG138: 9.0146 | BH138: 9.0324 | BI138: 9.0502 | BJ138: =$BJ$137-(($BJ$137-$BJ$142)/5*A4) -> 9.068 | BK138: 9.046 | BL138: 9.024 | BM138: 9.002 | BN138: 8.98 | BO138: 8.958 | BP138: 8.936 | BQ138: 8.914 | BR138: 8.892 | BS138: 8.87 | BT138: =$BT$137-(($BT$137-$BT$142)/5*A4) -> 8.848 | BU138: 8.763333333 | BV138: 8.678666667 | BW138: 8.594 | BX138: 8.509333333 | BY138: 8.424666667 | BZ138: =$BZ$137-(($BZ$137-$BZ$142)/5*A4) -> 8.34 | CA138: 8.2548 | CB138: 8.1696 | CC138: 8.0844 | CD138: 7.9992 | CE138: 7.914 | CF138: 7.8288 | CG138: 7.7436 | CH138: 7.6584 | CI138: 7.5732 | CJ138: =$CJ$137-(($CJ$137-$CJ$142)/5*A4) -> 7.488 | CK138: =Eingabemaske!G$19 -> 4 | CL138: Altherma 3 R W 8 kW | CM138: Altherma 3 R W 8 kW | CN138: 9 | CO138: 3.6 | CQ138: 7.5
B139: Altherma 3 R W | C139: 8 | D139: ='Altherma 3 R'!$L$32 -> 2.7 | E139: ='Altherma 3 R'!$L$33 -> 3.64 | F139: ='Altherma 3 R'!$L$34 -> 4.6 | G139: 42 | H139: =$H$137-(($H$137-$H$142)/5*A5) -> 6.572 | I139: 6.6284 | J139: 6.6848 | K139: 6.7412 | L139: 6.7976 | M139: 6.854 | N139: 6.9104 | O139: 6.9668 | P139: 7.0232 | Q139: 7.0796 | R139: =$R$137-(($R$137-$R$142)/5*A5) -> 7.136 | S139: 7.192 | T139: 7.248 | U139: 7.304 | V139: 7.36 | W139: 7.416 | X139: 7.472 | Y139: 7.528 | Z139: 7.584 | AA139: 7.64 | AB139: 7.696 | AC139: 7.752 | AD139: 7.808 | AE139: 7.864 | AF139: 7.92 | AG139: 7.976 | AH139: =$AH$137-(($AH$137-$AH$142)/5*A5) -> 8.032 | AI139: 8.145 | AJ139: 8.258 | AK139: 8.371 | AL139: =$AL$137-(($AL$137-$AL$142)/5*A5) -> 8.484 | AM139: 8.453 | AN139: 8.422 | AO139: 8.391 | AP139: 8.36 | AQ139: 8.329 | AR139: =$AR$137-(($AR$137-$AR$142)/5*A5) -> 8.298 | AS139: 8.36575 | AT139: 8.4335 | AU139: 8.50125 | AV139: 8.569 | AW139: 8.63675 | AX139: 8.7045 | AY139: 8.77225 | AZ139: =$AZ$137-(($AZ$137-$AZ$142)/5*A5) -> 8.84 | BA139: 8.8576 | BB139: 8.8752 | BC139: 8.8928 | BD139: 8.9104 | BE139: 8.928 | BF139: 8.9456 | BG139: 8.9632 | BH139: 8.9808 | BI139: 8.9984 | BJ139: =$BJ$137-(($BJ$137-$BJ$142)/5*A5) -> 9.016 | BK139: 8.993 | BL139: 8.97 | BM139: 8.947 | BN139: 8.924 | BO139: 8.901 | BP139: 8.878 | BQ139: 8.855 | BR139: 8.832 | BS139: 8.809 | BT139: =$BT$137-(($BT$137-$BT$142)/5*A5) -> 8.786 | BU139: 8.698333333 | BV139: 8.610666667 | BW139: 8.523 | BX139: 8.435333333 | BY139: 8.347666667 | BZ139: =$BZ$137-(($BZ$137-$BZ$142)/5*A5) -> 8.26 | CA139: 8.1716 | CB139: 8.0832 | CC139: 7.9948 | CD139: 7.9064 | CE139: 7.818 | CF139: 7.7296 | CG139: 7.6412 | CH139: 7.5528 | CI139: 7.4644 | CJ139: =$CJ$137-(($CJ$137-$CJ$142)/5*A5) -> 7.376 | CK139: =Eingabemaske!G$19 -> 4 | CL139: Altherma 3 R W 8 kW | CM139: Altherma 3 R W 8 kW | CN139: 9 | CO139: 3.6 | CQ139: 7.5
B140: Altherma 3 R W | C140: 8 | D140: ='Altherma 3 R'!$L$32 -> 2.7 | E140: ='Altherma 3 R'!$L$33 -> 3.64 | F140: ='Altherma 3 R'!$L$34 -> 4.6 | G140: 43 | H140: =$H$137-(($H$137-$H$142)/5*A6) -> 6.548 | I140: 6.6036 | J140: 6.6592 | K140: 6.7148 | L140: 6.7704 | M140: 6.826 | N140: 6.8816 | O140: 6.9372 | P140: 6.9928 | Q140: 7.0484 | R140: =$R$137-(($R$137-$R$142)/5*A6) -> 7.104 | S140: 7.15925 | T140: 7.2145 | U140: 7.26975 | V140: 7.325 | W140: 7.38025 | X140: 7.4355 | Y140: 7.49075 | Z140: 7.546 | AA140: 7.60125 | AB140: 7.6565 | AC140: 7.71175 | AD140: 7.767 | AE140: 7.82225 | AF140: 7.8775 | AG140: 7.93275 | AH140: =$AH$137-(($AH$137-$AH$142)/5*A6) -> 7.988 | AI140: 8.1 | AJ140: 8.212 | AK140: 8.324 | AL140: =$AL$137-(($AL$137-$AL$142)/5*A6) -> 8.436 | AM140: 8.405333333 | AN140: 8.374666667 | AO140: 8.344 | AP140: 8.313333333 | AQ140: 8.282666667 | AR140: =$AR$137-(($AR$137-$AR$142)/5*A6) -> 8.252 | AS140: 8.31925 | AT140: 8.3865 | AU140: 8.45375 | AV140: 8.521 | AW140: 8.58825 | AX140: 8.6555 | AY140: 8.72275 | AZ140: =$AZ$137-(($AZ$137-$AZ$142)/5*A6) -> 8.79 | BA140: 8.8074 | BB140: 8.8248 | BC140: 8.8422 | BD140: 8.8596 | BE140: 8.877 | BF140: 8.8944 | BG140: 8.9118 | BH140: 8.9292 | BI140: 8.9466 | BJ140: =$BJ$137-(($BJ$137-$BJ$142)/5*A6) -> 8.964 | BK140: 8.94 | BL140: 8.916 | BM140: 8.892 | BN140: 8.868 | BO140: 8.844 | BP140: 8.82 | BQ140: 8.796 | BR140: 8.772 | BS140: 8.748 | BT140: =$BT$137-(($BT$137-$BT$142)/5*A6) -> 8.724 | BU140: 8.633333333 | BV140: 8.542666667 | BW140: 8.452 | BX140: 8.361333333 | BY140: 8.270666667 | BZ140: =$BZ$137-(($BZ$137-$BZ$142)/5*A6) -> 8.18 | CA140: 8.0884 | CB140: 7.9968 | CC140: 7.9052 | CD140: 7.8136 | CE140: 7.722 | CF140: 7.6304 | CG140: 7.5388 | CH140: 7.4472 | CI140: 7.3556 | CJ140: =$CJ$137-(($CJ$137-$CJ$142)/5*A6) -> 7.264 | CK140: =Eingabemaske!G$19 -> 4 | CL140: Altherma 3 R W 8 kW | CM140: Altherma 3 R W 8 kW | CN140: 9 | CO140: 3.6 | CQ140: 7.5
B141: Altherma 3 R W | C141: 8 | D141: ='Altherma 3 R'!$L$32 -> 2.7 | E141: ='Altherma 3 R'!$L$33 -> 3.64 | F141: ='Altherma 3 R'!$L$34 -> 4.6 | G141: 44 | H141: =$H$137-(($H$137-$H$142)/5*A7) -> 6.524 | I141: 6.5788 | J141: 6.6336 | K141: 6.6884 | L141: 6.7432 | M141: 6.798 | N141: 6.8528 | O141: 6.9076 | P141: 6.9624 | Q141: 7.0172 | R141: =$R$137-(($R$137-$R$142)/5*A7) -> 7.072 | S141: 7.1265 | T141: 7.181 | U141: 7.2355 | V141: 7.29 | W141: 7.3445 | X141: 7.399 | Y141: 7.4535 | Z141: 7.508 | AA141: 7.5625 | AB141: 7.617 | AC141: 7.6715 | AD141: 7.726 | AE141: 7.7805 | AF141: 7.835 | AG141: 7.8895 | AH141: =$AH$137-(($AH$137-$AH$142)/5*A7) -> 7.944 | AI141: 8.055 | AJ141: 8.166 | AK141: 8.277 | AL141: =$AL$137-(($AL$137-$AL$142)/5*A7) -> 8.388 | AM141: 8.357666667 | AN141: 8.327333333 | AO141: 8.297 | AP141: 8.266666667 | AQ141: 8.236333333 | AR141: =$AR$137-(($AR$137-$AR$142)/5*A7) -> 8.206 | AS141: 8.27275 | AT141: 8.3395 | AU141: 8.40625 | AV141: 8.473 | AW141: 8.53975 | AX141: 8.6065 | AY141: 8.67325 | AZ141: =$AZ$137-(($AZ$137-$AZ$142)/5*A7) -> 8.74 | BA141: 8.7572 | BB141: 8.7744 | BC141: 8.7916 | BD141: 8.8088 | BE141: 8.826 | BF141: 8.8432 | BG141: 8.8604 | BH141: 8.8776 | BI141: 8.8948 | BJ141: =$BJ$137-(($BJ$137-$BJ$142)/5*A7) -> 8.912 | BK141: 8.887 | BL141: 8.862 | BM141: 8.837 | BN141: 8.812 | BO141: 8.787 | BP141: 8.762 | BQ141: 8.737 | BR141: 8.712 | BS141: 8.687 | BT141: =$BT$137-(($BT$137-$BT$142)/5*A7) -> 8.662 | BU141: 8.568333333 | BV141: 8.474666667 | BW141: 8.381 | BX141: 8.287333333 | BY141: 8.193666667 | BZ141: =$BZ$137-(($BZ$137-$BZ$142)/5*A7) -> 8.1 | CA141: 8.0052 | CB141: 7.9104 | CC141: 7.8156 | CD141: 7.7208 | CE141: 7.626 | CF141: 7.5312 | CG141: 7.4364 | CH141: 7.3416 | CI141: 7.2468 | CJ141: =$CJ$137-(($CJ$137-$CJ$142)/5*A7) -> 7.152 | CK141: =Eingabemaske!G$19 -> 4 | CL141: Altherma 3 R W 8 kW | CM141: Altherma 3 R W 8 kW | CN141: 9 | CO141: 3.6 | CQ141: 7.5
B142: Altherma 3 R W | C142: 8 | D142: ='Altherma 3 R'!$L$32 -> 2.7 | E142: ='Altherma 3 R'!$L$33 -> 3.64 | F142: ='Altherma 3 R'!$L$34 -> 4.6 | G142: 45 | H142: ='Altherma 3 R'!F31 -> 6.5 | I142: 6.554 | J142: 6.608 | K142: 6.662 | L142: 6.716 | M142: 6.77 | N142: 6.824 | O142: 6.878 | P142: 6.932 | Q142: 6.986 | R142: ='Altherma 3 R'!F32 -> 7.04 | S142: 7.09375 | T142: 7.1475 | U142: 7.20125 | V142: 7.255 | W142: 7.30875 | X142: 7.3625 | Y142: 7.41625 | Z142: 7.47 | AA142: 7.52375 | AB142: 7.5775 | AC142: 7.63125 | AD142: 7.685 | AE142: 7.73875 | AF142: 7.7925 | AG142: 7.84625 | AH142: ='Altherma 3 R'!F33 -> 7.9 | AI142: 8.01 | AJ142: 8.12 | AK142: 8.23 | AL142: ='Altherma 3 R'!F35 -> 8.34 | AM142: 8.31 | AN142: 8.28 | AO142: 8.25 | AP142: 8.22 | AQ142: 8.19 | AR142: ='Altherma 3 R'!F34 -> 8.16 | AS142: 8.22625 | AT142: 8.2925 | AU142: 8.35875 | AV142: 8.425 | AW142: 8.49125 | AX142: 8.5575 | AY142: 8.62375 | AZ142: ='Altherma 3 R'!F36 -> 8.69 | BA142: 8.707 | BB142: 8.724 | BC142: 8.741 | BD142: 8.758 | BE142: 8.775 | BF142: 8.792 | BG142: 8.809 | BH142: 8.826 | BI142: 8.843 | BJ142: ='Altherma 3 R'!F37 -> 8.86 | BK142: 8.834 | BL142: 8.808 | BM142: 8.782 | BN142: 8.756 | BO142: 8.73 | BP142: 8.704 | BQ142: 8.678 | BR142: 8.652 | BS142: 8.626 | BT142: ='Altherma 3 R'!F38 -> 8.6 | BU142: 8.503333333 | BV142: 8.406666667 | BW142: 8.31 | BX142: 8.213333333 | BY142: 8.116666667 | BZ142: ='Altherma 3 R'!F39 -> 8.02 | CA142: 7.922 | CB142: 7.824 | CC142: 7.726 | CD142: 7.628 | CE142: 7.53 | CF142: 7.432 | CG142: 7.334 | CH142: 7.236 | CI142: 7.138 | CJ142: ='Altherma 3 R'!F40 -> 7.04 | CK142: =Eingabemaske!G$19 -> 4 | CL142: Altherma 3 R W 8 kW | CM142: Altherma 3 R W 8 kW | CN142: 9 | CO142: 3.6 | CQ142: 7.5
B143: Altherma 3 R W | C143: 8 | D143: ='Altherma 3 R'!$L$32 -> 2.7 | E143: ='Altherma 3 R'!$L$33 -> 3.64 | F143: ='Altherma 3 R'!$L$34 -> 4.6 | G143: 46 | H143: =$H$142-(($H$142-$H$147)/5*A4) -> 6.474 | I143: 6.5254 | J143: 6.5768 | K143: 6.6282 | L143: 6.6796 | M143: 6.731 | N143: 6.7824 | O143: 6.8338 | P143: 6.8852 | Q143: 6.9366 | R143: =$R$142-(($R$142-$R$147)/5*A4) -> 6.988 | S143: 7.03925 | T143: 7.0905 | U143: 7.14175 | V143: 7.193 | W143: 7.24425 | X143: 7.2955 | Y143: 7.34675 | Z143: 7.398 | AA143: 7.44925 | AB143: 7.5005 | AC143: 7.55175 | AD143: 7.603 | AE143: 7.65425 | AF143: 7.7055 | AG143: 7.75675 | AH143: =$AH$142-(($AH$142-$AH$147)/5*A4) -> 7.808 | AI143: 7.9235 | AJ143: 8.039 | AK143: 8.1545 | AL143: =$AL$142-(($AL$142-$AL$147)/5*A4) -> 8.27 | AM143: 8.238666667 | AN143: 8.207333333 | AO143: 8.176 | AP143: 8.144666667 | AQ143: 8.113333333 | AR143: =$AR$142-(($AR$142-$AR$147)/5*A4) -> 8.082 | AS143: 8.1515 | AT143: 8.221 | AU143: 8.2905 | AV143: 8.36 | AW143: 8.4295 | AX143: 8.499 | AY143: 8.5685 | AZ143: =$AZ$142-(($AZ$142-$AZ$147)/5*A4) -> 8.638 | BA143: 8.6578 | BB143: 8.6776 | BC143: 8.6974 | BD143: 8.7172 | BE143: 8.737 | BF143: 8.7568 | BG143: 8.7766 | BH143: 8.7964 | BI143: 8.8162 | BJ143: =$BJ$142-(($BJ$142-$BJ$147)/5*A4) -> 8.836 | BK143: 8.8088 | BL143: 8.7816 | BM143: 8.7544 | BN143: 8.7272 | BO143: 8.7 | BP143: 8.6728 | BQ143: 8.6456 | BR143: 8.6184 | BS143: 8.5912 | BT143: =$BT$142-(($BT$142-$BT$147)/5*A4) -> 8.564 | BU143: 8.465666667 | BV143: 8.367333333 | BW143: 8.269 | BX143: 8.170666667 | BY143: 8.072333333 | BZ143: =$BZ$142-(($BZ$142-$BZ$147)/5*A4) -> 7.974 | CA143: 7.8742 | CB143: 7.7744 | CC143: 7.6746 | CD143: 7.5748 | CE143: 7.475 | CF143: 7.3752 | CG143: 7.2754 | CH143: 7.1756 | CI143: 7.0758 | CJ143: =$CJ$142-(($CJ$142-$CJ$147)/5*A4) -> 6.976 | CK143: =Eingabemaske!G$19 -> 4 | CL143: Altherma 3 R W 8 kW | CM143: Altherma 3 R W 8 kW | CN143: 9 | CO143: 3.6 | CQ143: 7.5
B144: Altherma 3 R W | C144: 8 | D144: ='Altherma 3 R'!$L$32 -> 2.7 | E144: ='Altherma 3 R'!$L$33 -> 3.64 | F144: ='Altherma 3 R'!$L$34 -> 4.6 | G144: 47 | H144: =$H$142-(($H$142-$H$147)/5*A5) -> 6.448 | I144: 6.4968 | J144: 6.5456 | K144: 6.5944 | L144: 6.6432 | M144: 6.692 | N144: 6.7408 | O144: 6.7896 | P144: 6.8384 | Q144: 6.8872 | R144: =$R$142-(($R$142-$R$147)/5*A5) -> 6.936 | S144: 6.98475 | T144: 7.0335 | U144: 7.08225 | V144: 7.131 | W144: 7.17975 | X144: 7.2285 | Y144: 7.27725 | Z144: 7.326 | AA144: 7.37475 | AB144: 7.4235 | AC144: 7.47225 | AD144: 7.521 | AE144: 7.56975 | AF144: 7.6185 | AG144: 7.66725 | AH144: =$AH$142-(($AH$142-$AH$147)/5*A5) -> 7.716 | AI144: 7.837 | AJ144: 7.958 | AK144: 8.079 | AL144: =$AL$142-(($AL$142-$AL$147)/5*A5) -> 8.2 | AM144: 8.167333333 | AN144: 8.134666667 | AO144: 8.102 | AP144: 8.069333333 | AQ144: 8.036666667 | AR144: =$AR$142-(($AR$142-$AR$147)/5*A5) -> 8.004 | AS144: 8.07675 | AT144: 8.1495 | AU144: 8.22225 | AV144: 8.295 | AW144: 8.36775 | AX144: 8.4405 | AY144: 8.51325 | AZ144: =$AZ$142-(($AZ$142-$AZ$147)/5*A5) -> 8.586 | BA144: 8.6086 | BB144: 8.6312 | BC144: 8.6538 | BD144: 8.6764 | BE144: 8.699 | BF144: 8.7216 | BG144: 8.7442 | BH144: 8.7668 | BI144: 8.7894 | BJ144: =$BJ$142-(($BJ$142-$BJ$147)/5*A5) -> 8.812 | BK144: 8.7836 | BL144: 8.7552 | BM144: 8.7268 | BN144: 8.6984 | BO144: 8.67 | BP144: 8.6416 | BQ144: 8.6132 | BR144: 8.5848 | BS144: 8.5564 | BT144: =$BT$142-(($BT$142-$BT$147)/5*A5) -> 8.528 | BU144: 8.428 | BV144: 8.328 | BW144: 8.228 | BX144: 8.128 | BY144: 8.028 | BZ144: =$BZ$142-(($BZ$142-$BZ$147)/5*A5) -> 7.928 | CA144: 7.8264 | CB144: 7.7248 | CC144: 7.6232 | CD144: 7.5216 | CE144: 7.42 | CF144: 7.3184 | CG144: 7.2168 | CH144: 7.1152 | CI144: 7.0136 | CJ144: =$CJ$142-(($CJ$142-$CJ$147)/5*A5) -> 6.912 | CK144: =Eingabemaske!G$19 -> 4 | CL144: Altherma 3 R W 8 kW | CM144: Altherma 3 R W 8 kW | CN144: 9 | CO144: 3.6 | CQ144: 7.5
B145: Altherma 3 R W | C145: 8 | D145: ='Altherma 3 R'!$L$32 -> 2.7 | E145: ='Altherma 3 R'!$L$33 -> 3.64 | F145: ='Altherma 3 R'!$L$34 -> 4.6 | G145: 48 | H145: =$H$142-(($H$142-$H$147)/5*A6) -> 6.422 | I145: 6.4682 | J145: 6.5144 | K145: 6.5606 | L145: 6.6068 | M145: 6.653 | N145: 6.6992 | O145: 6.7454 | P145: 6.7916 | Q145: 6.8378 | R145: =$R$142-(($R$142-$R$147)/5*A6) -> 6.884 | S145: 6.93025 | T145: 6.9765 | U145: 7.02275 | V145: 7.069 | W145: 7.11525 | X145: 7.1615 | Y145: 7.20775 | Z145: 7.254 | AA145: 7.30025 | AB145: 7.3465 | AC145: 7.39275 | AD145: 7.439 | AE145: 7.48525 | AF145: 7.5315 | AG145: 7.57775 | AH145: =$AH$142-(($AH$142-$AH$147)/5*A6) -> 7.624 | AI145: 7.7505 | AJ145: 7.877 | AK145: 8.0035 | AL145: =$AL$142-(($AL$142-$AL$147)/5*A6) -> 8.13 | AM145: 8.096 | AN145: 8.062 | AO145: 8.028 | AP145: 7.994 | AQ145: 7.96 | AR145: =$AR$142-(($AR$142-$AR$147)/5*A6) -> 7.926 | AS145: 8.002 | AT145: 8.078 | AU145: 8.154 | AV145: 8.23 | AW145: 8.306 | AX145: 8.382 | AY145: 8.458 | AZ145: =$AZ$142-(($AZ$142-$AZ$147)/5*A6) -> 8.534 | BA145: 8.5594 | BB145: 8.5848 | BC145: 8.6102 | BD145: 8.6356 | BE145: 8.661 | BF145: 8.6864 | BG145: 8.7118 | BH145: 8.7372 | BI145: 8.7626 | BJ145: =$BJ$142-(($BJ$142-$BJ$147)/5*A6) -> 8.788 | BK145: 8.7584 | BL145: 8.7288 | BM145: 8.6992 | BN145: 8.6696 | BO145: 8.64 | BP145: 8.6104 | BQ145: 8.5808 | BR145: 8.5512 | BS145: 8.5216 | BT145: =$BT$142-(($BT$142-$BT$147)/5*A6) -> 8.492 | BU145: 8.390333333 | BV145: 8.288666667 | BW145: 8.187 | BX145: 8.085333333 | BY145: 7.983666667 | BZ145: =$BZ$142-(($BZ$142-$BZ$147)/5*A6) -> 7.882 | CA145: 7.7786 | CB145: 7.6752 | CC145: 7.5718 | CD145: 7.4684 | CE145: 7.365 | CF145: 7.2616 | CG145: 7.1582 | CH145: 7.0548 | CI145: 6.9514 | CJ145: =$CJ$142-(($CJ$142-$CJ$147)/5*A6) -> 6.848 | CK145: =Eingabemaske!G$19 -> 4 | CL145: Altherma 3 R W 8 kW | CM145: Altherma 3 R W 8 kW | CN145: 9 | CO145: 3.6 | CQ145: 7.5
B146: Altherma 3 R W | C146: 8 | D146: ='Altherma 3 R'!$L$32 -> 2.7 | E146: ='Altherma 3 R'!$L$33 -> 3.64 | F146: ='Altherma 3 R'!$L$34 -> 4.6 | G146: 49 | H146: =$H$142-(($H$142-$H$147)/5*A7) -> 6.396 | I146: 6.4396 | J146: 6.4832 | K146: 6.5268 | L146: 6.5704 | M146: 6.614 | N146: 6.6576 | O146: 6.7012 | P146: 6.7448 | Q146: 6.7884 | R146: =$R$142-(($R$142-$R$147)/5*A7) -> 6.832 | S146: 6.87575 | T146: 6.9195 | U146: 6.96325 | V146: 7.007 | W146: 7.05075 | X146: 7.0945 | Y146: 7.13825 | Z146: 7.182 | AA146: 7.22575 | AB146: 7.2695 | AC146: 7.31325 | AD146: 7.357 | AE146: 7.40075 | AF146: 7.4445 | AG146: 7.48825 | AH146: =$AH$142-(($AH$142-$AH$147)/5*A7) -> 7.532 | AI146: 7.664 | AJ146: 7.796 | AK146: 7.928 | AL146: =$AL$142-(($AL$142-$AL$147)/5*A7) -> 8.06 | AM146: 8.024666667 | AN146: 7.989333333 | AO146: 7.954 | AP146: 7.918666667 | AQ146: 7.883333333 | AR146: =$AR$142-(($AR$142-$AR$147)/5*A7) -> 7.848 | AS146: 7.92725 | AT146: 8.0065 | AU146: 8.08575 | AV146: 8.165 | AW146: 8.24425 | AX146: 8.3235 | AY146: 8.40275 | AZ146: =$AZ$142-(($AZ$142-$AZ$147)/5*A7) -> 8.482 | BA146: 8.5102 | BB146: 8.5384 | BC146: 8.5666 | BD146: 8.5948 | BE146: 8.623 | BF146: 8.6512 | BG146: 8.6794 | BH146: 8.7076 | BI146: 8.7358 | BJ146: =$BJ$142-(($BJ$142-$BJ$147)/5*A7) -> 8.764 | BK146: 8.7332 | BL146: 8.7024 | BM146: 8.6716 | BN146: 8.6408 | BO146: 8.61 | BP146: 8.5792 | BQ146: 8.5484 | BR146: 8.5176 | BS146: 8.4868 | BT146: =$BT$142-(($BT$142-$BT$147)/5*A7) -> 8.456 | BU146: 8.352666667 | BV146: 8.249333333 | BW146: 8.146 | BX146: 8.042666667 | BY146: 7.939333333 | BZ146: =$BZ$142-(($BZ$142-$BZ$147)/5*A7) -> 7.836 | CA146: 7.7308 | CB146: 7.6256 | CC146: 7.5204 | CD146: 7.4152 | CE146: 7.31 | CF146: 7.2048 | CG146: 7.0996 | CH146: 6.9944 | CI146: 6.8892 | CJ146: =$CJ$142-(($CJ$142-$CJ$147)/5*A7) -> 6.784 | CK146: =Eingabemaske!G$19 -> 4 | CL146: Altherma 3 R W 8 kW | CM146: Altherma 3 R W 8 kW | CN146: 9 | CO146: 3.6 | CQ146: 7.5
B147: Altherma 3 R W | C147: 8 | D147: ='Altherma 3 R'!$L$32 -> 2.7 | E147: ='Altherma 3 R'!$L$33 -> 3.64 | F147: ='Altherma 3 R'!$L$34 -> 4.6 | G147: 50 | H147: ='Altherma 3 R'!G31 -> 6.37 | I147: 6.411 | J147: 6.452 | K147: 6.493 | L147: 6.534 | M147: 6.575 | N147: 6.616 | O147: 6.657 | P147: 6.698 | Q147: 6.739 | R147: ='Altherma 3 R'!G32 -> 6.78 | S147: =$R147-(($R147-$AH147)/$AH$3*S$3) -> 6.82125 | T147: 6.8625 | U147: 6.90375 | V147: 6.945 | W147: 6.98625 | X147: 7.0275 | Y147: 7.06875 | Z147: 7.11 | AA147: 7.15125 | AB147: 7.1925 | AC147: 7.23375 | AD147: 7.275 | AE147: 7.31625 | AF147: 7.3575 | AG147: 7.39875 | AH147: ='Altherma 3 R'!G33 -> 7.44 | AI147: 7.5775 | AJ147: 7.715 | AK147: 7.8525 | AL147: ='Altherma 3 R'!G35 -> 7.99 | AM147: =$AL147-(($AL147-$AR147)/$AR$1*AM$1) -> 7.953333333 | AN147: 7.916666667 | AO147: 7.88 | AP147: 7.843333333 | AQ147: 7.806666667 | AR147: ='Altherma 3 R'!G34 -> 7.77 | AS147: =$AR147-(($AR147-$AZ147)/$AZ$3*AS$3) -> 7.8525 | AT147: 7.935 | AU147: 8.0175 | AV147: 8.1 | AW147: 8.1825 | AX147: 8.265 | AY147: 8.3475 | AZ147: ='Altherma 3 R'!G36 -> 8.43 | BA147: =$AZ147-(($AZ147-$BJ147)/$BJ$3*BA$3) -> 8.461 | BB147: 8.492 | BC147: 8.523 | BD147: 8.554 | BE147: 8.585 | BF147: 8.616 | BG147: 8.647 | BH147: 8.678 | BI147: 8.709 | BJ147: ='Altherma 3 R'!G37 -> 8.74 | BK147: =$BJ147-(($BJ147-$BT147)/$BT$3*BK$3) -> 8.708 | BL147: 8.676 | BM147: 8.644 | BN147: 8.612 | BO147: 8.58 | BP147: 8.548 | BQ147: 8.516 | BR147: 8.484 | BS147: 8.452 | BT147: ='Altherma 3 R'!G38 -> 8.42 | BU147: =$BT147-(($BT147-$BZ147)/$BZ$3*BU$3) -> 8.315 | BV147: 8.21 | BW147: 8.105 | BX147: 8 | BY147: 7.895 | BZ147: ='Altherma 3 R'!G39 -> 7.79 | CA147: =$BZ147-(($BZ147-$CJ147)/$CJ$3*CA$3) -> 7.683 | CB147: 7.576 | CC147: 7.469 | CD147: 7.362 | CE147: 7.255 | CF147: 7.148 | CG147: 7.041 | CH147: 6.934 | CI147: 6.827 | CJ147: ='Altherma 3 R'!G40 -> 6.72 | CK147: =Eingabemaske!G$19 -> 4 | CL147: Altherma 3 R W 8 kW | CM147: Altherma 3 R W 8 kW | CN147: 9 | CO147: 3.6 | CQ147: 7.5
B148: Altherma 3 R W | C148: 8 | D148: ='Altherma 3 R'!$L$32 -> 2.7 | E148: ='Altherma 3 R'!$L$33 -> 3.64 | F148: ='Altherma 3 R'!$L$34 -> 4.6 | G148: 51 | R148: =$R$147-(($R$147-$R$152)/5*A4) -> 6.69 | S148: 6.731125 | T148: 6.77225 | U148: 6.813375 | V148: 6.8545 | W148: 6.895625 | X148: 6.93675 | Y148: 6.977875 | Z148: 7.019 | AA148: 7.060125 | AB148: 7.10125 | AC148: 7.142375 | AD148: 7.1835 | AE148: 7.224625 | AF148: 7.26575 | AG148: 7.306875 | AH148: =$AH$147-(($AH$147-$AH$152)/5*A4) -> 7.348 | AI148: 7.491 | AJ148: 7.634 | AK148: 7.777 | AL148: =$AL$147-(($AL$147-$AL$152)/5*A4) -> 7.92 | AM148: 7.881666667 | AN148: 7.843333333 | AO148: 7.805 | AP148: 7.766666667 | AQ148: 7.728333333 | AR148: =$AR$147-(($AR$147-$AR$152)/5*A4) -> 7.69 | AS148: 7.776 | AT148: 7.862 | AU148: 7.948 | AV148: 8.034 | AW148: 8.12 | AX148: 8.206 | AY148: 8.292 | AZ148: =$AZ$147-(($AZ$147-$AZ$152)/5*A4) -> 8.378 | BA148: 8.4116 | BB148: 8.4452 | BC148: 8.4788 | BD148: 8.5124 | BE148: 8.546 | BF148: 8.5796 | BG148: 8.6132 | BH148: 8.6468 | BI148: 8.6804 | BJ148: =$BJ$147-(($BJ$147-$BJ$152)/5*A4) -> 8.714 | BK148: 8.6812 | BL148: 8.6484 | BM148: 8.6156 | BN148: 8.5828 | BO148: 8.55 | BP148: 8.5172 | BQ148: 8.4844 | BR148: 8.4516 | BS148: 8.4188 | BT148: =$BT$147-(($BT$147-$BT$152)/5*A4) -> 8.386 | BU148: 8.278666667 | BV148: 8.171333333 | BW148: 8.064 | BX148: 7.956666667 | BY148: 7.849333333 | BZ148: =$BZ$147-(($BZ$147-$BZ$152)/5*A4) -> 7.742 | CA148: 7.6334 | CB148: 7.5248 | CC148: 7.4162 | CD148: 7.3076 | CE148: 7.199 | CF148: 7.0904 | CG148: 6.9818 | CH148: 6.8732 | CI148: 6.7646 | CJ148: =$CJ$147-(($CJ$147-$CJ$152)/5*A4) -> 6.656 | CK148: =Eingabemaske!G$19 -> 4 | CL148: Altherma 3 R W 8 kW | CM148: Altherma 3 R W 8 kW | CN148: 9 | CO148: 3.6 | CQ148: 7.5
B149: Altherma 3 R W | C149: 8 | D149: ='Altherma 3 R'!$L$32 -> 2.7 | E149: ='Altherma 3 R'!$L$33 -> 3.64 | F149: ='Altherma 3 R'!$L$34 -> 4.6 | G149: 52 | R149: =$R$147-(($R$147-$R$152)/5*A5) -> 6.6 | S149: 6.641 | T149: 6.682 | U149: 6.723 | V149: 6.764 | W149: 6.805 | X149: 6.846 | Y149: 6.887 | Z149: 6.928 | AA149: 6.969 | AB149: 7.01 | AC149: 7.051 | AD149: 7.092 | AE149: 7.133 | AF149: 7.174 | AG149: 7.215 | AH149: =$AH$147-(($AH$147-$AH$152)/5*A5) -> 7.256 | AI149: 7.4045 | AJ149: 7.553 | AK149: 7.7015 | AL149: =$AL$147-(($AL$147-$AL$152)/5*A5) -> 7.85 | AM149: 7.81 | AN149: 7.77 | AO149: 7.73 | AP149: 7.69 | AQ149: 7.65 | AR149: =$AR$147-(($AR$147-$AR$152)/5*A5) -> 7.61 | AS149: 7.6995 | AT149: 7.789 | AU149: 7.8785 | AV149: 7.968 | AW149: 8.0575 | AX149: 8.147 | AY149: 8.2365 | AZ149: =$AZ$147-(($AZ$147-$AZ$152)/5*A5) -> 8.326 | BA149: 8.3622 | BB149: 8.3984 | BC149: 8.4346 | BD149: 8.4708 | BE149: 8.507 | BF149: 8.5432 | BG149: 8.5794 | BH149: 8.6156 | BI149: 8.6518 | BJ149: =$BJ$147-(($BJ$147-$BJ$152)/5*A5) -> 8.688 | BK149: 8.6544 | BL149: 8.6208 | BM149: 8.5872 | BN149: 8.5536 | BO149: 8.52 | BP149: 8.4864 | BQ149: 8.4528 | BR149: 8.4192 | BS149: 8.3856 | BT149: =$BT$147-(($BT$147-$BT$152)/5*A5) -> 8.352 | BU149: 8.242333333 | BV149: 8.132666667 | BW149: 8.023 | BX149: 7.913333333 | BY149: 7.803666667 | BZ149: =$BZ$147-(($BZ$147-$BZ$152)/5*A5) -> 7.694 | CA149: 7.5838 | CB149: 7.4736 | CC149: 7.3634 | CD149: 7.2532 | CE149: 7.143 | CF149: 7.0328 | CG149: 6.9226 | CH149: 6.8124 | CI149: 6.7022 | CJ149: =$CJ$147-(($CJ$147-$CJ$152)/5*A5) -> 6.592 | CK149: =Eingabemaske!G$19 -> 4 | CL149: Altherma 3 R W 8 kW | CM149: Altherma 3 R W 8 kW | CN149: 9 | CO149: 3.6 | CQ149: 7.5
B150: Altherma 3 R W | C150: 8 | D150: ='Altherma 3 R'!$L$32 -> 2.7 | E150: ='Altherma 3 R'!$L$33 -> 3.64 | F150: ='Altherma 3 R'!$L$34 -> 4.6 | G150: 53 | R150: =$R$147-(($R$147-$R$152)/5*A6) -> 6.51 | S150: 6.550875 | T150: 6.59175 | U150: 6.632625 | V150: 6.6735 | W150: 6.714375 | X150: 6.75525 | Y150: 6.796125 | Z150: 6.837 | AA150: 6.877875 | AB150: 6.91875 | AC150: 6.959625 | AD150: 7.0005 | AE150: 7.041375 | AF150: 7.08225 | AG150: 7.123125 | AH150: =$AH$147-(($AH$147-$AH$152)/5*A6) -> 7.164 | AI150: 7.318 | AJ150: 7.472 | AK150: 7.626 | AL150: =$AL$147-(($AL$147-$AL$152)/5*A6) -> 7.78 | AM150: 7.738333333 | AN150: 7.696666667 | AO150: 7.655 | AP150: 7.613333333 | AQ150: 7.571666667 | AR150: =$AR$147-(($AR$147-$AR$152)/5*A6) -> 7.53 | AS150: 7.623 | AT150: 7.716 | AU150: 7.809 | AV150: 7.902 | AW150: 7.995 | AX150: 8.088 | AY150: 8.181 | AZ150: =$AZ$147-(($AZ$147-$AZ$152)/5*A6) -> 8.274 | BA150: 8.3128 | BB150: 8.3516 | BC150: 8.3904 | BD150: 8.4292 | BE150: 8.468 | BF150: 8.5068 | BG150: 8.5456 | BH150: 8.5844 | BI150: 8.6232 | BJ150: =$BJ$147-(($BJ$147-$BJ$152)/5*A6) -> 8.662 | BK150: 8.6276 | BL150: 8.5932 | BM150: 8.5588 | BN150: 8.5244 | BO150: 8.49 | BP150: 8.4556 | BQ150: 8.4212 | BR150: 8.3868 | BS150: 8.3524 | BT150: =$BT$147-(($BT$147-$BT$152)/5*A6) -> 8.318 | BU150: 8.206 | BV150: 8.094 | BW150: 7.982 | BX150: 7.87 | BY150: 7.758 | BZ150: =$BZ$147-(($BZ$147-$BZ$152)/5*A6) -> 7.646 | CA150: 7.5342 | CB150: 7.4224 | CC150: 7.3106 | CD150: 7.1988 | CE150: 7.087 | CF150: 6.9752 | CG150: 6.8634 | CH150: 6.7516 | CI150: 6.6398 | CJ150: =$CJ$147-(($CJ$147-$CJ$152)/5*A6) -> 6.528 | CK150: =Eingabemaske!G$19 -> 4 | CL150: Altherma 3 R W 8 kW | CM150: Altherma 3 R W 8 kW | CN150: 9 | CO150: 3.6 | CQ150: 7.5
B151: Altherma 3 R W | C151: 8 | D151: ='Altherma 3 R'!$L$32 -> 2.7 | E151: ='Altherma 3 R'!$L$33 -> 3.64 | F151: ='Altherma 3 R'!$L$34 -> 4.6 | G151: 54 | R151: =$R$147-(($R$147-$R$152)/5*A7) -> 6.42 | S151: 6.46075 | T151: 6.5015 | U151: 6.54225 | V151: 6.583 | W151: 6.62375 | X151: 6.6645 | Y151: 6.70525 | Z151: 6.746 | AA151: 6.78675 | AB151: 6.8275 | AC151: 6.86825 | AD151: 6.909 | AE151: 6.94975 | AF151: 6.9905 | AG151: 7.03125 | AH151: =$AH$147-(($AH$147-$AH$152)/5*A7) -> 7.072 | AI151: 7.2315 | AJ151: 7.391 | AK151: 7.5505 | AL151: =$AL$147-(($AL$147-$AL$152)/5*A7) -> 7.71 | AM151: 7.666666667 | AN151: 7.623333333 | AO151: 7.58 | AP151: 7.536666667 | AQ151: 7.493333333 | AR151: =$AR$147-(($AR$147-$AR$152)/5*A7) -> 7.45 | AS151: 7.5465 | AT151: 7.643 | AU151: 7.7395 | AV151: 7.836 | AW151: 7.9325 | AX151: 8.029 | AY151: 8.1255 | AZ151: =$AZ$147-(($AZ$147-$AZ$152)/5*A7) -> 8.222 | BA151: 8.2634 | BB151: 8.3048 | BC151: 8.3462 | BD151: 8.3876 | BE151: 8.429 | BF151: 8.4704 | BG151: 8.5118 | BH151: 8.5532 | BI151: 8.5946 | BJ151: =$BJ$147-(($BJ$147-$BJ$152)/5*A7) -> 8.636 | BK151: 8.6008 | BL151: 8.5656 | BM151: 8.5304 | BN151: 8.4952 | BO151: 8.46 | BP151: 8.4248 | BQ151: 8.3896 | BR151: 8.3544 | BS151: 8.3192 | BT151: =$BT$147-(($BT$147-$BT$152)/5*A7) -> 8.284 | BU151: 8.169666667 | BV151: 8.055333333 | BW151: 7.941 | BX151: 7.826666667 | BY151: 7.712333333 | BZ151: =$BZ$147-(($BZ$147-$BZ$152)/5*A7) -> 7.598 | CA151: 7.4846 | CB151: 7.3712 | CC151: 7.2578 | CD151: 7.1444 | CE151: 7.031 | CF151: 6.9176 | CG151: 6.8042 | CH151: 6.6908 | CI151: 6.5774 | CJ151: =$CJ$147-(($CJ$147-$CJ$152)/5*A7) -> 6.464 | CK151: =Eingabemaske!G$19 -> 4 | CL151: Altherma 3 R W 8 kW | CM151: Altherma 3 R W 8 kW | CN151: 9 | CO151: 3.6 | CQ151: 7.5
B152: Altherma 3 R W | C152: 8 | D152: ='Altherma 3 R'!$L$32 -> 2.7 | E152: ='Altherma 3 R'!$L$33 -> 3.64 | F152: ='Altherma 3 R'!$L$34 -> 4.6 | G152: 55 | R152: 6.33 | S152: 6.370625 | T152: 6.41125 | U152: 6.451875 | V152: 6.4925 | W152: 6.533125 | X152: 6.57375 | Y152: 6.614375 | Z152: 6.655 | AA152: 6.695625 | AB152: 6.73625 | AC152: 6.776875 | AD152: 6.8175 | AE152: 6.858125 | AF152: 6.89875 | AG152: 6.939375 | AH152: ='Altherma 3 R'!H33 -> 6.98 | AI152: 7.145 | AJ152: 7.31 | AK152: 7.475 | AL152: ='Altherma 3 R'!H35 -> 7.64 | AM152: 7.595 | AN152: 7.55 | AO152: 7.505 | AP152: 7.46 | AQ152: 7.415 | AR152: ='Altherma 3 R'!H34 -> 7.37 | AS152: 7.47 | AT152: 7.57 | AU152: 7.67 | AV152: 7.77 | AW152: 7.87 | AX152: 7.97 | AY152: 8.07 | AZ152: ='Altherma 3 R'!H36 -> 8.17 | BA152: 8.214 | BB152: 8.258 | BC152: 8.302 | BD152: 8.346 | BE152: 8.39 | BF152: 8.434 | BG152: 8.478 | BH152: 8.522 | BI152: 8.566 | BJ152: ='Altherma 3 R'!H37 -> 8.61 | BK152: 8.574 | BL152: 8.538 | BM152: 8.502 | BN152: 8.466 | BO152: 8.43 | BP152: 8.394 | BQ152: 8.358 | BR152: 8.322 | BS152: 8.286 | BT152: ='Altherma 3 R'!H38 -> 8.25 | BU152: 8.133333333 | BV152: 8.016666667 | BW152: 7.9 | BX152: 7.783333333 | BY152: 7.666666667 | BZ152: ='Altherma 3 R'!H39 -> 7.55 | CA152: 7.435 | CB152: 7.32 | CC152: 7.205 | CD152: 7.09 | CE152: 6.975 | CF152: 6.86 | CG152: 6.745 | CH152: 6.63 | CI152: 6.515 | CJ152: ='Altherma 3 R'!H40 -> 6.4 | CK152: =Eingabemaske!G$19 -> 4 | CL152: Altherma 3 R W 8 kW | CM152: Altherma 3 R W 8 kW | CN152: 9 | CO152: 3.6 | CQ152: 7.5
B153: Altherma 3 R W | C153: 8 | D153: ='Altherma 3 R'!$L$32 -> 2.7 | E153: ='Altherma 3 R'!$L$33 -> 3.64 | F153: ='Altherma 3 R'!$L$34 -> 4.6 | G153: 56 | AL153: =$AL$152-(($AL$152-$AL$157)/5*A4) -> 7.566 | AM153: 7.513 | AN153: 7.46 | AO153: 7.407 | AP153: 7.354 | AQ153: 7.301 | AR153: =$AR$152-(($AR$152-$AR$157)/5*A4) -> 7.248 | AS153: 7.35675 | AT153: 7.4655 | AU153: 7.57425 | AV153: 7.683 | AW153: 7.79175 | AX153: 7.9005 | AY153: 8.00925 | AZ153: =$AZ$152-(($AZ$152-$AZ$157)/5*A4) -> 8.118 | BA153: 8.1626 | BB153: 8.2072 | BC153: 8.2518 | BD153: 8.2964 | BE153: 8.341 | BF153: 8.3856 | BG153: 8.4302 | BH153: 8.4748 | BI153: 8.5194 | BJ153: =$BJ$152-(($BJ$152-$BJ$157)/5*A4) -> 8.564 | BK153: 8.5288 | BL153: 8.4936 | BM153: 8.4584 | BN153: 8.4232 | BO153: 8.388 | BP153: 8.3528 | BQ153: 8.3176 | BR153: 8.2824 | BS153: 8.2472 | BT153: =$BT$152-(($BT$152-$BT$157)/5*A4) -> 8.212 | BU153: 8.096666667 | BV153: 7.981333333 | BW153: 7.866 | BX153: 7.750666667 | BY153: 7.635333333 | BZ153: =$BZ$152-(($BZ$152-$BZ$157)/5*A4) -> 7.52 | CA153: 7.4058 | CB153: 7.2916 | CC153: 7.1774 | CD153: 7.0632 | CE153: 6.949 | CF153: 6.8348 | CG153: 6.7206 | CH153: 6.6064 | CI153: 6.4922 | CJ153: =$CJ$152-(($CJ$152-$CJ$157)/5*A4) -> 6.378 | CK153: =Eingabemaske!G$19 -> 4 | CL153: Altherma 3 R W 8 kW | CM153: Altherma 3 R W 8 kW | CN153: 9 | CO153: 3.6 | CQ153: 7.5
B154: Altherma 3 R W | C154: 8 | D154: ='Altherma 3 R'!$L$32 -> 2.7 | E154: ='Altherma 3 R'!$L$33 -> 3.64 | F154: ='Altherma 3 R'!$L$34 -> 4.6 | G154: 57 | AL154: =$AL$152-(($AL$152-$AL$157)/5*A5) -> 7.492 | AM154: 7.431 | AN154: 7.37 | AO154: 7.309 | AP154: 7.248 | AQ154: 7.187 | AR154: =$AR$152-(($AR$152-$AR$157)/5*A5) -> 7.126 | AS154: 7.2435 | AT154: 7.361 | AU154: 7.4785 | AV154: 7.596 | AW154: 7.7135 | AX154: 7.831 | AY154: 7.9485 | AZ154: =$AZ$152-(($AZ$152-$AZ$157)/5*A5) -> 8.066 | BA154: 8.1112 | BB154: 8.1564 | BC154: 8.2016 | BD154: 8.2468 | BE154: 8.292 | BF154: 8.3372 | BG154: 8.3824 | BH154: 8.4276 | BI154: 8.4728 | BJ154: =$BJ$152-(($BJ$152-$BJ$157)/5*A5) -> 8.518 | BK154: 8.4836 | BL154: 8.4492 | BM154: 8.4148 | BN154: 8.3804 | BO154: 8.346 | BP154: 8.3116 | BQ154: 8.2772 | BR154: 8.2428 | BS154: 8.2084 | BT154: =$BT$152-(($BT$152-$BT$157)/5*A5) -> 8.174 | BU154: 8.06 | BV154: 7.946 | BW154: 7.832 | BX154: 7.718 | BY154: 7.604 | BZ154: =$BZ$152-(($BZ$152-$BZ$157)/5*A5) -> 7.49 | CA154: 7.3766 | CB154: 7.2632 | CC154: 7.1498 | CD154: 7.0364 | CE154: 6.923 | CF154: 6.8096 | CG154: 6.6962 | CH154: 6.5828 | CI154: 6.4694 | CJ154: =$CJ$152-(($CJ$152-$CJ$157)/5*A5) -> 6.356 | CK154: =Eingabemaske!G$19 -> 4 | CL154: Altherma 3 R W 8 kW | CM154: Altherma 3 R W 8 kW | CN154: 9 | CO154: 3.6 | CQ154: 7.5
